Workbook

Sheet Age profile chart

Sheet Forecast Ch1

Sheet Age profile summary
A1: Asset calcs | R1: Remaining life | W1: RC ($ millions) | AB1: RC (%)
R2: Very old | S2: Old | T2: moderate | U2: young | V2: new | W2: =R2 -> Very old | X2: =S2 -> Old | Y2: moderate | Z2: young | AA2: new | AB2: Very old | AC2: Old | AD2: moderate | AE2: young | AF2: new
M3: WARL | O3: WAL | Q3: WAA | R3: > | S3: > | T3: > | U3: > | V3: <=0.2 | W3: =R3 -> > | X3: > | Y3: > | Z3: > | AA3: <=0.2 | AB3: > | AC3: > | AD3: > | AE3: > | AF3: <=0.2
F4: Quantity | G4: Unit | H4: RC | I4: prop total | J4: Rank | K4: prop cat | L4: RC / unit | M4: (Rep life) | O4: Rep life | Q4: % Rep life | R4: =W4 -> 0.9 | S4: =X4 -> 0.8 | T4: =Y4 -> 0.4 | U4: =Z4 -> 0.2 | W4: 0.9 | X4: 0.8 | Y4: 0.4 | Z4: 0.2 | AA4: 0 | AB4: 0.9 | AC4: 0.8 | AD4: 0.4 | AE4: 0.2 | AF4: 0 | AG4: Std life | AH4: Std life | AI4: rep life
G5: Cost | H5: $ millions | I5: % | J5: total | K5: % | L5: $ ('000) | AG5: max | AH5: min
A6: 1 | D6: =VLOOKUP(A6,IDtable,2) -> POLES STAKED | F6: =SUMIF($A$21:$A$205,$A6,F$21:F$205) -> 29408 | H6: =SUMIF($A$21:$A$205,$A6,H$21:H$205)/1000 -> 223.993148 | I6: =H6/($H$18) -> 0.0282228027 | J6: =RANK(I6,I$6:I$17) -> 6 | L6: =H6*1000/(F6+0.001) -> 7.616741716 | M6: =SUMIF($A$21:$A$205,$A6,N$21:N$205)/(H6*1000+0.000001) -> 19.70576034 | O6: =SUMIF($A$21:$A$205,$A6,P$21:P$205)/(H6*1000+0.000001) -> 29.6256559 | Q6: =(O6-M6)/(O6+0.000001) -> 0.3348413707 | R6: =$O6-R$4*$O6 -> 2.96256559 | S6: =$O6-S$4*$O6 -> 5.92513118 | T6: =$O6-T$4*$O6 -> 17.77539354 | U6: =$O6-U$4*$O6 -> 23.70052472 | V6: =$O6-V$4*$O6 -> 29.6256559 | W6: =SUMIF($A$21:$A$205,$A6,W$21:W$205)/1000 -> 0.0914009037 | X6: 4.661446089 | Y6: 71.49835692 | Z6: 75.99223469 | AA6: 71.74970941 | AB6: =IF($H6=0,0,W6/$H6) -> 0.0004080522307 | AC6: =IF($H6=0,0,X6/$H6) -> 0.02081066376 | AD6: =IF($H6=0,0,Y6/$H6) -> 0.3191988575 | AE6: =IF($H6=0,0,Z6/$H6) -> 0.3392614255 | AF6: =IF($H6=0,0,AA6/$H6) -> 0.3203210011 | AG6: =MAX(IF($A$21:$A$205=$A6,$O$21:$O$205)) -> 29.6256559 | AH6: =MIN(IF($A$21:$A$205=$A6,$O$21:$O$205)) -> 29.6256559 | AI6: =IF(H6=0,0,SUMIF($A$21:$A$205,$A6,$AJ$21:$AJ$205)/(H6*1000)) -> 29.6256559
A7: 2 | D7: POLES | F7: =SUMIF($A$21:$A$205,$A7,F$21:F$205) -> 227349 | H7: =SUMIF($A$21:$A$205,$A7,H$21:H$205)/1000 -> 654.9470746 | I7: =H7/($H$18) -> 0.08252235494 | J7: 5 | L7: 2.880800319 | M7: 24.63603402 | O7: 51.57562169 | Q7: 0.5223317969 | R7: =$O7-R$4*$O7 -> 5.157562169 | S7: 10.31512434 | T7: 30.94537301 | U7: 41.26049735 | V7: 51.57562169 | W7: 72.24705652 | X7: 64.98648725 | Y7: 256.3781876 | Z7: 157.5755075 | AA7: 103.7598357 | AB7: =IF($H7=0,0,W7/$H7) -> 0.1103097629 | AC7: =IF($H7=0,0,X7/$H7) -> 0.09922402858 | AD7: =IF($H7=0,0,Y7/$H7) -> 0.3914487102 | AE7: =IF($H7=0,0,Z7/$H7) -> 0.2405927343 | AF7: =IF($H7=0,0,AA7/$H7) -> 0.158424764 | AG7: =MAX(IF($A$21:$A$205=$A7,$O$21:$O$205)) -> 80.38876331 | AH7: =MIN(IF($A$21:$A$205=$A7,$O$21:$O$205)) -> 35 | AI7: =IF(H7=0,0,SUMIF($A$21:$A$205,$A7,$AJ$21:$AJ$205)/(H7*1000)) -> 51.57562169
A8: 3 | D8: OVERHEAD CONDUCTORS | F8: 20163.945 | H8: 3822.286017 | I8: 0.4816023395 | J8: 1 | L8: 189.5604172 | M8: 34.29857932 | O8: 64.83245016 | Q8: 0.4709658558 | R8: 6.483245016 | S8: 12.96649003 | T8: 38.89947009 | U8: 51.86596013 | V8: 64.83245016 | W8: 58.35743198 | X8: 267.6583653 | Y8: 2009.479927 | Z8: 922.3107244 | AA8: 564.4795684 | AB8: 0.01526767796 | AC8: 0.07002572914 | AD8: 0.5257272527 | AE8: 0.241298197 | AF8: 0.1476811431 | AG8: =MAX(IF($A$21:$A$205=$A8,$O$21:$O$205)) -> 70.94662146 | AH8: =MIN(IF($A$21:$A$205=$A8,$O$21:$O$205)) -> 50 | AI8: 64.83245016
A9: 4 | D9: UNDERGROUND CABLES | F9: 2465.291 | H9: 969.783632 | I9: 0.1221912918 | J9: 4 | L9: 393.3747532 | M9: 37.56073529 | O9: 56.75960285 | Q9: 0.3382487943 | R9: 5.675960285 | S9: 11.35192057 | T9: 34.05576171 | U9: 45.40768228 | V9: 56.75960285 | W9: 13.17176097 | X9: 16.31106239 | Y9: 325.1937599 | Z9: 229.6155311 | AA9: 385.4915176 | AB9: 0.01358216465 | AC9: 0.01681927994 | AD9: 0.3353260967 | AE9: 0.2367698562 | AF9: 0.3975026026 | AG9: =MAX(IF($A$21:$A$205=$A9,$O$21:$O$205)) -> 67.98263767 | AH9: =MIN(IF($A$21:$A$205=$A9,$O$21:$O$205)) -> 51.63603945 | AI9: 56.75960285
A10: 5 | D10: SERVICE LINES | F10: 146370 | H10: 213.6915262 | I10: 0.02692481371 | J10: 7 | L10: 1.459940731 | M10: 22.59756679 | O10: 53.96775556 | Q10: 0.5812765023 | R10: 5.396775556 | S10: 10.79355111 | T10: 32.38065333 | U10: 43.17420444 | V10: 53.96775556 | W10: 29.59753138 | X10: 37.92566776 | Y10: 81.50478413 | Z10: 38.59799872 | AA10: 26.06554421 | AB10: 0.138505873 | AC10: 0.1774785759 | AD10: 0.3814132716 | AE10: 0.1806248447 | AF10: 0.1219774348 | AG10: =MAX(IF($A$21:$A$205=$A10,$O$21:$O$205)) -> 54.3346443 | AH10: =MIN(IF($A$21:$A$205=$A10,$O$21:$O$205)) -> 53.87134458 | AI10: 53.96775556
A11: 6 | D11: TRANSFORMERS | F11: 31891 | H11: 1022.419873 | I11: 0.1288233797 | J11: 3 | L11: 32.05982381 | M11: 31.66616894 | O11: 54.77306636 | Q11: 0.4218660471 | R11: 5.477306636 | S11: 10.95461327 | T11: 32.86383982 | U11: 43.81845309 | V11: 54.77306636 | W11: 22.33032168 | X11: 30.73245167 | Y11: 467.9363914 | Z11: 300.5807134 | AA11: 200.839995 | AB11: 0.02184065692 | AC11: 0.03005854295 | AD11: 0.4576753677 | AE11: 0.293989506 | AF11: 0.1964359265 | AG11: =MAX(IF($A$21:$A$205=$A11,$O$21:$O$205)) -> 70.52546267 | AH11: =MIN(IF($A$21:$A$205=$A11,$O$21:$O$205)) -> 14.72280407 | AI11: 54.77306636
A12: 7 | D12: SWITCHGEAR | F12: 58645 | H12: 1029.480576 | I12: 0.1297130177 | J12: 2 | L12: 17.55444723 | M12: 31.3602619 | O12: 54.25368015 | Q12: 0.4219698601 | R12: 5.425368015 | S12: 10.85073603 | T12: 32.55220809 | U12: 43.40294412 | V12: 54.25368015 | W12: 46.54412177 | X12: 65.73939789 | Y12: 393.8243516 | Z12: 279.4671172 | AA12: 243.9055871 | AB12: 0.04521126758 | AC12: 0.06385686088 | AD12: 0.382546656 | AE12: 0.2714641965 | AF12: 0.236921019 | AG12: =MAX(IF($A$21:$A$205=$A12,$O$21:$O$205)) -> 58.84753573 | AH12: =MIN(IF($A$21:$A$205=$A12,$O$21:$O$205)) -> 40 | AI12: 54.25368015
A13: 8 | D13: unused | F13: 0 | H13: 0 | I13: 0 | J13: 8 | L13: 0 | M13: 0 | O13: 0 | Q13: 0 | R13: 0 | S13: 0 | T13: 0 | U13: 0 | V13: 0 | W13: 0 | X13: 0 | Y13: 0 | Z13: 0 | AA13: 0 | AB13: 0 | AC13: 0 | AD13: 0 | AE13: 0 | AF13: 0 | AG13: =MAX(IF($A$21:$A$205=$A13,$O$21:$O$205)) -> 0 | AH13: =MIN(IF($A$21:$A$205=$A13,$O$21:$O$205)) -> 0 | AI13: 0
A14: 9 | D14: =VLOOKUP(A14,IDtable,2) -> unused | F14: =SUMIF($A$21:$A$205,$A14,F$21:F$205) -> 0 | H14: =SUMIF($A$21:$A$205,$A14,H$21:H$205)/1000 -> 0 | I14: =H14/($H$18) -> 0 | J14: 8 | L14: 0 | M14: 0 | O14: 0 | Q14: 0 | R14: =$O14-R$4*$O14 -> 0 | S14: 0 | T14: 0 | U14: 0 | V14: 0 | W14: 0 | X14: 0 | Y14: 0 | Z14: 0 | AA14: 0 | AB14: 0 | AC14: 0 | AD14: 0 | AE14: 0 | AF14: 0 | AG14: =MAX(IF($A$21:$A$205=$A14,$O$21:$O$205)) -> 0 | AH14: =MIN(IF($A$21:$A$205=$A14,$O$21:$O$205)) -> 0 | AI14: 0
A15: 10 | D15: =VLOOKUP(A15,IDtable,2) -> unused | F15: =SUMIF($A$21:$A$205,$A15,F$21:F$205) -> 0 | H15: =SUMIF($A$21:$A$205,$A15,H$21:H$205)/1000 -> 0 | I15: =H15/($H$18) -> 0 | J15: 8 | L15: 0 | M15: 0 | O15: 0 | Q15: 0 | R15: 0 | S15: 0 | T15: 0 | U15: 0 | V15: 0 | W15: 0 | X15: 0 | Y15: 0 | Z15: 0 | AA15: 0 | AB15: 0 | AC15: 0 | AD15: 0 | AE15: 0 | AF15: 0 | AG15: =MAX(IF($A$21:$A$205=$A15,$O$21:$O$205)) -> 0 | AH15: =MIN(IF($A$21:$A$205=$A15,$O$21:$O$205)) -> 0 | AI15: 0
A16: 11 | D16: =VLOOKUP(A16,IDtable,2) -> unused | F16: =SUMIF($A$21:$A$205,$A16,F$21:F$205) -> 0 | H16: =SUMIF($A$21:$A$205,$A16,H$21:H$205)/1000 -> 0 | I16: =H16/($H$18) -> 0 | J16: 8 | L16: 0 | M16: 0 | O16: 0 | Q16: 0 | R16: 0 | S16: 0 | T16: 0 | U16: 0 | V16: 0 | W16: 0 | X16: 0 | Y16: 0 | Z16: 0 | AA16: 0 | AB16: 0 | AC16: 0 | AD16: 0 | AE16: 0 | AF16: 0 | AG16: =MAX(IF($A$21:$A$205=$A16,$O$21:$O$205)) -> 0 | AH16: =MIN(IF($A$21:$A$205=$A16,$O$21:$O$205)) -> 0 | AI16: 0
A17: 12 | D17: =VLOOKUP(A17,IDtable,2) -> unused | F17: =SUMIF($A$21:$A$205,$A17,F$21:F$205) -> 0 | H17: =SUMIF($A$21:$A$205,$A17,H$21:H$205)/1000 -> 0 | I17: =H17/($H$18) -> 0 | J17: =RANK(I17,I$6:I$17) -> 8 | L17: =H17*1000/(F17+0.001) -> 0 | M17: =SUMIF($A$21:$A$205,$A17,N$21:N$205)/(H17*1000+0.000001) -> 0 | O17: =SUMIF($A$21:$A$205,$A17,P$21:P$205)/(H17*1000+0.000001) -> 0 | Q17: =(O17-M17)/(O17+0.000001) -> 0 | R17: 0 | S17: 0 | T17: 0 | U17: 0 | V17: 0 | W17: 0 | X17: 0 | Y17: 0 | Z17: 0 | AA17: 0 | AB17: 0 | AC17: 0 | AD17: 0 | AE17: 0 | AF17: 0 | AG17: =MAX(IF($A$21:$A$205=$A17,$O$21:$O$205)) -> 0 | AH17: =MIN(IF($A$21:$A$205=$A17,$O$21:$O$205)) -> 0 | AI17: 0
D18: Total | H18: =SUM(H6:H17) -> 7936.601846 | M18: =SUMPRODUCT(M6:M17,$H6:$H17)/$H18 -> 32.45265852 | O18: =SUMPRODUCT(O6:O17,$H6:$H17)/$H18 -> 58.79778153 | Q18: =SUMPRODUCT(Q6:Q17,$H6:$H17)/$H18 -> 0.4454354824 | W18: =SUM(W6:W17) -> 242.3396252 | X18: =SUM(X6:X17) -> 488.0148783 | Y18: =SUM(Y6:Y17) -> 3605.815758 | Z18: =SUM(Z6:Z17) -> 2004.139827 | AA18: =SUM(AA6:AA17) -> 1596.291757 | AB18: =W18/$H18 -> 0.03053443147 | AC18: =X18/$H18 -> 0.06148914709 | AD18: =Y18/$H18 -> 0.4543274097 | AE18: =Z18/$H18 -> 0.2525186302 | AF18: =AA18/$H18 -> 0.2011303815
D20: EDB categories
A21: ='Asset data'!A21 -> 1 | B21: ='Asset data'!B21 -> 0 | C21: ='Asset data'!C21 -> 0 | D21: ='Asset data'!E21 -> Staking of a wooden pole | E21: =IF(A21>0,VLOOKUP(A21,IDtable,2),0) -> POLES STAKED | F21: =IF(A21>0,SUM('Asset data'!J21:CV21),0) -> 29408 | G21: =IF(A21>0,'Asset data'!F21,0) -> 7.616741975 | H21: =IF(A21>0,SUM('Asset data'!CX21:GJ21),0) -> 223993.148 | I21: =H21/$H$18/1000 -> 0.0282228027 | J21: =IF(RANK(0,I$21:I$205)=RANK(I21,I$21:I$205),0,RANK(I21,I$21:I$205)) -> 11 | K21: =IF(A21>0,H21/(VLOOKUP(A21,$A$6:$H$17,8)*1000),0) -> 1 | L21: =IF($A21>0,H21/F21,0) -> 7.616741975 | M21: =IF($A21>0,SUMPRODUCT('Age profile (years)'!$CT21:$GF21,'Asset data'!$CX21:$GJ21)/H21-0.5,0) -> 19.70576034 | N21: =IF($A21>0,M21*H21,0) -> 4413955.292 | O21: =IF($A21>0,'Asset data'!G21,0) -> 29.6256559 | P21: =IF($A21>0,H21*O21,0) -> 6635943.927 | Q21: =IF($A21>0,(O21-M21)/O21,0) -> 0.334841382 | R21: =IF($A21>0,$O21-R$4*$O21,0) -> 2.96256559 | S21: 5.92513118 | T21: 17.77539354 | U21: 23.70052472 | W21: =IF($A21>0,SUMIF('Age profile (years)'!$CT21:$GF21,"<" & R21+0.5,'Asset data'!$CX21:$GJ21),0) -> 91.4009037 | X21: =IF($A21>0,SUMIF('Age profile (years)'!$CT21:$GF21,"<" & S21+0.5,'Asset data'!$CX21:$GJ21)-W21,0) -> 4661.446089 | Y21: =IF($A21>0,SUMIF('Age profile (years)'!$CT21:$GF21,"<" & T21+0.5,'Asset data'!$CX21:$GJ21)-X21-W21,0) -> 71498.35692 | Z21: =IF($A21>0,SUMIF('Age profile (years)'!$CT21:$GF21,"<" & U21+0.5,'Asset data'!$CX21:$GJ21)-Y21-X21-W21,0) -> 75992.23469 | AA21: =IF($A21>0,H21-Z21-Y21-X21-W21,0) -> 71749.70941 | AB21: =IF($A21>0,W21/$H21,0) -> 0.0004080522307 | AC21: 0.02081066376 | AD21: 0.3191988575 | AE21: 0.3392614255 | AF21: 0.3203210011 | AI21: =IF($A21>0,'RRR hist-forc'!K21,0) -> 29.6256559 | AJ21: =IF($A21>0,AI21*H21,0) -> 6635943.927
A22: ='Asset data'!A22 -> 2 | B22: ='Asset data'!B22 -> 0 | C22: ='Asset data'!C22 -> 0 | D22: ='Asset data'!E22 -> ˂ = 1 kV; Wood | E22: POLES | F22: =IF(A22>0,SUM('Asset data'!J22:CV22),0) -> 50241 | G22: =IF(A22>0,'Asset data'!F22,0) -> 2.607469335 | H22: =IF(A22>0,SUM('Asset data'!CX22:GJ22),0) -> 131001.8669 | I22: 0.01650603992 | J22: 14 | K22: =IF(A22>0,H22/(VLOOKUP(A22,$A$6:$H$17,8)*1000),0) -> 0.2000190122 | L22: =IF($A22>0,H22/F22,0) -> 2.607469335 | M22: =IF($A22>0,SUMPRODUCT('Age profile (years)'!$CT22:$GF22,'Asset data'!$CX22:$GJ22)/H22-0.5,0) -> 20.80214367 | N22: =IF($A22>0,M22*H22,0) -> 2725119.655 | O22: =IF($A22>0,'Asset data'!G22,0) -> 50.37229379 | P22: =IF($A22>0,H22*O22,0) -> 6598864.526 | Q22: =IF($A22>0,(O22-M22)/O22,0) -> 0.5870320349 | R22: 5.037229379 | S22: 10.07445876 | T22: 30.22337628 | U22: 40.29783504 | W22: =IF($A22>0,SUMIF('Age profile (years)'!$CT22:$GF22,"<" & R22+0.5,'Asset data'!$CX22:$GJ22),0) -> 25780.04932 | X22: =IF($A22>0,SUMIF('Age profile (years)'!$CT22:$GF22,"<" & S22+0.5,'Asset data'!$CX22:$GJ22)-W22,0) -> 10601.97032 | Y22: =IF($A22>0,SUMIF('Age profile (years)'!$CT22:$GF22,"<" & T22+0.5,'Asset data'!$CX22:$GJ22)-X22-W22,0) -> 55484.33998 | Z22: =IF($A22>0,SUMIF('Age profile (years)'!$CT22:$GF22,"<" & U22+0.5,'Asset data'!$CX22:$GJ22)-Y22-X22-W22,0) -> 22588.50685 | AA22: =IF($A22>0,H22-Z22-Y22-X22-W22,0) -> 16547.0004 | AB22: 0.1967914651 | AC22: 0.0809299178 | AD22: 0.4235385442 | AE22: 0.1724288927 | AF22: 0.1263111801 | AI22: =IF($A22>0,'RRR hist-forc'!K22,0) -> 50.37229379 | AJ22: =IF($A22>0,AI22*H22,0) -> 6598864.526
A23: ='Asset data'!A23 -> 2 | B23: ='Asset data'!B23 -> 0 | C23: ='Asset data'!C23 -> 0 | D23: ='Asset data'!E23 -> > 1 kV & < = 11 kV; Wood | E23: =IF(A23>0,VLOOKUP(A23,IDtable,2),0) -> POLES | F23: =IF(A23>0,SUM('Asset data'!J23:CV23),0) -> 34471 | G23: =IF(A23>0,'Asset data'!F23,0) -> 2.601169245 | H23: =IF(A23>0,SUM('Asset data'!CX23:GJ23),0) -> 89664.90505 | I23: =H23/$H$18/1000 -> 0.01129764436 | J23: =IF(RANK(0,I$21:I$205)=RANK(I23,I$21:I$205),0,RANK(I23,I$21:I$205)) -> 18 | K23: =IF(A23>0,H23/(VLOOKUP(A23,$A$6:$H$17,8)*1000),0) -> 0.1369040469 | L23: =IF($A23>0,H23/F23,0) -> 2.601169245 | M23: =IF($A23>0,SUMPRODUCT('Age profile (years)'!$CT23:$GF23,'Asset data'!$CX23:$GJ23)/H23-0.5,0) -> 26.06946419 | N23: =IF($A23>0,M23*H23,0) -> 2337516.031 | O23: =IF($A23>0,'Asset data'!G23,0) -> 54.85119533 | P23: =IF($A23>0,H23*O23,0) -> 4918227.221 | Q23: =IF($A23>0,(O23-M23)/O23,0) -> 0.5247238637 | R23: 5.485119533 | S23: 10.97023907 | T23: 32.9107172 | U23: 43.88095627 | W23: =IF($A23>0,SUMIF('Age profile (years)'!$CT23:$GF23,"<" & R23+0.5,'Asset data'!$CX23:$GJ23),0) -> 3678.053313 | X23: =IF($A23>0,SUMIF('Age profile (years)'!$CT23:$GF23,"<" & S23+0.5,'Asset data'!$CX23:$GJ23)-W23,0) -> 14358.45423 | Y23: =IF($A23>0,SUMIF('Age profile (years)'!$CT23:$GF23,"<" & T23+0.5,'Asset data'!$CX23:$GJ23)-X23-W23,0) -> 43059.75568 | Z23: =IF($A23>0,SUMIF('Age profile (years)'!$CT23:$GF23,"<" & U23+0.5,'Asset data'!$CX23:$GJ23)-Y23-X23-W23,0) -> 16769.73812 | AA23: =IF($A23>0,H23-Z23-Y23-X23-W23,0) -> 11798.9037 | AB23: =IF($A23>0,W23/$H23,0) -> 0.04101998782 | AC23: =IF($A23>0,X23/$H23,0) -> 0.1601346059 | AD23: =IF($A23>0,Y23/$H23,0) -> 0.4802297583 | AE23: =IF($A23>0,Z23/$H23,0) -> 0.1870267761 | AF23: =IF($A23>0,AA23/$H23,0) -> 0.1315888718 | AI23: =IF($A23>0,'RRR hist-forc'!K23,0) -> 54.85119533 | AJ23: =IF($A23>0,AI23*H23,0) -> 4918227.221
A24: ='Asset data'!A24 -> 2 | B24: ='Asset data'!B24 -> 0 | C24: ='Asset data'!C24 -> 0 | D24: ='Asset data'!E24 -> ˃ 11 kV & < = 22 kV; Wood | E24: POLES | F24: =IF(A24>0,SUM('Asset data'!J24:CV24),0) -> 119983 | G24: =IF(A24>0,'Asset data'!F24,0) -> 2.611739415 | H24: =IF(A24>0,SUM('Asset data'!CX24:GJ24),0) -> 313364.3302 | I24: 0.03948343842 | J24: 7 | K24: 0.4784574852 | L24: 2.611739415 | M24: =IF($A24>0,SUMPRODUCT('Age profile (years)'!$CT24:$GF24,'Asset data'!$CX24:$GJ24)/H24-0.5,0) -> 24.99371161 | N24: 7832137.698 | O24: =IF($A24>0,'Asset data'!G24,0) -> 52.54563109 | P24: 16465926.49 | Q24: 0.5243427267 | R24: 5.254563109 | S24: 10.50912622 | T24: 31.52737866 | U24: 42.03650487 | W24: =IF($A24>0,SUMIF('Age profile (years)'!$CT24:$GF24,"<" & R24+0.5,'Asset data'!$CX24:$GJ24),0) -> 40803.20488 | X24: =IF($A24>0,SUMIF('Age profile (years)'!$CT24:$GF24,"<" & S24+0.5,'Asset data'!$CX24:$GJ24)-W24,0) -> 39426.81821 | Y24: =IF($A24>0,SUMIF('Age profile (years)'!$CT24:$GF24,"<" & T24+0.5,'Asset data'!$CX24:$GJ24)-X24-W24,0) -> 114012.8724 | Z24: =IF($A24>0,SUMIF('Age profile (years)'!$CT24:$GF24,"<" & U24+0.5,'Asset data'!$CX24:$GJ24)-Y24-X24-W24,0) -> 66737.77727 | AA24: 52383.65745 | AB24: 0.1302101131 | AC24: 0.1258178242 | AD24: 0.3638348766 | AE24: 0.2129718377 | AF24: 0.1671653484 | AI24: =IF($A24>0,'RRR hist-forc'!K24,0) -> 52.54563109 | AJ24: 16465926.49
A25: ='Asset data'!A25 -> 2 | B25: ='Asset data'!B25 -> 0 | C25: ='Asset data'!C25 -> 0 | D25: ='Asset data'!E25 -> > 22 kV & < = 66 kV; Wood | E25: POLES | F25: =IF(A25>0,SUM('Asset data'!J25:CV25),0) -> 881 | G25: =IF(A25>0,'Asset data'!F25,0) -> 2.575831926 | H25: =IF(A25>0,SUM('Asset data'!CX25:GJ25),0) -> 2269.307927 | I25: 0.0002859294155 | J25: 28 | K25: 0.003464872224 | L25: 2.575831926 | M25: =IF($A25>0,SUMPRODUCT('Age profile (years)'!$CT25:$GF25,'Asset data'!$CX25:$GJ25)/H25-0.5,0) -> 20.55561862 | N25: 46647.02826 | O25: =IF($A25>0,'Asset data'!G25,0) -> 49.92365037 | P25: 113292.1355 | Q25: 0.5882589021 | R25: 4.992365037 | S25: 9.984730074 | T25: 29.95419022 | U25: 39.9389203 | W25: =IF($A25>0,SUMIF('Age profile (years)'!$CT25:$GF25,"<" & R25+0.5,'Asset data'!$CX25:$GJ25),0) -> 260.1590245 | X25: =IF($A25>0,SUMIF('Age profile (years)'!$CT25:$GF25,"<" & S25+0.5,'Asset data'!$CX25:$GJ25)-W25,0) -> 252.4315288 | Y25: =IF($A25>0,SUMIF('Age profile (years)'!$CT25:$GF25,"<" & T25+0.5,'Asset data'!$CX25:$GJ25)-X25-W25,0) -> 1197.761846 | Z25: =IF($A25>0,SUMIF('Age profile (years)'!$CT25:$GF25,"<" & U25+0.5,'Asset data'!$CX25:$GJ25)-Y25-X25-W25,0) -> 381.2231251 | AA25: 177.7324029 | AB25: 0.1146424518 | AC25: 0.1112372304 | AD25: 0.5278093076 | AE25: 0.1679909194 | AF25: 0.07832009081 | AI25: =IF($A25>0,'RRR hist-forc'!K25,0) -> 49.92365037 | AJ25: 113292.1355
A26: ='Asset data'!A26 -> 0 | B26: ='Asset data'!B26 -> 0 | C26: ='Asset data'!C26 -> 0 | D26: ='Asset data'!E26 ->  | E26: 0 | F26: =IF(A26>0,SUM('Asset data'!J26:CV26),0) -> 0 | G26: =IF(A26>0,'Asset data'!F26,0) -> 0 | H26: =IF(A26>0,SUM('Asset data'!CX26:GJ26),0) -> 0 | I26: 0 | J26: 0 | K26: 0 | L26: 0 | M26: =IF($A26>0,SUMPRODUCT('Age profile (years)'!$CT26:$GF26,'Asset data'!$CX26:$GJ26)/H26-0.5,0) -> 0 | N26: 0 | O26: =IF($A26>0,'Asset data'!G26,0) -> 0 | P26: 0 | Q26: 0 | R26: 0 | S26: 0 | T26: 0 | U26: 0 | W26: =IF($A26>0,SUMIF('Age profile (years)'!$CT26:$GF26,"<" & R26+0.5,'Asset data'!$CX26:$GJ26),0) -> 0 | X26: =IF($A26>0,SUMIF('Age profile (years)'!$CT26:$GF26,"<" & S26+0.5,'Asset data'!$CX26:$GJ26)-W26,0) -> 0 | Y26: =IF($A26>0,SUMIF('Age profile (years)'!$CT26:$GF26,"<" & T26+0.5,'Asset data'!$CX26:$GJ26)-X26-W26,0) -> 0 | Z26: =IF($A26>0,SUMIF('Age profile (years)'!$CT26:$GF26,"<" & U26+0.5,'Asset data'!$CX26:$GJ26)-Y26-X26-W26,0) -> 0 | AA26: 0 | AB26: 0 | AC26: 0 | AD26: 0 | AE26: 0 | AF26: 0 | AI26: =IF($A26>0,'RRR hist-forc'!K26,0) -> 0 | AJ26: 0
A27: ='Asset data'!A27 -> 0 | B27: ='Asset data'!B27 -> 0 | C27: ='Asset data'!C27 -> 0 | D27: ='Asset data'!E27 ->  | E27: 0 | F27: =IF(A27>0,SUM('Asset data'!J27:CV27),0) -> 0 | G27: =IF(A27>0,'Asset data'!F27,0) -> 0 | H27: =IF(A27>0,SUM('Asset data'!CX27:GJ27),0) -> 0 | I27: 0 | J27: 0 | K27: 0 | L27: 0 | M27: =IF($A27>0,SUMPRODUCT('Age profile (years)'!$CT27:$GF27,'Asset data'!$CX27:$GJ27)/H27-0.5,0) -> 0 | N27: 0 | O27: =IF($A27>0,'Asset data'!G27,0) -> 0 | P27: 0 | Q27: 0 | R27: 0 | S27: 0 | T27: 0 | U27: 0 | W27: =IF($A27>0,SUMIF('Age profile (years)'!$CT27:$GF27,"<" & R27+0.5,'Asset data'!$CX27:$GJ27),0) -> 0 | X27: =IF($A27>0,SUMIF('Age profile (years)'!$CT27:$GF27,"<" & S27+0.5,'Asset data'!$CX27:$GJ27)-W27,0) -> 0 | Y27: =IF($A27>0,SUMIF('Age profile (years)'!$CT27:$GF27,"<" & T27+0.5,'Asset data'!$CX27:$GJ27)-X27-W27,0) -> 0 | Z27: =IF($A27>0,SUMIF('Age profile (years)'!$CT27:$GF27,"<" & U27+0.5,'Asset data'!$CX27:$GJ27)-Y27-X27-W27,0) -> 0 | AA27: 0 | AB27: 0 | AC27: 0 | AD27: 0 | AE27: 0 | AF27: 0 | AI27: =IF($A27>0,'RRR hist-forc'!K27,0) -> 0 | AJ27: 0
A28: ='Asset data'!A28 -> 2 | B28: ='Asset data'!B28 -> 0 | C28: ='Asset data'!C28 -> 0 | D28: ='Asset data'!E28 -> ˂ = 1 kV; Concrete | E28: POLES | F28: =IF(A28>0,SUM('Asset data'!J28:CV28),0) -> 4008 | G28: =IF(A28>0,'Asset data'!F28,0) -> 7.490286001 | H28: =IF(A28>0,SUM('Asset data'!CX28:GJ28),0) -> 30021.06629 | I28: 0.003782609595 | J28: 22 | K28: 0.04583739276 | L28: 7.490286001 | M28: =IF($A28>0,SUMPRODUCT('Age profile (years)'!$CT28:$GF28,'Asset data'!$CX28:$GJ28)/H28-0.5,0) -> 29.18837325 | N28: 876266.0884 | O28: =IF($A28>0,'Asset data'!G28,0) -> 80.38876331 | P28: 2413356.392 | Q28: 0.6369097862 | R28: 8.038876331 | S28: 16.07775266 | T28: 48.23325799 | U28: 64.31101065 | W28: =IF($A28>0,SUMIF('Age profile (years)'!$CT28:$GF28,"<" & R28+0.5,'Asset data'!$CX28:$GJ28),0) -> 0 | X28: =IF($A28>0,SUMIF('Age profile (years)'!$CT28:$GF28,"<" & S28+0.5,'Asset data'!$CX28:$GJ28)-W28,0) -> 0 | Y28: =IF($A28>0,SUMIF('Age profile (years)'!$CT28:$GF28,"<" & T28+0.5,'Asset data'!$CX28:$GJ28)-X28-W28,0) -> 29002.3874 | Z28: =IF($A28>0,SUMIF('Age profile (years)'!$CT28:$GF28,"<" & U28+0.5,'Asset data'!$CX28:$GJ28)-Y28-X28-W28,0) -> 681.6160261 | AA28: 337.0628701 | AB28: 0 | AC28: 0 | AD28: 0.9660678643 | AE28: 0.02270459082 | AF28: 0.01122754491 | AI28: =IF($A28>0,'RRR hist-forc'!K28,0) -> 80.38876331 | AJ28: 2413356.392
A29: ='Asset data'!A29 -> 2 | B29: ='Asset data'!B29 -> 0 | C29: ='Asset data'!C29 -> 0 | D29: ='Asset data'!E29 -> > 1 kV & < = 11 kV; Concrete | E29: POLES | F29: =IF(A29>0,SUM('Asset data'!J29:CV29),0) -> 1280 | G29: =IF(A29>0,'Asset data'!F29,0) -> 0.001 | H29: =IF(A29>0,SUM('Asset data'!CX29:GJ29),0) -> 1.28 | I29: 1.612780917e-07 | J29: 31 | K29: 1.95435639e-06 | L29: 0.001 | M29: =IF($A29>0,SUMPRODUCT('Age profile (years)'!$CT29:$GF29,'Asset data'!$CX29:$GJ29)/H29-0.5,0) -> -15.18515625 | N29: -19.437 | O29: =IF($A29>0,'Asset data'!G29,0) -> 35 | P29: 44.8 | Q29: 1.433861607 | R29: 3.5 | S29: 7 | T29: 21 | U29: 28 | W29: =IF($A29>0,SUMIF('Age profile (years)'!$CT29:$GF29,"<" & R29+0.5,'Asset data'!$CX29:$GJ29),0) -> 1.157 | X29: =IF($A29>0,SUMIF('Age profile (years)'!$CT29:$GF29,"<" & S29+0.5,'Asset data'!$CX29:$GJ29)-W29,0) -> 0.063 | Y29: =IF($A29>0,SUMIF('Age profile (years)'!$CT29:$GF29,"<" & T29+0.5,'Asset data'!$CX29:$GJ29)-X29-W29,0) -> 0.038 | Z29: =IF($A29>0,SUMIF('Age profile (years)'!$CT29:$GF29,"<" & U29+0.5,'Asset data'!$CX29:$GJ29)-Y29-X29-W29,0) -> 0.007 | AA29: 0.015 | AB29: 0.90390625 | AC29: 0.04921875 | AD29: 0.0296875 | AE29: 0.00546875 | AF29: 0.01171875 | AI29: =IF($A29>0,'RRR hist-forc'!K29,0) -> 35 | AJ29: 44.8
A30: ='Asset data'!A30 -> 2 | B30: ='Asset data'!B30 -> 0 | C30: ='Asset data'!C30 -> 0 | D30: ='Asset data'!E30 -> ˃ 11 kV & < = 22 kV; Concrete | E30: POLES | F30: =IF(A30>0,SUM('Asset data'!J30:CV30),0) -> 1091 | G30: =IF(A30>0,'Asset data'!F30,0) -> 0.001 | H30: =IF(A30>0,SUM('Asset data'!CX30:GJ30),0) -> 1.091 | I30: 1.374643734e-07 | J30: 32 | K30: 1.665783454e-06 | L30: 0.001 | M30: =IF($A30>0,SUMPRODUCT('Age profile (years)'!$CT30:$GF30,'Asset data'!$CX30:$GJ30)/H30-0.5,0) -> 0.03070577452 | N30: 0.0335 | O30: =IF($A30>0,'Asset data'!G30,0) -> 35 | P30: 38.185 | Q30: 0.9991226922 | R30: 3.5 | S30: 7 | T30: 21 | U30: 28 | W30: =IF($A30>0,SUMIF('Age profile (years)'!$CT30:$GF30,"<" & R30+0.5,'Asset data'!$CX30:$GJ30),0) -> 0.7 | X30: =IF($A30>0,SUMIF('Age profile (years)'!$CT30:$GF30,"<" & S30+0.5,'Asset data'!$CX30:$GJ30)-W30,0) -> 0.005 | Y30: =IF($A30>0,SUMIF('Age profile (years)'!$CT30:$GF30,"<" & T30+0.5,'Asset data'!$CX30:$GJ30)-X30-W30,0) -> 0.112 | Z30: =IF($A30>0,SUMIF('Age profile (years)'!$CT30:$GF30,"<" & U30+0.5,'Asset data'!$CX30:$GJ30)-Y30-X30-W30,0) -> 0.038 | AA30: 0.236 | AB30: 0.6416131989 | AC30: 0.004582951421 | AD30: 0.1026581118 | AE30: 0.0348304308 | AF30: 0.2163153071 | AI30: =IF($A30>0,'RRR hist-forc'!K30,0) -> 35 | AJ30: 38.185
A31: ='Asset data'!A31 -> 2 | B31: ='Asset data'!B31 -> 0 | C31: ='Asset data'!C31 -> 0 | D31: ='Asset data'!E31 -> > 22 kV & < = 66 kV; Concrete | E31: POLES | F31: =IF(A31>0,SUM('Asset data'!J31:CV31),0) -> 381 | G31: =IF(A31>0,'Asset data'!F31,0) -> 0.001 | H31: =IF(A31>0,SUM('Asset data'!CX31:GJ31),0) -> 0.381 | I31: 4.800543197e-08 | J31: 34 | K31: 5.817263941e-07 | L31: 0.001 | M31: =IF($A31>0,SUMPRODUCT('Age profile (years)'!$CT31:$GF31,'Asset data'!$CX31:$GJ31)/H31-0.5,0) -> 0.2926509186 | N31: 0.1115 | O31: =IF($A31>0,'Asset data'!G31,0) -> 50 | P31: 19.05 | Q31: 0.9941469816 | R31: 5 | S31: 10 | T31: 30 | U31: 40 | W31: =IF($A31>0,SUMIF('Age profile (years)'!$CT31:$GF31,"<" & R31+0.5,'Asset data'!$CX31:$GJ31),0) -> 0.315 | X31: =IF($A31>0,SUMIF('Age profile (years)'!$CT31:$GF31,"<" & S31+0.5,'Asset data'!$CX31:$GJ31)-W31,0) -> 0.021 | Y31: =IF($A31>0,SUMIF('Age profile (years)'!$CT31:$GF31,"<" & T31+0.5,'Asset data'!$CX31:$GJ31)-X31-W31,0) -> 0.037 | Z31: =IF($A31>0,SUMIF('Age profile (years)'!$CT31:$GF31,"<" & U31+0.5,'Asset data'!$CX31:$GJ31)-Y31-X31-W31,0) -> 0.001 | AA31: 0.007 | AB31: 0.8267716535 | AC31: 0.05511811024 | AD31: 0.09711286089 | AE31: 0.002624671916 | AF31: 0.01837270341 | AI31: =IF($A31>0,'RRR hist-forc'!K31,0) -> 50 | AJ31: 19.05
A32: ='Asset data'!A32 -> 0 | B32: ='Asset data'!B32 -> 0 | C32: ='Asset data'!C32 -> 0 | D32: ='Asset data'!E32 ->  | E32: 0 | F32: =IF(A32>0,SUM('Asset data'!J32:CV32),0) -> 0 | G32: =IF(A32>0,'Asset data'!F32,0) -> 0 | H32: =IF(A32>0,SUM('Asset data'!CX32:GJ32),0) -> 0 | I32: 0 | J32: 0 | K32: 0 | L32: 0 | M32: =IF($A32>0,SUMPRODUCT('Age profile (years)'!$CT32:$GF32,'Asset data'!$CX32:$GJ32)/H32-0.5,0) -> 0 | N32: 0 | O32: =IF($A32>0,'Asset data'!G32,0) -> 0 | P32: 0 | Q32: 0 | R32: 0 | S32: 0 | T32: 0 | U32: 0 | W32: =IF($A32>0,SUMIF('Age profile (years)'!$CT32:$GF32,"<" & R32+0.5,'Asset data'!$CX32:$GJ32),0) -> 0 | X32: =IF($A32>0,SUMIF('Age profile (years)'!$CT32:$GF32,"<" & S32+0.5,'Asset data'!$CX32:$GJ32)-W32,0) -> 0 | Y32: =IF($A32>0,SUMIF('Age profile (years)'!$CT32:$GF32,"<" & T32+0.5,'Asset data'!$CX32:$GJ32)-X32-W32,0) -> 0 | Z32: =IF($A32>0,SUMIF('Age profile (years)'!$CT32:$GF32,"<" & U32+0.5,'Asset data'!$CX32:$GJ32)-Y32-X32-W32,0) -> 0 | AA32: 0 | AB32: 0 | AC32: 0 | AD32: 0 | AE32: 0 | AF32: 0 | AI32: =IF($A32>0,'RRR hist-forc'!K32,0) -> 0 | AJ32: 0
A33: ='Asset data'!A33 -> 0 | B33: ='Asset data'!B33 -> 0 | C33: ='Asset data'!C33 -> 0 | D33: ='Asset data'!E33 ->  | E33: 0 | F33: =IF(A33>0,SUM('Asset data'!J33:CV33),0) -> 0 | G33: =IF(A33>0,'Asset data'!F33,0) -> 0 | H33: =IF(A33>0,SUM('Asset data'!CX33:GJ33),0) -> 0 | I33: 0 | J33: 0 | K33: 0 | L33: 0 | M33: =IF($A33>0,SUMPRODUCT('Age profile (years)'!$CT33:$GF33,'Asset data'!$CX33:$GJ33)/H33-0.5,0) -> 0 | N33: 0 | O33: =IF($A33>0,'Asset data'!G33,0) -> 0 | P33: 0 | Q33: 0 | R33: 0 | S33: 0 | T33: 0 | U33: 0 | W33: =IF($A33>0,SUMIF('Age profile (years)'!$CT33:$GF33,"<" & R33+0.5,'Asset data'!$CX33:$GJ33),0) -> 0 | X33: =IF($A33>0,SUMIF('Age profile (years)'!$CT33:$GF33,"<" & S33+0.5,'Asset data'!$CX33:$GJ33)-W33,0) -> 0 | Y33: =IF($A33>0,SUMIF('Age profile (years)'!$CT33:$GF33,"<" & T33+0.5,'Asset data'!$CX33:$GJ33)-X33-W33,0) -> 0 | Z33: =IF($A33>0,SUMIF('Age profile (years)'!$CT33:$GF33,"<" & U33+0.5,'Asset data'!$CX33:$GJ33)-Y33-X33-W33,0) -> 0 | AA33: 0 | AB33: 0 | AC33: 0 | AD33: 0 | AE33: 0 | AF33: 0 | AI33: =IF($A33>0,'RRR hist-forc'!K33,0) -> 0 | AJ33: 0
A34: ='Asset data'!A34 -> 2 | B34: ='Asset data'!B34 -> 0 | C34: ='Asset data'!C34 -> 0 | D34: ='Asset data'!E34 -> ˂ = 1 kV; Steel | E34: POLES | F34: =IF(A34>0,SUM('Asset data'!J34:CV34),0) -> 11777 | G34: =IF(A34>0,'Asset data'!F34,0) -> 7.524803448 | H34: =IF(A34>0,SUM('Asset data'!CX34:GJ34),0) -> 88619.61021 | I34: 0.01116593876 | J34: 19 | K34: 0.135308048 | L34: 7.524803448 | M34: =IF($A34>0,SUMPRODUCT('Age profile (years)'!$CT34:$GF34,'Asset data'!$CX34:$GJ34)/H34-0.5,0) -> 26.15143925 | N34: 2317530.352 | O34: =IF($A34>0,'Asset data'!G34,0) -> 36.89178473 | P34: 3269335.583 | Q34: 0.2911310895 | R34: 3.689178473 | S34: 7.378356946 | T34: 22.13507084 | U34: 29.51342778 | W34: =IF($A34>0,SUMIF('Age profile (years)'!$CT34:$GF34,"<" & R34+0.5,'Asset data'!$CX34:$GJ34),0) -> 1723.17999 | X34: =IF($A34>0,SUMIF('Age profile (years)'!$CT34:$GF34,"<" & S34+0.5,'Asset data'!$CX34:$GJ34)-W34,0) -> 346.1409586 | Y34: =IF($A34>0,SUMIF('Age profile (years)'!$CT34:$GF34,"<" & T34+0.5,'Asset data'!$CX34:$GJ34)-X34-W34,0) -> 13619.89424 | Z34: =IF($A34>0,SUMIF('Age profile (years)'!$CT34:$GF34,"<" & U34+0.5,'Asset data'!$CX34:$GJ34)-Y34-X34-W34,0) -> 50416.1831 | AA34: 22514.21192 | AB34: 0.01944468031 | AC34: 0.003905918315 | AD34: 0.1536893946 | AE34: 0.5689054938 | AF34: 0.254054513 | AI34: =IF($A34>0,'RRR hist-forc'!K34,0) -> 36.89178473 | AJ34: 3269335.583
A35: ='Asset data'!A35 -> 2 | B35: ='Asset data'!B35 -> 0 | C35: ='Asset data'!C35 -> 0 | D35: ='Asset data'!E35 -> > 1 kV & < = 11 kV; Steel | E35: POLES | F35: =IF(A35>0,SUM('Asset data'!J35:CV35),0) -> 410 | G35: =IF(A35>0,'Asset data'!F35,0) -> 0.001 | H35: =IF(A35>0,SUM('Asset data'!CX35:GJ35),0) -> 0.41 | I35: 5.165938873e-08 | J35: 33 | K35: 6.26004781e-07 | L35: 0.001 | M35: =IF($A35>0,SUMPRODUCT('Age profile (years)'!$CT35:$GF35,'Asset data'!$CX35:$GJ35)/H35-0.5,0) -> 28.02682927 | N35: 11.491 | O35: =IF($A35>0,'Asset data'!G35,0) -> 55.84368053 | P35: 22.89590902 | Q35: 0.4981199483 | R35: 5.584368053 | S35: 11.16873611 | T35: 33.50620832 | U35: 44.67494442 | W35: =IF($A35>0,SUMIF('Age profile (years)'!$CT35:$GF35,"<" & R35+0.5,'Asset data'!$CX35:$GJ35),0) -> 0.051 | X35: =IF($A35>0,SUMIF('Age profile (years)'!$CT35:$GF35,"<" & S35+0.5,'Asset data'!$CX35:$GJ35)-W35,0) -> 0.017 | Y35: =IF($A35>0,SUMIF('Age profile (years)'!$CT35:$GF35,"<" & T35+0.5,'Asset data'!$CX35:$GJ35)-X35-W35,0) -> 0.235 | Z35: =IF($A35>0,SUMIF('Age profile (years)'!$CT35:$GF35,"<" & U35+0.5,'Asset data'!$CX35:$GJ35)-Y35-X35-W35,0) -> 0.016 | AA35: 0.091 | AB35: 0.1243902439 | AC35: 0.04146341463 | AD35: 0.5731707317 | AE35: 0.03902439024 | AF35: 0.2219512195 | AI35: =IF($A35>0,'RRR hist-forc'!K35,0) -> 55.84368053 | AJ35: 22.89590902
A36: ='Asset data'!A36 -> 2 | B36: ='Asset data'!B36 -> 0 | C36: ='Asset data'!C36 -> 0 | D36: ='Asset data'!E36 -> ˃ 11 kV & < = 22 kV; Steel | E36: POLES | F36: =IF(A36>0,SUM('Asset data'!J36:CV36),0) -> 2741 | G36: =IF(A36>0,'Asset data'!F36,0) -> 0.001 | H36: =IF(A36>0,SUM('Asset data'!CX36:GJ36),0) -> 2.741 | I36: 3.453619135e-07 | J36: 30 | K36: 4.185070987e-06 | L36: 0.001 | M36: =IF($A36>0,SUMPRODUCT('Age profile (years)'!$CT36:$GF36,'Asset data'!$CX36:$GJ36)/H36-0.5,0) -> 31.41718351 | N36: 86.1145 | O36: =IF($A36>0,'Asset data'!G36,0) -> 62.49518984 | P36: 171.2993153 | Q36: 0.4972863737 | R36: 6.249518984 | S36: 12.49903797 | T36: 37.4971139 | U36: 49.99615187 | W36: =IF($A36>0,SUMIF('Age profile (years)'!$CT36:$GF36,"<" & R36+0.5,'Asset data'!$CX36:$GJ36),0) -> 0.187 | X36: =IF($A36>0,SUMIF('Age profile (years)'!$CT36:$GF36,"<" & S36+0.5,'Asset data'!$CX36:$GJ36)-W36,0) -> 0.565 | Y36: =IF($A36>0,SUMIF('Age profile (years)'!$CT36:$GF36,"<" & T36+0.5,'Asset data'!$CX36:$GJ36)-X36-W36,0) -> 0.752 | Z36: =IF($A36>0,SUMIF('Age profile (years)'!$CT36:$GF36,"<" & U36+0.5,'Asset data'!$CX36:$GJ36)-Y36-X36-W36,0) -> 0.392 | AA36: 0.845 | AB36: 0.06822327618 | AC36: 0.2061291499 | AD36: 0.2743524261 | AE36: 0.1430134987 | AF36: 0.308281649 | AI36: =IF($A36>0,'RRR hist-forc'!K36,0) -> 62.49518984 | AJ36: 171.2993153
A37: ='Asset data'!A37 -> 2 | B37: ='Asset data'!B37 -> 0 | C37: ='Asset data'!C37 -> 0 | D37: ='Asset data'!E37 -> > 22 kV & < = 66 kV; Steel | E37: POLES | F37: =IF(A37>0,SUM('Asset data'!J37:CV37),0) -> 66 | G37: =IF(A37>0,'Asset data'!F37,0) -> 0.001 | H37: =IF(A37>0,SUM('Asset data'!CX37:GJ37),0) -> 0.066 | I37: 8.315901601e-09 | J37: 38 | K37: 1.007715013e-07 | L37: 0.001 | M37: =IF($A37>0,SUMPRODUCT('Age profile (years)'!$CT37:$GF37,'Asset data'!$CX37:$GJ37)/H37-0.5,0) -> 41.33333333 | N37: 2.728 | O37: =IF($A37>0,'Asset data'!G37,0) -> 50 | P37: 3.3 | Q37: 0.1733333333 | R37: =IF($A37>0,$O37-R$4*$O37,0) -> 5 | S37: 10 | T37: 30 | U37: 40 | W37: =IF($A37>0,SUMIF('Age profile (years)'!$CT37:$GF37,"<" & R37+0.5,'Asset data'!$CX37:$GJ37),0) -> 0 | X37: =IF($A37>0,SUMIF('Age profile (years)'!$CT37:$GF37,"<" & S37+0.5,'Asset data'!$CX37:$GJ37)-W37,0) -> 0 | Y37: =IF($A37>0,SUMIF('Age profile (years)'!$CT37:$GF37,"<" & T37+0.5,'Asset data'!$CX37:$GJ37)-X37-W37,0) -> 0.002 | Z37: =IF($A37>0,SUMIF('Age profile (years)'!$CT37:$GF37,"<" & U37+0.5,'Asset data'!$CX37:$GJ37)-Y37-X37-W37,0) -> 0 | AA37: 0.064 | AB37: 0 | AC37: 0 | AD37: 0.0303030303 | AE37: 0 | AF37: 0.9696969697 | AI37: =IF($A37>0,'RRR hist-forc'!K37,0) -> 50 | AJ37: 3.3
A38: ='Asset data'!A38 -> 0 | B38: ='Asset data'!B38 -> 0 | C38: ='Asset data'!C38 -> 0 | D38: ='Asset data'!E38 ->  | E38: 0 | F38: =IF(A38>0,SUM('Asset data'!J38:CV38),0) -> 0 | G38: =IF(A38>0,'Asset data'!F38,0) -> 0 | H38: =IF(A38>0,SUM('Asset data'!CX38:GJ38),0) -> 0 | I38: 0 | J38: 0 | K38: 0 | L38: 0 | M38: =IF($A38>0,SUMPRODUCT('Age profile (years)'!$CT38:$GF38,'Asset data'!$CX38:$GJ38)/H38-0.5,0) -> 0 | N38: 0 | O38: =IF($A38>0,'Asset data'!G38,0) -> 0 | P38: 0 | Q38: 0 | R38: 0 | S38: 0 | T38: 0 | U38: 0 | W38: =IF($A38>0,SUMIF('Age profile (years)'!$CT38:$GF38,"<" & R38+0.5,'Asset data'!$CX38:$GJ38),0) -> 0 | X38: =IF($A38>0,SUMIF('Age profile (years)'!$CT38:$GF38,"<" & S38+0.5,'Asset data'!$CX38:$GJ38)-W38,0) -> 0 | Y38: =IF($A38>0,SUMIF('Age profile (years)'!$CT38:$GF38,"<" & T38+0.5,'Asset data'!$CX38:$GJ38)-X38-W38,0) -> 0 | Z38: =IF($A38>0,SUMIF('Age profile (years)'!$CT38:$GF38,"<" & U38+0.5,'Asset data'!$CX38:$GJ38)-Y38-X38-W38,0) -> 0 | AA38: 0 | AB38: 0 | AC38: 0 | AD38: 0 | AE38: 0 | AF38: 0 | AI38: =IF($A38>0,'RRR hist-forc'!K38,0) -> 0 | AJ38: 0
A39: ='Asset data'!A39 -> 0 | B39: ='Asset data'!B39 -> 0 | C39: ='Asset data'!C39 -> 0 | D39: ='Asset data'!E39 ->  | E39: 0 | F39: =IF(A39>0,SUM('Asset data'!J39:CV39),0) -> 0 | G39: =IF(A39>0,'Asset data'!F39,0) -> 0 | H39: =IF(A39>0,SUM('Asset data'!CX39:GJ39),0) -> 0 | I39: 0 | J39: 0 | K39: 0 | L39: 0 | M39: =IF($A39>0,SUMPRODUCT('Age profile (years)'!$CT39:$GF39,'Asset data'!$CX39:$GJ39)/H39-0.5,0) -> 0 | N39: 0 | O39: =IF($A39>0,'Asset data'!G39,0) -> 0 | P39: 0 | Q39: 0 | R39: 0 | S39: 0 | T39: 0 | U39: 0 | W39: =IF($A39>0,SUMIF('Age profile (years)'!$CT39:$GF39,"<" & R39+0.5,'Asset data'!$CX39:$GJ39),0) -> 0 | X39: =IF($A39>0,SUMIF('Age profile (years)'!$CT39:$GF39,"<" & S39+0.5,'Asset data'!$CX39:$GJ39)-W39,0) -> 0 | Y39: =IF($A39>0,SUMIF('Age profile (years)'!$CT39:$GF39,"<" & T39+0.5,'Asset data'!$CX39:$GJ39)-X39-W39,0) -> 0 | Z39: =IF($A39>0,SUMIF('Age profile (years)'!$CT39:$GF39,"<" & U39+0.5,'Asset data'!$CX39:$GJ39)-Y39-X39-W39,0) -> 0 | AA39: 0 | AB39: 0 | AC39: 0 | AD39: 0 | AE39: 0 | AF39: 0 | AI39: =IF($A39>0,'RRR hist-forc'!K39,0) -> 0 | AJ39: 0
A40: ='Asset data'!A40 -> 2 | B40: ='Asset data'!B40 -> 0 | C40: ='Asset data'!C40 -> 0 | D40: ='Asset data'!E40 -> Other | E40: POLES | F40: =IF(A40>0,SUM('Asset data'!J40:CV40),0) -> 19 | G40: =IF(A40>0,'Asset data'!F40,0) -> 0.001 | H40: =IF(A40>0,SUM('Asset data'!CX40:GJ40),0) -> 0.019 | I40: 2.393971673e-09 | J40: 43 | K40: 2.900997766e-08 | L40: 0.001 | M40: =IF($A40>0,SUMPRODUCT('Age profile (years)'!$CT40:$GF40,'Asset data'!$CX40:$GJ40)/H40-0.5,0) -> 26.97368421 | N40: 0.5125 | O40: =IF($A40>0,'Asset data'!G40,0) -> 35 | P40: 0.665 | Q40: 0.2293233083 | R40: 3.5 | S40: 7 | T40: 21 | U40: 28 | W40: =IF($A40>0,SUMIF('Age profile (years)'!$CT40:$GF40,"<" & R40+0.5,'Asset data'!$CX40:$GJ40),0) -> 0 | X40: =IF($A40>0,SUMIF('Age profile (years)'!$CT40:$GF40,"<" & S40+0.5,'Asset data'!$CX40:$GJ40)-W40,0) -> 0.001 | Y40: =IF($A40>0,SUMIF('Age profile (years)'!$CT40:$GF40,"<" & T40+0.5,'Asset data'!$CX40:$GJ40)-X40-W40,0) -> 0 | Z40: =IF($A40>0,SUMIF('Age profile (years)'!$CT40:$GF40,"<" & U40+0.5,'Asset data'!$CX40:$GJ40)-Y40-X40-W40,0) -> 0.009 | AA40: 0.009 | AB40: 0 | AC40: 0.05263157895 | AD40: 0 | AE40: 0.4736842105 | AF40: 0.4736842105 | AI40: =IF($A40>0,'RRR hist-forc'!K40,0) -> 35 | AJ40: 0.665
A41: ='Asset data'!A41 -> 3 | B41: ='Asset data'!B41 -> 0 | C41: ='Asset data'!C41 -> 0 | D41: ='Asset data'!E41 -> ˂ = 1 kV | E41: OVERHEAD CONDUCTORS | F41: =IF(A41>0,SUM('Asset data'!J41:CV41),0) -> 4955.164 | G41: =IF(A41>0,'Asset data'!F41,0) -> 255.8090671 | H41: =IF(A41>0,SUM('Asset data'!CX41:GJ41),0) -> 1267575.88 | I41: 0.1597126711 | J41: 2 | K41: 0.3316276894 | L41: 255.8090671 | M41: =IF($A41>0,SUMPRODUCT('Age profile (years)'!$CT41:$GF41,'Asset data'!$CX41:$GJ41)/H41-0.5,0) -> 40.04786764 | N41: 50763711.06 | O41: =IF($A41>0,'Asset data'!G41,0) -> 66.23184646 | P41: 83953891.06 | Q41: 0.3953381979 | R41: 6.623184646 | S41: 13.24636929 | T41: 39.73910788 | U41: 52.98547717 | W41: =IF($A41>0,SUMIF('Age profile (years)'!$CT41:$GF41,"<" & R41+0.5,'Asset data'!$CX41:$GJ41),0) -> 1553.016846 | X41: =IF($A41>0,SUMIF('Age profile (years)'!$CT41:$GF41,"<" & S41+0.5,'Asset data'!$CX41:$GJ41)-W41,0) -> 23769.77851 | Y41: =IF($A41>0,SUMIF('Age profile (years)'!$CT41:$GF41,"<" & T41+0.5,'Asset data'!$CX41:$GJ41)-X41-W41,0) -> 586182.64 | Z41: =IF($A41>0,SUMIF('Age profile (years)'!$CT41:$GF41,"<" & U41+0.5,'Asset data'!$CX41:$GJ41)-Y41-X41-W41,0) -> 366226.2369 | AA41: 289844.2076 | AB41: 0.001225186492 | AC41: 0.01875215432 | AD41: 0.4624438263 | AE41: 0.2889185908 | AF41: 0.2286602421 | AI41: =IF($A41>0,'RRR hist-forc'!K41,0) -> 66.23184646 | AJ41: 83953891.06
A42: ='Asset data'!A42 -> 3 | B42: ='Asset data'!B42 -> 0 | C42: ='Asset data'!C42 -> 0 | D42: ='Asset data'!E42 -> > 1 kV & < = 11 kV | E42: OVERHEAD CONDUCTORS | F42: =IF(A42>0,SUM('Asset data'!J42:CV42),0) -> 2957.882 | G42: =IF(A42>0,'Asset data'!F42,0) -> 112.4706057 | H42: =IF(A42>0,SUM('Asset data'!CX42:GJ42),0) -> 332674.78 | I42: 0.0419165263 | J42: 6 | K42: 0.08703555374 | L42: 112.4706057 | M42: =IF($A42>0,SUMPRODUCT('Age profile (years)'!$CT42:$GF42,'Asset data'!$CX42:$GJ42)/H42-0.5,0) -> 35.95468447 | N42: 11961216.75 | O42: =IF($A42>0,'Asset data'!G42,0) -> 67.61500935 | P42: 22493808.36 | Q42: 0.4682440362 | R42: 6.761500935 | S42: 13.52300187 | T42: 40.56900561 | U42: 54.09200748 | W42: =IF($A42>0,SUMIF('Age profile (years)'!$CT42:$GF42,"<" & R42+0.5,'Asset data'!$CX42:$GJ42),0) -> 389.3732368 | X42: =IF($A42>0,SUMIF('Age profile (years)'!$CT42:$GF42,"<" & S42+0.5,'Asset data'!$CX42:$GJ42)-W42,0) -> 8230.14904 | Y42: =IF($A42>0,SUMIF('Age profile (years)'!$CT42:$GF42,"<" & T42+0.5,'Asset data'!$CX42:$GJ42)-X42-W42,0) -> 216110.5817 | Z42: =IF($A42>0,SUMIF('Age profile (years)'!$CT42:$GF42,"<" & U42+0.5,'Asset data'!$CX42:$GJ42)-Y42-X42-W42,0) -> 79084.60614 | AA42: 28860.06988 | AB42: 0.001170432086 | AC42: 0.02473932361 | AD42: 0.6496151638 | AE42: 0.2377234792 | AF42: 0.08675160131 | AI42: =IF($A42>0,'RRR hist-forc'!K42,0) -> 67.61500935 | AJ42: 22493808.36
A43: ='Asset data'!A43 -> 3 | B43: ='Asset data'!B43 -> 0 | C43: ='Asset data'!C43 -> 0 | D43: ='Asset data'!E43 -> ˃ 11 kV & < = 22 kV ; SWER | E43: OVERHEAD CONDUCTORS | F43: =IF(A43>0,SUM('Asset data'!J43:CV43),0) -> 483.73 | G43: =IF(A43>0,'Asset data'!F43,0) -> 27.60929153 | H43: =IF(A43>0,SUM('Asset data'!CX43:GJ43),0) -> 13355.44259 | I43: 0.001682765855 | J43: 25 | K43: 0.003494098174 | L43: 27.60929153 | M43: =IF($A43>0,SUMPRODUCT('Age profile (years)'!$CT43:$GF43,'Asset data'!$CX43:$GJ43)/H43-0.5,0) -> 31.867517 | N43: 425604.7939 | O43: =IF($A43>0,'Asset data'!G43,0) -> 70.94662146 | P43: 947523.53 | Q43: 0.5508240372 | R43: 7.094662146 | S43: 14.18932429 | T43: 42.56797288 | U43: 56.75729717 | W43: =IF($A43>0,SUMIF('Age profile (years)'!$CT43:$GF43,"<" & R43+0.5,'Asset data'!$CX43:$GJ43),0) -> 0 | X43: =IF($A43>0,SUMIF('Age profile (years)'!$CT43:$GF43,"<" & S43+0.5,'Asset data'!$CX43:$GJ43)-W43,0) -> 0 | Y43: =IF($A43>0,SUMIF('Age profile (years)'!$CT43:$GF43,"<" & T43+0.5,'Asset data'!$CX43:$GJ43)-X43-W43,0) -> 10872.06965 | Z43: =IF($A43>0,SUMIF('Age profile (years)'!$CT43:$GF43,"<" & U43+0.5,'Asset data'!$CX43:$GJ43)-Y43-X43-W43,0) -> 1996.952447 | AA43: 486.4204982 | AB43: 0 | AC43: 0 | AD43: 0.8140553615 | AE43: 0.1495234945 | AF43: 0.03642114403 | AI43: =IF($A43>0,'RRR hist-forc'!K43,0) -> 70.94662146 | AJ43: 947523.53
A44: ='Asset data'!A44 -> 3 | B44: ='Asset data'!B44 -> 0 | C44: ='Asset data'!C44 -> 0 | D44: ='Asset data'!E44 -> ˃ 11 kV & < = 22 kV ; Single-Phase | E44: OVERHEAD CONDUCTORS | F44: =IF(A44>0,SUM('Asset data'!J44:CV44),0) -> 2121.403 | G44: =IF(A44>0,'Asset data'!F44,0) -> 54.74084806 | H44: =IF(A44>0,SUM('Asset data'!CX44:GJ44),0) -> 116127.3993 | I44: 0.01463187918 | J44: 15 | K44: 0.03038166134 | L44: 54.74084806 | M44: =IF($A44>0,SUMPRODUCT('Age profile (years)'!$CT44:$GF44,'Asset data'!$CX44:$GJ44)/H44-0.5,0) -> 34.72077182 | N44: 4032032.933 | O44: =IF($A44>0,'Asset data'!G44,0) -> 65.89600814 | P44: 7652332.049 | Q44: 0.473097494 | R44: 6.589600814 | S44: 13.17920163 | T44: 39.53760488 | U44: 52.71680651 | W44: =IF($A44>0,SUMIF('Age profile (years)'!$CT44:$GF44,"<" & R44+0.5,'Asset data'!$CX44:$GJ44),0) -> 338.7911087 | X44: =IF($A44>0,SUMIF('Age profile (years)'!$CT44:$GF44,"<" & S44+0.5,'Asset data'!$CX44:$GJ44)-W44,0) -> 3547.5354 | Y44: =IF($A44>0,SUMIF('Age profile (years)'!$CT44:$GF44,"<" & T44+0.5,'Asset data'!$CX44:$GJ44)-X44-W44,0) -> 69953.49396 | Z44: =IF($A44>0,SUMIF('Age profile (years)'!$CT44:$GF44,"<" & U44+0.5,'Asset data'!$CX44:$GJ44)-Y44-X44-W44,0) -> 32103.81042 | AA44: 10183.76841 | AB44: 0.002917408903 | AC44: 0.03054865106 | AD44: 0.6023857796 | AE44: 0.276453366 | AF44: 0.08769479444 | AI44: =IF($A44>0,'RRR hist-forc'!K44,0) -> 65.89600814 | AJ44: 7652332.049
A45: ='Asset data'!A45 -> 3 | B45: ='Asset data'!B45 -> 0 | C45: ='Asset data'!C45 -> 0 | D45: ='Asset data'!E45 -> ˃ 11 kV & < = 22 kV ; Multiple-Phase | E45: OVERHEAD CONDUCTORS | F45: =IF(A45>0,SUM('Asset data'!J45:CV45),0) -> 9511.579 | G45: =IF(A45>0,'Asset data'!F45,0) -> 220.0005258 | H45: =IF(A45>0,SUM('Asset data'!CX45:GJ45),0) -> 2092552.381 | I45: 0.2636584802 | J45: 1 | K45: 0.5474609622 | L45: 220.0005258 | M45: =IF($A45>0,SUMPRODUCT('Age profile (years)'!$CT45:$GF45,'Asset data'!$CX45:$GJ45)/H45-0.5,0) -> 30.54471413 | N45: 63916414.28 | O45: =IF($A45>0,'Asset data'!G45,0) -> 63.4443406 | P45: 132760606 | Q45: 0.5185588841 | R45: 6.34443406 | S45: 12.68886812 | T45: 38.06660436 | U45: 50.75547248 | W45: =IF($A45>0,SUMIF('Age profile (years)'!$CT45:$GF45,"<" & R45+0.5,'Asset data'!$CX45:$GJ45),0) -> 56076.15401 | X45: =IF($A45>0,SUMIF('Age profile (years)'!$CT45:$GF45,"<" & S45+0.5,'Asset data'!$CX45:$GJ45)-W45,0) -> 232110.8947 | Y45: =IF($A45>0,SUMIF('Age profile (years)'!$CT45:$GF45,"<" & T45+0.5,'Asset data'!$CX45:$GJ45)-X45-W45,0) -> 1126361.112 | Z45: =IF($A45>0,SUMIF('Age profile (years)'!$CT45:$GF45,"<" & U45+0.5,'Asset data'!$CX45:$GJ45)-Y45-X45-W45,0) -> 442899.1184 | AA45: 235105.1018 | AB45: 0.02679796909 | AC45: 0.1109223821 | AD45: 0.5382714058 | AE45: 0.2116549734 | AF45: 0.1123532696 | AI45: =IF($A45>0,'RRR hist-forc'!K45,0) -> 63.4443406 | AJ45: 132760606
A46: ='Asset data'!A46 -> 3 | B46: ='Asset data'!B46 -> 0 | C46: ='Asset data'!C46 -> 0 | D46: ='Asset data'!E46 -> > 22 kV & < = 66 kV | E46: OVERHEAD CONDUCTORS | F46: =IF(A46>0,SUM('Asset data'!J46:CV46),0) -> 134.187 | G46: =IF(A46>0,'Asset data'!F46,0) -> 0.001 | H46: =IF(A46>0,SUM('Asset data'!CX46:GJ46),0) -> 0.134187 | I46: 1.690736194e-08 | J46: 35 | K46: 3.510647801e-08 | L46: 0.001 | M46: =IF($A46>0,SUMPRODUCT('Age profile (years)'!$CT46:$GF46,'Asset data'!$CX46:$GJ46)/H46-0.5,0) -> 2.239475508 | N46: 0.3005085 | O46: =IF($A46>0,'Asset data'!G46,0) -> 50 | P46: 6.70935 | Q46: 0.9552104898 | R46: 5 | S46: 10 | T46: 30 | U46: 40 | W46: =IF($A46>0,SUMIF('Age profile (years)'!$CT46:$GF46,"<" & R46+0.5,'Asset data'!$CX46:$GJ46),0) -> 0.09678 | X46: =IF($A46>0,SUMIF('Age profile (years)'!$CT46:$GF46,"<" & S46+0.5,'Asset data'!$CX46:$GJ46)-W46,0) -> 0.007659 | Y46: =IF($A46>0,SUMIF('Age profile (years)'!$CT46:$GF46,"<" & T46+0.5,'Asset data'!$CX46:$GJ46)-X46-W46,0) -> 0.029633 | Z46: =IF($A46>0,SUMIF('Age profile (years)'!$CT46:$GF46,"<" & U46+0.5,'Asset data'!$CX46:$GJ46)-Y46-X46-W46,0) -> 0 | AA46: 0.000115 | AB46: 0.7212323101 | AC46: 0.0570770641 | AD46: 0.2208336128 | AE46: 0 | AF46: 0.0008570129744 | AI46: =IF($A46>0,'RRR hist-forc'!K46,0) -> 50 | AJ46: 6.70935
A47: ='Asset data'!A47 -> 0 | B47: ='Asset data'!B47 -> 0 | C47: ='Asset data'!C47 -> 0 | D47: ='Asset data'!E47 ->  | E47: 0 | F47: =IF(A47>0,SUM('Asset data'!J47:CV47),0) -> 0 | G47: =IF(A47>0,'Asset data'!F47,0) -> 0 | H47: =IF(A47>0,SUM('Asset data'!CX47:GJ47),0) -> 0 | I47: 0 | J47: 0 | K47: 0 | L47: 0 | M47: =IF($A47>0,SUMPRODUCT('Age profile (years)'!$CT47:$GF47,'Asset data'!$CX47:$GJ47)/H47-0.5,0) -> 0 | N47: 0 | O47: =IF($A47>0,'Asset data'!G47,0) -> 0 | P47: 0 | Q47: 0 | R47: 0 | S47: 0 | T47: 0 | U47: 0 | W47: =IF($A47>0,SUMIF('Age profile (years)'!$CT47:$GF47,"<" & R47+0.5,'Asset data'!$CX47:$GJ47),0) -> 0 | X47: =IF($A47>0,SUMIF('Age profile (years)'!$CT47:$GF47,"<" & S47+0.5,'Asset data'!$CX47:$GJ47)-W47,0) -> 0 | Y47: =IF($A47>0,SUMIF('Age profile (years)'!$CT47:$GF47,"<" & T47+0.5,'Asset data'!$CX47:$GJ47)-X47-W47,0) -> 0 | Z47: =IF($A47>0,SUMIF('Age profile (years)'!$CT47:$GF47,"<" & U47+0.5,'Asset data'!$CX47:$GJ47)-Y47-X47-W47,0) -> 0 | AA47: 0 | AB47: 0 | AC47: 0 | AD47: 0 | AE47: 0 | AF47: 0 | AI47: =IF($A47>0,'RRR hist-forc'!K47,0) -> 0 | AJ47: 0
A48: ='Asset data'!A48 -> 0 | B48: ='Asset data'!B48 -> 0 | C48: ='Asset data'!C48 -> 0 | D48: ='Asset data'!E48 ->  | E48: 0 | F48: =IF(A48>0,SUM('Asset data'!J48:CV48),0) -> 0 | G48: =IF(A48>0,'Asset data'!F48,0) -> 0 | H48: =IF(A48>0,SUM('Asset data'!CX48:GJ48),0) -> 0 | I48: 0 | J48: 0 | K48: 0 | L48: 0 | M48: =IF($A48>0,SUMPRODUCT('Age profile (years)'!$CT48:$GF48,'Asset data'!$CX48:$GJ48)/H48-0.5,0) -> 0 | N48: 0 | O48: =IF($A48>0,'Asset data'!G48,0) -> 0 | P48: 0 | Q48: 0 | R48: 0 | S48: 0 | T48: 0 | U48: 0 | W48: =IF($A48>0,SUMIF('Age profile (years)'!$CT48:$GF48,"<" & R48+0.5,'Asset data'!$CX48:$GJ48),0) -> 0 | X48: =IF($A48>0,SUMIF('Age profile (years)'!$CT48:$GF48,"<" & S48+0.5,'Asset data'!$CX48:$GJ48)-W48,0) -> 0 | Y48: =IF($A48>0,SUMIF('Age profile (years)'!$CT48:$GF48,"<" & T48+0.5,'Asset data'!$CX48:$GJ48)-X48-W48,0) -> 0 | Z48: =IF($A48>0,SUMIF('Age profile (years)'!$CT48:$GF48,"<" & U48+0.5,'Asset data'!$CX48:$GJ48)-Y48-X48-W48,0) -> 0 | AA48: 0 | AB48: 0 | AC48: 0 | AD48: 0 | AE48: 0 | AF48: 0 | AI48: =IF($A48>0,'RRR hist-forc'!K48,0) -> 0 | AJ48: 0
A49: ='Asset data'!A49 -> 0 | B49: ='Asset data'!B49 -> 0 | C49: ='Asset data'!C49 -> 0 | D49: ='Asset data'!E49 ->  | E49: 0 | F49: =IF(A49>0,SUM('Asset data'!J49:CV49),0) -> 0 | G49: =IF(A49>0,'Asset data'!F49,0) -> 0 | H49: =IF(A49>0,SUM('Asset data'!CX49:GJ49),0) -> 0 | I49: 0 | J49: 0 | K49: 0 | L49: 0 | M49: =IF($A49>0,SUMPRODUCT('Age profile (years)'!$CT49:$GF49,'Asset data'!$CX49:$GJ49)/H49-0.5,0) -> 0 | N49: 0 | O49: =IF($A49>0,'Asset data'!G49,0) -> 0 | P49: 0 | Q49: 0 | R49: 0 | S49: 0 | T49: 0 | U49: 0 | W49: =IF($A49>0,SUMIF('Age profile (years)'!$CT49:$GF49,"<" & R49+0.5,'Asset data'!$CX49:$GJ49),0) -> 0 | X49: =IF($A49>0,SUMIF('Age profile (years)'!$CT49:$GF49,"<" & S49+0.5,'Asset data'!$CX49:$GJ49)-W49,0) -> 0 | Y49: =IF($A49>0,SUMIF('Age profile (years)'!$CT49:$GF49,"<" & T49+0.5,'Asset data'!$CX49:$GJ49)-X49-W49,0) -> 0 | Z49: =IF($A49>0,SUMIF('Age profile (years)'!$CT49:$GF49,"<" & U49+0.5,'Asset data'!$CX49:$GJ49)-Y49-X49-W49,0) -> 0 | AA49: 0 | AB49: 0 | AC49: 0 | AD49: 0 | AE49: 0 | AF49: 0 | AI49: =IF($A49>0,'RRR hist-forc'!K49,0) -> 0 | AJ49: 0
A50: ='Asset data'!A50 -> 4 | B50: ='Asset data'!B50 -> 0 | C50: ='Asset data'!C50 -> 0 | D50: ='Asset data'!E50 -> ˂ = 1 kV | E50: UNDERGROUND CABLES | F50: =IF(A50>0,SUM('Asset data'!J50:CV50),0) -> 1240.241 | G50: =IF(A50>0,'Asset data'!F50,0) -> 315.26412 | H50: =IF(A50>0,SUM('Asset data'!CX50:GJ50),0) -> 391003.4875 | I50: 0.04926585648 | J50: 4 | K50: 0.4031863135 | L50: 315.26412 | M50: =IF($A50>0,SUMPRODUCT('Age profile (years)'!$CT50:$GF50,'Asset data'!$CX50:$GJ50)/H50-0.5,0) -> 35.73444073 | N50: 13972290.95 | O50: =IF($A50>0,'Asset data'!G50,0) -> 52.45524925 | P50: 20510185.39 | Q50: 0.3187633032 | R50: 5.245524925 | S50: 10.49104985 | T50: 31.47314955 | U50: 41.9641994 | W50: =IF($A50>0,SUMIF('Age profile (years)'!$CT50:$GF50,"<" & R50+0.5,'Asset data'!$CX50:$GJ50),0) -> 11697.24465 | X50: =IF($A50>0,SUMIF('Age profile (years)'!$CT50:$GF50,"<" & S50+0.5,'Asset data'!$CX50:$GJ50)-W50,0) -> 9413.156096 | Y50: =IF($A50>0,SUMIF('Age profile (years)'!$CT50:$GF50,"<" & T50+0.5,'Asset data'!$CX50:$GJ50)-X50-W50,0) -> 117777.631 | Z50: =IF($A50>0,SUMIF('Age profile (years)'!$CT50:$GF50,"<" & U50+0.5,'Asset data'!$CX50:$GJ50)-Y50-X50-W50,0) -> 57233.36362 | AA50: 194882.0921 | AB50: 0.02991595988 | AC50: 0.02407435329 | AD50: 0.301218876 | AE50: 0.1463755835 | AF50: 0.4984152274 | AI50: =IF($A50>0,'RRR hist-forc'!K50,0) -> 52.45524925 | AJ50: 20510185.39
A51: ='Asset data'!A51 -> 4 | B51: ='Asset data'!B51 -> 0 | C51: ='Asset data'!C51 -> 0 | D51: ='Asset data'!E51 -> > 1 kV & < = 11 kV | E51: UNDERGROUND CABLES | F51: =IF(A51>0,SUM('Asset data'!J51:CV51),0) -> 625.139 | G51: =IF(A51>0,'Asset data'!F51,0) -> 454.8860693 | H51: =IF(A51>0,SUM('Asset data'!CX51:GJ51),0) -> 284367.0225 | I51: 0.03582982087 | J51: 9 | K51: 0.2932272861 | L51: 454.8860693 | M51: =IF($A51>0,SUMPRODUCT('Age profile (years)'!$CT51:$GF51,'Asset data'!$CX51:$GJ51)/H51-0.5,0) -> 41.78064318 | N51: 11881037.1 | O51: =IF($A51>0,'Asset data'!G51,0) -> 67.98263767 | P51: 19332020.25 | Q51: 0.3854218574 | R51: 6.798263767 | S51: 13.59652753 | T51: 40.7895826 | U51: 54.38611013 | W51: =IF($A51>0,SUMIF('Age profile (years)'!$CT51:$GF51,"<" & R51+0.5,'Asset data'!$CX51:$GJ51),0) -> 0 | X51: =IF($A51>0,SUMIF('Age profile (years)'!$CT51:$GF51,"<" & S51+0.5,'Asset data'!$CX51:$GJ51)-W51,0) -> 4490.635277 | Y51: =IF($A51>0,SUMIF('Age profile (years)'!$CT51:$GF51,"<" & T51+0.5,'Asset data'!$CX51:$GJ51)-X51-W51,0) -> 140824.994 | Z51: =IF($A51>0,SUMIF('Age profile (years)'!$CT51:$GF51,"<" & U51+0.5,'Asset data'!$CX51:$GJ51)-Y51-X51-W51,0) -> 66836.41017 | AA51: 72214.98305 | AB51: 0 | AC51: 0.01579168793 | AD51: 0.4952226625 | AE51: 0.2350357281 | AF51: 0.2539499215 | AI51: =IF($A51>0,'RRR hist-forc'!K51,0) -> 67.98263767 | AJ51: 19332020.25
A52: ='Asset data'!A52 -> 4 | B52: ='Asset data'!B52 -> 0 | C52: ='Asset data'!C52 -> 0 | D52: ='Asset data'!E52 -> > 11 kV & < = 22 kV | E52: UNDERGROUND CABLES | F52: =IF(A52>0,SUM('Asset data'!J52:CV52),0) -> 530.916 | G52: =IF(A52>0,'Asset data'!F52,0) -> 554.5379174 | H52: =IF(A52>0,SUM('Asset data'!CX52:GJ52),0) -> 294413.053 | I52: 0.03709560573 | J52: 8 | K52: 0.3035863292 | L52: 554.5379174 | M52: =IF($A52>0,SUMPRODUCT('Age profile (years)'!$CT52:$GF52,'Asset data'!$CX52:$GJ52)/H52-0.5,0) -> 35.91028148 | N52: 10572455.6 | O52: =IF($A52>0,'Asset data'!G52,0) -> 51.63603945 | P52: 15202324.02 | Q52: 0.3045500418 | R52: 5.163603945 | S52: 10.32720789 | T52: 30.98162367 | U52: 41.30883156 | W52: =IF($A52>0,SUMIF('Age profile (years)'!$CT52:$GF52,"<" & R52+0.5,'Asset data'!$CX52:$GJ52),0) -> 1474.516322 | X52: =IF($A52>0,SUMIF('Age profile (years)'!$CT52:$GF52,"<" & S52+0.5,'Asset data'!$CX52:$GJ52)-W52,0) -> 2407.2491 | Y52: =IF($A52>0,SUMIF('Age profile (years)'!$CT52:$GF52,"<" & T52+0.5,'Asset data'!$CX52:$GJ52)-X52-W52,0) -> 66591.13128 | Z52: =IF($A52>0,SUMIF('Age profile (years)'!$CT52:$GF52,"<" & U52+0.5,'Asset data'!$CX52:$GJ52)-Y52-X52-W52,0) -> 105545.7564 | AA52: 118394.3999 | AB52: 0.005008325234 | AC52: 0.00817643469 | AD52: 0.226182673 | AE52: 0.3584955059 | AF52: 0.4021370612 | AI52: =IF($A52>0,'RRR hist-forc'!K52,0) -> 51.63603945 | AJ52: 15202324.02
A53: ='Asset data'!A53 -> 4 | B53: ='Asset data'!B53 -> 0 | C53: ='Asset data'!C53 -> 0 | D53: ='Asset data'!E53 -> > 22 kV & < = 33 kV | E53: UNDERGROUND CABLES | F53: =IF(A53>0,SUM('Asset data'!J53:CV53),0) -> 68.995 | G53: =IF(A53>0,'Asset data'!F53,0) -> 0.001 | H53: =IF(A53>0,SUM('Asset data'!CX53:GJ53),0) -> 0.068995 | I53: 8.693267136e-09 | J53: 37 | K53: 7.114473551e-08 | L53: 0.001 | M53: =IF($A53>0,SUMPRODUCT('Age profile (years)'!$CT53:$GF53,'Asset data'!$CX53:$GJ53)/H53-0.5,0) -> 38.19400681 | N53: 2.6351955 | O53: =IF($A53>0,'Asset data'!G53,0) -> 60 | P53: 4.1397 | Q53: 0.3634332198 | R53: 6 | S53: 12 | T53: 36 | U53: 48 | W53: =IF($A53>0,SUMIF('Age profile (years)'!$CT53:$GF53,"<" & R53+0.5,'Asset data'!$CX53:$GJ53),0) -> 0 | X53: =IF($A53>0,SUMIF('Age profile (years)'!$CT53:$GF53,"<" & S53+0.5,'Asset data'!$CX53:$GJ53)-W53,0) -> 0.021916 | Y53: =IF($A53>0,SUMIF('Age profile (years)'!$CT53:$GF53,"<" & T53+0.5,'Asset data'!$CX53:$GJ53)-X53-W53,0) -> 0.003605 | Z53: =IF($A53>0,SUMIF('Age profile (years)'!$CT53:$GF53,"<" & U53+0.5,'Asset data'!$CX53:$GJ53)-Y53-X53-W53,0) -> 0.000929 | AA53: 0.042545 | AB53: 0 | AC53: 0.3176462062 | AD53: 0.05225016306 | AE53: 0.01346474382 | AF53: 0.6166388869 | AI53: =IF($A53>0,'RRR hist-forc'!K53,0) -> 60 | AJ53: 4.1397
A54: ='Asset data'!A54 -> 0 | B54: ='Asset data'!B54 -> 0 | C54: ='Asset data'!C54 -> 0 | D54: ='Asset data'!E54 ->  | E54: 0 | F54: =IF(A54>0,SUM('Asset data'!J54:CV54),0) -> 0 | G54: =IF(A54>0,'Asset data'!F54,0) -> 0 | H54: =IF(A54>0,SUM('Asset data'!CX54:GJ54),0) -> 0 | I54: 0 | J54: 0 | K54: 0 | L54: 0 | M54: =IF($A54>0,SUMPRODUCT('Age profile (years)'!$CT54:$GF54,'Asset data'!$CX54:$GJ54)/H54-0.5,0) -> 0 | N54: 0 | O54: =IF($A54>0,'Asset data'!G54,0) -> 0 | P54: 0 | Q54: 0 | R54: 0 | S54: 0 | T54: 0 | U54: 0 | W54: =IF($A54>0,SUMIF('Age profile (years)'!$CT54:$GF54,"<" & R54+0.5,'Asset data'!$CX54:$GJ54),0) -> 0 | X54: =IF($A54>0,SUMIF('Age profile (years)'!$CT54:$GF54,"<" & S54+0.5,'Asset data'!$CX54:$GJ54)-W54,0) -> 0 | Y54: =IF($A54>0,SUMIF('Age profile (years)'!$CT54:$GF54,"<" & T54+0.5,'Asset data'!$CX54:$GJ54)-X54-W54,0) -> 0 | Z54: =IF($A54>0,SUMIF('Age profile (years)'!$CT54:$GF54,"<" & U54+0.5,'Asset data'!$CX54:$GJ54)-Y54-X54-W54,0) -> 0 | AA54: 0 | AB54: 0 | AC54: 0 | AD54: 0 | AE54: 0 | AF54: 0 | AI54: =IF($A54>0,'RRR hist-forc'!K54,0) -> 0 | AJ54: 0
A55: ='Asset data'!A55 -> 0 | B55: ='Asset data'!B55 -> 0 | C55: ='Asset data'!C55 -> 0 | D55: ='Asset data'!E55 ->  | E55: 0 | F55: =IF(A55>0,SUM('Asset data'!J55:CV55),0) -> 0 | G55: =IF(A55>0,'Asset data'!F55,0) -> 0 | H55: =IF(A55>0,SUM('Asset data'!CX55:GJ55),0) -> 0 | I55: 0 | J55: 0 | K55: 0 | L55: 0 | M55: =IF($A55>0,SUMPRODUCT('Age profile (years)'!$CT55:$GF55,'Asset data'!$CX55:$GJ55)/H55-0.5,0) -> 0 | N55: 0 | O55: =IF($A55>0,'Asset data'!G55,0) -> 0 | P55: 0 | Q55: 0 | R55: 0 | S55: 0 | T55: 0 | U55: 0 | W55: =IF($A55>0,SUMIF('Age profile (years)'!$CT55:$GF55,"<" & R55+0.5,'Asset data'!$CX55:$GJ55),0) -> 0 | X55: =IF($A55>0,SUMIF('Age profile (years)'!$CT55:$GF55,"<" & S55+0.5,'Asset data'!$CX55:$GJ55)-W55,0) -> 0 | Y55: =IF($A55>0,SUMIF('Age profile (years)'!$CT55:$GF55,"<" & T55+0.5,'Asset data'!$CX55:$GJ55)-X55-W55,0) -> 0 | Z55: =IF($A55>0,SUMIF('Age profile (years)'!$CT55:$GF55,"<" & U55+0.5,'Asset data'!$CX55:$GJ55)-Y55-X55-W55,0) -> 0 | AA55: 0 | AB55: 0 | AC55: 0 | AD55: 0 | AE55: 0 | AF55: 0 | AI55: =IF($A55>0,'RRR hist-forc'!K55,0) -> 0 | AJ55: 0
A56: ='Asset data'!A56 -> 0 | B56: ='Asset data'!B56 -> 0 | C56: ='Asset data'!C56 -> 0 | D56: ='Asset data'!E56 ->  | E56: 0 | F56: =IF(A56>0,SUM('Asset data'!J56:CV56),0) -> 0 | G56: =IF(A56>0,'Asset data'!F56,0) -> 0 | H56: =IF(A56>0,SUM('Asset data'!CX56:GJ56),0) -> 0 | I56: 0 | J56: 0 | K56: 0 | L56: 0 | M56: =IF($A56>0,SUMPRODUCT('Age profile (years)'!$CT56:$GF56,'Asset data'!$CX56:$GJ56)/H56-0.5,0) -> 0 | N56: 0 | O56: =IF($A56>0,'Asset data'!G56,0) -> 0 | P56: 0 | Q56: 0 | R56: 0 | S56: 0 | T56: 0 | U56: 0 | W56: =IF($A56>0,SUMIF('Age profile (years)'!$CT56:$GF56,"<" & R56+0.5,'Asset data'!$CX56:$GJ56),0) -> 0 | X56: =IF($A56>0,SUMIF('Age profile (years)'!$CT56:$GF56,"<" & S56+0.5,'Asset data'!$CX56:$GJ56)-W56,0) -> 0 | Y56: =IF($A56>0,SUMIF('Age profile (years)'!$CT56:$GF56,"<" & T56+0.5,'Asset data'!$CX56:$GJ56)-X56-W56,0) -> 0 | Z56: =IF($A56>0,SUMIF('Age profile (years)'!$CT56:$GF56,"<" & U56+0.5,'Asset data'!$CX56:$GJ56)-Y56-X56-W56,0) -> 0 | AA56: 0 | AB56: 0 | AC56: 0 | AD56: 0 | AE56: 0 | AF56: 0 | AI56: =IF($A56>0,'RRR hist-forc'!K56,0) -> 0 | AJ56: 0
A57: ='Asset data'!A57 -> 0 | B57: ='Asset data'!B57 -> 0 | C57: ='Asset data'!C57 -> 0 | D57: ='Asset data'!E57 ->  | E57: 0 | F57: =IF(A57>0,SUM('Asset data'!J57:CV57),0) -> 0 | G57: =IF(A57>0,'Asset data'!F57,0) -> 0 | H57: =IF(A57>0,SUM('Asset data'!CX57:GJ57),0) -> 0 | I57: 0 | J57: 0 | K57: 0 | L57: 0 | M57: =IF($A57>0,SUMPRODUCT('Age profile (years)'!$CT57:$GF57,'Asset data'!$CX57:$GJ57)/H57-0.5,0) -> 0 | N57: 0 | O57: =IF($A57>0,'Asset data'!G57,0) -> 0 | P57: 0 | Q57: 0 | R57: 0 | S57: 0 | T57: 0 | U57: 0 | W57: =IF($A57>0,SUMIF('Age profile (years)'!$CT57:$GF57,"<" & R57+0.5,'Asset data'!$CX57:$GJ57),0) -> 0 | X57: =IF($A57>0,SUMIF('Age profile (years)'!$CT57:$GF57,"<" & S57+0.5,'Asset data'!$CX57:$GJ57)-W57,0) -> 0 | Y57: =IF($A57>0,SUMIF('Age profile (years)'!$CT57:$GF57,"<" & T57+0.5,'Asset data'!$CX57:$GJ57)-X57-W57,0) -> 0 | Z57: =IF($A57>0,SUMIF('Age profile (years)'!$CT57:$GF57,"<" & U57+0.5,'Asset data'!$CX57:$GJ57)-Y57-X57-W57,0) -> 0 | AA57: 0 | AB57: 0 | AC57: 0 | AD57: 0 | AE57: 0 | AF57: 0 | AI57: =IF($A57>0,'RRR hist-forc'!K57,0) -> 0 | AJ57: 0
A58: ='Asset data'!A58 -> 5 | B58: ='Asset data'!B58 -> 0 | C58: ='Asset data'!C58 -> 0 | D58: ='Asset data'!E58 -> ˂ = 11 kV ; Residential ; Simple Type | E58: SERVICE LINES | F58: =IF(A58>0,SUM('Asset data'!J58:CV58),0) -> 122698 | G58: =IF(A58>0,'Asset data'!F58,0) -> 1.379183876 | H58: =IF(A58>0,SUM('Asset data'!CX58:GJ58),0) -> 169223.1032 | I58: 0.02132185871 | J58: 13 | K58: 0.7919036671 | L58: 1.379183876 | M58: =IF($A58>0,SUMPRODUCT('Age profile (years)'!$CT58:$GF58,'Asset data'!$CX58:$GJ58)/H58-0.5,0) -> 22.59741805 | N58: 3824005.208 | O58: =IF($A58>0,'Asset data'!G58,0) -> 53.87134458 | P58: 9116276.106 | Q58: 0.5805299046 | R58: 5.387134458 | S58: 10.77426892 | T58: 32.32280675 | U58: 43.09707567 | W58: =IF($A58>0,SUMIF('Age profile (years)'!$CT58:$GF58,"<" & R58+0.5,'Asset data'!$CX58:$GJ58),0) -> 23437.85079 | X58: =IF($A58>0,SUMIF('Age profile (years)'!$CT58:$GF58,"<" & S58+0.5,'Asset data'!$CX58:$GJ58)-W58,0) -> 30035.86645 | Y58: =IF($A58>0,SUMIF('Age profile (years)'!$CT58:$GF58,"<" & T58+0.5,'Asset data'!$CX58:$GJ58)-X58-W58,0) -> 64147.22126 | Z58: =IF($A58>0,SUMIF('Age profile (years)'!$CT58:$GF58,"<" & U58+0.5,'Asset data'!$CX58:$GJ58)-Y58-X58-W58,0) -> 30959.91965 | AA58: 20642.24507 | AB58: 0.1385026651 | AC58: 0.1774927057 | AD58: 0.3790689335 | AE58: 0.1829532674 | AF58: 0.1219824284 | AI58: =IF($A58>0,'RRR hist-forc'!K58,0) -> 53.87134458 | AJ58: 9116276.106
A59: ='Asset data'!A59 -> 5 | B59: ='Asset data'!B59 -> 0 | C59: ='Asset data'!C59 -> 0 | D59: ='Asset data'!E59 -> ˂ = 11 kV ; Commercial & Industrial ; Simple Type | E59: SERVICE LINES | F59: =IF(A59>0,SUM('Asset data'!J59:CV59),0) -> 23672 | G59: =IF(A59>0,'Asset data'!F59,0) -> 1.87852412 | H59: =IF(A59>0,SUM('Asset data'!CX59:GJ59),0) -> 44468.42296 | I59: 0.005602954996 | J59: 20 | K59: 0.2080963329 | L59: 1.87852412 | M59: =IF($A59>0,SUMPRODUCT('Age profile (years)'!$CT59:$GF59,'Asset data'!$CX59:$GJ59)/H59-0.5,0) -> 22.59813282 | N59: 1004903.328 | O59: =IF($A59>0,'Asset data'!G59,0) -> 54.3346443 | P59: 2416175.944 | Q59: 0.5840934802 | R59: 5.43346443 | S59: 10.86692886 | T59: 32.60078658 | U59: 43.46771544 | W59: =IF($A59>0,SUMIF('Age profile (years)'!$CT59:$GF59,"<" & R59+0.5,'Asset data'!$CX59:$GJ59),0) -> 6159.680589 | X59: =IF($A59>0,SUMIF('Age profile (years)'!$CT59:$GF59,"<" & S59+0.5,'Asset data'!$CX59:$GJ59)-W59,0) -> 7889.801303 | Y59: =IF($A59>0,SUMIF('Age profile (years)'!$CT59:$GF59,"<" & T59+0.5,'Asset data'!$CX59:$GJ59)-X59-W59,0) -> 17357.56287 | Z59: =IF($A59>0,SUMIF('Age profile (years)'!$CT59:$GF59,"<" & U59+0.5,'Asset data'!$CX59:$GJ59)-Y59-X59-W59,0) -> 7638.079071 | AA59: 5423.299134 | AB59: 0.1385180804 | AC59: 0.1774248057 | AD59: 0.3903345725 | AE59: 0.1717641095 | AF59: 0.1219584319 | AI59: =IF($A59>0,'RRR hist-forc'!K59,0) -> 54.3346443 | AJ59: 2416175.944
A60: ='Asset data'!A60 -> 0 | B60: ='Asset data'!B60 -> 0 | C60: ='Asset data'!C60 -> 0 | D60: ='Asset data'!E60 ->  | E60: 0 | F60: =IF(A60>0,SUM('Asset data'!J60:CV60),0) -> 0 | G60: =IF(A60>0,'Asset data'!F60,0) -> 0 | H60: =IF(A60>0,SUM('Asset data'!CX60:GJ60),0) -> 0 | I60: 0 | J60: 0 | K60: 0 | L60: 0 | M60: =IF($A60>0,SUMPRODUCT('Age profile (years)'!$CT60:$GF60,'Asset data'!$CX60:$GJ60)/H60-0.5,0) -> 0 | N60: 0 | O60: =IF($A60>0,'Asset data'!G60,0) -> 0 | P60: 0 | Q60: 0 | R60: 0 | S60: 0 | T60: 0 | U60: 0 | W60: =IF($A60>0,SUMIF('Age profile (years)'!$CT60:$GF60,"<" & R60+0.5,'Asset data'!$CX60:$GJ60),0) -> 0 | X60: =IF($A60>0,SUMIF('Age profile (years)'!$CT60:$GF60,"<" & S60+0.5,'Asset data'!$CX60:$GJ60)-W60,0) -> 0 | Y60: =IF($A60>0,SUMIF('Age profile (years)'!$CT60:$GF60,"<" & T60+0.5,'Asset data'!$CX60:$GJ60)-X60-W60,0) -> 0 | Z60: =IF($A60>0,SUMIF('Age profile (years)'!$CT60:$GF60,"<" & U60+0.5,'Asset data'!$CX60:$GJ60)-Y60-X60-W60,0) -> 0 | AA60: 0 | AB60: 0 | AC60: 0 | AD60: 0 | AE60: 0 | AF60: 0 | AI60: =IF($A60>0,'RRR hist-forc'!K60,0) -> 0 | AJ60: 0
A61: ='Asset data'!A61 -> 0 | B61: ='Asset data'!B61 -> 0 | C61: ='Asset data'!C61 -> 0 | D61: ='Asset data'!E61 ->  | E61: 0 | F61: =IF(A61>0,SUM('Asset data'!J61:CV61),0) -> 0 | G61: =IF(A61>0,'Asset data'!F61,0) -> 0 | H61: =IF(A61>0,SUM('Asset data'!CX61:GJ61),0) -> 0 | I61: 0 | J61: 0 | K61: 0 | L61: 0 | M61: =IF($A61>0,SUMPRODUCT('Age profile (years)'!$CT61:$GF61,'Asset data'!$CX61:$GJ61)/H61-0.5,0) -> 0 | N61: 0 | O61: =IF($A61>0,'Asset data'!G61,0) -> 0 | P61: 0 | Q61: 0 | R61: 0 | S61: 0 | T61: 0 | U61: 0 | W61: =IF($A61>0,SUMIF('Age profile (years)'!$CT61:$GF61,"<" & R61+0.5,'Asset data'!$CX61:$GJ61),0) -> 0 | X61: =IF($A61>0,SUMIF('Age profile (years)'!$CT61:$GF61,"<" & S61+0.5,'Asset data'!$CX61:$GJ61)-W61,0) -> 0 | Y61: =IF($A61>0,SUMIF('Age profile (years)'!$CT61:$GF61,"<" & T61+0.5,'Asset data'!$CX61:$GJ61)-X61-W61,0) -> 0 | Z61: =IF($A61>0,SUMIF('Age profile (years)'!$CT61:$GF61,"<" & U61+0.5,'Asset data'!$CX61:$GJ61)-Y61-X61-W61,0) -> 0 | AA61: 0 | AB61: 0 | AC61: 0 | AD61: 0 | AE61: 0 | AF61: 0 | AI61: =IF($A61>0,'RRR hist-forc'!K61,0) -> 0 | AJ61: 0
A62: ='Asset data'!A62 -> 0 | B62: ='Asset data'!B62 -> 0 | C62: ='Asset data'!C62 -> 0 | D62: ='Asset data'!E62 ->  | E62: 0 | F62: =IF(A62>0,SUM('Asset data'!J62:CV62),0) -> 0 | G62: =IF(A62>0,'Asset data'!F62,0) -> 0 | H62: =IF(A62>0,SUM('Asset data'!CX62:GJ62),0) -> 0 | I62: 0 | J62: 0 | K62: 0 | L62: 0 | M62: =IF($A62>0,SUMPRODUCT('Age profile (years)'!$CT62:$GF62,'Asset data'!$CX62:$GJ62)/H62-0.5,0) -> 0 | N62: 0 | O62: =IF($A62>0,'Asset data'!G62,0) -> 0 | P62: 0 | Q62: 0 | R62: 0 | S62: 0 | T62: 0 | U62: 0 | W62: =IF($A62>0,SUMIF('Age profile (years)'!$CT62:$GF62,"<" & R62+0.5,'Asset data'!$CX62:$GJ62),0) -> 0 | X62: =IF($A62>0,SUMIF('Age profile (years)'!$CT62:$GF62,"<" & S62+0.5,'Asset data'!$CX62:$GJ62)-W62,0) -> 0 | Y62: =IF($A62>0,SUMIF('Age profile (years)'!$CT62:$GF62,"<" & T62+0.5,'Asset data'!$CX62:$GJ62)-X62-W62,0) -> 0 | Z62: =IF($A62>0,SUMIF('Age profile (years)'!$CT62:$GF62,"<" & U62+0.5,'Asset data'!$CX62:$GJ62)-Y62-X62-W62,0) -> 0 | AA62: 0 | AB62: 0 | AC62: 0 | AD62: 0 | AE62: 0 | AF62: 0 | AI62: =IF($A62>0,'RRR hist-forc'!K62,0) -> 0 | AJ62: 0
A63: ='Asset data'!A63 -> 0 | B63: ='Asset data'!B63 -> 0 | C63: ='Asset data'!C63 -> 0 | D63: ='Asset data'!E63 ->  | E63: 0 | F63: =IF(A63>0,SUM('Asset data'!J63:CV63),0) -> 0 | G63: =IF(A63>0,'Asset data'!F63,0) -> 0 | H63: =IF(A63>0,SUM('Asset data'!CX63:GJ63),0) -> 0 | I63: 0 | J63: 0 | K63: 0 | L63: 0 | M63: =IF($A63>0,SUMPRODUCT('Age profile (years)'!$CT63:$GF63,'Asset data'!$CX63:$GJ63)/H63-0.5,0) -> 0 | N63: 0 | O63: =IF($A63>0,'Asset data'!G63,0) -> 0 | P63: 0 | Q63: 0 | R63: 0 | S63: 0 | T63: 0 | U63: 0 | W63: =IF($A63>0,SUMIF('Age profile (years)'!$CT63:$GF63,"<" & R63+0.5,'Asset data'!$CX63:$GJ63),0) -> 0 | X63: =IF($A63>0,SUMIF('Age profile (years)'!$CT63:$GF63,"<" & S63+0.5,'Asset data'!$CX63:$GJ63)-W63,0) -> 0 | Y63: =IF($A63>0,SUMIF('Age profile (years)'!$CT63:$GF63,"<" & T63+0.5,'Asset data'!$CX63:$GJ63)-X63-W63,0) -> 0 | Z63: =IF($A63>0,SUMIF('Age profile (years)'!$CT63:$GF63,"<" & U63+0.5,'Asset data'!$CX63:$GJ63)-Y63-X63-W63,0) -> 0 | AA63: 0 | AB63: 0 | AC63: 0 | AD63: 0 | AE63: 0 | AF63: 0 | AI63: =IF($A63>0,'RRR hist-forc'!K63,0) -> 0 | AJ63: 0
A64: ='Asset data'!A64 -> 0 | B64: ='Asset data'!B64 -> 0 | C64: ='Asset data'!C64 -> 0 | D64: ='Asset data'!E64 ->  | E64: 0 | F64: =IF(A64>0,SUM('Asset data'!J64:CV64),0) -> 0 | G64: =IF(A64>0,'Asset data'!F64,0) -> 0 | H64: =IF(A64>0,SUM('Asset data'!CX64:GJ64),0) -> 0 | I64: 0 | J64: 0 | K64: 0 | L64: 0 | M64: =IF($A64>0,SUMPRODUCT('Age profile (years)'!$CT64:$GF64,'Asset data'!$CX64:$GJ64)/H64-0.5,0) -> 0 | N64: 0 | O64: =IF($A64>0,'Asset data'!G64,0) -> 0 | P64: 0 | Q64: 0 | R64: 0 | S64: 0 | T64: 0 | U64: 0 | W64: =IF($A64>0,SUMIF('Age profile (years)'!$CT64:$GF64,"<" & R64+0.5,'Asset data'!$CX64:$GJ64),0) -> 0 | X64: =IF($A64>0,SUMIF('Age profile (years)'!$CT64:$GF64,"<" & S64+0.5,'Asset data'!$CX64:$GJ64)-W64,0) -> 0 | Y64: =IF($A64>0,SUMIF('Age profile (years)'!$CT64:$GF64,"<" & T64+0.5,'Asset data'!$CX64:$GJ64)-X64-W64,0) -> 0 | Z64: =IF($A64>0,SUMIF('Age profile (years)'!$CT64:$GF64,"<" & U64+0.5,'Asset data'!$CX64:$GJ64)-Y64-X64-W64,0) -> 0 | AA64: 0 | AB64: 0 | AC64: 0 | AD64: 0 | AE64: 0 | AF64: 0 | AI64: =IF($A64>0,'RRR hist-forc'!K64,0) -> 0 | AJ64: 0
A65: ='Asset data'!A65 -> 0 | B65: ='Asset data'!B65 -> 0 | C65: ='Asset data'!C65 -> 0 | D65: ='Asset data'!E65 ->  | E65: 0 | F65: =IF(A65>0,SUM('Asset data'!J65:CV65),0) -> 0 | G65: =IF(A65>0,'Asset data'!F65,0) -> 0 | H65: =IF(A65>0,SUM('Asset data'!CX65:GJ65),0) -> 0 | I65: 0 | J65: 0 | K65: 0 | L65: 0 | M65: =IF($A65>0,SUMPRODUCT('Age profile (years)'!$CT65:$GF65,'Asset data'!$CX65:$GJ65)/H65-0.5,0) -> 0 | N65: 0 | O65: =IF($A65>0,'Asset data'!G65,0) -> 0 | P65: 0 | Q65: 0 | R65: 0 | S65: 0 | T65: 0 | U65: 0 | W65: =IF($A65>0,SUMIF('Age profile (years)'!$CT65:$GF65,"<" & R65+0.5,'Asset data'!$CX65:$GJ65),0) -> 0 | X65: =IF($A65>0,SUMIF('Age profile (years)'!$CT65:$GF65,"<" & S65+0.5,'Asset data'!$CX65:$GJ65)-W65,0) -> 0 | Y65: =IF($A65>0,SUMIF('Age profile (years)'!$CT65:$GF65,"<" & T65+0.5,'Asset data'!$CX65:$GJ65)-X65-W65,0) -> 0 | Z65: =IF($A65>0,SUMIF('Age profile (years)'!$CT65:$GF65,"<" & U65+0.5,'Asset data'!$CX65:$GJ65)-Y65-X65-W65,0) -> 0 | AA65: 0 | AB65: 0 | AC65: 0 | AD65: 0 | AE65: 0 | AF65: 0 | AI65: =IF($A65>0,'RRR hist-forc'!K65,0) -> 0 | AJ65: 0
A66: ='Asset data'!A66 -> 0 | B66: ='Asset data'!B66 -> 0 | C66: ='Asset data'!C66 -> 0 | D66: ='Asset data'!E66 ->  | E66: 0 | F66: =IF(A66>0,SUM('Asset data'!J66:CV66),0) -> 0 | G66: =IF(A66>0,'Asset data'!F66,0) -> 0 | H66: =IF(A66>0,SUM('Asset data'!CX66:GJ66),0) -> 0 | I66: 0 | J66: 0 | K66: 0 | L66: 0 | M66: =IF($A66>0,SUMPRODUCT('Age profile (years)'!$CT66:$GF66,'Asset data'!$CX66:$GJ66)/H66-0.5,0) -> 0 | N66: 0 | O66: =IF($A66>0,'Asset data'!G66,0) -> 0 | P66: 0 | Q66: 0 | R66: 0 | S66: 0 | T66: 0 | U66: 0 | W66: =IF($A66>0,SUMIF('Age profile (years)'!$CT66:$GF66,"<" & R66+0.5,'Asset data'!$CX66:$GJ66),0) -> 0 | X66: =IF($A66>0,SUMIF('Age profile (years)'!$CT66:$GF66,"<" & S66+0.5,'Asset data'!$CX66:$GJ66)-W66,0) -> 0 | Y66: =IF($A66>0,SUMIF('Age profile (years)'!$CT66:$GF66,"<" & T66+0.5,'Asset data'!$CX66:$GJ66)-X66-W66,0) -> 0 | Z66: =IF($A66>0,SUMIF('Age profile (years)'!$CT66:$GF66,"<" & U66+0.5,'Asset data'!$CX66:$GJ66)-Y66-X66-W66,0) -> 0 | AA66: 0 | AB66: 0 | AC66: 0 | AD66: 0 | AE66: 0 | AF66: 0 | AI66: =IF($A66>0,'RRR hist-forc'!K66,0) -> 0 | AJ66: 0
A67: ='Asset data'!A67 -> 0 | B67: ='Asset data'!B67 -> 0 | C67: ='Asset data'!C67 -> 0 | D67: ='Asset data'!E67 ->  | E67: 0 | F67: =IF(A67>0,SUM('Asset data'!J67:CV67),0) -> 0 | G67: =IF(A67>0,'Asset data'!F67,0) -> 0 | H67: =IF(A67>0,SUM('Asset data'!CX67:GJ67),0) -> 0 | I67: 0 | J67: 0 | K67: 0 | L67: 0 | M67: =IF($A67>0,SUMPRODUCT('Age profile (years)'!$CT67:$GF67,'Asset data'!$CX67:$GJ67)/H67-0.5,0) -> 0 | N67: 0 | O67: =IF($A67>0,'Asset data'!G67,0) -> 0 | P67: 0 | Q67: 0 | R67: 0 | S67: 0 | T67: 0 | U67: 0 | W67: =IF($A67>0,SUMIF('Age profile (years)'!$CT67:$GF67,"<" & R67+0.5,'Asset data'!$CX67:$GJ67),0) -> 0 | X67: =IF($A67>0,SUMIF('Age profile (years)'!$CT67:$GF67,"<" & S67+0.5,'Asset data'!$CX67:$GJ67)-W67,0) -> 0 | Y67: =IF($A67>0,SUMIF('Age profile (years)'!$CT67:$GF67,"<" & T67+0.5,'Asset data'!$CX67:$GJ67)-X67-W67,0) -> 0 | Z67: =IF($A67>0,SUMIF('Age profile (years)'!$CT67:$GF67,"<" & U67+0.5,'Asset data'!$CX67:$GJ67)-Y67-X67-W67,0) -> 0 | AA67: 0 | AB67: 0 | AC67: 0 | AD67: 0 | AE67: 0 | AF67: 0 | AI67: =IF($A67>0,'RRR hist-forc'!K67,0) -> 0 | AJ67: 0
A68: ='Asset data'!A68 -> 0 | B68: ='Asset data'!B68 -> 0 | C68: ='Asset data'!C68 -> 0 | D68: ='Asset data'!E68 ->  | E68: 0 | F68: =IF(A68>0,SUM('Asset data'!J68:CV68),0) -> 0 | G68: =IF(A68>0,'Asset data'!F68,0) -> 0 | H68: =IF(A68>0,SUM('Asset data'!CX68:GJ68),0) -> 0 | I68: 0 | J68: 0 | K68: 0 | L68: 0 | M68: =IF($A68>0,SUMPRODUCT('Age profile (years)'!$CT68:$GF68,'Asset data'!$CX68:$GJ68)/H68-0.5,0) -> 0 | N68: 0 | O68: =IF($A68>0,'Asset data'!G68,0) -> 0 | P68: 0 | Q68: 0 | R68: 0 | S68: 0 | T68: 0 | U68: 0 | W68: =IF($A68>0,SUMIF('Age profile (years)'!$CT68:$GF68,"<" & R68+0.5,'Asset data'!$CX68:$GJ68),0) -> 0 | X68: =IF($A68>0,SUMIF('Age profile (years)'!$CT68:$GF68,"<" & S68+0.5,'Asset data'!$CX68:$GJ68)-W68,0) -> 0 | Y68: =IF($A68>0,SUMIF('Age profile (years)'!$CT68:$GF68,"<" & T68+0.5,'Asset data'!$CX68:$GJ68)-X68-W68,0) -> 0 | Z68: =IF($A68>0,SUMIF('Age profile (years)'!$CT68:$GF68,"<" & U68+0.5,'Asset data'!$CX68:$GJ68)-Y68-X68-W68,0) -> 0 | AA68: 0 | AB68: 0 | AC68: 0 | AD68: 0 | AE68: 0 | AF68: 0 | AI68: =IF($A68>0,'RRR hist-forc'!K68,0) -> 0 | AJ68: 0
A69: ='Asset data'!A69 -> 0 | B69: ='Asset data'!B69 -> 0 | C69: ='Asset data'!C69 -> 0 | D69: ='Asset data'!E69 ->  | E69: 0 | F69: =IF(A69>0,SUM('Asset data'!J69:CV69),0) -> 0 | G69: =IF(A69>0,'Asset data'!F69,0) -> 0 | H69: =IF(A69>0,SUM('Asset data'!CX69:GJ69),0) -> 0 | I69: 0 | J69: 0 | K69: 0 | L69: 0 | M69: =IF($A69>0,SUMPRODUCT('Age profile (years)'!$CT69:$GF69,'Asset data'!$CX69:$GJ69)/H69-0.5,0) -> 0 | N69: 0 | O69: =IF($A69>0,'Asset data'!G69,0) -> 0 | P69: 0 | Q69: 0 | R69: 0 | S69: 0 | T69: 0 | U69: 0 | W69: =IF($A69>0,SUMIF('Age profile (years)'!$CT69:$GF69,"<" & R69+0.5,'Asset data'!$CX69:$GJ69),0) -> 0 | X69: =IF($A69>0,SUMIF('Age profile (years)'!$CT69:$GF69,"<" & S69+0.5,'Asset data'!$CX69:$GJ69)-W69,0) -> 0 | Y69: =IF($A69>0,SUMIF('Age profile (years)'!$CT69:$GF69,"<" & T69+0.5,'Asset data'!$CX69:$GJ69)-X69-W69,0) -> 0 | Z69: =IF($A69>0,SUMIF('Age profile (years)'!$CT69:$GF69,"<" & U69+0.5,'Asset data'!$CX69:$GJ69)-Y69-X69-W69,0) -> 0 | AA69: 0 | AB69: 0 | AC69: 0 | AD69: 0 | AE69: 0 | AF69: 0 | AI69: =IF($A69>0,'RRR hist-forc'!K69,0) -> 0 | AJ69: 0
A70: ='Asset data'!A70 -> 0 | B70: ='Asset data'!B70 -> 0 | C70: ='Asset data'!C70 -> 0 | D70: ='Asset data'!E70 ->  | E70: 0 | F70: =IF(A70>0,SUM('Asset data'!J70:CV70),0) -> 0 | G70: =IF(A70>0,'Asset data'!F70,0) -> 0 | H70: =IF(A70>0,SUM('Asset data'!CX70:GJ70),0) -> 0 | I70: 0 | J70: 0 | K70: 0 | L70: 0 | M70: =IF($A70>0,SUMPRODUCT('Age profile (years)'!$CT70:$GF70,'Asset data'!$CX70:$GJ70)/H70-0.5,0) -> 0 | N70: 0 | O70: =IF($A70>0,'Asset data'!G70,0) -> 0 | P70: 0 | Q70: 0 | R70: 0 | S70: 0 | T70: 0 | U70: 0 | W70: =IF($A70>0,SUMIF('Age profile (years)'!$CT70:$GF70,"<" & R70+0.5,'Asset data'!$CX70:$GJ70),0) -> 0 | X70: =IF($A70>0,SUMIF('Age profile (years)'!$CT70:$GF70,"<" & S70+0.5,'Asset data'!$CX70:$GJ70)-W70,0) -> 0 | Y70: =IF($A70>0,SUMIF('Age profile (years)'!$CT70:$GF70,"<" & T70+0.5,'Asset data'!$CX70:$GJ70)-X70-W70,0) -> 0 | Z70: =IF($A70>0,SUMIF('Age profile (years)'!$CT70:$GF70,"<" & U70+0.5,'Asset data'!$CX70:$GJ70)-Y70-X70-W70,0) -> 0 | AA70: 0 | AB70: 0 | AC70: 0 | AD70: 0 | AE70: 0 | AF70: 0 | AI70: =IF($A70>0,'RRR hist-forc'!K70,0) -> 0 | AJ70: 0
A71: ='Asset data'!A71 -> 0 | B71: ='Asset data'!B71 -> 0 | C71: ='Asset data'!C71 -> 0 | D71: ='Asset data'!E71 ->  | E71: 0 | F71: =IF(A71>0,SUM('Asset data'!J71:CV71),0) -> 0 | G71: =IF(A71>0,'Asset data'!F71,0) -> 0 | H71: =IF(A71>0,SUM('Asset data'!CX71:GJ71),0) -> 0 | I71: 0 | J71: 0 | K71: 0 | L71: 0 | M71: =IF($A71>0,SUMPRODUCT('Age profile (years)'!$CT71:$GF71,'Asset data'!$CX71:$GJ71)/H71-0.5,0) -> 0 | N71: 0 | O71: =IF($A71>0,'Asset data'!G71,0) -> 0 | P71: 0 | Q71: 0 | R71: 0 | S71: 0 | T71: 0 | U71: 0 | W71: =IF($A71>0,SUMIF('Age profile (years)'!$CT71:$GF71,"<" & R71+0.5,'Asset data'!$CX71:$GJ71),0) -> 0 | X71: =IF($A71>0,SUMIF('Age profile (years)'!$CT71:$GF71,"<" & S71+0.5,'Asset data'!$CX71:$GJ71)-W71,0) -> 0 | Y71: =IF($A71>0,SUMIF('Age profile (years)'!$CT71:$GF71,"<" & T71+0.5,'Asset data'!$CX71:$GJ71)-X71-W71,0) -> 0 | Z71: =IF($A71>0,SUMIF('Age profile (years)'!$CT71:$GF71,"<" & U71+0.5,'Asset data'!$CX71:$GJ71)-Y71-X71-W71,0) -> 0 | AA71: 0 | AB71: 0 | AC71: 0 | AD71: 0 | AE71: 0 | AF71: 0 | AI71: =IF($A71>0,'RRR hist-forc'!K71,0) -> 0 | AJ71: 0
A72: ='Asset data'!A72 -> 0 | B72: ='Asset data'!B72 -> 0 | C72: ='Asset data'!C72 -> 0 | D72: ='Asset data'!E72 ->  | E72: 0 | F72: =IF(A72>0,SUM('Asset data'!J72:CV72),0) -> 0 | G72: =IF(A72>0,'Asset data'!F72,0) -> 0 | H72: =IF(A72>0,SUM('Asset data'!CX72:GJ72),0) -> 0 | I72: 0 | J72: 0 | K72: 0 | L72: 0 | M72: =IF($A72>0,SUMPRODUCT('Age profile (years)'!$CT72:$GF72,'Asset data'!$CX72:$GJ72)/H72-0.5,0) -> 0 | N72: 0 | O72: =IF($A72>0,'Asset data'!G72,0) -> 0 | P72: 0 | Q72: 0 | R72: 0 | S72: 0 | T72: 0 | U72: 0 | W72: =IF($A72>0,SUMIF('Age profile (years)'!$CT72:$GF72,"<" & R72+0.5,'Asset data'!$CX72:$GJ72),0) -> 0 | X72: =IF($A72>0,SUMIF('Age profile (years)'!$CT72:$GF72,"<" & S72+0.5,'Asset data'!$CX72:$GJ72)-W72,0) -> 0 | Y72: =IF($A72>0,SUMIF('Age profile (years)'!$CT72:$GF72,"<" & T72+0.5,'Asset data'!$CX72:$GJ72)-X72-W72,0) -> 0 | Z72: =IF($A72>0,SUMIF('Age profile (years)'!$CT72:$GF72,"<" & U72+0.5,'Asset data'!$CX72:$GJ72)-Y72-X72-W72,0) -> 0 | AA72: 0 | AB72: 0 | AC72: 0 | AD72: 0 | AE72: 0 | AF72: 0 | AI72: =IF($A72>0,'RRR hist-forc'!K72,0) -> 0 | AJ72: 0
A73: ='Asset data'!A73 -> 0 | B73: ='Asset data'!B73 -> 0 | C73: ='Asset data'!C73 -> 0 | D73: ='Asset data'!E73 ->  | E73: 0 | F73: =IF(A73>0,SUM('Asset data'!J73:CV73),0) -> 0 | G73: =IF(A73>0,'Asset data'!F73,0) -> 0 | H73: =IF(A73>0,SUM('Asset data'!CX73:GJ73),0) -> 0 | I73: 0 | J73: 0 | K73: 0 | L73: 0 | M73: =IF($A73>0,SUMPRODUCT('Age profile (years)'!$CT73:$GF73,'Asset data'!$CX73:$GJ73)/H73-0.5,0) -> 0 | N73: 0 | O73: =IF($A73>0,'Asset data'!G73,0) -> 0 | P73: 0 | Q73: 0 | R73: 0 | S73: 0 | T73: 0 | U73: 0 | W73: =IF($A73>0,SUMIF('Age profile (years)'!$CT73:$GF73,"<" & R73+0.5,'Asset data'!$CX73:$GJ73),0) -> 0 | X73: =IF($A73>0,SUMIF('Age profile (years)'!$CT73:$GF73,"<" & S73+0.5,'Asset data'!$CX73:$GJ73)-W73,0) -> 0 | Y73: =IF($A73>0,SUMIF('Age profile (years)'!$CT73:$GF73,"<" & T73+0.5,'Asset data'!$CX73:$GJ73)-X73-W73,0) -> 0 | Z73: =IF($A73>0,SUMIF('Age profile (years)'!$CT73:$GF73,"<" & U73+0.5,'Asset data'!$CX73:$GJ73)-Y73-X73-W73,0) -> 0 | AA73: 0 | AB73: 0 | AC73: 0 | AD73: 0 | AE73: 0 | AF73: 0 | AI73: =IF($A73>0,'RRR hist-forc'!K73,0) -> 0 | AJ73: 0
A74: ='Asset data'!A74 -> 6 | B74: ='Asset data'!B74 -> 0 | C74: ='Asset data'!C74 -> 0 | D74: ='Asset data'!E74 -> Pole Mounted ; < = 22kV ; < = 60 kVA ; Single Phase | E74: TRANSFORMERS | F74: =IF(A74>0,SUM('Asset data'!J74:CV74),0) -> 15107 | G74: =IF(A74>0,'Asset data'!F74,0) -> 24.9319058 | H74: =IF(A74>0,SUM('Asset data'!CX74:GJ74),0) -> 376646.301 | I74: 0.04745687239 | J74: 5 | K74: 0.3683871087 | L74: 24.9319058 | M74: =IF($A74>0,SUMPRODUCT('Age profile (years)'!$CT74:$GF74,'Asset data'!$CX74:$GJ74)/H74-0.5,0) -> 31.60326339 | N74: 11903252.25 | O74: =IF($A74>0,'Asset data'!G74,0) -> 52.8526442 | P74: 19906752.94 | Q74: 0.402049531 | R74: 5.28526442 | S74: 10.57052884 | T74: 31.71158652 | U74: 42.28211536 | W74: =IF($A74>0,SUMIF('Age profile (years)'!$CT74:$GF74,"<" & R74+0.5,'Asset data'!$CX74:$GJ74),0) -> 2792.37345 | X74: =IF($A74>0,SUMIF('Age profile (years)'!$CT74:$GF74,"<" & S74+0.5,'Asset data'!$CX74:$GJ74)-W74,0) -> 12590.61243 | Y74: =IF($A74>0,SUMIF('Age profile (years)'!$CT74:$GF74,"<" & T74+0.5,'Asset data'!$CX74:$GJ74)-X74-W74,0) -> 174049.6344 | Z74: =IF($A74>0,SUMIF('Age profile (years)'!$CT74:$GF74,"<" & U74+0.5,'Asset data'!$CX74:$GJ74)-Y74-X74-W74,0) -> 105611.553 | AA74: 81602.1277 | AB74: 0.007413781691 | AC74: 0.03342821209 | AD74: 0.4621036606 | AE74: 0.2803998147 | AF74: 0.216654531 | AI74: =IF($A74>0,'RRR hist-forc'!K74,0) -> 52.8526442 | AJ74: 19906752.94
A75: ='Asset data'!A75 -> 6 | B75: ='Asset data'!B75 -> 0 | C75: ='Asset data'!C75 -> 0 | D75: ='Asset data'!E75 -> Pole Mounted ; < = 22kV ; > 60 kVA and < = 600 kVA ; Single Phase | E75: TRANSFORMERS | F75: =IF(A75>0,SUM('Asset data'!J75:CV75),0) -> 21 | G75: =IF(A75>0,'Asset data'!F75,0) -> 0.001 | H75: =IF(A75>0,SUM('Asset data'!CX75:GJ75),0) -> 0.021 | I75: 2.645968691e-09 | J75: 42 | K75: 2.053950686e-08 | L75: 0.001 | M75: =IF($A75>0,SUMPRODUCT('Age profile (years)'!$CT75:$GF75,'Asset data'!$CX75:$GJ75)/H75-0.5,0) -> 6.119047619 | N75: 0.1285 | O75: =IF($A75>0,'Asset data'!G75,0) -> 20.15172974 | P75: 0.4231863245 | Q75: 0.6963512464 | R75: 2.015172974 | S75: 4.030345948 | T75: 12.09103784 | U75: 16.12138379 | W75: =IF($A75>0,SUMIF('Age profile (years)'!$CT75:$GF75,"<" & R75+0.5,'Asset data'!$CX75:$GJ75),0) -> 0.007 | X75: =IF($A75>0,SUMIF('Age profile (years)'!$CT75:$GF75,"<" & S75+0.5,'Asset data'!$CX75:$GJ75)-W75,0) -> 0.004 | Y75: =IF($A75>0,SUMIF('Age profile (years)'!$CT75:$GF75,"<" & T75+0.5,'Asset data'!$CX75:$GJ75)-X75-W75,0) -> 0.005 | Z75: =IF($A75>0,SUMIF('Age profile (years)'!$CT75:$GF75,"<" & U75+0.5,'Asset data'!$CX75:$GJ75)-Y75-X75-W75,0) -> 0.004 | AA75: 0.001 | AB75: 0.3333333333 | AC75: 0.1904761905 | AD75: 0.2380952381 | AE75: 0.1904761905 | AF75: 0.04761904762 | AI75: =IF($A75>0,'RRR hist-forc'!K75,0) -> 20.15172974 | AJ75: 0.4231863245
A76: ='Asset data'!A76 -> 6 | B76: ='Asset data'!B76 -> 0 | C76: ='Asset data'!C76 -> 0 | D76: ='Asset data'!E76 -> Pole Mounted ; < = 22kV ; > 600 kVA ; Single Phase | E76: TRANSFORMERS | F76: =IF(A76>0,SUM('Asset data'!J76:CV76),0) -> 33 | G76: =IF(A76>0,'Asset data'!F76,0) -> 0.001 | H76: =IF(A76>0,SUM('Asset data'!CX76:GJ76),0) -> 0.033 | I76: 4.1579508e-09 | J76: 39 | K76: 3.227636792e-08 | L76: 0.001 | M76: =IF($A76>0,SUMPRODUCT('Age profile (years)'!$CT76:$GF76,'Asset data'!$CX76:$GJ76)/H76-0.5,0) -> 31.01515152 | N76: 1.0235 | O76: =IF($A76>0,'Asset data'!G76,0) -> 40 | P76: 1.32 | Q76: 0.2246212121 | R76: 4 | S76: 8 | T76: 24 | U76: 32 | W76: =IF($A76>0,SUMIF('Age profile (years)'!$CT76:$GF76,"<" & R76+0.5,'Asset data'!$CX76:$GJ76),0) -> 0 | X76: =IF($A76>0,SUMIF('Age profile (years)'!$CT76:$GF76,"<" & S76+0.5,'Asset data'!$CX76:$GJ76)-W76,0) -> 0 | Y76: =IF($A76>0,SUMIF('Age profile (years)'!$CT76:$GF76,"<" & T76+0.5,'Asset data'!$CX76:$GJ76)-X76-W76,0) -> 0.001 | Z76: =IF($A76>0,SUMIF('Age profile (years)'!$CT76:$GF76,"<" & U76+0.5,'Asset data'!$CX76:$GJ76)-Y76-X76-W76,0) -> 0.017 | AA76: 0.015 | AB76: 0 | AC76: 0 | AD76: 0.0303030303 | AE76: 0.5151515152 | AF76: 0.4545454545 | AI76: =IF($A76>0,'RRR hist-forc'!K76,0) -> 40 | AJ76: 1.32
A77: ='Asset data'!A77 -> 6 | B77: ='Asset data'!B77 -> 0 | C77: ='Asset data'!C77 -> 0 | D77: ='Asset data'!E77 -> Pole Mounted ; < = 22kV ; < = 60 kVA ; Multiple Phase | E77: TRANSFORMERS | F77: =IF(A77>0,SUM('Asset data'!J77:CV77),0) -> 4351 | G77: =IF(A77>0,'Asset data'!F77,0) -> 24.68484102 | H77: =IF(A77>0,SUM('Asset data'!CX77:GJ77),0) -> 107403.7433 | I77: 0.01353271153 | J77: 16 | K77: 0.1050485677 | L77: 24.68484102 | M77: =IF($A77>0,SUMPRODUCT('Age profile (years)'!$CT77:$GF77,'Asset data'!$CX77:$GJ77)/H77-0.5,0) -> 35.82682142 | N77: 3847934.73 | O77: =IF($A77>0,'Asset data'!G77,0) -> 60.33950904 | P77: 6480689.139 | Q77: 0.4062460569 | R77: 6.033950904 | S77: 12.06790181 | T77: 36.20370543 | U77: 48.27160724 | W77: =IF($A77>0,SUMIF('Age profile (years)'!$CT77:$GF77,"<" & R77+0.5,'Asset data'!$CX77:$GJ77),0) -> 296.2180922 | X77: =IF($A77>0,SUMIF('Age profile (years)'!$CT77:$GF77,"<" & S77+0.5,'Asset data'!$CX77:$GJ77)-W77,0) -> 715.8603896 | Y77: =IF($A77>0,SUMIF('Age profile (years)'!$CT77:$GF77,"<" & T77+0.5,'Asset data'!$CX77:$GJ77)-X77-W77,0) -> 50875.45734 | Z77: =IF($A77>0,SUMIF('Age profile (years)'!$CT77:$GF77,"<" & U77+0.5,'Asset data'!$CX77:$GJ77)-Y77-X77-W77,0) -> 42704.77496 | AA77: 12811.43249 | AB77: 0.00275798667 | AC77: 0.006665134452 | AD77: 0.4736842105 | AE77: 0.3976097449 | AF77: 0.1192829235 | AI77: =IF($A77>0,'RRR hist-forc'!K77,0) -> 60.33950904 | AJ77: 6480689.139
A78: ='Asset data'!A78 -> 6 | B78: ='Asset data'!B78 -> 0 | C78: ='Asset data'!C78 -> 0 | D78: ='Asset data'!E78 -> Pole Mounted ; < = 22kV ; > 60 kVA and < = 600 kVA ; Multiple Phase | E78: TRANSFORMERS | F78: =IF(A78>0,SUM('Asset data'!J78:CV78),0) -> 10388 | G78: =IF(A78>0,'Asset data'!F78,0) -> 24.53019654 | H78: =IF(A78>0,SUM('Asset data'!CX78:GJ78),0) -> 254819.6816 | I78: 0.03210689998 | J78: 10 | K78: 0.2492319333 | L78: 24.53019654 | M78: =IF($A78>0,SUMPRODUCT('Age profile (years)'!$CT78:$GF78,'Asset data'!$CX78:$GJ78)/H78-0.5,0) -> 33.82479784 | N78: 8619224.218 | O78: =IF($A78>0,'Asset data'!G78,0) -> 51.05575698 | P78: 13010011.74 | Q78: 0.3374929715 | R78: 5.105575698 | S78: 10.2111514 | T78: 30.63345419 | U78: 40.84460558 | W78: =IF($A78>0,SUMIF('Age profile (years)'!$CT78:$GF78,"<" & R78+0.5,'Asset data'!$CX78:$GJ78),0) -> 2771.912209 | X78: =IF($A78>0,SUMIF('Age profile (years)'!$CT78:$GF78,"<" & S78+0.5,'Asset data'!$CX78:$GJ78)-W78,0) -> 4856.978915 | Y78: =IF($A78>0,SUMIF('Age profile (years)'!$CT78:$GF78,"<" & T78+0.5,'Asset data'!$CX78:$GJ78)-X78-W78,0) -> 76019.07907 | Z78: =IF($A78>0,SUMIF('Age profile (years)'!$CT78:$GF78,"<" & U78+0.5,'Asset data'!$CX78:$GJ78)-Y78-X78-W78,0) -> 96918.80653 | AA78: 74252.90492 | AB78: 0.01087793608 | AC78: 0.01906045437 | AD78: 0.2983249904 | AE78: 0.3803427031 | AF78: 0.2913939161 | AI78: =IF($A78>0,'RRR hist-forc'!K78,0) -> 51.05575698 | AJ78: 13010011.74
A79: ='Asset data'!A79 -> 6 | B79: ='Asset data'!B79 -> 0 | C79: ='Asset data'!C79 -> 0 | D79: ='Asset data'!E79 -> Pole Mounted ; < = 22kV ; > 600 kVA ; Multiple Phase | E79: TRANSFORMERS | F79: =IF(A79>0,SUM('Asset data'!J79:CV79),0) -> 1 | G79: =IF(A79>0,'Asset data'!F79,0) -> 0.001 | H79: =IF(A79>0,SUM('Asset data'!CX79:GJ79),0) -> 0.001 | I79: 1.259985091e-10 | J79: 47 | K79: 9.780717553e-10 | L79: 0.001 | M79: =IF($A79>0,SUMPRODUCT('Age profile (years)'!$CT79:$GF79,'Asset data'!$CX79:$GJ79)/H79-0.5,0) -> -0.5 | N79: -0.0005 | O79: =IF($A79>0,'Asset data'!G79,0) -> 38.24662618 | P79: 0.03824662618 | Q79: 1.013073049 | R79: 3.824662618 | S79: 7.649325235 | T79: 22.94797571 | U79: 30.59730094 | W79: =IF($A79>0,SUMIF('Age profile (years)'!$CT79:$GF79,"<" & R79+0.5,'Asset data'!$CX79:$GJ79),0) -> 0.001 | X79: =IF($A79>0,SUMIF('Age profile (years)'!$CT79:$GF79,"<" & S79+0.5,'Asset data'!$CX79:$GJ79)-W79,0) -> 0 | Y79: =IF($A79>0,SUMIF('Age profile (years)'!$CT79:$GF79,"<" & T79+0.5,'Asset data'!$CX79:$GJ79)-X79-W79,0) -> 0 | Z79: =IF($A79>0,SUMIF('Age profile (years)'!$CT79:$GF79,"<" & U79+0.5,'Asset data'!$CX79:$GJ79)-Y79-X79-W79,0) -> 0 | AA79: 0 | AB79: 1 | AC79: 0 | AD79: 0 | AE79: 0 | AF79: 0 | AI79: =IF($A79>0,'RRR hist-forc'!K79,0) -> 38.24662618 | AJ79: 0.03824662618
A80: ='Asset data'!A80 -> 0 | B80: ='Asset data'!B80 -> 0 | C80: ='Asset data'!C80 -> 0 | D80: ='Asset data'!E80 ->  | E80: 0 | F80: =IF(A80>0,SUM('Asset data'!J80:CV80),0) -> 0 | G80: =IF(A80>0,'Asset data'!F80,0) -> 0 | H80: =IF(A80>0,SUM('Asset data'!CX80:GJ80),0) -> 0 | I80: 0 | J80: 0 | K80: 0 | L80: 0 | M80: =IF($A80>0,SUMPRODUCT('Age profile (years)'!$CT80:$GF80,'Asset data'!$CX80:$GJ80)/H80-0.5,0) -> 0 | N80: 0 | O80: =IF($A80>0,'Asset data'!G80,0) -> 0 | P80: 0 | Q80: 0 | R80: 0 | S80: 0 | T80: 0 | U80: 0 | W80: =IF($A80>0,SUMIF('Age profile (years)'!$CT80:$GF80,"<" & R80+0.5,'Asset data'!$CX80:$GJ80),0) -> 0 | X80: =IF($A80>0,SUMIF('Age profile (years)'!$CT80:$GF80,"<" & S80+0.5,'Asset data'!$CX80:$GJ80)-W80,0) -> 0 | Y80: =IF($A80>0,SUMIF('Age profile (years)'!$CT80:$GF80,"<" & T80+0.5,'Asset data'!$CX80:$GJ80)-X80-W80,0) -> 0 | Z80: =IF($A80>0,SUMIF('Age profile (years)'!$CT80:$GF80,"<" & U80+0.5,'Asset data'!$CX80:$GJ80)-Y80-X80-W80,0) -> 0 | AA80: 0 | AB80: 0 | AC80: 0 | AD80: 0 | AE80: 0 | AF80: 0 | AI80: =IF($A80>0,'RRR hist-forc'!K80,0) -> 0 | AJ80: 0
A81: ='Asset data'!A81 -> 0 | B81: ='Asset data'!B81 -> 0 | C81: ='Asset data'!C81 -> 0 | D81: ='Asset data'!E81 ->  | E81: 0 | F81: =IF(A81>0,SUM('Asset data'!J81:CV81),0) -> 0 | G81: =IF(A81>0,'Asset data'!F81,0) -> 0 | H81: =IF(A81>0,SUM('Asset data'!CX81:GJ81),0) -> 0 | I81: 0 | J81: 0 | K81: 0 | L81: 0 | M81: =IF($A81>0,SUMPRODUCT('Age profile (years)'!$CT81:$GF81,'Asset data'!$CX81:$GJ81)/H81-0.5,0) -> 0 | N81: 0 | O81: =IF($A81>0,'Asset data'!G81,0) -> 0 | P81: 0 | Q81: 0 | R81: 0 | S81: 0 | T81: 0 | U81: 0 | W81: =IF($A81>0,SUMIF('Age profile (years)'!$CT81:$GF81,"<" & R81+0.5,'Asset data'!$CX81:$GJ81),0) -> 0 | X81: =IF($A81>0,SUMIF('Age profile (years)'!$CT81:$GF81,"<" & S81+0.5,'Asset data'!$CX81:$GJ81)-W81,0) -> 0 | Y81: =IF($A81>0,SUMIF('Age profile (years)'!$CT81:$GF81,"<" & T81+0.5,'Asset data'!$CX81:$GJ81)-X81-W81,0) -> 0 | Z81: =IF($A81>0,SUMIF('Age profile (years)'!$CT81:$GF81,"<" & U81+0.5,'Asset data'!$CX81:$GJ81)-Y81-X81-W81,0) -> 0 | AA81: 0 | AB81: 0 | AC81: 0 | AD81: 0 | AE81: 0 | AF81: 0 | AI81: =IF($A81>0,'RRR hist-forc'!K81,0) -> 0 | AJ81: 0
A82: ='Asset data'!A82 -> 0 | B82: ='Asset data'!B82 -> 0 | C82: ='Asset data'!C82 -> 0 | D82: ='Asset data'!E82 ->  | E82: 0 | F82: =IF(A82>0,SUM('Asset data'!J82:CV82),0) -> 0 | G82: =IF(A82>0,'Asset data'!F82,0) -> 0 | H82: =IF(A82>0,SUM('Asset data'!CX82:GJ82),0) -> 0 | I82: 0 | J82: 0 | K82: 0 | L82: 0 | M82: =IF($A82>0,SUMPRODUCT('Age profile (years)'!$CT82:$GF82,'Asset data'!$CX82:$GJ82)/H82-0.5,0) -> 0 | N82: 0 | O82: =IF($A82>0,'Asset data'!G82,0) -> 0 | P82: 0 | Q82: 0 | R82: 0 | S82: 0 | T82: 0 | U82: 0 | W82: =IF($A82>0,SUMIF('Age profile (years)'!$CT82:$GF82,"<" & R82+0.5,'Asset data'!$CX82:$GJ82),0) -> 0 | X82: =IF($A82>0,SUMIF('Age profile (years)'!$CT82:$GF82,"<" & S82+0.5,'Asset data'!$CX82:$GJ82)-W82,0) -> 0 | Y82: =IF($A82>0,SUMIF('Age profile (years)'!$CT82:$GF82,"<" & T82+0.5,'Asset data'!$CX82:$GJ82)-X82-W82,0) -> 0 | Z82: =IF($A82>0,SUMIF('Age profile (years)'!$CT82:$GF82,"<" & U82+0.5,'Asset data'!$CX82:$GJ82)-Y82-X82-W82,0) -> 0 | AA82: 0 | AB82: 0 | AC82: 0 | AD82: 0 | AE82: 0 | AF82: 0 | AI82: =IF($A82>0,'RRR hist-forc'!K82,0) -> 0 | AJ82: 0
A83: ='Asset data'!A83 -> 6 | B83: ='Asset data'!B83 -> 0 | C83: ='Asset data'!C83 -> 0 | D83: ='Asset data'!E83 -> Kiosk Mounted ; < = 22kV ; < = 60 kVA ; Multiple Phase | E83: TRANSFORMERS | F83: =IF(A83>0,SUM('Asset data'!J83:CV83),0) -> 7 | G83: =IF(A83>0,'Asset data'!F83,0) -> 0.001 | H83: =IF(A83>0,SUM('Asset data'!CX83:GJ83),0) -> 0.007 | I83: 8.819895637e-10 | J83: 44 | K83: 6.846502287e-09 | L83: 0.001 | M83: =IF($A83>0,SUMPRODUCT('Age profile (years)'!$CT83:$GF83,'Asset data'!$CX83:$GJ83)/H83-0.5,0) -> 7.071428571 | N83: 0.0495 | O83: =IF($A83>0,'Asset data'!G83,0) -> 14.72280407 | P83: 0.1030596285 | Q83: 0.5196955325 | R83: 1.472280407 | S83: 2.944560815 | T83: 8.833682444 | U83: 11.77824326 | W83: =IF($A83>0,SUMIF('Age profile (years)'!$CT83:$GF83,"<" & R83+0.5,'Asset data'!$CX83:$GJ83),0) -> 0.001 | X83: =IF($A83>0,SUMIF('Age profile (years)'!$CT83:$GF83,"<" & S83+0.5,'Asset data'!$CX83:$GJ83)-W83,0) -> 0.001 | Y83: =IF($A83>0,SUMIF('Age profile (years)'!$CT83:$GF83,"<" & T83+0.5,'Asset data'!$CX83:$GJ83)-X83-W83,0) -> 0.001 | Z83: =IF($A83>0,SUMIF('Age profile (years)'!$CT83:$GF83,"<" & U83+0.5,'Asset data'!$CX83:$GJ83)-Y83-X83-W83,0) -> 0.004 | AA83: 0 | AB83: 0.1428571429 | AC83: 0.1428571429 | AD83: 0.1428571429 | AE83: 0.5714285714 | AF83: 0 | AI83: =IF($A83>0,'RRR hist-forc'!K83,0) -> 14.72280407 | AJ83: 0.1030596285
A84: ='Asset data'!A84 -> 6 | B84: ='Asset data'!B84 -> 0 | C84: ='Asset data'!C84 -> 0 | D84: ='Asset data'!E84 -> Kiosk Mounted ; < = 22kV ; > 60 kVA and < = 600 kVA ; Multiple Phase | E84: TRANSFORMERS | F84: =IF(A84>0,SUM('Asset data'!J84:CV84),0) -> 801 | G84: =IF(A84>0,'Asset data'!F84,0) -> 17.69151698 | H84: =IF(A84>0,SUM('Asset data'!CX84:GJ84),0) -> 14170.9051 | I84: 0.001785512915 | J84: 24 | K84: 0.01386016203 | L84: 17.69151698 | M84: =IF($A84>0,SUMPRODUCT('Age profile (years)'!$CT84:$GF84,'Asset data'!$CX84:$GJ84)/H84-0.5,0) -> 28.55617978 | N84: 404666.9137 | O84: =IF($A84>0,'Asset data'!G84,0) -> 54.52028583 | P84: 772601.7967 | Q84: 0.4762283554 | R84: 5.452028583 | S84: 10.90405717 | T84: 32.7121715 | U84: 43.61622867 | W84: =IF($A84>0,SUMIF('Age profile (years)'!$CT84:$GF84,"<" & R84+0.5,'Asset data'!$CX84:$GJ84),0) -> 88.4575849 | X84: =IF($A84>0,SUMIF('Age profile (years)'!$CT84:$GF84,"<" & S84+0.5,'Asset data'!$CX84:$GJ84)-W84,0) -> 902.267366 | Y84: =IF($A84>0,SUMIF('Age profile (years)'!$CT84:$GF84,"<" & T84+0.5,'Asset data'!$CX84:$GJ84)-X84-W84,0) -> 8527.311185 | Z84: =IF($A84>0,SUMIF('Age profile (years)'!$CT84:$GF84,"<" & U84+0.5,'Asset data'!$CX84:$GJ84)-Y84-X84-W84,0) -> 2122.982038 | AA84: 2529.886928 | AB84: 0.006242197253 | AC84: 0.06367041199 | AD84: 0.6017478152 | AE84: 0.1498127341 | AF84: 0.1785268414 | AI84: =IF($A84>0,'RRR hist-forc'!K84,0) -> 54.52028583 | AJ84: 772601.7967
A85: ='Asset data'!A85 -> 6 | B85: ='Asset data'!B85 -> 0 | C85: ='Asset data'!C85 -> 0 | D85: ='Asset data'!E85 -> Kiosk Mounted ; < = 22kV ; > 600 kVA ; Multiple Phase | E85: TRANSFORMERS | F85: =IF(A85>0,SUM('Asset data'!J85:CV85),0) -> 571 | G85: =IF(A85>0,'Asset data'!F85,0) -> 15.7311754 | H85: =IF(A85>0,SUM('Asset data'!CX85:GJ85),0) -> 8982.501155 | I85: 0.001131781754 | J85: 26 | K85: 0.008785530671 | L85: 15.7311754 | M85: =IF($A85>0,SUMPRODUCT('Age profile (years)'!$CT85:$GF85,'Asset data'!$CX85:$GJ85)/H85-0.5,0) -> 24.60507881 | N85: 221015.1488 | O85: =IF($A85>0,'Asset data'!G85,0) -> 40 | P85: 359300.0462 | Q85: 0.3848730298 | R85: 4 | S85: 8 | T85: 24 | U85: 32 | W85: =IF($A85>0,SUMIF('Age profile (years)'!$CT85:$GF85,"<" & R85+0.5,'Asset data'!$CX85:$GJ85),0) -> 298.8923326 | X85: =IF($A85>0,SUMIF('Age profile (years)'!$CT85:$GF85,"<" & S85+0.5,'Asset data'!$CX85:$GJ85)-W85,0) -> 409.0105605 | Y85: =IF($A85>0,SUMIF('Age profile (years)'!$CT85:$GF85,"<" & T85+0.5,'Asset data'!$CX85:$GJ85)-X85-W85,0) -> 3130.503905 | Z85: =IF($A85>0,SUMIF('Age profile (years)'!$CT85:$GF85,"<" & U85+0.5,'Asset data'!$CX85:$GJ85)-Y85-X85-W85,0) -> 2092.246328 | AA85: 3051.848028 | AB85: 0.03327495622 | AC85: 0.04553415061 | AD85: 0.3485113835 | AE85: 0.2329246935 | AF85: 0.3397548161 | AI85: =IF($A85>0,'RRR hist-forc'!K85,0) -> 40 | AJ85: 359300.0462
A86: ='Asset data'!A86 -> 6 | B86: ='Asset data'!B86 -> 0 | C86: ='Asset data'!C86 -> 0 | D86: ='Asset data'!E86 -> Ground Outdoor / Indoor Chamber Mounted; ˂ 22 kV ; < = 60 kVA ; Single Phase | E86: TRANSFORMERS | F86: =IF(A86>0,SUM('Asset data'!J86:CV86),0) -> 1 | G86: =IF(A86>0,'Asset data'!F86,0) -> 0.001 | H86: =IF(A86>0,SUM('Asset data'!CX86:GJ86),0) -> 0.001 | I86: 1.259985091e-10 | J86: 47 | K86: 9.780717553e-10 | L86: 0.001 | M86: =IF($A86>0,SUMPRODUCT('Age profile (years)'!$CT86:$GF86,'Asset data'!$CX86:$GJ86)/H86-0.5,0) -> 2.5 | N86: 0.0025 | O86: =IF($A86>0,'Asset data'!G86,0) -> 40 | P86: 0.04 | Q86: 0.9375 | R86: 4 | S86: 8 | T86: 24 | U86: 32 | W86: =IF($A86>0,SUMIF('Age profile (years)'!$CT86:$GF86,"<" & R86+0.5,'Asset data'!$CX86:$GJ86),0) -> 0.001 | X86: =IF($A86>0,SUMIF('Age profile (years)'!$CT86:$GF86,"<" & S86+0.5,'Asset data'!$CX86:$GJ86)-W86,0) -> 0 | Y86: =IF($A86>0,SUMIF('Age profile (years)'!$CT86:$GF86,"<" & T86+0.5,'Asset data'!$CX86:$GJ86)-X86-W86,0) -> 0 | Z86: =IF($A86>0,SUMIF('Age profile (years)'!$CT86:$GF86,"<" & U86+0.5,'Asset data'!$CX86:$GJ86)-Y86-X86-W86,0) -> 0 | AA86: 0 | AB86: 1 | AC86: 0 | AD86: 0 | AE86: 0 | AF86: 0 | AI86: =IF($A86>0,'RRR hist-forc'!K86,0) -> 40 | AJ86: 0.04
A87: ='Asset data'!A87 -> 0 | B87: ='Asset data'!B87 -> 0 | C87: ='Asset data'!C87 -> 0 | D87: ='Asset data'!E87 ->  | E87: =IF(A87>0,VLOOKUP(A87,IDtable,2),0) -> 0 | F87: =IF(A87>0,SUM('Asset data'!J87:CV87),0) -> 0 | G87: =IF(A87>0,'Asset data'!F87,0) -> 0 | H87: =IF(A87>0,SUM('Asset data'!CX87:GJ87),0) -> 0 | I87: =H87/$H$18/1000 -> 0 | J87: =IF(RANK(0,I$21:I$205)=RANK(I87,I$21:I$205),0,RANK(I87,I$21:I$205)) -> 0 | K87: =IF(A87>0,H87/(VLOOKUP(A87,$A$6:$H$17,8)*1000),0) -> 0 | L87: =IF($A87>0,H87/F87,0) -> 0 | M87: =IF($A87>0,SUMPRODUCT('Age profile (years)'!$CT87:$GF87,'Asset data'!$CX87:$GJ87)/H87-0.5,0) -> 0 | N87: =IF($A87>0,M87*H87,0) -> 0 | O87: =IF($A87>0,'Asset data'!G87,0) -> 0 | P87: =IF($A87>0,H87*O87,0) -> 0 | Q87: =IF($A87>0,(O87-M87)/O87,0) -> 0 | R87: 0 | S87: 0 | T87: 0 | U87: 0 | W87: =IF($A87>0,SUMIF('Age profile (years)'!$CT87:$GF87,"<" & R87+0.5,'Asset data'!$CX87:$GJ87),0) -> 0 | X87: =IF($A87>0,SUMIF('Age profile (years)'!$CT87:$GF87,"<" & S87+0.5,'Asset data'!$CX87:$GJ87)-W87,0) -> 0 | Y87: =IF($A87>0,SUMIF('Age profile (years)'!$CT87:$GF87,"<" & T87+0.5,'Asset data'!$CX87:$GJ87)-X87-W87,0) -> 0 | Z87: =IF($A87>0,SUMIF('Age profile (years)'!$CT87:$GF87,"<" & U87+0.5,'Asset data'!$CX87:$GJ87)-Y87-X87-W87,0) -> 0 | AA87: =IF($A87>0,H87-Z87-Y87-X87-W87,0) -> 0 | AB87: =IF($A87>0,W87/$H87,0) -> 0 | AC87: =IF($A87>0,X87/$H87,0) -> 0 | AD87: =IF($A87>0,Y87/$H87,0) -> 0 | AE87: =IF($A87>0,Z87/$H87,0) -> 0 | AF87: =IF($A87>0,AA87/$H87,0) -> 0 | AI87: =IF($A87>0,'RRR hist-forc'!K87,0) -> 0 | AJ87: =IF($A87>0,AI87*H87,0) -> 0
A88: ='Asset data'!A88 -> 6 | B88: ='Asset data'!B88 -> 0 | C88: ='Asset data'!C88 -> 0 | D88: ='Asset data'!E88 -> Ground Outdoor / Indoor Chamber Mounted; ˂ 22 kV ; > 600 kVA ; Single Phase | E88: TRANSFORMERS | F88: =IF(A88>0,SUM('Asset data'!J88:CV88),0) -> 28 | G88: =IF(A88>0,'Asset data'!F88,0) -> 0.001 | H88: =IF(A88>0,SUM('Asset data'!CX88:GJ88),0) -> 0.028 | I88: 3.527958255e-09 | J88: 40 | K88: 2.738600915e-08 | L88: 0.001 | M88: =IF($A88>0,SUMPRODUCT('Age profile (years)'!$CT88:$GF88,'Asset data'!$CX88:$GJ88)/H88-0.5,0) -> 19.42857143 | N88: 0.544 | O88: =IF($A88>0,'Asset data'!G88,0) -> 40 | P88: 1.12 | Q88: 0.5142857143 | R88: 4 | S88: 8 | T88: 24 | U88: 32 | W88: =IF($A88>0,SUMIF('Age profile (years)'!$CT88:$GF88,"<" & R88+0.5,'Asset data'!$CX88:$GJ88),0) -> 0.008 | X88: =IF($A88>0,SUMIF('Age profile (years)'!$CT88:$GF88,"<" & S88+0.5,'Asset data'!$CX88:$GJ88)-W88,0) -> 0.002 | Y88: =IF($A88>0,SUMIF('Age profile (years)'!$CT88:$GF88,"<" & T88+0.5,'Asset data'!$CX88:$GJ88)-X88-W88,0) -> 0.005 | Z88: =IF($A88>0,SUMIF('Age profile (years)'!$CT88:$GF88,"<" & U88+0.5,'Asset data'!$CX88:$GJ88)-Y88-X88-W88,0) -> 0.005 | AA88: 0.008 | AB88: 0.2857142857 | AC88: 0.07142857143 | AD88: 0.1785714286 | AE88: 0.1785714286 | AF88: 0.2857142857 | AI88: =IF($A88>0,'RRR hist-forc'!K88,0) -> 40 | AJ88: 1.12
A89: ='Asset data'!A89 -> 0 | B89: ='Asset data'!B89 -> 0 | C89: ='Asset data'!C89 -> 0 | D89: ='Asset data'!E89 ->  | E89: 0 | F89: =IF(A89>0,SUM('Asset data'!J89:CV89),0) -> 0 | G89: =IF(A89>0,'Asset data'!F89,0) -> 0 | H89: =IF(A89>0,SUM('Asset data'!CX89:GJ89),0) -> 0 | I89: 0 | J89: 0 | K89: 0 | L89: 0 | M89: =IF($A89>0,SUMPRODUCT('Age profile (years)'!$CT89:$GF89,'Asset data'!$CX89:$GJ89)/H89-0.5,0) -> 0 | N89: 0 | O89: =IF($A89>0,'Asset data'!G89,0) -> 0 | P89: 0 | Q89: 0 | R89: 0 | S89: 0 | T89: 0 | U89: 0 | W89: =IF($A89>0,SUMIF('Age profile (years)'!$CT89:$GF89,"<" & R89+0.5,'Asset data'!$CX89:$GJ89),0) -> 0 | X89: =IF($A89>0,SUMIF('Age profile (years)'!$CT89:$GF89,"<" & S89+0.5,'Asset data'!$CX89:$GJ89)-W89,0) -> 0 | Y89: =IF($A89>0,SUMIF('Age profile (years)'!$CT89:$GF89,"<" & T89+0.5,'Asset data'!$CX89:$GJ89)-X89-W89,0) -> 0 | Z89: =IF($A89>0,SUMIF('Age profile (years)'!$CT89:$GF89,"<" & U89+0.5,'Asset data'!$CX89:$GJ89)-Y89-X89-W89,0) -> 0 | AA89: 0 | AB89: 0 | AC89: 0 | AD89: 0 | AE89: 0 | AF89: 0 | AI89: =IF($A89>0,'RRR hist-forc'!K89,0) -> 0 | AJ89: 0
A90: ='Asset data'!A90 -> 6 | B90: ='Asset data'!B90 -> 0 | C90: ='Asset data'!C90 -> 0 | D90: ='Asset data'!E90 -> Ground Outdoor / Indoor Chamber Mounted; ˂ 22 kV ; > 60 kVA and < = 600 kVA ; Multiple Phase | E90: TRANSFORMERS | F90: =IF(A90>0,SUM('Asset data'!J90:CV90),0) -> 163 | G90: =IF(A90>0,'Asset data'!F90,0) -> 232.6549341 | H90: =IF(A90>0,SUM('Asset data'!CX90:GJ90),0) -> 37922.75426 | I90: 0.004778210497 | J90: 21 | K90: 0.03709117482 | L90: 232.6549341 | M90: =IF($A90>0,SUMPRODUCT('Age profile (years)'!$CT90:$GF90,'Asset data'!$CX90:$GJ90)/H90-0.5,0) -> 28.17484663 | N90: 1068467.785 | O90: =IF($A90>0,'Asset data'!G90,0) -> 70.52546267 | P90: 2674519.79 | Q90: 0.6005010735 | R90: 7.052546267 | S90: 14.10509253 | T90: 42.3152776 | U90: 56.42037013 | W90: =IF($A90>0,SUMIF('Age profile (years)'!$CT90:$GF90,"<" & R90+0.5,'Asset data'!$CX90:$GJ90),0) -> 0 | X90: =IF($A90>0,SUMIF('Age profile (years)'!$CT90:$GF90,"<" & S90+0.5,'Asset data'!$CX90:$GJ90)-W90,0) -> 0 | Y90: =IF($A90>0,SUMIF('Age profile (years)'!$CT90:$GF90,"<" & T90+0.5,'Asset data'!$CX90:$GJ90)-X90-W90,0) -> 32571.69077 | Z90: =IF($A90>0,SUMIF('Age profile (years)'!$CT90:$GF90,"<" & U90+0.5,'Asset data'!$CX90:$GJ90)-Y90-X90-W90,0) -> 3955.133879 | AA90: 1395.929605 | AB90: 0 | AC90: 0 | AD90: 0.8588957055 | AE90: 0.1042944785 | AF90: 0.03680981595 | AI90: =IF($A90>0,'RRR hist-forc'!K90,0) -> 70.52546267 | AJ90: 2674519.79
A91: ='Asset data'!A91 -> 6 | B91: ='Asset data'!B91 -> 0 | C91: ='Asset data'!C91 -> 0 | D91: ='Asset data'!E91 -> Ground Outdoor / Indoor Chamber Mounted; ˂ 22 kV ; > 600 kVA ; Multiple Phase | E91: TRANSFORMERS | F91: =IF(A91>0,SUM('Asset data'!J91:CV91),0) -> 415 | G91: =IF(A91>0,'Asset data'!F91,0) -> 536.0816669 | H91: =IF(A91>0,SUM('Asset data'!CX91:GJ91),0) -> 222473.8918 | I91: 0.02803137868 | J91: 12 | K91: 0.2175954298 | L91: 536.0816669 | M91: =IF($A91>0,SUMPRODUCT('Age profile (years)'!$CT91:$GF91,'Asset data'!$CX91:$GJ91)/H91-0.5,0) -> 28.36987952 | N91: 6311557.506 | O91: =IF($A91>0,'Asset data'!G91,0) -> 57.52222343 | P91: 12797192.91 | Q91: 0.5068014095 | R91: 5.752222343 | S91: 11.50444469 | T91: 34.51333406 | U91: 46.01777874 | W91: =IF($A91>0,SUMIF('Age profile (years)'!$CT91:$GF91,"<" & R91+0.5,'Asset data'!$CX91:$GJ91),0) -> 16082.45001 | X91: =IF($A91>0,SUMIF('Age profile (years)'!$CT91:$GF91,"<" & S91+0.5,'Asset data'!$CX91:$GJ91)-W91,0) -> 11257.71501 | Y91: =IF($A91>0,SUMIF('Age profile (years)'!$CT91:$GF91,"<" & T91+0.5,'Asset data'!$CX91:$GJ91)-X91-W91,0) -> 122762.7017 | Z91: =IF($A91>0,SUMIF('Age profile (years)'!$CT91:$GF91,"<" & U91+0.5,'Asset data'!$CX91:$GJ91)-Y91-X91-W91,0) -> 47175.18669 | AA91: 25195.83835 | AB91: 0.07228915663 | AC91: 0.05060240964 | AD91: 0.5518072289 | AE91: 0.2120481928 | AF91: 0.113253012 | AI91: =IF($A91>0,'RRR hist-forc'!K91,0) -> 57.52222343 | AJ91: 12797192.91
A92: ='Asset data'!A92 -> 0 | B92: ='Asset data'!B92 -> 0 | C92: ='Asset data'!C92 -> 0 | D92: ='Asset data'!E92 ->  | E92: 0 | F92: =IF(A92>0,SUM('Asset data'!J92:CV92),0) -> 0 | G92: =IF(A92>0,'Asset data'!F92,0) -> 0 | H92: =IF(A92>0,SUM('Asset data'!CX92:GJ92),0) -> 0 | I92: 0 | J92: 0 | K92: 0 | L92: 0 | M92: =IF($A92>0,SUMPRODUCT('Age profile (years)'!$CT92:$GF92,'Asset data'!$CX92:$GJ92)/H92-0.5,0) -> 0 | N92: 0 | O92: =IF($A92>0,'Asset data'!G92,0) -> 0 | P92: 0 | Q92: 0 | R92: 0 | S92: 0 | T92: 0 | U92: 0 | W92: =IF($A92>0,SUMIF('Age profile (years)'!$CT92:$GF92,"<" & R92+0.5,'Asset data'!$CX92:$GJ92),0) -> 0 | X92: =IF($A92>0,SUMIF('Age profile (years)'!$CT92:$GF92,"<" & S92+0.5,'Asset data'!$CX92:$GJ92)-W92,0) -> 0 | Y92: =IF($A92>0,SUMIF('Age profile (years)'!$CT92:$GF92,"<" & T92+0.5,'Asset data'!$CX92:$GJ92)-X92-W92,0) -> 0 | Z92: =IF($A92>0,SUMIF('Age profile (years)'!$CT92:$GF92,"<" & U92+0.5,'Asset data'!$CX92:$GJ92)-Y92-X92-W92,0) -> 0 | AA92: 0 | AB92: 0 | AC92: 0 | AD92: 0 | AE92: 0 | AF92: 0 | AI92: =IF($A92>0,'RRR hist-forc'!K92,0) -> 0 | AJ92: 0
A93: ='Asset data'!A93 -> 0 | B93: ='Asset data'!B93 -> 0 | C93: ='Asset data'!C93 -> 0 | D93: ='Asset data'!E93 ->  | E93: 0 | F93: =IF(A93>0,SUM('Asset data'!J93:CV93),0) -> 0 | G93: =IF(A93>0,'Asset data'!F93,0) -> 0 | H93: =IF(A93>0,SUM('Asset data'!CX93:GJ93),0) -> 0 | I93: 0 | J93: 0 | K93: 0 | L93: 0 | M93: =IF($A93>0,SUMPRODUCT('Age profile (years)'!$CT93:$GF93,'Asset data'!$CX93:$GJ93)/H93-0.5,0) -> 0 | N93: 0 | O93: =IF($A93>0,'Asset data'!G93,0) -> 0 | P93: 0 | Q93: 0 | R93: 0 | S93: 0 | T93: 0 | U93: 0 | W93: =IF($A93>0,SUMIF('Age profile (years)'!$CT93:$GF93,"<" & R93+0.5,'Asset data'!$CX93:$GJ93),0) -> 0 | X93: =IF($A93>0,SUMIF('Age profile (years)'!$CT93:$GF93,"<" & S93+0.5,'Asset data'!$CX93:$GJ93)-W93,0) -> 0 | Y93: =IF($A93>0,SUMIF('Age profile (years)'!$CT93:$GF93,"<" & T93+0.5,'Asset data'!$CX93:$GJ93)-X93-W93,0) -> 0 | Z93: =IF($A93>0,SUMIF('Age profile (years)'!$CT93:$GF93,"<" & U93+0.5,'Asset data'!$CX93:$GJ93)-Y93-X93-W93,0) -> 0 | AA93: 0 | AB93: 0 | AC93: 0 | AD93: 0 | AE93: 0 | AF93: 0 | AI93: =IF($A93>0,'RRR hist-forc'!K93,0) -> 0 | AJ93: 0
A94: ='Asset data'!A94 -> 0 | B94: ='Asset data'!B94 -> 0 | C94: ='Asset data'!C94 -> 0 | D94: ='Asset data'!E94 ->  | E94: 0 | F94: =IF(A94>0,SUM('Asset data'!J94:CV94),0) -> 0 | G94: =IF(A94>0,'Asset data'!F94,0) -> 0 | H94: =IF(A94>0,SUM('Asset data'!CX94:GJ94),0) -> 0 | I94: 0 | J94: 0 | K94: 0 | L94: 0 | M94: =IF($A94>0,SUMPRODUCT('Age profile (years)'!$CT94:$GF94,'Asset data'!$CX94:$GJ94)/H94-0.5,0) -> 0 | N94: 0 | O94: =IF($A94>0,'Asset data'!G94,0) -> 0 | P94: 0 | Q94: 0 | R94: 0 | S94: 0 | T94: 0 | U94: 0 | W94: =IF($A94>0,SUMIF('Age profile (years)'!$CT94:$GF94,"<" & R94+0.5,'Asset data'!$CX94:$GJ94),0) -> 0 | X94: =IF($A94>0,SUMIF('Age profile (years)'!$CT94:$GF94,"<" & S94+0.5,'Asset data'!$CX94:$GJ94)-W94,0) -> 0 | Y94: =IF($A94>0,SUMIF('Age profile (years)'!$CT94:$GF94,"<" & T94+0.5,'Asset data'!$CX94:$GJ94)-X94-W94,0) -> 0 | Z94: =IF($A94>0,SUMIF('Age profile (years)'!$CT94:$GF94,"<" & U94+0.5,'Asset data'!$CX94:$GJ94)-Y94-X94-W94,0) -> 0 | AA94: 0 | AB94: 0 | AC94: 0 | AD94: 0 | AE94: 0 | AF94: 0 | AI94: =IF($A94>0,'RRR hist-forc'!K94,0) -> 0 | AJ94: 0
A95: ='Asset data'!A95 -> 0 | B95: ='Asset data'!B95 -> 0 | C95: ='Asset data'!C95 -> 0 | D95: ='Asset data'!E95 ->  | E95: 0 | F95: =IF(A95>0,SUM('Asset data'!J95:CV95),0) -> 0 | G95: =IF(A95>0,'Asset data'!F95,0) -> 0 | H95: =IF(A95>0,SUM('Asset data'!CX95:GJ95),0) -> 0 | I95: 0 | J95: 0 | K95: 0 | L95: 0 | M95: =IF($A95>0,SUMPRODUCT('Age profile (years)'!$CT95:$GF95,'Asset data'!$CX95:$GJ95)/H95-0.5,0) -> 0 | N95: 0 | O95: =IF($A95>0,'Asset data'!G95,0) -> 0 | P95: 0 | Q95: 0 | R95: 0 | S95: 0 | T95: 0 | U95: 0 | W95: =IF($A95>0,SUMIF('Age profile (years)'!$CT95:$GF95,"<" & R95+0.5,'Asset data'!$CX95:$GJ95),0) -> 0 | X95: =IF($A95>0,SUMIF('Age profile (years)'!$CT95:$GF95,"<" & S95+0.5,'Asset data'!$CX95:$GJ95)-W95,0) -> 0 | Y95: =IF($A95>0,SUMIF('Age profile (years)'!$CT95:$GF95,"<" & T95+0.5,'Asset data'!$CX95:$GJ95)-X95-W95,0) -> 0 | Z95: =IF($A95>0,SUMIF('Age profile (years)'!$CT95:$GF95,"<" & U95+0.5,'Asset data'!$CX95:$GJ95)-Y95-X95-W95,0) -> 0 | AA95: 0 | AB95: 0 | AC95: 0 | AD95: 0 | AE95: 0 | AF95: 0 | AI95: =IF($A95>0,'RRR hist-forc'!K95,0) -> 0 | AJ95: 0
A96: ='Asset data'!A96 -> 0 | B96: ='Asset data'!B96 -> 0 | C96: ='Asset data'!C96 -> 0 | D96: ='Asset data'!E96 ->  | E96: 0 | F96: =IF(A96>0,SUM('Asset data'!J96:CV96),0) -> 0 | G96: =IF(A96>0,'Asset data'!F96,0) -> 0 | H96: =IF(A96>0,SUM('Asset data'!CX96:GJ96),0) -> 0 | I96: 0 | J96: 0 | K96: 0 | L96: 0 | M96: =IF($A96>0,SUMPRODUCT('Age profile (years)'!$CT96:$GF96,'Asset data'!$CX96:$GJ96)/H96-0.5,0) -> 0 | N96: 0 | O96: =IF($A96>0,'Asset data'!G96,0) -> 0 | P96: 0 | Q96: 0 | R96: 0 | S96: 0 | T96: 0 | U96: 0 | W96: =IF($A96>0,SUMIF('Age profile (years)'!$CT96:$GF96,"<" & R96+0.5,'Asset data'!$CX96:$GJ96),0) -> 0 | X96: =IF($A96>0,SUMIF('Age profile (years)'!$CT96:$GF96,"<" & S96+0.5,'Asset data'!$CX96:$GJ96)-W96,0) -> 0 | Y96: =IF($A96>0,SUMIF('Age profile (years)'!$CT96:$GF96,"<" & T96+0.5,'Asset data'!$CX96:$GJ96)-X96-W96,0) -> 0 | Z96: =IF($A96>0,SUMIF('Age profile (years)'!$CT96:$GF96,"<" & U96+0.5,'Asset data'!$CX96:$GJ96)-Y96-X96-W96,0) -> 0 | AA96: 0 | AB96: 0 | AC96: 0 | AD96: 0 | AE96: 0 | AF96: 0 | AI96: =IF($A96>0,'RRR hist-forc'!K96,0) -> 0 | AJ96: 0
A97: ='Asset data'!A97 -> 0 | B97: ='Asset data'!B97 -> 0 | C97: ='Asset data'!C97 -> 0 | D97: ='Asset data'!E97 ->  | E97: 0 | F97: =IF(A97>0,SUM('Asset data'!J97:CV97),0) -> 0 | G97: =IF(A97>0,'Asset data'!F97,0) -> 0 | H97: =IF(A97>0,SUM('Asset data'!CX97:GJ97),0) -> 0 | I97: 0 | J97: 0 | K97: 0 | L97: 0 | M97: =IF($A97>0,SUMPRODUCT('Age profile (years)'!$CT97:$GF97,'Asset data'!$CX97:$GJ97)/H97-0.5,0) -> 0 | N97: 0 | O97: =IF($A97>0,'Asset data'!G97,0) -> 0 | P97: 0 | Q97: 0 | R97: 0 | S97: 0 | T97: 0 | U97: 0 | W97: =IF($A97>0,SUMIF('Age profile (years)'!$CT97:$GF97,"<" & R97+0.5,'Asset data'!$CX97:$GJ97),0) -> 0 | X97: =IF($A97>0,SUMIF('Age profile (years)'!$CT97:$GF97,"<" & S97+0.5,'Asset data'!$CX97:$GJ97)-W97,0) -> 0 | Y97: =IF($A97>0,SUMIF('Age profile (years)'!$CT97:$GF97,"<" & T97+0.5,'Asset data'!$CX97:$GJ97)-X97-W97,0) -> 0 | Z97: =IF($A97>0,SUMIF('Age profile (years)'!$CT97:$GF97,"<" & U97+0.5,'Asset data'!$CX97:$GJ97)-Y97-X97-W97,0) -> 0 | AA97: 0 | AB97: 0 | AC97: 0 | AD97: 0 | AE97: 0 | AF97: 0 | AI97: =IF($A97>0,'RRR hist-forc'!K97,0) -> 0 | AJ97: 0
A98: ='Asset data'!A98 -> 0 | B98: ='Asset data'!B98 -> 0 | C98: ='Asset data'!C98 -> 0 | D98: ='Asset data'!E98 ->  | E98: 0 | F98: =IF(A98>0,SUM('Asset data'!J98:CV98),0) -> 0 | G98: =IF(A98>0,'Asset data'!F98,0) -> 0 | H98: =IF(A98>0,SUM('Asset data'!CX98:GJ98),0) -> 0 | I98: 0 | J98: 0 | K98: 0 | L98: 0 | M98: =IF($A98>0,SUMPRODUCT('Age profile (years)'!$CT98:$GF98,'Asset data'!$CX98:$GJ98)/H98-0.5,0) -> 0 | N98: 0 | O98: =IF($A98>0,'Asset data'!G98,0) -> 0 | P98: 0 | Q98: 0 | R98: 0 | S98: 0 | T98: 0 | U98: 0 | W98: =IF($A98>0,SUMIF('Age profile (years)'!$CT98:$GF98,"<" & R98+0.5,'Asset data'!$CX98:$GJ98),0) -> 0 | X98: =IF($A98>0,SUMIF('Age profile (years)'!$CT98:$GF98,"<" & S98+0.5,'Asset data'!$CX98:$GJ98)-W98,0) -> 0 | Y98: =IF($A98>0,SUMIF('Age profile (years)'!$CT98:$GF98,"<" & T98+0.5,'Asset data'!$CX98:$GJ98)-X98-W98,0) -> 0 | Z98: =IF($A98>0,SUMIF('Age profile (years)'!$CT98:$GF98,"<" & U98+0.5,'Asset data'!$CX98:$GJ98)-Y98-X98-W98,0) -> 0 | AA98: 0 | AB98: 0 | AC98: 0 | AD98: 0 | AE98: 0 | AF98: 0 | AI98: =IF($A98>0,'RRR hist-forc'!K98,0) -> 0 | AJ98: 0
A99: ='Asset data'!A99 -> 0 | B99: ='Asset data'!B99 -> 0 | C99: ='Asset data'!C99 -> 0 | D99: ='Asset data'!E99 ->  | E99: 0 | F99: =IF(A99>0,SUM('Asset data'!J99:CV99),0) -> 0 | G99: =IF(A99>0,'Asset data'!F99,0) -> 0 | H99: =IF(A99>0,SUM('Asset data'!CX99:GJ99),0) -> 0 | I99: 0 | J99: 0 | K99: 0 | L99: 0 | M99: =IF($A99>0,SUMPRODUCT('Age profile (years)'!$CT99:$GF99,'Asset data'!$CX99:$GJ99)/H99-0.5,0) -> 0 | N99: 0 | O99: =IF($A99>0,'Asset data'!G99,0) -> 0 | P99: 0 | Q99: 0 | R99: 0 | S99: 0 | T99: 0 | U99: 0 | W99: =IF($A99>0,SUMIF('Age profile (years)'!$CT99:$GF99,"<" & R99+0.5,'Asset data'!$CX99:$GJ99),0) -> 0 | X99: =IF($A99>0,SUMIF('Age profile (years)'!$CT99:$GF99,"<" & S99+0.5,'Asset data'!$CX99:$GJ99)-W99,0) -> 0 | Y99: =IF($A99>0,SUMIF('Age profile (years)'!$CT99:$GF99,"<" & T99+0.5,'Asset data'!$CX99:$GJ99)-X99-W99,0) -> 0 | Z99: =IF($A99>0,SUMIF('Age profile (years)'!$CT99:$GF99,"<" & U99+0.5,'Asset data'!$CX99:$GJ99)-Y99-X99-W99,0) -> 0 | AA99: 0 | AB99: 0 | AC99: 0 | AD99: 0 | AE99: 0 | AF99: 0 | AI99: =IF($A99>0,'RRR hist-forc'!K99,0) -> 0 | AJ99: 0
A100: ='Asset data'!A100 -> 0 | B100: ='Asset data'!B100 -> 0 | C100: ='Asset data'!C100 -> 0 | D100: ='Asset data'!E100 ->  | E100: 0 | F100: =IF(A100>0,SUM('Asset data'!J100:CV100),0) -> 0 | G100: =IF(A100>0,'Asset data'!F100,0) -> 0 | H100: =IF(A100>0,SUM('Asset data'!CX100:GJ100),0) -> 0 | I100: 0 | J100: 0 | K100: 0 | L100: 0 | M100: =IF($A100>0,SUMPRODUCT('Age profile (years)'!$CT100:$GF100,'Asset data'!$CX100:$GJ100)/H100-0.5,0) -> 0 | N100: 0 | O100: =IF($A100>0,'Asset data'!G100,0) -> 0 | P100: 0 | Q100: 0 | R100: 0 | S100: 0 | T100: 0 | U100: =IF($A100>0,$O100-U$4*$O100,0) -> 0 | W100: =IF($A100>0,SUMIF('Age profile (years)'!$CT100:$GF100,"<" & R100+0.5,'Asset data'!$CX100:$GJ100),0) -> 0 | X100: =IF($A100>0,SUMIF('Age profile (years)'!$CT100:$GF100,"<" & S100+0.5,'Asset data'!$CX100:$GJ100)-W100,0) -> 0 | Y100: =IF($A100>0,SUMIF('Age profile (years)'!$CT100:$GF100,"<" & T100+0.5,'Asset data'!$CX100:$GJ100)-X100-W100,0) -> 0 | Z100: =IF($A100>0,SUMIF('Age profile (years)'!$CT100:$GF100,"<" & U100+0.5,'Asset data'!$CX100:$GJ100)-Y100-X100-W100,0) -> 0 | AA100: 0 | AB100: 0 | AC100: 0 | AD100: 0 | AE100: 0 | AF100: 0 | AI100: =IF($A100>0,'RRR hist-forc'!K100,0) -> 0 | AJ100: 0
A101: ='Asset data'!A101 -> 0 | B101: ='Asset data'!B101 -> 0 | C101: ='Asset data'!C101 -> 0 | D101: ='Asset data'!E101 ->  | E101: 0 | F101: =IF(A101>0,SUM('Asset data'!J101:CV101),0) -> 0 | G101: =IF(A101>0,'Asset data'!F101,0) -> 0 | H101: =IF(A101>0,SUM('Asset data'!CX101:GJ101),0) -> 0 | I101: 0 | J101: 0 | K101: 0 | L101: 0 | M101: =IF($A101>0,SUMPRODUCT('Age profile (years)'!$CT101:$GF101,'Asset data'!$CX101:$GJ101)/H101-0.5,0) -> 0 | N101: 0 | O101: =IF($A101>0,'Asset data'!G101,0) -> 0 | P101: 0 | Q101: 0 | R101: 0 | S101: 0 | T101: 0 | U101: 0 | W101: =IF($A101>0,SUMIF('Age profile (years)'!$CT101:$GF101,"<" & R101+0.5,'Asset data'!$CX101:$GJ101),0) -> 0 | X101: =IF($A101>0,SUMIF('Age profile (years)'!$CT101:$GF101,"<" & S101+0.5,'Asset data'!$CX101:$GJ101)-W101,0) -> 0 | Y101: =IF($A101>0,SUMIF('Age profile (years)'!$CT101:$GF101,"<" & T101+0.5,'Asset data'!$CX101:$GJ101)-X101-W101,0) -> 0 | Z101: =IF($A101>0,SUMIF('Age profile (years)'!$CT101:$GF101,"<" & U101+0.5,'Asset data'!$CX101:$GJ101)-Y101-X101-W101,0) -> 0 | AA101: 0 | AB101: 0 | AC101: 0 | AD101: 0 | AE101: 0 | AF101: 0 | AI101: =IF($A101>0,'RRR hist-forc'!K101,0) -> 0 | AJ101: 0
A102: ='Asset data'!A102 -> 6 | B102: ='Asset data'!B102 -> 0 | C102: ='Asset data'!C102 -> 0 | D102: ='Asset data'!E102 -> Other | E102: TRANSFORMERS | F102: =IF(A102>0,SUM('Asset data'!J102:CV102),0) -> 4 | G102: =IF(A102>0,'Asset data'!F102,0) -> 0.001 | H102: =IF(A102>0,SUM('Asset data'!CX102:GJ102),0) -> 0.004 | I102: 5.039940364e-10 | J102: 46 | K102: 3.912287021e-09 | L102: 0.001 | M102: =IF($A102>0,SUMPRODUCT('Age profile (years)'!$CT102:$GF102,'Asset data'!$CX102:$GJ102)/H102-0.5,0) -> 33.5 | N102: 0.134 | O102: =IF($A102>0,'Asset data'!G102,0) -> 40 | P102: 0.16 | Q102: 0.1625 | R102: 4 | S102: 8 | T102: 24 | U102: 32 | W102: =IF($A102>0,SUMIF('Age profile (years)'!$CT102:$GF102,"<" & R102+0.5,'Asset data'!$CX102:$GJ102),0) -> 0 | X102: =IF($A102>0,SUMIF('Age profile (years)'!$CT102:$GF102,"<" & S102+0.5,'Asset data'!$CX102:$GJ102)-W102,0) -> 0 | Y102: =IF($A102>0,SUMIF('Age profile (years)'!$CT102:$GF102,"<" & T102+0.5,'Asset data'!$CX102:$GJ102)-X102-W102,0) -> 0.001 | Z102: =IF($A102>0,SUMIF('Age profile (years)'!$CT102:$GF102,"<" & U102+0.5,'Asset data'!$CX102:$GJ102)-Y102-X102-W102,0) -> 0 | AA102: 0.003 | AB102: 0 | AC102: 0 | AD102: 0.25 | AE102: 0 | AF102: 0.75 | AI102: =IF($A102>0,'RRR hist-forc'!K102,0) -> 40 | AJ102: 0.16
A103: ='Asset data'!A103 -> 7 | B103: ='Asset data'!B103 -> 0 | C103: ='Asset data'!C103 -> 0 | D103: ='Asset data'!E103 -> ˂ = 11 kV ; Fuse | E103: SWITCHGEAR | F103: =IF(A103>0,SUM('Asset data'!J103:CV103),0) -> 10101 | G103: =IF(A103>0,'Asset data'!F103,0) -> 0.2048833534 | H103: =IF(A103>0,SUM('Asset data'!CX103:GJ103),0) -> 2069.526753 | I103: 0.0002607572854 | J103: 29 | K103: 0.002010263042 | L103: 0.2048833534 | M103: =IF($A103>0,SUMPRODUCT('Age profile (years)'!$CT103:$GF103,'Asset data'!$CX103:$GJ103)/H103-0.5,0) -> 25.53484803 | N103: 52845.05115 | O103: =IF($A103>0,'Asset data'!G103,0) -> 47.22048357 | P103: 97724.05405 | Q103: 0.4592421317 | R103: 4.722048357 | S103: 9.444096714 | T103: 28.33229014 | U103: 37.77638686 | W103: =IF($A103>0,SUMIF('Age profile (years)'!$CT103:$GF103,"<" & R103+0.5,'Asset data'!$CX103:$GJ103),0) -> 128.666746 | X103: =IF($A103>0,SUMIF('Age profile (years)'!$CT103:$GF103,"<" & S103+0.5,'Asset data'!$CX103:$GJ103)-W103,0) -> 52.04037177 | Y103: =IF($A103>0,SUMIF('Age profile (years)'!$CT103:$GF103,"<" & T103+0.5,'Asset data'!$CX103:$GJ103)-X103-W103,0) -> 1004.338199 | Z103: =IF($A103>0,SUMIF('Age profile (years)'!$CT103:$GF103,"<" & U103+0.5,'Asset data'!$CX103:$GJ103)-Y103-X103-W103,0) -> 527.1648684 | AA103: 357.3165684 | AB103: 0.06217206217 | AC103: 0.02514602515 | AD103: 0.4852984853 | AE103: 0.2547272547 | AF103: 0.1726561727 | AI103: =IF($A103>0,'RRR hist-forc'!K103,0) -> 47.22048357 | AJ103: 97724.05405
A104: ='Asset data'!A104 -> 7 | B104: ='Asset data'!B104 -> 0 | C104: ='Asset data'!C104 -> 0 | D104: ='Asset data'!E104 -> ˂ = 11 kV ; Switch | E104: SWITCHGEAR | F104: =IF(A104>0,SUM('Asset data'!J104:CV104),0) -> 41946 | G104: =IF(A104>0,'Asset data'!F104,0) -> 21.62987911 | H104: =IF(A104>0,SUM('Asset data'!CX104:GJ104),0) -> 907286.9093 | I104: 0.1143167979 | J104: 3 | K104: 0.8813055154 | L104: 21.62987911 | M104: =IF($A104>0,SUMPRODUCT('Age profile (years)'!$CT104:$GF104,'Asset data'!$CX104:$GJ104)/H104-0.5,0) -> 31.65276784 | N104: 28718141.91 | O104: =IF($A104>0,'Asset data'!G104,0) -> 54.67996193 | P104: 49610413.66 | Q104: 0.4211267395 | R104: 5.467996193 | S104: 10.93599239 | T104: 32.80797716 | U104: 43.74396954 | W104: =IF($A104>0,SUMIF('Age profile (years)'!$CT104:$GF104,"<" & R104+0.5,'Asset data'!$CX104:$GJ104),0) -> 35429.74199 | X104: =IF($A104>0,SUMIF('Age profile (years)'!$CT104:$GF104,"<" & S104+0.5,'Asset data'!$CX104:$GJ104)-W104,0) -> 58141.11505 | Y104: =IF($A104>0,SUMIF('Age profile (years)'!$CT104:$GF104,"<" & T104+0.5,'Asset data'!$CX104:$GJ104)-X104-W104,0) -> 354838.1668 | Z104: =IF($A104>0,SUMIF('Age profile (years)'!$CT104:$GF104,"<" & U104+0.5,'Asset data'!$CX104:$GJ104)-Y104-X104-W104,0) -> 252680.2478 | AA104: 206197.6376 | AB104: 0.03905020741 | AC104: 0.06408239165 | AD104: 0.3910980785 | AE104: 0.2785009298 | AF104: 0.2272683927 | AI104: =IF($A104>0,'RRR hist-forc'!K104,0) -> 54.67996193 | AJ104: 49610413.66
A105: ='Asset data'!A105 -> 7 | B105: ='Asset data'!B105 -> 0 | C105: ='Asset data'!C105 -> 0 | D105: ='Asset data'!E105 -> ˂ = 11 kV ; Circuit Breaker | E105: SWITCHGEAR | F105: =IF(A105>0,SUM('Asset data'!J105:CV105),0) -> 1277 | G105: =IF(A105>0,'Asset data'!F105,0) -> 11.63682186 | H105: =IF(A105>0,SUM('Asset data'!CX105:GJ105),0) -> 14860.22151 | I105: 0.001872365756 | J105: 23 | K105: 0.01443467887 | L105: 11.63682186 | M105: =IF($A105>0,SUMPRODUCT('Age profile (years)'!$CT105:$GF105,'Asset data'!$CX105:$GJ105)/H105-0.5,0) -> 35.14291308 | N105: 522231.473 | O105: =IF($A105>0,'Asset data'!G105,0) -> 52.33741581 | P105: 777745.5924 | Q105: 0.3285317486 | R105: 5.233741581 | S105: 10.46748316 | T105: 31.40244949 | U105: 41.86993265 | W105: =IF($A105>0,SUMIF('Age profile (years)'!$CT105:$GF105,"<" & R105+0.5,'Asset data'!$CX105:$GJ105),0) -> 1280.050405 | X105: =IF($A105>0,SUMIF('Age profile (years)'!$CT105:$GF105,"<" & S105+0.5,'Asset data'!$CX105:$GJ105)-W105,0) -> 721.4829553 | Y105: =IF($A105>0,SUMIF('Age profile (years)'!$CT105:$GF105,"<" & T105+0.5,'Asset data'!$CX105:$GJ105)-X105-W105,0) -> 2292.453906 | Z105: =IF($A105>0,SUMIF('Age profile (years)'!$CT105:$GF105,"<" & U105+0.5,'Asset data'!$CX105:$GJ105)-Y105-X105-W105,0) -> 2571.737631 | AA105: 7994.496617 | AB105: 0.08613938919 | AC105: 0.04855129209 | AD105: 0.1542678152 | AE105: 0.1730618637 | AF105: 0.5379796398 | AI105: =IF($A105>0,'RRR hist-forc'!K105,0) -> 52.33741581 | AJ105: 777745.5924
A106: ='Asset data'!A106 -> 7 | B106: ='Asset data'!B106 -> 0 | C106: ='Asset data'!C106 -> 0 | D106: ='Asset data'!E106 -> > 11 kV & < = 22 kV ; Switch | E106: SWITCHGEAR | F106: =IF(A106>0,SUM('Asset data'!J106:CV106),0) -> 4535 | G106: =IF(A106>0,'Asset data'!F106,0) -> 21.62987911 | H106: =IF(A106>0,SUM('Asset data'!CX106:GJ106),0) -> 98091.50178 | I106: 0.01235938298 | J106: 17 | K106: 0.09528251829 | L106: 21.62987911 | M106: =IF($A106>0,SUMPRODUCT('Age profile (years)'!$CT106:$GF106,'Asset data'!$CX106:$GJ106)/H106-0.5,0) -> 27.55181918 | N106: 2702599.32 | O106: =IF($A106>0,'Asset data'!G106,0) -> 50.90017098 | P106: 4992874.212 | Q106: 0.4587087105 | R106: 5.090017098 | S106: 10.1800342 | T106: 30.54010259 | U106: 40.72013678 | W106: =IF($A106>0,SUMIF('Age profile (years)'!$CT106:$GF106,"<" & R106+0.5,'Asset data'!$CX106:$GJ106),0) -> 9603.666326 | X106: =IF($A106>0,SUMIF('Age profile (years)'!$CT106:$GF106,"<" & S106+0.5,'Asset data'!$CX106:$GJ106)-W106,0) -> 6813.41192 | Y106: =IF($A106>0,SUMIF('Age profile (years)'!$CT106:$GF106,"<" & T106+0.5,'Asset data'!$CX106:$GJ106)-X106-W106,0) -> 34975.51452 | Z106: =IF($A106>0,SUMIF('Age profile (years)'!$CT106:$GF106,"<" & U106+0.5,'Asset data'!$CX106:$GJ106)-Y106-X106-W106,0) -> 21478.46996 | AA106: 25220.43905 | AB106: 0.09790518192 | AC106: 0.06945975744 | AD106: 0.3565600882 | AE106: 0.2189636163 | AF106: 0.2571113561 | AI106: =IF($A106>0,'RRR hist-forc'!K106,0) -> 50.90017098 | AJ106: 4992874.212
A107: ='Asset data'!A107 -> 7 | B107: ='Asset data'!B107 -> 0 | C107: ='Asset data'!C107 -> 0 | D107: ='Asset data'!E107 -> > 11 kV & < = 22 kV ; Circuit Breaker | E107: SWITCHGEAR | F107: =IF(A107>0,SUM('Asset data'!J107:CV107),0) -> 633 | G107: =IF(A107>0,'Asset data'!F107,0) -> 11.3305897 | H107: =IF(A107>0,SUM('Asset data'!CX107:GJ107),0) -> 7172.263283 | I107: 0.0009036944806 | J107: 27 | K107: 0.006966875775 | L107: 11.3305897 | M107: =IF($A107>0,SUMPRODUCT('Age profile (years)'!$CT107:$GF107,'Asset data'!$CX107:$GJ107)/H107-0.5,0) -> 40.28830964 | N107: 288958.3639 | O107: =IF($A107>0,'Asset data'!G107,0) -> 52.19322516 | P107: 374343.5525 | Q107: 0.2280931192 | R107: 5.219322516 | S107: 10.43864503 | T107: 31.3159351 | U107: 41.75458013 | W107: =IF($A107>0,SUMIF('Age profile (years)'!$CT107:$GF107,"<" & R107+0.5,'Asset data'!$CX107:$GJ107),0) -> 101.9753073 | X107: =IF($A107>0,SUMIF('Age profile (years)'!$CT107:$GF107,"<" & S107+0.5,'Asset data'!$CX107:$GJ107)-W107,0) -> 11.3305897 | Y107: =IF($A107>0,SUMIF('Age profile (years)'!$CT107:$GF107,"<" & T107+0.5,'Asset data'!$CX107:$GJ107)-X107-W107,0) -> 713.8271514 | Z107: =IF($A107>0,SUMIF('Age profile (years)'!$CT107:$GF107,"<" & U107+0.5,'Asset data'!$CX107:$GJ107)-Y107-X107-W107,0) -> 2209.464992 | AA107: 4135.665242 | AB107: 0.01421800948 | AC107: 0.001579778831 | AD107: 0.09952606635 | AE107: 0.308056872 | AF107: 0.5766192733 | AI107: =IF($A107>0,'RRR hist-forc'!K107,0) -> 52.19322516 | AJ107: 374343.5525
A108: ='Asset data'!A108 -> 7 | B108: ='Asset data'!B108 -> 0 | C108: ='Asset data'!C108 -> 0 | D108: ='Asset data'!E108 -> > 22 kV & < = 33 kV ; Switch | E108: SWITCHGEAR | F108: =IF(A108>0,SUM('Asset data'!J108:CV108),0) -> 1 | G108: =IF(A108>0,'Asset data'!F108,0) -> 0.001 | H108: =IF(A108>0,SUM('Asset data'!CX108:GJ108),0) -> 0.001 | I108: 1.259985091e-10 | J108: 47 | K108: 9.713636408e-10 | L108: 0.001 | M108: =IF($A108>0,SUMPRODUCT('Age profile (years)'!$CT108:$GF108,'Asset data'!$CX108:$GJ108)/H108-0.5,0) -> 26.5 | N108: 0.0265 | O108: =IF($A108>0,'Asset data'!G108,0) -> 40 | P108: 0.04 | Q108: 0.3375 | R108: 4 | S108: 8 | T108: 24 | U108: 32 | W108: =IF($A108>0,SUMIF('Age profile (years)'!$CT108:$GF108,"<" & R108+0.5,'Asset data'!$CX108:$GJ108),0) -> 0 | X108: =IF($A108>0,SUMIF('Age profile (years)'!$CT108:$GF108,"<" & S108+0.5,'Asset data'!$CX108:$GJ108)-W108,0) -> 0 | Y108: =IF($A108>0,SUMIF('Age profile (years)'!$CT108:$GF108,"<" & T108+0.5,'Asset data'!$CX108:$GJ108)-X108-W108,0) -> 0 | Z108: =IF($A108>0,SUMIF('Age profile (years)'!$CT108:$GF108,"<" & U108+0.5,'Asset data'!$CX108:$GJ108)-Y108-X108-W108,0) -> 0.001 | AA108: 0 | AB108: 0 | AC108: 0 | AD108: 0 | AE108: 1 | AF108: 0 | AI108: =IF($A108>0,'RRR hist-forc'!K108,0) -> 40 | AJ108: 0.04
A109: ='Asset data'!A109 -> 7 | B109: ='Asset data'!B109 -> 0 | C109: ='Asset data'!C109 -> 0 | D109: ='Asset data'!E109 -> > 22 kV & < = 33 kV ; Circuit Breaker | E109: SWITCHGEAR | F109: =IF(A109>0,SUM('Asset data'!J109:CV109),0) -> 26 | G109: =IF(A109>0,'Asset data'!F109,0) -> 0.001 | H109: =IF(A109>0,SUM('Asset data'!CX109:GJ109),0) -> 0.026 | I109: 3.275961237e-09 | J109: 41 | K109: 2.525545466e-08 | L109: 0.001 | M109: =IF($A109>0,SUMPRODUCT('Age profile (years)'!$CT109:$GF109,'Asset data'!$CX109:$GJ109)/H109-0.5,0) -> 35.15384615 | N109: 0.914 | O109: =IF($A109>0,'Asset data'!G109,0) -> 56.89356413 | P109: 1.479232667 | Q109: 0.3821120773 | R109: 5.689356413 | S109: 11.37871283 | T109: 34.13613848 | U109: 45.5148513 | W109: =IF($A109>0,SUMIF('Age profile (years)'!$CT109:$GF109,"<" & R109+0.5,'Asset data'!$CX109:$GJ109),0) -> 0.004 | X109: =IF($A109>0,SUMIF('Age profile (years)'!$CT109:$GF109,"<" & S109+0.5,'Asset data'!$CX109:$GJ109)-W109,0) -> 0.002 | Y109: =IF($A109>0,SUMIF('Age profile (years)'!$CT109:$GF109,"<" & T109+0.5,'Asset data'!$CX109:$GJ109)-X109-W109,0) -> 0.002 | Z109: =IF($A109>0,SUMIF('Age profile (years)'!$CT109:$GF109,"<" & U109+0.5,'Asset data'!$CX109:$GJ109)-Y109-X109-W109,0) -> 0.01 | AA109: 0.008 | AB109: 0.1538461538 | AC109: 0.07692307692 | AD109: 0.07692307692 | AE109: 0.3846153846 | AF109: 0.3076923077 | AI109: =IF($A109>0,'RRR hist-forc'!K109,0) -> 56.89356413 | AJ109: 1.479232667
A110: ='Asset data'!A110 -> 7 | B110: ='Asset data'!B110 -> 0 | C110: ='Asset data'!C110 -> 0 | D110: ='Asset data'!E110 -> > 33 kV & < = 66 kV ; Switch | E110: SWITCHGEAR | F110: =IF(A110>0,SUM('Asset data'!J110:CV110),0) -> 7 | G110: =IF(A110>0,'Asset data'!F110,0) -> 0.001 | H110: =IF(A110>0,SUM('Asset data'!CX110:GJ110),0) -> 0.007 | I110: 8.819895637e-10 | J110: 44 | K110: 6.799545485e-09 | L110: 0.001 | M110: =IF($A110>0,SUMPRODUCT('Age profile (years)'!$CT110:$GF110,'Asset data'!$CX110:$GJ110)/H110-0.5,0) -> 4.785714286 | N110: 0.0335 | O110: =IF($A110>0,'Asset data'!G110,0) -> 40 | P110: 0.28 | Q110: 0.8803571429 | R110: 4 | S110: 8 | T110: 24 | U110: 32 | W110: =IF($A110>0,SUMIF('Age profile (years)'!$CT110:$GF110,"<" & R110+0.5,'Asset data'!$CX110:$GJ110),0) -> 0.002 | X110: =IF($A110>0,SUMIF('Age profile (years)'!$CT110:$GF110,"<" & S110+0.5,'Asset data'!$CX110:$GJ110)-W110,0) -> 0 | Y110: =IF($A110>0,SUMIF('Age profile (years)'!$CT110:$GF110,"<" & T110+0.5,'Asset data'!$CX110:$GJ110)-X110-W110,0) -> 0.005 | Z110: =IF($A110>0,SUMIF('Age profile (years)'!$CT110:$GF110,"<" & U110+0.5,'Asset data'!$CX110:$GJ110)-Y110-X110-W110,0) -> 0 | AA110: 0 | AB110: 0.2857142857 | AC110: 0 | AD110: 0.7142857143 | AE110: 0 | AF110: 0 | AI110: =IF($A110>0,'RRR hist-forc'!K110,0) -> 40 | AJ110: 0.28
A111: ='Asset data'!A111 -> 0 | B111: ='Asset data'!B111 -> 0 | C111: ='Asset data'!C111 -> 0 | D111: ='Asset data'!E111 ->  | E111: 0 | F111: =IF(A111>0,SUM('Asset data'!J111:CV111),0) -> 0 | G111: =IF(A111>0,'Asset data'!F111,0) -> 0 | H111: =IF(A111>0,SUM('Asset data'!CX111:GJ111),0) -> 0 | I111: 0 | J111: 0 | K111: 0 | L111: 0 | M111: =IF($A111>0,SUMPRODUCT('Age profile (years)'!$CT111:$GF111,'Asset data'!$CX111:$GJ111)/H111-0.5,0) -> 0 | N111: 0 | O111: =IF($A111>0,'Asset data'!G111,0) -> 0 | P111: 0 | Q111: 0 | R111: 0 | S111: 0 | T111: 0 | U111: 0 | W111: =IF($A111>0,SUMIF('Age profile (years)'!$CT111:$GF111,"<" & R111+0.5,'Asset data'!$CX111:$GJ111),0) -> 0 | X111: =IF($A111>0,SUMIF('Age profile (years)'!$CT111:$GF111,"<" & S111+0.5,'Asset data'!$CX111:$GJ111)-W111,0) -> 0 | Y111: =IF($A111>0,SUMIF('Age profile (years)'!$CT111:$GF111,"<" & T111+0.5,'Asset data'!$CX111:$GJ111)-X111-W111,0) -> 0 | Z111: =IF($A111>0,SUMIF('Age profile (years)'!$CT111:$GF111,"<" & U111+0.5,'Asset data'!$CX111:$GJ111)-Y111-X111-W111,0) -> 0 | AA111: 0 | AB111: 0 | AC111: 0 | AD111: 0 | AE111: 0 | AF111: 0 | AI111: =IF($A111>0,'RRR hist-forc'!K111,0) -> 0 | AJ111: 0
A112: ='Asset data'!A112 -> 0 | B112: ='Asset data'!B112 -> 0 | C112: ='Asset data'!C112 -> 0 | D112: ='Asset data'!E112 ->  | E112: 0 | F112: =IF(A112>0,SUM('Asset data'!J112:CV112),0) -> 0 | G112: =IF(A112>0,'Asset data'!F112,0) -> 0 | H112: =IF(A112>0,SUM('Asset data'!CX112:GJ112),0) -> 0 | I112: 0 | J112: 0 | K112: 0 | L112: 0 | M112: =IF($A112>0,SUMPRODUCT('Age profile (years)'!$CT112:$GF112,'Asset data'!$CX112:$GJ112)/H112-0.5,0) -> 0 | N112: 0 | O112: =IF($A112>0,'Asset data'!G112,0) -> 0 | P112: 0 | Q112: 0 | R112: 0 | S112: 0 | T112: 0 | U112: 0 | W112: =IF($A112>0,SUMIF('Age profile (years)'!$CT112:$GF112,"<" & R112+0.5,'Asset data'!$CX112:$GJ112),0) -> 0 | X112: =IF($A112>0,SUMIF('Age profile (years)'!$CT112:$GF112,"<" & S112+0.5,'Asset data'!$CX112:$GJ112)-W112,0) -> 0 | Y112: =IF($A112>0,SUMIF('Age profile (years)'!$CT112:$GF112,"<" & T112+0.5,'Asset data'!$CX112:$GJ112)-X112-W112,0) -> 0 | Z112: =IF($A112>0,SUMIF('Age profile (years)'!$CT112:$GF112,"<" & U112+0.5,'Asset data'!$CX112:$GJ112)-Y112-X112-W112,0) -> 0 | AA112: 0 | AB112: 0 | AC112: 0 | AD112: 0 | AE112: 0 | AF112: 0 | AI112: =IF($A112>0,'RRR hist-forc'!K112,0) -> 0 | AJ112: 0
A113: ='Asset data'!A113 -> 0 | B113: ='Asset data'!B113 -> 0 | C113: ='Asset data'!C113 -> 0 | D113: ='Asset data'!E113 ->  | E113: 0 | F113: =IF(A113>0,SUM('Asset data'!J113:CV113),0) -> 0 | G113: =IF(A113>0,'Asset data'!F113,0) -> 0 | H113: =IF(A113>0,SUM('Asset data'!CX113:GJ113),0) -> 0 | I113: 0 | J113: 0 | K113: 0 | L113: 0 | M113: =IF($A113>0,SUMPRODUCT('Age profile (years)'!$CT113:$GF113,'Asset data'!$CX113:$GJ113)/H113-0.5,0) -> 0 | N113: 0 | O113: =IF($A113>0,'Asset data'!G113,0) -> 0 | P113: 0 | Q113: 0 | R113: 0 | S113: 0 | T113: 0 | U113: 0 | W113: =IF($A113>0,SUMIF('Age profile (years)'!$CT113:$GF113,"<" & R113+0.5,'Asset data'!$CX113:$GJ113),0) -> 0 | X113: =IF($A113>0,SUMIF('Age profile (years)'!$CT113:$GF113,"<" & S113+0.5,'Asset data'!$CX113:$GJ113)-W113,0) -> 0 | Y113: =IF($A113>0,SUMIF('Age profile (years)'!$CT113:$GF113,"<" & T113+0.5,'Asset data'!$CX113:$GJ113)-X113-W113,0) -> 0 | Z113: =IF($A113>0,SUMIF('Age profile (years)'!$CT113:$GF113,"<" & U113+0.5,'Asset data'!$CX113:$GJ113)-Y113-X113-W113,0) -> 0 | AA113: 0 | AB113: 0 | AC113: 0 | AD113: 0 | AE113: 0 | AF113: 0 | AI113: =IF($A113>0,'RRR hist-forc'!K113,0) -> 0 | AJ113: 0
A114: ='Asset data'!A114 -> 0 | B114: ='Asset data'!B114 -> 0 | C114: ='Asset data'!C114 -> 0 | D114: ='Asset data'!E114 ->  | E114: 0 | F114: =IF(A114>0,SUM('Asset data'!J114:CV114),0) -> 0 | G114: =IF(A114>0,'Asset data'!F114,0) -> 0 | H114: =IF(A114>0,SUM('Asset data'!CX114:GJ114),0) -> 0 | I114: 0 | J114: 0 | K114: 0 | L114: 0 | M114: =IF($A114>0,SUMPRODUCT('Age profile (years)'!$CT114:$GF114,'Asset data'!$CX114:$GJ114)/H114-0.5,0) -> 0 | N114: 0 | O114: =IF($A114>0,'Asset data'!G114,0) -> 0 | P114: 0 | Q114: 0 | R114: 0 | S114: 0 | T114: 0 | U114: 0 | W114: =IF($A114>0,SUMIF('Age profile (years)'!$CT114:$GF114,"<" & R114+0.5,'Asset data'!$CX114:$GJ114),0) -> 0 | X114: =IF($A114>0,SUMIF('Age profile (years)'!$CT114:$GF114,"<" & S114+0.5,'Asset data'!$CX114:$GJ114)-W114,0) -> 0 | Y114: =IF($A114>0,SUMIF('Age profile (years)'!$CT114:$GF114,"<" & T114+0.5,'Asset data'!$CX114:$GJ114)-X114-W114,0) -> 0 | Z114: =IF($A114>0,SUMIF('Age profile (years)'!$CT114:$GF114,"<" & U114+0.5,'Asset data'!$CX114:$GJ114)-Y114-X114-W114,0) -> 0 | AA114: 0 | AB114: 0 | AC114: 0 | AD114: 0 | AE114: 0 | AF114: 0 | AI114: =IF($A114>0,'RRR hist-forc'!K114,0) -> 0 | AJ114: 0
A115: ='Asset data'!A115 -> 0 | B115: ='Asset data'!B115 -> 0 | C115: ='Asset data'!C115 -> 0 | D115: ='Asset data'!E115 ->  | E115: 0 | F115: =IF(A115>0,SUM('Asset data'!J115:CV115),0) -> 0 | G115: =IF(A115>0,'Asset data'!F115,0) -> 0 | H115: =IF(A115>0,SUM('Asset data'!CX115:GJ115),0) -> 0 | I115: 0 | J115: 0 | K115: 0 | L115: 0 | M115: =IF($A115>0,SUMPRODUCT('Age profile (years)'!$CT115:$GF115,'Asset data'!$CX115:$GJ115)/H115-0.5,0) -> 0 | N115: 0 | O115: =IF($A115>0,'Asset data'!G115,0) -> 0 | P115: 0 | Q115: 0 | R115: 0 | S115: 0 | T115: 0 | U115: 0 | W115: =IF($A115>0,SUMIF('Age profile (years)'!$CT115:$GF115,"<" & R115+0.5,'Asset data'!$CX115:$GJ115),0) -> 0 | X115: =IF($A115>0,SUMIF('Age profile (years)'!$CT115:$GF115,"<" & S115+0.5,'Asset data'!$CX115:$GJ115)-W115,0) -> 0 | Y115: =IF($A115>0,SUMIF('Age profile (years)'!$CT115:$GF115,"<" & T115+0.5,'Asset data'!$CX115:$GJ115)-X115-W115,0) -> 0 | Z115: =IF($A115>0,SUMIF('Age profile (years)'!$CT115:$GF115,"<" & U115+0.5,'Asset data'!$CX115:$GJ115)-Y115-X115-W115,0) -> 0 | AA115: 0 | AB115: 0 | AC115: 0 | AD115: 0 | AE115: 0 | AF115: 0 | AI115: =IF($A115>0,'RRR hist-forc'!K115,0) -> 0 | AJ115: 0
A116: ='Asset data'!A116 -> 7 | B116: ='Asset data'!B116 -> 0 | C116: ='Asset data'!C116 -> 0 | D116: ='Asset data'!E116 -> Other | E116: SWITCHGEAR | F116: =IF(A116>0,SUM('Asset data'!J116:CV116),0) -> 119 | G116: =IF(A116>0,'Asset data'!F116,0) -> 0.001 | H116: =IF(A116>0,SUM('Asset data'!CX116:GJ116),0) -> 0.119 | I116: 1.499382258e-08 | J116: 36 | K116: 1.155922733e-07 | L116: 0.001 | M116: =IF($A116>0,SUMPRODUCT('Age profile (years)'!$CT116:$GF116,'Asset data'!$CX116:$GJ116)/H116-0.5,0) -> 28.44957983 | N116: 3.3855 | O116: =IF($A116>0,'Asset data'!G116,0) -> 58.84753573 | P116: 7.002856752 | Q116: 0.5165544406 | R116: 5.884753573 | S116: 11.76950715 | T116: 35.30852144 | U116: 47.07802859 | W116: =IF($A116>0,SUMIF('Age profile (years)'!$CT116:$GF116,"<" & R116+0.5,'Asset data'!$CX116:$GJ116),0) -> 0.015 | X116: =IF($A116>0,SUMIF('Age profile (years)'!$CT116:$GF116,"<" & S116+0.5,'Asset data'!$CX116:$GJ116)-W116,0) -> 0.015 | Y116: =IF($A116>0,SUMIF('Age profile (years)'!$CT116:$GF116,"<" & T116+0.5,'Asset data'!$CX116:$GJ116)-X116-W116,0) -> 0.044 | Z116: =IF($A116>0,SUMIF('Age profile (years)'!$CT116:$GF116,"<" & U116+0.5,'Asset data'!$CX116:$GJ116)-Y116-X116-W116,0) -> 0.021 | AA116: 0.024 | AB116: 0.1260504202 | AC116: 0.1260504202 | AD116: 0.3697478992 | AE116: 0.1764705882 | AF116: 0.2016806723 | AI116: =IF($A116>0,'RRR hist-forc'!K116,0) -> 58.84753573 | AJ116: 7.002856752
A117: ='Asset data'!A117 -> 0 | B117: ='Asset data'!B117 -> 0 | C117: ='Asset data'!C117 -> 0 | D117: ='Asset data'!E117 ->  | E117: 0 | F117: =IF(A117>0,SUM('Asset data'!J117:CV117),0) -> 0 | G117: =IF(A117>0,'Asset data'!F117,0) -> 0 | H117: =IF(A117>0,SUM('Asset data'!CX117:GJ117),0) -> 0 | I117: 0 | J117: 0 | K117: 0 | L117: 0 | M117: =IF($A117>0,SUMPRODUCT('Age profile (years)'!$CT117:$GF117,'Asset data'!$CX117:$GJ117)/H117-0.5,0) -> 0 | N117: 0 | O117: =IF($A117>0,'Asset data'!G117,0) -> 0 | P117: 0 | Q117: 0 | R117: 0 | S117: 0 | T117: 0 | U117: 0 | W117: =IF($A117>0,SUMIF('Age profile (years)'!$CT117:$GF117,"<" & R117+0.5,'Asset data'!$CX117:$GJ117),0) -> 0 | X117: =IF($A117>0,SUMIF('Age profile (years)'!$CT117:$GF117,"<" & S117+0.5,'Asset data'!$CX117:$GJ117)-W117,0) -> 0 | Y117: =IF($A117>0,SUMIF('Age profile (years)'!$CT117:$GF117,"<" & T117+0.5,'Asset data'!$CX117:$GJ117)-X117-W117,0) -> 0 | Z117: =IF($A117>0,SUMIF('Age profile (years)'!$CT117:$GF117,"<" & U117+0.5,'Asset data'!$CX117:$GJ117)-Y117-X117-W117,0) -> 0 | AA117: 0 | AB117: 0 | AC117: 0 | AD117: 0 | AE117: 0 | AF117: 0 | AI117: =IF($A117>0,'RRR hist-forc'!K117,0) -> 0 | AJ117: 0
A118: ='Asset data'!A118 -> 0 | B118: ='Asset data'!B118 -> 0 | C118: ='Asset data'!C118 -> 0 | D118: ='Asset data'!E118 ->  | E118: 0 | F118: =IF(A118>0,SUM('Asset data'!J118:CV118),0) -> 0 | G118: =IF(A118>0,'Asset data'!F118,0) -> 0 | H118: =IF(A118>0,SUM('Asset data'!CX118:GJ118),0) -> 0 | I118: 0 | J118: 0 | K118: 0 | L118: 0 | M118: =IF($A118>0,SUMPRODUCT('Age profile (years)'!$CT118:$GF118,'Asset data'!$CX118:$GJ118)/H118-0.5,0) -> 0 | N118: 0 | O118: =IF($A118>0,'Asset data'!G118,0) -> 0 | P118: 0 | Q118: 0 | R118: 0 | S118: 0 | T118: 0 | U118: 0 | W118: =IF($A118>0,SUMIF('Age profile (years)'!$CT118:$GF118,"<" & R118+0.5,'Asset data'!$CX118:$GJ118),0) -> 0 | X118: =IF($A118>0,SUMIF('Age profile (years)'!$CT118:$GF118,"<" & S118+0.5,'Asset data'!$CX118:$GJ118)-W118,0) -> 0 | Y118: =IF($A118>0,SUMIF('Age profile (years)'!$CT118:$GF118,"<" & T118+0.5,'Asset data'!$CX118:$GJ118)-X118-W118,0) -> 0 | Z118: =IF($A118>0,SUMIF('Age profile (years)'!$CT118:$GF118,"<" & U118+0.5,'Asset data'!$CX118:$GJ118)-Y118-X118-W118,0) -> 0 | AA118: 0 | AB118: 0 | AC118: 0 | AD118: 0 | AE118: 0 | AF118: 0 | AI118: =IF($A118>0,'RRR hist-forc'!K118,0) -> 0 | AJ118: 0
AI206: =IF($A206>0,'RRR hist-forc'!K206,0) -> 0 | AJ206: =IF($A206>0,AI206*H206,0) -> 0

Sheet RRR hist-forc
A1: Asset calcs | AY1: Replacement expenditure forecast ($,000) | BS1: Weighted average age forecast (WAA) | CN1: Weighted average remaining life forecast (WARL) | DI1: Replacement quantity forecast
AY2: 1 | AZ2: 2 | BA2: 3 | BB2: 4 | BC2: 5 | BD2: 6 | BE2: 7 | BF2: 8 | BG2: 9 | BH2: 10 | BI2: 11 | BJ2: 12 | BK2: 13 | BL2: 14 | BM2: 15 | BN2: 16 | BO2: 17 | BP2: 18 | BQ2: 19 | BR2: 20 | BS2: 0 | BT2: 1 | BU2: 2 | BV2: 3 | BW2: 4 | BX2: 5 | BY2: 6 | BZ2: 7 | CA2: 8 | CB2: 9 | CC2: 10 | CD2: 11 | CE2: 12 | CF2: 13 | CG2: 14 | CH2: 15 | CI2: 16 | CJ2: 17 | CK2: 18 | CL2: 19 | CM2: 20 | CN2: 0 | CO2: 1 | CP2: 2 | CQ2: 3 | CR2: 4 | CS2: 5 | CT2: 6 | CU2: 7 | CV2: 8 | CW2: 9 | CX2: 10 | CY2: 11 | CZ2: 12 | DA2: 13 | DB2: 14 | DC2: 15 | DD2: 16 | DE2: 17 | DF2: 18 | DG2: 19 | DH2: 20 | DI2: 1 | DJ2: 2 | DK2: 3 | DL2: 4 | DM2: 5 | DN2: 6 | DO2: 7 | DP2: 8 | DQ2: 9 | DR2: 10 | DS2: 11 | DT2: 12 | DU2: 13 | DV2: 14 | DW2: 15 | DX2: 16 | DY2: 17 | DZ2: 18 | EA2: 19 | EB2: 20
Q3: DNSP
G4: Historical | Q4: Forcast | AO4: Model forecast
E5: year | G5: =H5-1 -> 2005 | H5: 2006 | I5: 2007 | J5: 2008 | K5: 2009 | L5: 2010 | M5: 2011 | N5: 2012 | O5: =P5-1 -> 2013 | P5: =IF(Tables!B19=1,Now,Now-1) -> 2014 | Q5: =P5+1 -> 2015 | R5: =Q5+1 -> 2016 | S5: 2017 | T5: 2018 | U5: 2019 | V5: 2020 | W5: 2021 | X5: 2022 | Y5: 2023 | Z5: 2024 | AA5: =Z5+1 -> 2025 | AB5: 2026 | AC5: 2027 | AD5: 2028 | AE5: 2029 | AF5: 2030 | AG5: 2031 | AH5: 2032 | AI5: 2033 | AJ5: 2034 | AO5: =G5 -> 2005 | AP5: 2006 | AQ5: 2007 | AR5: 2008 | AS5: 2009 | AT5: 2010 | AU5: 2011 | AV5: 2012 | AW5: 2013 | AX5: 2014 | AY5: =Q5 -> 2015 | AZ5: 2016 | BA5: 2017 | BB5: 2018 | BC5: 2019 | BD5: 2020 | BE5: 2021 | BF5: 2022 | BG5: 2023 | BH5: 2024 | BI5: 2025 | BJ5: 2026 | BK5: 2027 | BL5: 2028 | BM5: 2029 | BN5: 2030 | BO5: 2031 | BP5: 2032 | BQ5: 2033 | BR5: 2034 | BS5: =AX5 -> 2014 | BT5: =AY5 -> 2015 | BU5: 2016 | BV5: 2017 | BW5: 2018 | BX5: 2019 | BY5: 2020 | BZ5: 2021 | CA5: 2022 | CB5: 2023 | CC5: 2024 | CD5: 2025 | CE5: 2026 | CF5: 2027 | CG5: 2028 | CH5: 2029 | CI5: 2030 | CJ5: 2031 | CK5: 2032 | CL5: 2033 | CM5: 2034 | CN5: =BS5 -> 2014 | CO5: =BT5 -> 2015 | CP5: 2016 | CQ5: 2017 | CR5: 2018 | CS5: 2019 | CT5: 2020 | CU5: 2021 | CV5: 2022 | CW5: 2023 | CX5: 2024 | CY5: 2025 | CZ5: 2026 | DA5: 2027 | DB5: 2028 | DC5: 2029 | DD5: 2030 | DE5: 2031 | DF5: 2032 | DG5: 2033 | DH5: 2034 | DI5: =AY5 -> 2015 | DJ5: =AZ5 -> 2016 | DK5: 2017 | DL5: 2018 | DM5: 2019 | DN5: 2020 | DO5: 2021 | DP5: 2022 | DQ5: 2023 | DR5: 2024 | DS5: 2025 | DT5: 2026 | DU5: 2027 | DV5: 2028 | DW5: 2029 | DX5: 2030 | DY5: 2031 | DZ5: 2032 | EA5: 2033 | EB5: 2034
A6: 1 | D6: =VLOOKUP(A6,IDtable,2) -> POLES STAKED | E6: =D6 -> POLES STAKED | AN6: =D6 & " (mod)" -> POLES STAKED (mod) | AY6: =SUMIF($A$21:$A$205,$A6,AY$21:AY$205) -> 1337.927863 | AZ6: =SUMIF($A$21:$A$205,$A6,AZ$21:AZ$205) -> 1687.475415 | BA6: 2081.206452 | BB6: 2513.03446 | BC6: 2974.987305 | BD6: 3458.123733 | BE6: 3953.628015 | BF6: 4453.891037 | BG6: 4953.367256 | BH6: 5449.019172 | BI6: 5940.223889 | BJ6: 6428.111263 | BK6: 6914.414157 | BL6: 7400.017151 | BM6: 7883.467413 | BN6: 8359.740547 | BO6: 8819.524592 | BP6: 9249.200865 | BQ6: 9631.579534 | BR6: 9947.319518 | BS6: =SUM(IF($A$21:$A$205=$A6,CN$21:CN$205))/('Age profile summary'!$H6*1000+0.000001) -> 10.29423966 | BT6: =SUM(IF($A$21:$A$205=$A6,CO$21:CO$205))/('Age profile summary'!$H6*1000+0.000001) -> 11.16052602 | BU6: =SUM(IF($A$21:$A$205=$A6,CP$21:CP$205))/('Age profile summary'!$H6*1000+0.000001) -> 11.99382621 | BV6: =SUM(IF($A$21:$A$205=$A6,CQ$21:CQ$205))/('Age profile summary'!$H6*1000+0.000001) -> 12.79180386 | BW6: =SUM(IF($A$21:$A$205=$A6,CR$21:CR$205))/('Age profile summary'!$H6*1000+0.000001) -> 13.55321044 | BX6: =SUM(IF($A$21:$A$205=$A6,CS$21:CS$205))/('Age profile summary'!$H6*1000+0.000001) -> 14.27784926 | BY6: =SUM(IF($A$21:$A$205=$A6,CT$21:CT$205))/('Age profile summary'!$H6*1000+0.000001) -> 14.96639948 | BZ6: =SUM(IF($A$21:$A$205=$A6,CU$21:CU$205))/('Age profile summary'!$H6*1000+0.000001) -> 15.62014432 | CA6: =SUM(IF($A$21:$A$205=$A6,CV$21:CV$205))/('Age profile summary'!$H6*1000+0.000001) -> 16.24065277 | CB6: =SUM(IF($A$21:$A$205=$A6,CW$21:CW$205))/('Age profile summary'!$H6*1000+0.000001) -> 16.82945698 | CC6: =SUM(IF($A$21:$A$205=$A6,CX$21:CX$205))/('Age profile summary'!$H6*1000+0.000001) -> 17.38776555 | CD6: =SUM(IF($A$21:$A$205=$A6,CY$21:CY$205))/('Age profile summary'!$H6*1000+0.000001) -> 17.91626022 | CE6: =SUM(IF($A$21:$A$205=$A6,CZ$21:CZ$205))/('Age profile summary'!$H6*1000+0.000001) -> 18.41503429 | CF6: =SUM(IF($A$21:$A$205=$A6,DA$21:DA$205))/('Age profile summary'!$H6*1000+0.000001) -> 18.88372753 | CG6: =SUM(IF($A$21:$A$205=$A6,DB$21:DB$205))/('Age profile summary'!$H6*1000+0.000001) -> 19.32188004 | CH6: =SUM(IF($A$21:$A$205=$A6,DC$21:DC$205))/('Age profile summary'!$H6*1000+0.000001) -> 19.72946823 | CI6: =SUM(IF($A$21:$A$205=$A6,DD$21:DD$205))/('Age profile summary'!$H6*1000+0.000001) -> 20.10752074 | CJ6: =SUM(IF($A$21:$A$205=$A6,DE$21:DE$205))/('Age profile summary'!$H6*1000+0.000001) -> 20.458676 | CK6: =SUM(IF($A$21:$A$205=$A6,DF$21:DF$205))/('Age profile summary'!$H6*1000+0.000001) -> 20.78756123 | CL6: =SUM(IF($A$21:$A$205=$A6,DG$21:DG$205))/('Age profile summary'!$H6*1000+0.000001) -> 21.10094082 | CM6: =SUM(IF($A$21:$A$205=$A6,DH$21:DH$205))/('Age profile summary'!$H6*1000+0.000001) -> 21.40765885 | CN6: ='Age profile summary'!$O6-'RRR hist-forc'!BS6 -> 19.33141624 | CO6: ='Age profile summary'!$O6-'RRR hist-forc'!BT6 -> 18.46512989 | CP6: ='Age profile summary'!$O6-'RRR hist-forc'!BU6 -> 17.63182969 | CQ6: ='Age profile summary'!$O6-'RRR hist-forc'!BV6 -> 16.83385204 | CR6: ='Age profile summary'!$O6-'RRR hist-forc'!BW6 -> 16.07244546 | CS6: ='Age profile summary'!$O6-'RRR hist-forc'!BX6 -> 15.34780664 | CT6: ='Age profile summary'!$O6-'RRR hist-forc'!BY6 -> 14.65925642 | CU6: ='Age profile summary'!$O6-'RRR hist-forc'!BZ6 -> 14.00551158 | CV6: ='Age profile summary'!$O6-'RRR hist-forc'!CA6 -> 13.38500313 | CW6: ='Age profile summary'!$O6-'RRR hist-forc'!CB6 -> 12.79619892 | CX6: ='Age profile summary'!$O6-'RRR hist-forc'!CC6 -> 12.23789035 | CY6: ='Age profile summary'!$O6-'RRR hist-forc'!CD6 -> 11.70939568 | CZ6: ='Age profile summary'!$O6-'RRR hist-forc'!CE6 -> 11.21062161 | DA6: ='Age profile summary'!$O6-'RRR hist-forc'!CF6 -> 10.74192837 | DB6: ='Age profile summary'!$O6-'RRR hist-forc'!CG6 -> 10.30377586 | DC6: ='Age profile summary'!$O6-'RRR hist-forc'!CH6 -> 9.896187672 | DD6: ='Age profile summary'!$O6-'RRR hist-forc'!CI6 -> 9.518135156 | DE6: ='Age profile summary'!$O6-'RRR hist-forc'!CJ6 -> 9.166979902 | DF6: ='Age profile summary'!$O6-'RRR hist-forc'!CK6 -> 8.838094666 | DG6: ='Age profile summary'!$O6-'RRR hist-forc'!CL6 -> 8.524715076 | DH6: ='Age profile summary'!$O6-'RRR hist-forc'!CM6 -> 8.217997052 | DI6: =SUMIF($A$21:$A$205,$A6,DI$21:DI$205) -> 175.6561884 | DJ6: 221.5481923 | DK6: 273.2410338 | DL6: 329.9356166 | DM6: 390.585281 | DN6: 454.0161324 | DO6: 519.070756 | DP6: 584.7501533 | DQ6: 650.3262514 | DR6: 715.4002578 | DS6: 779.8903926 | DT6: 843.9449943 | DU6: 907.7915702 | DV6: 971.5462563 | DW6: 1035.018311 | DX6: 1097.548082 | DY6: =SUMIF($A$21:$A$205,$A6,DY$21:DY$205) -> 1157.913005 | DZ6: 1214.325087 | EA6: 1264.52748 | EB6: 1305.980897
A7: 2 | D7: POLES | E7: POLES | AN7: =D7 & " (mod)" -> POLES (mod) | AY7: =SUMIF($A$21:$A$205,$A7,AY$21:AY$205) -> 10794.54717 | AZ7: =SUMIF($A$21:$A$205,$A7,AZ$21:AZ$205) -> 11226.77672 | BA7: 11586.85781 | BB7: 11869.01436 | BC7: 12072.88003 | BD7: 12203.3233 | BE7: 12269.93767 | BF7: 12286.25573 | BG7: 12268.75376 | BH7: 12235.71703 | BI7: 12206.03414 | BJ7: 12197.98514 | BK7: 12228.08225 | BL7: 12310.01625 | BM7: 12453.75595 | BN7: 12664.84391 | BO7: 12943.92731 | BP7: 13286.55889 | BQ7: 13683.29598 | BR7: 14120.11545 | BS7: =SUM(IF($A$21:$A$205=$A7,CN$21:CN$205))/('Age profile summary'!$H7*1000+0.000001) -> 27.09997507 | BT7: =SUM(IF($A$21:$A$205=$A7,CO$21:CO$205))/('Age profile summary'!$H7*1000+0.000001) -> 27.2913433 | BU7: =SUM(IF($A$21:$A$205=$A7,CP$21:CP$205))/('Age profile summary'!$H7*1000+0.000001) -> 27.51523262 | BV7: =SUM(IF($A$21:$A$205=$A7,CQ$21:CQ$205))/('Age profile summary'!$H7*1000+0.000001) -> 27.76789586 | BW7: =SUM(IF($A$21:$A$205=$A7,CR$21:CR$205))/('Age profile summary'!$H7*1000+0.000001) -> 28.04844676 | BX7: =SUM(IF($A$21:$A$205=$A7,CS$21:CS$205))/('Age profile summary'!$H7*1000+0.000001) -> 28.35642421 | BY7: =SUM(IF($A$21:$A$205=$A7,CT$21:CT$205))/('Age profile summary'!$H7*1000+0.000001) -> 28.69109103 | BZ7: =SUM(IF($A$21:$A$205=$A7,CU$21:CU$205))/('Age profile summary'!$H7*1000+0.000001) -> 29.05117644 | CA7: =SUM(IF($A$21:$A$205=$A7,CV$21:CV$205))/('Age profile summary'!$H7*1000+0.000001) -> 29.43478285 | CB7: =SUM(IF($A$21:$A$205=$A7,CW$21:CW$205))/('Age profile summary'!$H7*1000+0.000001) -> 29.83937794 | CC7: =SUM(IF($A$21:$A$205=$A7,CX$21:CX$205))/('Age profile summary'!$H7*1000+0.000001) -> 30.26184323 | CD7: =SUM(IF($A$21:$A$205=$A7,CY$21:CY$205))/('Age profile summary'!$H7*1000+0.000001) -> 30.69856542 | CE7: =SUM(IF($A$21:$A$205=$A7,CZ$21:CZ$205))/('Age profile summary'!$H7*1000+0.000001) -> 31.14556124 | CF7: =SUM(IF($A$21:$A$205=$A7,DA$21:DA$205))/('Age profile summary'!$H7*1000+0.000001) -> 31.59862852 | CG7: =SUM(IF($A$21:$A$205=$A7,DB$21:DB$205))/('Age profile summary'!$H7*1000+0.000001) -> 32.05351773 | CH7: =SUM(IF($A$21:$A$205=$A7,DC$21:DC$205))/('Age profile summary'!$H7*1000+0.000001) -> 32.50611856 | CI7: =SUM(IF($A$21:$A$205=$A7,DD$21:DD$205))/('Age profile summary'!$H7*1000+0.000001) -> 32.95265522 | CJ7: =SUM(IF($A$21:$A$205=$A7,DE$21:DE$205))/('Age profile summary'!$H7*1000+0.000001) -> 33.38988289 | CK7: =SUM(IF($A$21:$A$205=$A7,DF$21:DF$205))/('Age profile summary'!$H7*1000+0.000001) -> 33.81527478 | CL7: =SUM(IF($A$21:$A$205=$A7,DG$21:DG$205))/('Age profile summary'!$H7*1000+0.000001) -> 34.2271877 | CM7: =SUM(IF($A$21:$A$205=$A7,DH$21:DH$205))/('Age profile summary'!$H7*1000+0.000001) -> 34.62499233 | CN7: ='Age profile summary'!$O7-'RRR hist-forc'!BS7 -> 24.47564662 | CO7: ='Age profile summary'!$O7-'RRR hist-forc'!BT7 -> 24.28427839 | CP7: ='Age profile summary'!$O7-'RRR hist-forc'!BU7 -> 24.06038908 | CQ7: ='Age profile summary'!$O7-'RRR hist-forc'!BV7 -> 23.80772584 | CR7: ='Age profile summary'!$O7-'RRR hist-forc'!BW7 -> 23.52717493 | CS7: ='Age profile summary'!$O7-'RRR hist-forc'!BX7 -> 23.21919748 | CT7: ='Age profile summary'!$O7-'RRR hist-forc'!BY7 -> 22.88453066 | CU7: ='Age profile summary'!$O7-'RRR hist-forc'!BZ7 -> 22.52444525 | CV7: ='Age profile summary'!$O7-'RRR hist-forc'!CA7 -> 22.14083884 | CW7: ='Age profile summary'!$O7-'RRR hist-forc'!CB7 -> 21.73624375 | CX7: ='Age profile summary'!$O7-'RRR hist-forc'!CC7 -> 21.31377847 | CY7: ='Age profile summary'!$O7-'RRR hist-forc'!CD7 -> 20.87705627 | CZ7: ='Age profile summary'!$O7-'RRR hist-forc'!CE7 -> 20.43006045 | DA7: ='Age profile summary'!$O7-'RRR hist-forc'!CF7 -> 19.97699318 | DB7: ='Age profile summary'!$O7-'RRR hist-forc'!CG7 -> 19.52210396 | DC7: ='Age profile summary'!$O7-'RRR hist-forc'!CH7 -> 19.06950313 | DD7: ='Age profile summary'!$O7-'RRR hist-forc'!CI7 -> 18.62296647 | DE7: ='Age profile summary'!$O7-'RRR hist-forc'!CJ7 -> 18.1857388 | DF7: ='Age profile summary'!$O7-'RRR hist-forc'!CK7 -> 17.76034691 | DG7: ='Age profile summary'!$O7-'RRR hist-forc'!CL7 -> 17.34843399 | DH7: ='Age profile summary'!$O7-'RRR hist-forc'!CM7 -> 16.95062936 | DI7: 4875.217214 | DJ7: 4729.299763 | DK7: 4684.402709 | DL7: 4684.553618 | DM7: 4697.168284 | DN7: 4704.766438 | DO7: 4699.537024 | DP7: 4679.774258 | DQ7: 4647.510685 | DR7: 4606.906532 | DS7: 4563.120393 | DT7: 4521.49719 | DU7: 4486.97917 | DV7: 4463.687085 | DW7: 4454.641331 | DX7: 4461.604022 | DY7: 4485.027571 | DZ7: 4524.096547 | EA7: 4576.849195 | EB7: 4640.363983
A8: 3 | D8: OVERHEAD CONDUCTORS | E8: OVERHEAD CONDUCTORS | AN8: OVERHEAD CONDUCTORS (mod) | AY8: 14423.72024 | AZ8: 16704.96873 | BA8: 19182.77856 | BB8: 21845.61885 | BC8: 24676.90399 | BD8: 27655.08057 | BE8: 30753.94054 | BF8: 33943.17286 | BG8: 37189.15275 | BH8: 40455.95037 | BI8: 43706.52272 | BJ8: 46904.03466 | BK8: 50013.23832 | BL8: 53001.82814 | BM8: 55841.68181 | BN8: 58509.89808 | BO8: 60989.55105 | BP8: 63270.09708 | BQ8: 65347.39525 | BR8: 67223.33156 | BS8: =SUM(IF($A$21:$A$205=$A8,CN$21:CN$205))/('Age profile summary'!$H8*1000+0.000001) -> 30.25057883 | BT8: =SUM(IF($A$21:$A$205=$A8,CO$21:CO$205))/('Age profile summary'!$H8*1000+0.000001) -> 31.04594857 | BU8: =SUM(IF($A$21:$A$205=$A8,CP$21:CP$205))/('Age profile summary'!$H8*1000+0.000001) -> 31.81459471 | BV8: =SUM(IF($A$21:$A$205=$A8,CQ$21:CQ$205))/('Age profile summary'!$H8*1000+0.000001) -> 32.55505702 | BW8: =SUM(IF($A$21:$A$205=$A8,CR$21:CR$205))/('Age profile summary'!$H8*1000+0.000001) -> 33.26605267 | BX8: =SUM(IF($A$21:$A$205=$A8,CS$21:CS$205))/('Age profile summary'!$H8*1000+0.000001) -> 33.94653355 | BY8: =SUM(IF($A$21:$A$205=$A8,CT$21:CT$205))/('Age profile summary'!$H8*1000+0.000001) -> 34.59574376 | BZ8: =SUM(IF($A$21:$A$205=$A8,CU$21:CU$205))/('Age profile summary'!$H8*1000+0.000001) -> 35.21327057 | CA8: =SUM(IF($A$21:$A$205=$A8,CV$21:CV$205))/('Age profile summary'!$H8*1000+0.000001) -> 35.79908378 | CB8: =SUM(IF($A$21:$A$205=$A8,CW$21:CW$205))/('Age profile summary'!$H8*1000+0.000001) -> 36.35355987 | CC8: =SUM(IF($A$21:$A$205=$A8,CX$21:CX$205))/('Age profile summary'!$H8*1000+0.000001) -> 36.87748924 | CD8: =SUM(IF($A$21:$A$205=$A8,CY$21:CY$205))/('Age profile summary'!$H8*1000+0.000001) -> 37.37206548 | CE8: =SUM(IF($A$21:$A$205=$A8,CZ$21:CZ$205))/('Age profile summary'!$H8*1000+0.000001) -> 37.83885606 | CF8: =SUM(IF($A$21:$A$205=$A8,DA$21:DA$205))/('Age profile summary'!$H8*1000+0.000001) -> 38.27975459 | CG8: =SUM(IF($A$21:$A$205=$A8,DB$21:DB$205))/('Age profile summary'!$H8*1000+0.000001) -> 38.69691574 | CH8: =SUM(IF($A$21:$A$205=$A8,DC$21:DC$205))/('Age profile summary'!$H8*1000+0.000001) -> 39.09267559 | CI8: =SUM(IF($A$21:$A$205=$A8,DD$21:DD$205))/('Age profile summary'!$H8*1000+0.000001) -> 39.4694629 | CJ8: =SUM(IF($A$21:$A$205=$A8,DE$21:DE$205))/('Age profile summary'!$H8*1000+0.000001) -> 39.82970824 | CK8: =SUM(IF($A$21:$A$205=$A8,DF$21:DF$205))/('Age profile summary'!$H8*1000+0.000001) -> 40.17575967 | CL8: =SUM(IF($A$21:$A$205=$A8,DG$21:DG$205))/('Age profile summary'!$H8*1000+0.000001) -> 40.50981262 | CM8: =SUM(IF($A$21:$A$205=$A8,DH$21:DH$205))/('Age profile summary'!$H8*1000+0.000001) -> 40.83386058 | CN8: ='Age profile summary'!$O8-'RRR hist-forc'!BS8 -> 34.58187132 | CO8: ='Age profile summary'!$O8-'RRR hist-forc'!BT8 -> 33.78650158 | CP8: ='Age profile summary'!$O8-'RRR hist-forc'!BU8 -> 33.01785545 | CQ8: ='Age profile summary'!$O8-'RRR hist-forc'!BV8 -> 32.27739314 | CR8: ='Age profile summary'!$O8-'RRR hist-forc'!BW8 -> 31.56639749 | CS8: ='Age profile summary'!$O8-'RRR hist-forc'!BX8 -> 30.88591661 | CT8: ='Age profile summary'!$O8-'RRR hist-forc'!BY8 -> 30.2367064 | CU8: ='Age profile summary'!$O8-'RRR hist-forc'!BZ8 -> 29.61917958 | CV8: ='Age profile summary'!$O8-'RRR hist-forc'!CA8 -> 29.03336638 | CW8: ='Age profile summary'!$O8-'RRR hist-forc'!CB8 -> 28.47889029 | CX8: ='Age profile summary'!$O8-'RRR hist-forc'!CC8 -> 27.95496091 | CY8: ='Age profile summary'!$O8-'RRR hist-forc'!CD8 -> 27.46038467 | CZ8: ='Age profile summary'!$O8-'RRR hist-forc'!CE8 -> 26.9935941 | DA8: ='Age profile summary'!$O8-'RRR hist-forc'!CF8 -> 26.55269557 | DB8: ='Age profile summary'!$O8-'RRR hist-forc'!CG8 -> 26.13553442 | DC8: ='Age profile summary'!$O8-'RRR hist-forc'!CH8 -> 25.73977456 | DD8: ='Age profile summary'!$O8-'RRR hist-forc'!CI8 -> 25.36298726 | DE8: ='Age profile summary'!$O8-'RRR hist-forc'!CJ8 -> 25.00274191 | DF8: ='Age profile summary'!$O8-'RRR hist-forc'!CK8 -> 24.65669049 | DG8: ='Age profile summary'!$O8-'RRR hist-forc'!CL8 -> 24.32263754 | DH8: ='Age profile summary'!$O8-'RRR hist-forc'!CM8 -> 23.99858958 | DI8: 85.87075488 | DJ8: 95.82592325 | DK8: 106.9253744 | DL8: 119.1474702 | DM8: 132.4378346 | DN8: 146.7098809 | DO8: 161.8465066 | DP8: 177.7029799 | DQ8: 194.111023 | DR8: 210.8840492 | DS8: 227.8234365 | DT8: 244.7256247 | DU8: 261.389722 | DV8: 277.6252164 | DW8: 293.2593192 | DX8: 308.1434407 | DY8: 322.1583179 | DZ8: 335.2173872 | EA8: 347.2681106 | EB8: 358.2911236
A9: 4 | D9: UNDERGROUND CABLES | E9: UNDERGROUND CABLES | AN9: UNDERGROUND CABLES (mod) | AY9: 2644.624799 | AZ9: 2933.388464 | BA9: 3248.976558 | BB9: 3594.706309 | BC9: 3973.419014 | BD9: 4387.11258 | BE9: 4836.611287 | BF9: 5321.313266 | BG9: 5839.050054 | BH9: 6386.082099 | BI9: 6957.240565 | BJ9: 7546.210724 | BK9: 8145.93745 | BL9: 8749.120423 | BM9: 9348.756918 | BN9: 9938.684485 | BO9: 10514.07475 | BP9: 11071.83317 | BQ9: 11610.86746 | BR9: 12132.19873 | BS9: =SUM(IF($A$21:$A$205=$A9,CN$21:CN$205))/('Age profile summary'!$H9*1000+0.000001) -> 19.13090186 | BT9: =SUM(IF($A$21:$A$205=$A9,CO$21:CO$205))/('Age profile summary'!$H9*1000+0.000001) -> 20.00005327 | BU9: =SUM(IF($A$21:$A$205=$A9,CP$21:CP$205))/('Age profile summary'!$H9*1000+0.000001) -> 20.86367169 | BV9: =SUM(IF($A$21:$A$205=$A9,CQ$21:CQ$205))/('Age profile summary'!$H9*1000+0.000001) -> 21.71975359 | BW9: =SUM(IF($A$21:$A$205=$A9,CR$21:CR$205))/('Age profile summary'!$H9*1000+0.000001) -> 22.56619191 | BX9: =SUM(IF($A$21:$A$205=$A9,CS$21:CS$205))/('Age profile summary'!$H9*1000+0.000001) -> 23.40087859 | BY9: =SUM(IF($A$21:$A$205=$A9,CT$21:CT$205))/('Age profile summary'!$H9*1000+0.000001) -> 24.22180334 | BZ9: =SUM(IF($A$21:$A$205=$A9,CU$21:CU$205))/('Age profile summary'!$H9*1000+0.000001) -> 25.02714501 | CA9: =SUM(IF($A$21:$A$205=$A9,CV$21:CV$205))/('Age profile summary'!$H9*1000+0.000001) -> 25.81535137 | CB9: =SUM(IF($A$21:$A$205=$A9,CW$21:CW$205))/('Age profile summary'!$H9*1000+0.000001) -> 26.5852019 | CC9: =SUM(IF($A$21:$A$205=$A9,CX$21:CX$205))/('Age profile summary'!$H9*1000+0.000001) -> 27.33584957 | CD9: =SUM(IF($A$21:$A$205=$A9,CY$21:CY$205))/('Age profile summary'!$H9*1000+0.000001) -> 28.06683842 | CE9: =SUM(IF($A$21:$A$205=$A9,CZ$21:CZ$205))/('Age profile summary'!$H9*1000+0.000001) -> 28.778096 | CF9: =SUM(IF($A$21:$A$205=$A9,DA$21:DA$205))/('Age profile summary'!$H9*1000+0.000001) -> 29.46990156 | CG9: =SUM(IF($A$21:$A$205=$A9,DB$21:DB$205))/('Age profile summary'!$H9*1000+0.000001) -> 30.14283256 | CH9: =SUM(IF($A$21:$A$205=$A9,DC$21:DC$205))/('Age profile summary'!$H9*1000+0.000001) -> 30.79769321 | CI9: =SUM(IF($A$21:$A$205=$A9,DD$21:DD$205))/('Age profile summary'!$H9*1000+0.000001) -> 31.43542969 | CJ9: =SUM(IF($A$21:$A$205=$A9,DE$21:DE$205))/('Age profile summary'!$H9*1000+0.000001) -> 32.05703707 | CK9: =SUM(IF($A$21:$A$205=$A9,DF$21:DF$205))/('Age profile summary'!$H9*1000+0.000001) -> 32.66346392 | CL9: =SUM(IF($A$21:$A$205=$A9,DG$21:DG$205))/('Age profile summary'!$H9*1000+0.000001) -> 33.25552129 | CM9: =SUM(IF($A$21:$A$205=$A9,DH$21:DH$205))/('Age profile summary'!$H9*1000+0.000001) -> 33.8338033 | CN9: ='Age profile summary'!$O9-'RRR hist-forc'!BS9 -> 37.62870099 | CO9: ='Age profile summary'!$O9-'RRR hist-forc'!BT9 -> 36.75954958 | CP9: ='Age profile summary'!$O9-'RRR hist-forc'!BU9 -> 35.89593117 | CQ9: ='Age profile summary'!$O9-'RRR hist-forc'!BV9 -> 35.03984927 | CR9: ='Age profile summary'!$O9-'RRR hist-forc'!BW9 -> 34.19341095 | CS9: ='Age profile summary'!$O9-'RRR hist-forc'!BX9 -> 33.35872426 | CT9: ='Age profile summary'!$O9-'RRR hist-forc'!BY9 -> 32.53779952 | CU9: ='Age profile summary'!$O9-'RRR hist-forc'!BZ9 -> 31.73245784 | CV9: ='Age profile summary'!$O9-'RRR hist-forc'!CA9 -> 30.94425149 | CW9: ='Age profile summary'!$O9-'RRR hist-forc'!CB9 -> 30.17440096 | CX9: ='Age profile summary'!$O9-'RRR hist-forc'!CC9 -> 29.42375329 | CY9: ='Age profile summary'!$O9-'RRR hist-forc'!CD9 -> 28.69276443 | CZ9: ='Age profile summary'!$O9-'RRR hist-forc'!CE9 -> 27.98150685 | DA9: ='Age profile summary'!$O9-'RRR hist-forc'!CF9 -> 27.28970129 | DB9: ='Age profile summary'!$O9-'RRR hist-forc'!CG9 -> 26.6167703 | DC9: ='Age profile summary'!$O9-'RRR hist-forc'!CH9 -> 25.96190964 | DD9: ='Age profile summary'!$O9-'RRR hist-forc'!CI9 -> 25.32417316 | DE9: ='Age profile summary'!$O9-'RRR hist-forc'!CJ9 -> 24.70256579 | DF9: ='Age profile summary'!$O9-'RRR hist-forc'!CK9 -> 24.09613893 | DG9: ='Age profile summary'!$O9-'RRR hist-forc'!CL9 -> 23.50408156 | DH9: ='Age profile summary'!$O9-'RRR hist-forc'!CM9 -> 22.92579956 | DI9: 8.134909134 | DJ9: 8.970053212 | DK9: 9.866813038 | DL9: 10.83143831 | DM9: 11.86885962 | DN9: 12.98182165 | DO9: 14.17013733 | DP9: 15.43015719 | DQ9: 16.75452709 | DR9: 18.1322779 | DS9: 19.54925627 | DT9: 20.98887042 | DU9: 22.43309336 | DV9: 23.86364115 | DW9: 25.26322736 | DX9: 26.61678902 | DY9: 27.91258194 | DZ9: 29.14305571 | EA9: 30.30543828 | EB9: 31.40198537
A10: 5 | D10: SERVICE LINES | E10: SERVICE LINES | AN10: SERVICE LINES (mod) | AY10: 4554.945834 | AZ10: 4803.444345 | BA10: 5014.827302 | BB10: 5185.196994 | BC10: 5312.270709 | BD10: 5395.501496 | BE10: 5436.087337 | BF10: 5436.865645 | BG10: 5402.100041 | BH10: 5337.176114 | BI10: 5248.231376 | BJ10: 5141.750675 | BK10: 5024.161248 | BL10: 4901.460919 | BM10: 4778.908646 | BN10: 4660.799306 | BO10: 4550.335133 | BP10: 4449.595896 | BQ10: 4359.59992 | BR10: 4280.439726 | BS10: =SUM(IF($A$21:$A$205=$A10,CN$21:CN$205))/('Age profile summary'!$H10*1000+0.000001) -> 31.40243321 | BT10: =SUM(IF($A$21:$A$205=$A10,CO$21:CO$205))/('Age profile summary'!$H10*1000+0.000001) -> 31.319319 | BU10: =SUM(IF($A$21:$A$205=$A10,CP$21:CP$205))/('Age profile summary'!$H10*1000+0.000001) -> 31.25562702 | BV10: =SUM(IF($A$21:$A$205=$A10,CQ$21:CQ$205))/('Age profile summary'!$H10*1000+0.000001) -> 31.21465557 | BW10: =SUM(IF($A$21:$A$205=$A10,CR$21:CR$205))/('Age profile summary'!$H10*1000+0.000001) -> 31.2001177 | BX10: =SUM(IF($A$21:$A$205=$A10,CS$21:CS$205))/('Age profile summary'!$H10*1000+0.000001) -> 31.21570199 | BY10: =SUM(IF($A$21:$A$205=$A10,CT$21:CT$205))/('Age profile summary'!$H10*1000+0.000001) -> 31.26472346 | BZ10: =SUM(IF($A$21:$A$205=$A10,CU$21:CU$205))/('Age profile summary'!$H10*1000+0.000001) -> 31.34985463 | CA10: =SUM(IF($A$21:$A$205=$A10,CV$21:CV$205))/('Age profile summary'!$H10*1000+0.000001) -> 31.47293937 | CB10: =SUM(IF($A$21:$A$205=$A10,CW$21:CW$205))/('Age profile summary'!$H10*1000+0.000001) -> 31.6348957 | CC10: =SUM(IF($A$21:$A$205=$A10,CX$21:CX$205))/('Age profile summary'!$H10*1000+0.000001) -> 31.83570828 | CD10: =SUM(IF($A$21:$A$205=$A10,CY$21:CY$205))/('Age profile summary'!$H10*1000+0.000001) -> 32.07450271 | CE10: =SUM(IF($A$21:$A$205=$A10,CZ$21:CZ$205))/('Age profile summary'!$H10*1000+0.000001) -> 32.34968387 | CF10: =SUM(IF($A$21:$A$205=$A10,DA$21:DA$205))/('Age profile summary'!$H10*1000+0.000001) -> 32.65911493 | CG10: =SUM(IF($A$21:$A$205=$A10,DB$21:DB$205))/('Age profile summary'!$H10*1000+0.000001) -> 33.00031159 | CH10: =SUM(IF($A$21:$A$205=$A10,DC$21:DC$205))/('Age profile summary'!$H10*1000+0.000001) -> 33.37062952 | CI10: =SUM(IF($A$21:$A$205=$A10,DD$21:DD$205))/('Age profile summary'!$H10*1000+0.000001) -> 33.76742846 | CJ10: =SUM(IF($A$21:$A$205=$A10,DE$21:DE$205))/('Age profile summary'!$H10*1000+0.000001) -> 34.18820372 | CK10: =SUM(IF($A$21:$A$205=$A10,DF$21:DF$205))/('Age profile summary'!$H10*1000+0.000001) -> 34.63068107 | CL10: =SUM(IF($A$21:$A$205=$A10,DG$21:DG$205))/('Age profile summary'!$H10*1000+0.000001) -> 35.0928759 | CM10: =SUM(IF($A$21:$A$205=$A10,DH$21:DH$205))/('Age profile summary'!$H10*1000+0.000001) -> 35.57311965 | CN10: ='Age profile summary'!$O10-'RRR hist-forc'!BS10 -> 22.56532235 | CO10: ='Age profile summary'!$O10-'RRR hist-forc'!BT10 -> 22.64843656 | CP10: ='Age profile summary'!$O10-'RRR hist-forc'!BU10 -> 22.71212853 | CQ10: ='Age profile summary'!$O10-'RRR hist-forc'!BV10 -> 22.75309998 | CR10: ='Age profile summary'!$O10-'RRR hist-forc'!BW10 -> 22.76763785 | CS10: ='Age profile summary'!$O10-'RRR hist-forc'!BX10 -> 22.75205357 | CT10: ='Age profile summary'!$O10-'RRR hist-forc'!BY10 -> 22.70303209 | CU10: ='Age profile summary'!$O10-'RRR hist-forc'!BZ10 -> 22.61790093 | CV10: ='Age profile summary'!$O10-'RRR hist-forc'!CA10 -> 22.49481619 | CW10: ='Age profile summary'!$O10-'RRR hist-forc'!CB10 -> 22.33285986 | CX10: ='Age profile summary'!$O10-'RRR hist-forc'!CC10 -> 22.13204727 | CY10: ='Age profile summary'!$O10-'RRR hist-forc'!CD10 -> 21.89325285 | CZ10: ='Age profile summary'!$O10-'RRR hist-forc'!CE10 -> 21.61807169 | DA10: ='Age profile summary'!$O10-'RRR hist-forc'!CF10 -> 21.30864063 | DB10: ='Age profile summary'!$O10-'RRR hist-forc'!CG10 -> 20.96744396 | DC10: ='Age profile summary'!$O10-'RRR hist-forc'!CH10 -> 20.59712604 | DD10: ='Age profile summary'!$O10-'RRR hist-forc'!CI10 -> 20.20032709 | DE10: ='Age profile summary'!$O10-'RRR hist-forc'!CJ10 -> 19.77955183 | DF10: ='Age profile summary'!$O10-'RRR hist-forc'!CK10 -> 19.33707448 | DG10: ='Age profile summary'!$O10-'RRR hist-forc'!CL10 -> 18.87487966 | DH10: ='Age profile summary'!$O10-'RRR hist-forc'!CM10 -> 18.3946359 | DI10: 3129.151737 | DJ10: 3298.913939 | DK10: 3443.110724 | DL10: 3559.094568 | DM10: 3645.329721 | DN10: 3701.473218 | DO10: 3728.379159 | DP10: 3728.024308 | DQ10: 3703.359938 | DR10: 3658.101589 | DS10: 3596.474119 | DT10: 3522.933619 | DU10: 3441.889672 | DV10: 3357.450897 | DW10: 3273.213752 | DX10: 3192.109459 | DY10: 3116.317421 | DZ10: 3047.246386 | EA10: 2985.577782 | EB10: 2931.359961
A11: 6 | D11: TRANSFORMERS | E11: TRANSFORMERS | AN11: TRANSFORMERS (mod) | AY11: 3962.522888 | AZ11: 4435.667619 | BA11: 4940.460107 | BB11: 5477.8722 | BC11: 6049.288911 | BD11: 6656.451071 | BE11: 7301.324608 | BF11: 7985.903922 | BG11: 8711.965022 | BH11: 9480.790548 | BI11: 10292.89273 | BJ11: 11147.7613 | BK11: 12043.66123 | BL11: 12977.50094 | BM11: 13944.78427 | BN11: 14939.65258 | BO11: 15955.01402 | BP11: 16982.74999 | BQ11: 18013.98132 | BR11: 19039.37187 | BS11: =SUM(IF($A$21:$A$205=$A11,CN$21:CN$205))/('Age profile summary'!$H11*1000+0.000001) -> 23.23983209 | BT11: =SUM(IF($A$21:$A$205=$A11,CO$21:CO$205))/('Age profile summary'!$H11*1000+0.000001) -> 24.05085098 | BU11: =SUM(IF($A$21:$A$205=$A11,CP$21:CP$205))/('Age profile summary'!$H11*1000+0.000001) -> 24.84990763 | BV11: =SUM(IF($A$21:$A$205=$A11,CQ$21:CQ$205))/('Age profile summary'!$H11*1000+0.000001) -> 25.63589672 | BW11: =SUM(IF($A$21:$A$205=$A11,CR$21:CR$205))/('Age profile summary'!$H11*1000+0.000001) -> 26.40765698 | BX11: =SUM(IF($A$21:$A$205=$A11,CS$21:CS$205))/('Age profile summary'!$H11*1000+0.000001) -> 27.16387188 | BY11: =SUM(IF($A$21:$A$205=$A11,CT$21:CT$205))/('Age profile summary'!$H11*1000+0.000001) -> 27.90305246 | BZ11: =SUM(IF($A$21:$A$205=$A11,CU$21:CU$205))/('Age profile summary'!$H11*1000+0.000001) -> 28.62356414 | CA11: =SUM(IF($A$21:$A$205=$A11,CV$21:CV$205))/('Age profile summary'!$H11*1000+0.000001) -> 29.32367901 | CB11: =SUM(IF($A$21:$A$205=$A11,CW$21:CW$205))/('Age profile summary'!$H11*1000+0.000001) -> 30.00164137 | CC11: =SUM(IF($A$21:$A$205=$A11,CX$21:CX$205))/('Age profile summary'!$H11*1000+0.000001) -> 30.65573847 | CD11: =SUM(IF($A$21:$A$205=$A11,CY$21:CY$205))/('Age profile summary'!$H11*1000+0.000001) -> 31.28437044 | CE11: =SUM(IF($A$21:$A$205=$A11,CZ$21:CZ$205))/('Age profile summary'!$H11*1000+0.000001) -> 31.88611548 | CF11: =SUM(IF($A$21:$A$205=$A11,DA$21:DA$205))/('Age profile summary'!$H11*1000+0.000001) -> 32.45978752 | CG11: =SUM(IF($A$21:$A$205=$A11,DB$21:DB$205))/('Age profile summary'!$H11*1000+0.000001) -> 33.00448419 | CH11: =SUM(IF($A$21:$A$205=$A11,DC$21:DC$205))/('Age profile summary'!$H11*1000+0.000001) -> 33.51962381 | CI11: =SUM(IF($A$21:$A$205=$A11,DD$21:DD$205))/('Age profile summary'!$H11*1000+0.000001) -> 34.00497006 | CJ11: =SUM(IF($A$21:$A$205=$A11,DE$21:DE$205))/('Age profile summary'!$H11*1000+0.000001) -> 34.4606441 | CK11: =SUM(IF($A$21:$A$205=$A11,DF$21:DF$205))/('Age profile summary'!$H11*1000+0.000001) -> 34.88712392 | CL11: =SUM(IF($A$21:$A$205=$A11,DG$21:DG$205))/('Age profile summary'!$H11*1000+0.000001) -> 35.28523199 | CM11: =SUM(IF($A$21:$A$205=$A11,DH$21:DH$205))/('Age profile summary'!$H11*1000+0.000001) -> 35.65611253 | CN11: ='Age profile summary'!$O11-'RRR hist-forc'!BS11 -> 31.53323427 | CO11: ='Age profile summary'!$O11-'RRR hist-forc'!BT11 -> 30.72221538 | CP11: ='Age profile summary'!$O11-'RRR hist-forc'!BU11 -> 29.92315873 | CQ11: ='Age profile summary'!$O11-'RRR hist-forc'!BV11 -> 29.13716964 | CR11: ='Age profile summary'!$O11-'RRR hist-forc'!BW11 -> 28.36540938 | CS11: ='Age profile summary'!$O11-'RRR hist-forc'!BX11 -> 27.60919448 | CT11: ='Age profile summary'!$O11-'RRR hist-forc'!BY11 -> 26.8700139 | CU11: ='Age profile summary'!$O11-'RRR hist-forc'!BZ11 -> 26.14950222 | CV11: ='Age profile summary'!$O11-'RRR hist-forc'!CA11 -> 25.44938735 | CW11: ='Age profile summary'!$O11-'RRR hist-forc'!CB11 -> 24.77142499 | CX11: ='Age profile summary'!$O11-'RRR hist-forc'!CC11 -> 24.11732789 | CY11: ='Age profile summary'!$O11-'RRR hist-forc'!CD11 -> 23.48869592 | CZ11: ='Age profile summary'!$O11-'RRR hist-forc'!CE11 -> 22.88695088 | DA11: ='Age profile summary'!$O11-'RRR hist-forc'!CF11 -> 22.31327884 | DB11: ='Age profile summary'!$O11-'RRR hist-forc'!CG11 -> 21.76858217 | DC11: ='Age profile summary'!$O11-'RRR hist-forc'!CH11 -> 21.25344255 | DD11: ='Age profile summary'!$O11-'RRR hist-forc'!CI11 -> 20.7680963 | DE11: ='Age profile summary'!$O11-'RRR hist-forc'!CJ11 -> 20.31242226 | DF11: ='Age profile summary'!$O11-'RRR hist-forc'!CK11 -> 19.88594244 | DG11: ='Age profile summary'!$O11-'RRR hist-forc'!CL11 -> 19.48783437 | DH11: ='Age profile summary'!$O11-'RRR hist-forc'!CM11 -> 19.11695383 | DI11: 89.24773964 | DJ11: 101.2758291 | DK11: 114.5290665 | DL11: 129.0686517 | DM11: 144.952104 | DN11: 162.2286572 | DO11: 180.9357111 | DP11: 201.0974103 | DQ11: 222.7253926 | DR11: 245.8207385 | DS11: 270.3755911 | DT11: 296.3730687 | DU11: 323.7848292 | DV11: 352.5666069 | DW11: 382.6527744 | DX11: 413.9512254 | DY11: 446.3396491 | DZ11: 479.6637906 | EA11: 513.737819 | EB11: 548.3465961
A12: 7 | D12: SWITCHGEAR | E12: SWITCHGEAR | AN12: SWITCHGEAR (mod) | AY12: 8275.476196 | AZ12: 8803.717126 | BA12: 9305.151619 | BB12: 9778.826481 | BC12: 10225.63674 | BD12: 10648.25148 | BE12: 11050.9401 | BF12: 11439.30798 | BG12: 11819.95472 | BH12: 12200.07288 | BI12: 12587.00883 | BJ12: 12987.8114 | BK12: 13408.79629 | BL12: 13855.15459 | BM12: 14330.63218 | BN12: 14837.30189 | BO12: 15375.44341 | BP12: 15943.53709 | BQ12: 16538.3683 | BR12: 17155.23 | BS12: =SUM(IF($A$21:$A$205=$A12,CN$21:CN$205))/('Age profile summary'!$H12*1000+0.000001) -> 23.17832165 | BT12: =SUM(IF($A$21:$A$205=$A12,CO$21:CO$205))/('Age profile summary'!$H12*1000+0.000001) -> 23.77329828 | BU12: =SUM(IF($A$21:$A$205=$A12,CP$21:CP$205))/('Age profile summary'!$H12*1000+0.000001) -> 24.37292716 | BV12: =SUM(IF($A$21:$A$205=$A12,CQ$21:CQ$205))/('Age profile summary'!$H12*1000+0.000001) -> 24.97581738 | BW12: =SUM(IF($A$21:$A$205=$A12,CR$21:CR$205))/('Age profile summary'!$H12*1000+0.000001) -> 25.58083952 | BX12: =SUM(IF($A$21:$A$205=$A12,CS$21:CS$205))/('Age profile summary'!$H12*1000+0.000001) -> 26.18701587 | BY12: =SUM(IF($A$21:$A$205=$A12,CT$21:CT$205))/('Age profile summary'!$H12*1000+0.000001) -> 26.79342669 | BZ12: =SUM(IF($A$21:$A$205=$A12,CU$21:CU$205))/('Age profile summary'!$H12*1000+0.000001) -> 27.39913122 | CA12: =SUM(IF($A$21:$A$205=$A12,CV$21:CV$205))/('Age profile summary'!$H12*1000+0.000001) -> 28.00310624 | CB12: =SUM(IF($A$21:$A$205=$A12,CW$21:CW$205))/('Age profile summary'!$H12*1000+0.000001) -> 28.60420607 | CC12: =SUM(IF($A$21:$A$205=$A12,CX$21:CX$205))/('Age profile summary'!$H12*1000+0.000001) -> 29.20114741 | CD12: =SUM(IF($A$21:$A$205=$A12,CY$21:CY$205))/('Age profile summary'!$H12*1000+0.000001) -> 29.79251915 | CE12: =SUM(IF($A$21:$A$205=$A12,CZ$21:CZ$205))/('Age profile summary'!$H12*1000+0.000001) -> 30.37681496 | CF12: =SUM(IF($A$21:$A$205=$A12,DA$21:DA$205))/('Age profile summary'!$H12*1000+0.000001) -> 30.95248323 | CG12: =SUM(IF($A$21:$A$205=$A12,DB$21:DB$205))/('Age profile summary'!$H12*1000+0.000001) -> 31.51798767 | CH12: =SUM(IF($A$21:$A$205=$A12,DC$21:DC$205))/('Age profile summary'!$H12*1000+0.000001) -> 32.07187121 | CI12: =SUM(IF($A$21:$A$205=$A12,DD$21:DD$205))/('Age profile summary'!$H12*1000+0.000001) -> 32.61281698 | CJ12: =SUM(IF($A$21:$A$205=$A12,DE$21:DE$205))/('Age profile summary'!$H12*1000+0.000001) -> 33.13970167 | CK12: =SUM(IF($A$21:$A$205=$A12,DF$21:DF$205))/('Age profile summary'!$H12*1000+0.000001) -> 33.65163821 | CL12: =SUM(IF($A$21:$A$205=$A12,DG$21:DG$205))/('Age profile summary'!$H12*1000+0.000001) -> 34.14800657 | CM12: =SUM(IF($A$21:$A$205=$A12,DH$21:DH$205))/('Age profile summary'!$H12*1000+0.000001) -> 34.62847252 | CN12: ='Age profile summary'!$O12-'RRR hist-forc'!BS12 -> 31.0753585 | CO12: ='Age profile summary'!$O12-'RRR hist-forc'!BT12 -> 30.48038187 | CP12: ='Age profile summary'!$O12-'RRR hist-forc'!BU12 -> 29.88075299 | CQ12: ='Age profile summary'!$O12-'RRR hist-forc'!BV12 -> 29.27786277 | CR12: ='Age profile summary'!$O12-'RRR hist-forc'!BW12 -> 28.67284063 | CS12: ='Age profile summary'!$O12-'RRR hist-forc'!BX12 -> 28.06666428 | CT12: ='Age profile summary'!$O12-'RRR hist-forc'!BY12 -> 27.46025346 | CU12: ='Age profile summary'!$O12-'RRR hist-forc'!BZ12 -> 26.85454893 | CV12: ='Age profile summary'!$O12-'RRR hist-forc'!CA12 -> 26.25057391 | CW12: ='Age profile summary'!$O12-'RRR hist-forc'!CB12 -> 25.64947408 | CX12: ='Age profile summary'!$O12-'RRR hist-forc'!CC12 -> 25.05253274 | CY12: ='Age profile summary'!$O12-'RRR hist-forc'!CD12 -> 24.461161 | CZ12: ='Age profile summary'!$O12-'RRR hist-forc'!CE12 -> 23.87686519 | DA12: ='Age profile summary'!$O12-'RRR hist-forc'!CF12 -> 23.30119692 | DB12: ='Age profile summary'!$O12-'RRR hist-forc'!CG12 -> 22.73569248 | DC12: ='Age profile summary'!$O12-'RRR hist-forc'!CH12 -> 22.18180894 | DD12: ='Age profile summary'!$O12-'RRR hist-forc'!CI12 -> 21.64086317 | DE12: ='Age profile summary'!$O12-'RRR hist-forc'!CJ12 -> 21.11397848 | DF12: ='Age profile summary'!$O12-'RRR hist-forc'!CK12 -> 20.60204194 | DG12: ='Age profile summary'!$O12-'RRR hist-forc'!CL12 -> 20.10567358 | DH12: ='Age profile summary'!$O12-'RRR hist-forc'!CM12 -> 19.62520763 | DI12: 494.3984998 | DJ12: 520.9503912 | DK12: 546.4872648 | DL12: 571.1658682 | DM12: 595.2212259 | DN12: 618.9523085 | DO12: 642.7035231 | DP12: 666.8430015 | DQ12: 691.7388637 | DR12: 717.7347938 | DS12: 745.1263788 | DT12: 774.1397077 | DU12: 804.9136902 | DV12: 837.487408 | DW12: 871.7935357 | DX12: 907.6584845 | DY12: 944.8094244 | DZ12: 982.8878029 | EA12: 1021.468433 | EB12: 1060.082742
A13: 8 | D13: unused | E13: unused | AN13: unused (mod) | AY13: 0 | AZ13: 0 | BA13: 0 | BB13: 0 | BC13: 0 | BD13: 0 | BE13: 0 | BF13: 0 | BG13: 0 | BH13: 0 | BI13: 0 | BJ13: 0 | BK13: 0 | BL13: 0 | BM13: 0 | BN13: 0 | BO13: 0 | BP13: 0 | BQ13: 0 | BR13: 0 | BS13: =SUM(IF($A$21:$A$205=$A13,CN$21:CN$205))/('Age profile summary'!$H13*1000+0.000001) -> 0 | BT13: =SUM(IF($A$21:$A$205=$A13,CO$21:CO$205))/('Age profile summary'!$H13*1000+0.000001) -> 0 | BU13: =SUM(IF($A$21:$A$205=$A13,CP$21:CP$205))/('Age profile summary'!$H13*1000+0.000001) -> 0 | BV13: =SUM(IF($A$21:$A$205=$A13,CQ$21:CQ$205))/('Age profile summary'!$H13*1000+0.000001) -> 0 | BW13: =SUM(IF($A$21:$A$205=$A13,CR$21:CR$205))/('Age profile summary'!$H13*1000+0.000001) -> 0 | BX13: =SUM(IF($A$21:$A$205=$A13,CS$21:CS$205))/('Age profile summary'!$H13*1000+0.000001) -> 0 | BY13: =SUM(IF($A$21:$A$205=$A13,CT$21:CT$205))/('Age profile summary'!$H13*1000+0.000001) -> 0 | BZ13: =SUM(IF($A$21:$A$205=$A13,CU$21:CU$205))/('Age profile summary'!$H13*1000+0.000001) -> 0 | CA13: =SUM(IF($A$21:$A$205=$A13,CV$21:CV$205))/('Age profile summary'!$H13*1000+0.000001) -> 0 | CB13: =SUM(IF($A$21:$A$205=$A13,CW$21:CW$205))/('Age profile summary'!$H13*1000+0.000001) -> 0 | CC13: =SUM(IF($A$21:$A$205=$A13,CX$21:CX$205))/('Age profile summary'!$H13*1000+0.000001) -> 0 | CD13: =SUM(IF($A$21:$A$205=$A13,CY$21:CY$205))/('Age profile summary'!$H13*1000+0.000001) -> 0 | CE13: =SUM(IF($A$21:$A$205=$A13,CZ$21:CZ$205))/('Age profile summary'!$H13*1000+0.000001) -> 0 | CF13: =SUM(IF($A$21:$A$205=$A13,DA$21:DA$205))/('Age profile summary'!$H13*1000+0.000001) -> 0 | CG13: =SUM(IF($A$21:$A$205=$A13,DB$21:DB$205))/('Age profile summary'!$H13*1000+0.000001) -> 0 | CH13: =SUM(IF($A$21:$A$205=$A13,DC$21:DC$205))/('Age profile summary'!$H13*1000+0.000001) -> 0 | CI13: =SUM(IF($A$21:$A$205=$A13,DD$21:DD$205))/('Age profile summary'!$H13*1000+0.000001) -> 0 | CJ13: =SUM(IF($A$21:$A$205=$A13,DE$21:DE$205))/('Age profile summary'!$H13*1000+0.000001) -> 0 | CK13: =SUM(IF($A$21:$A$205=$A13,DF$21:DF$205))/('Age profile summary'!$H13*1000+0.000001) -> 0 | CL13: =SUM(IF($A$21:$A$205=$A13,DG$21:DG$205))/('Age profile summary'!$H13*1000+0.000001) -> 0 | CM13: =SUM(IF($A$21:$A$205=$A13,DH$21:DH$205))/('Age profile summary'!$H13*1000+0.000001) -> 0 | CN13: ='Age profile summary'!$O13-'RRR hist-forc'!BS13 -> 0 | CO13: ='Age profile summary'!$O13-'RRR hist-forc'!BT13 -> 0 | CP13: ='Age profile summary'!$O13-'RRR hist-forc'!BU13 -> 0 | CQ13: ='Age profile summary'!$O13-'RRR hist-forc'!BV13 -> 0 | CR13: ='Age profile summary'!$O13-'RRR hist-forc'!BW13 -> 0 | CS13: ='Age profile summary'!$O13-'RRR hist-forc'!BX13 -> 0 | CT13: ='Age profile summary'!$O13-'RRR hist-forc'!BY13 -> 0 | CU13: ='Age profile summary'!$O13-'RRR hist-forc'!BZ13 -> 0 | CV13: ='Age profile summary'!$O13-'RRR hist-forc'!CA13 -> 0 | CW13: ='Age profile summary'!$O13-'RRR hist-forc'!CB13 -> 0 | CX13: ='Age profile summary'!$O13-'RRR hist-forc'!CC13 -> 0 | CY13: ='Age profile summary'!$O13-'RRR hist-forc'!CD13 -> 0 | CZ13: ='Age profile summary'!$O13-'RRR hist-forc'!CE13 -> 0 | DA13: ='Age profile summary'!$O13-'RRR hist-forc'!CF13 -> 0 | DB13: ='Age profile summary'!$O13-'RRR hist-forc'!CG13 -> 0 | DC13: ='Age profile summary'!$O13-'RRR hist-forc'!CH13 -> 0 | DD13: ='Age profile summary'!$O13-'RRR hist-forc'!CI13 -> 0 | DE13: ='Age profile summary'!$O13-'RRR hist-forc'!CJ13 -> 0 | DF13: ='Age profile summary'!$O13-'RRR hist-forc'!CK13 -> 0 | DG13: ='Age profile summary'!$O13-'RRR hist-forc'!CL13 -> 0 | DH13: ='Age profile summary'!$O13-'RRR hist-forc'!CM13 -> 0 | DI13: 0 | DJ13: 0 | DK13: 0 | DL13: 0 | DM13: 0 | DN13: 0 | DO13: 0 | DP13: 0 | DQ13: 0 | DR13: 0 | DS13: 0 | DT13: 0 | DU13: 0 | DV13: 0 | DW13: 0 | DX13: 0 | DY13: 0 | DZ13: 0 | EA13: 0 | EB13: 0
A14: 9 | D14: =VLOOKUP(A14,IDtable,2) -> unused | E14: =D14 -> unused | AN14: =D14 & " (mod)" -> unused (mod) | AY14: 0 | AZ14: 0 | BA14: 0 | BB14: 0 | BC14: 0 | BD14: 0 | BE14: 0 | BF14: 0 | BG14: 0 | BH14: 0 | BI14: 0 | BJ14: 0 | BK14: 0 | BL14: 0 | BM14: 0 | BN14: 0 | BO14: 0 | BP14: 0 | BQ14: 0 | BR14: 0 | BS14: =SUM(IF($A$21:$A$205=$A14,CN$21:CN$205))/('Age profile summary'!$H14*1000+0.000001) -> 0 | BT14: =SUM(IF($A$21:$A$205=$A14,CO$21:CO$205))/('Age profile summary'!$H14*1000+0.000001) -> 0 | BU14: =SUM(IF($A$21:$A$205=$A14,CP$21:CP$205))/('Age profile summary'!$H14*1000+0.000001) -> 0 | BV14: =SUM(IF($A$21:$A$205=$A14,CQ$21:CQ$205))/('Age profile summary'!$H14*1000+0.000001) -> 0 | BW14: =SUM(IF($A$21:$A$205=$A14,CR$21:CR$205))/('Age profile summary'!$H14*1000+0.000001) -> 0 | BX14: =SUM(IF($A$21:$A$205=$A14,CS$21:CS$205))/('Age profile summary'!$H14*1000+0.000001) -> 0 | BY14: =SUM(IF($A$21:$A$205=$A14,CT$21:CT$205))/('Age profile summary'!$H14*1000+0.000001) -> 0 | BZ14: =SUM(IF($A$21:$A$205=$A14,CU$21:CU$205))/('Age profile summary'!$H14*1000+0.000001) -> 0 | CA14: =SUM(IF($A$21:$A$205=$A14,CV$21:CV$205))/('Age profile summary'!$H14*1000+0.000001) -> 0 | CB14: =SUM(IF($A$21:$A$205=$A14,CW$21:CW$205))/('Age profile summary'!$H14*1000+0.000001) -> 0 | CC14: =SUM(IF($A$21:$A$205=$A14,CX$21:CX$205))/('Age profile summary'!$H14*1000+0.000001) -> 0 | CD14: =SUM(IF($A$21:$A$205=$A14,CY$21:CY$205))/('Age profile summary'!$H14*1000+0.000001) -> 0 | CE14: =SUM(IF($A$21:$A$205=$A14,CZ$21:CZ$205))/('Age profile summary'!$H14*1000+0.000001) -> 0 | CF14: =SUM(IF($A$21:$A$205=$A14,DA$21:DA$205))/('Age profile summary'!$H14*1000+0.000001) -> 0 | CG14: =SUM(IF($A$21:$A$205=$A14,DB$21:DB$205))/('Age profile summary'!$H14*1000+0.000001) -> 0 | CH14: =SUM(IF($A$21:$A$205=$A14,DC$21:DC$205))/('Age profile summary'!$H14*1000+0.000001) -> 0 | CI14: =SUM(IF($A$21:$A$205=$A14,DD$21:DD$205))/('Age profile summary'!$H14*1000+0.000001) -> 0 | CJ14: =SUM(IF($A$21:$A$205=$A14,DE$21:DE$205))/('Age profile summary'!$H14*1000+0.000001) -> 0 | CK14: =SUM(IF($A$21:$A$205=$A14,DF$21:DF$205))/('Age profile summary'!$H14*1000+0.000001) -> 0 | CL14: =SUM(IF($A$21:$A$205=$A14,DG$21:DG$205))/('Age profile summary'!$H14*1000+0.000001) -> 0 | CM14: =SUM(IF($A$21:$A$205=$A14,DH$21:DH$205))/('Age profile summary'!$H14*1000+0.000001) -> 0 | CN14: ='Age profile summary'!$O14-'RRR hist-forc'!BS14 -> 0 | CO14: ='Age profile summary'!$O14-'RRR hist-forc'!BT14 -> 0 | CP14: ='Age profile summary'!$O14-'RRR hist-forc'!BU14 -> 0 | CQ14: ='Age profile summary'!$O14-'RRR hist-forc'!BV14 -> 0 | CR14: ='Age profile summary'!$O14-'RRR hist-forc'!BW14 -> 0 | CS14: ='Age profile summary'!$O14-'RRR hist-forc'!BX14 -> 0 | CT14: ='Age profile summary'!$O14-'RRR hist-forc'!BY14 -> 0 | CU14: ='Age profile summary'!$O14-'RRR hist-forc'!BZ14 -> 0 | CV14: ='Age profile summary'!$O14-'RRR hist-forc'!CA14 -> 0 | CW14: ='Age profile summary'!$O14-'RRR hist-forc'!CB14 -> 0 | CX14: ='Age profile summary'!$O14-'RRR hist-forc'!CC14 -> 0 | CY14: ='Age profile summary'!$O14-'RRR hist-forc'!CD14 -> 0 | CZ14: ='Age profile summary'!$O14-'RRR hist-forc'!CE14 -> 0 | DA14: ='Age profile summary'!$O14-'RRR hist-forc'!CF14 -> 0 | DB14: ='Age profile summary'!$O14-'RRR hist-forc'!CG14 -> 0 | DC14: ='Age profile summary'!$O14-'RRR hist-forc'!CH14 -> 0 | DD14: ='Age profile summary'!$O14-'RRR hist-forc'!CI14 -> 0 | DE14: ='Age profile summary'!$O14-'RRR hist-forc'!CJ14 -> 0 | DF14: ='Age profile summary'!$O14-'RRR hist-forc'!CK14 -> 0 | DG14: ='Age profile summary'!$O14-'RRR hist-forc'!CL14 -> 0 | DH14: ='Age profile summary'!$O14-'RRR hist-forc'!CM14 -> 0 | DI14: 0 | DJ14: 0 | DK14: 0 | DL14: 0 | DM14: 0 | DN14: 0 | DO14: 0 | DP14: 0 | DQ14: 0 | DR14: 0 | DS14: 0 | DT14: 0 | DU14: 0 | DV14: 0 | DW14: 0 | DX14: 0 | DY14: 0 | DZ14: 0 | EA14: 0 | EB14: 0
A15: 10 | D15: =VLOOKUP(A15,IDtable,2) -> unused | E15: =D15 -> unused | AN15: =D15 & " (mod)" -> unused (mod) | AY15: 0 | AZ15: 0 | BA15: 0 | BB15: 0 | BC15: 0 | BD15: 0 | BE15: 0 | BF15: 0 | BG15: 0 | BH15: 0 | BI15: 0 | BJ15: 0 | BK15: 0 | BL15: 0 | BM15: 0 | BN15: 0 | BO15: 0 | BP15: 0 | BQ15: 0 | BR15: 0 | BS15: =SUM(IF($A$21:$A$205=$A15,CN$21:CN$205))/('Age profile summary'!$H15*1000+0.000001) -> 0 | BT15: =SUM(IF($A$21:$A$205=$A15,CO$21:CO$205))/('Age profile summary'!$H15*1000+0.000001) -> 0 | BU15: =SUM(IF($A$21:$A$205=$A15,CP$21:CP$205))/('Age profile summary'!$H15*1000+0.000001) -> 0 | BV15: =SUM(IF($A$21:$A$205=$A15,CQ$21:CQ$205))/('Age profile summary'!$H15*1000+0.000001) -> 0 | BW15: =SUM(IF($A$21:$A$205=$A15,CR$21:CR$205))/('Age profile summary'!$H15*1000+0.000001) -> 0 | BX15: =SUM(IF($A$21:$A$205=$A15,CS$21:CS$205))/('Age profile summary'!$H15*1000+0.000001) -> 0 | BY15: =SUM(IF($A$21:$A$205=$A15,CT$21:CT$205))/('Age profile summary'!$H15*1000+0.000001) -> 0 | BZ15: =SUM(IF($A$21:$A$205=$A15,CU$21:CU$205))/('Age profile summary'!$H15*1000+0.000001) -> 0 | CA15: =SUM(IF($A$21:$A$205=$A15,CV$21:CV$205))/('Age profile summary'!$H15*1000+0.000001) -> 0 | CB15: =SUM(IF($A$21:$A$205=$A15,CW$21:CW$205))/('Age profile summary'!$H15*1000+0.000001) -> 0 | CC15: =SUM(IF($A$21:$A$205=$A15,CX$21:CX$205))/('Age profile summary'!$H15*1000+0.000001) -> 0 | CD15: =SUM(IF($A$21:$A$205=$A15,CY$21:CY$205))/('Age profile summary'!$H15*1000+0.000001) -> 0 | CE15: =SUM(IF($A$21:$A$205=$A15,CZ$21:CZ$205))/('Age profile summary'!$H15*1000+0.000001) -> 0 | CF15: =SUM(IF($A$21:$A$205=$A15,DA$21:DA$205))/('Age profile summary'!$H15*1000+0.000001) -> 0 | CG15: =SUM(IF($A$21:$A$205=$A15,DB$21:DB$205))/('Age profile summary'!$H15*1000+0.000001) -> 0 | CH15: =SUM(IF($A$21:$A$205=$A15,DC$21:DC$205))/('Age profile summary'!$H15*1000+0.000001) -> 0 | CI15: =SUM(IF($A$21:$A$205=$A15,DD$21:DD$205))/('Age profile summary'!$H15*1000+0.000001) -> 0 | CJ15: =SUM(IF($A$21:$A$205=$A15,DE$21:DE$205))/('Age profile summary'!$H15*1000+0.000001) -> 0 | CK15: =SUM(IF($A$21:$A$205=$A15,DF$21:DF$205))/('Age profile summary'!$H15*1000+0.000001) -> 0 | CL15: =SUM(IF($A$21:$A$205=$A15,DG$21:DG$205))/('Age profile summary'!$H15*1000+0.000001) -> 0 | CM15: =SUM(IF($A$21:$A$205=$A15,DH$21:DH$205))/('Age profile summary'!$H15*1000+0.000001) -> 0 | CN15: ='Age profile summary'!$O15-'RRR hist-forc'!BS15 -> 0 | CO15: ='Age profile summary'!$O15-'RRR hist-forc'!BT15 -> 0 | CP15: ='Age profile summary'!$O15-'RRR hist-forc'!BU15 -> 0 | CQ15: ='Age profile summary'!$O15-'RRR hist-forc'!BV15 -> 0 | CR15: ='Age profile summary'!$O15-'RRR hist-forc'!BW15 -> 0 | CS15: ='Age profile summary'!$O15-'RRR hist-forc'!BX15 -> 0 | CT15: ='Age profile summary'!$O15-'RRR hist-forc'!BY15 -> 0 | CU15: ='Age profile summary'!$O15-'RRR hist-forc'!BZ15 -> 0 | CV15: ='Age profile summary'!$O15-'RRR hist-forc'!CA15 -> 0 | CW15: ='Age profile summary'!$O15-'RRR hist-forc'!CB15 -> 0 | CX15: ='Age profile summary'!$O15-'RRR hist-forc'!CC15 -> 0 | CY15: ='Age profile summary'!$O15-'RRR hist-forc'!CD15 -> 0 | CZ15: ='Age profile summary'!$O15-'RRR hist-forc'!CE15 -> 0 | DA15: ='Age profile summary'!$O15-'RRR hist-forc'!CF15 -> 0 | DB15: ='Age profile summary'!$O15-'RRR hist-forc'!CG15 -> 0 | DC15: ='Age profile summary'!$O15-'RRR hist-forc'!CH15 -> 0 | DD15: ='Age profile summary'!$O15-'RRR hist-forc'!CI15 -> 0 | DE15: ='Age profile summary'!$O15-'RRR hist-forc'!CJ15 -> 0 | DF15: ='Age profile summary'!$O15-'RRR hist-forc'!CK15 -> 0 | DG15: ='Age profile summary'!$O15-'RRR hist-forc'!CL15 -> 0 | DH15: ='Age profile summary'!$O15-'RRR hist-forc'!CM15 -> 0 | DI15: 0 | DJ15: 0 | DK15: 0 | DL15: 0 | DM15: 0 | DN15: 0 | DO15: 0 | DP15: 0 | DQ15: 0 | DR15: 0 | DS15: 0 | DT15: 0 | DU15: 0 | DV15: 0 | DW15: 0 | DX15: 0 | DY15: 0 | DZ15: 0 | EA15: 0 | EB15: 0
A16: 11 | D16: =VLOOKUP(A16,IDtable,2) -> unused | E16: =D16 -> unused | AN16: =D16 & " (mod)" -> unused (mod) | AY16: 0 | AZ16: 0 | BA16: 0 | BB16: 0 | BC16: 0 | BD16: 0 | BE16: 0 | BF16: 0 | BG16: 0 | BH16: 0 | BI16: 0 | BJ16: 0 | BK16: 0 | BL16: 0 | BM16: 0 | BN16: 0 | BO16: 0 | BP16: 0 | BQ16: 0 | BR16: 0 | BS16: =SUM(IF($A$21:$A$205=$A16,CN$21:CN$205))/('Age profile summary'!$H16*1000+0.000001) -> 0 | BT16: =SUM(IF($A$21:$A$205=$A16,CO$21:CO$205))/('Age profile summary'!$H16*1000+0.000001) -> 0 | BU16: =SUM(IF($A$21:$A$205=$A16,CP$21:CP$205))/('Age profile summary'!$H16*1000+0.000001) -> 0 | BV16: =SUM(IF($A$21:$A$205=$A16,CQ$21:CQ$205))/('Age profile summary'!$H16*1000+0.000001) -> 0 | BW16: =SUM(IF($A$21:$A$205=$A16,CR$21:CR$205))/('Age profile summary'!$H16*1000+0.000001) -> 0 | BX16: =SUM(IF($A$21:$A$205=$A16,CS$21:CS$205))/('Age profile summary'!$H16*1000+0.000001) -> 0 | BY16: =SUM(IF($A$21:$A$205=$A16,CT$21:CT$205))/('Age profile summary'!$H16*1000+0.000001) -> 0 | BZ16: =SUM(IF($A$21:$A$205=$A16,CU$21:CU$205))/('Age profile summary'!$H16*1000+0.000001) -> 0 | CA16: =SUM(IF($A$21:$A$205=$A16,CV$21:CV$205))/('Age profile summary'!$H16*1000+0.000001) -> 0 | CB16: =SUM(IF($A$21:$A$205=$A16,CW$21:CW$205))/('Age profile summary'!$H16*1000+0.000001) -> 0 | CC16: =SUM(IF($A$21:$A$205=$A16,CX$21:CX$205))/('Age profile summary'!$H16*1000+0.000001) -> 0 | CD16: =SUM(IF($A$21:$A$205=$A16,CY$21:CY$205))/('Age profile summary'!$H16*1000+0.000001) -> 0 | CE16: =SUM(IF($A$21:$A$205=$A16,CZ$21:CZ$205))/('Age profile summary'!$H16*1000+0.000001) -> 0 | CF16: =SUM(IF($A$21:$A$205=$A16,DA$21:DA$205))/('Age profile summary'!$H16*1000+0.000001) -> 0 | CG16: =SUM(IF($A$21:$A$205=$A16,DB$21:DB$205))/('Age profile summary'!$H16*1000+0.000001) -> 0 | CH16: =SUM(IF($A$21:$A$205=$A16,DC$21:DC$205))/('Age profile summary'!$H16*1000+0.000001) -> 0 | CI16: =SUM(IF($A$21:$A$205=$A16,DD$21:DD$205))/('Age profile summary'!$H16*1000+0.000001) -> 0 | CJ16: =SUM(IF($A$21:$A$205=$A16,DE$21:DE$205))/('Age profile summary'!$H16*1000+0.000001) -> 0 | CK16: =SUM(IF($A$21:$A$205=$A16,DF$21:DF$205))/('Age profile summary'!$H16*1000+0.000001) -> 0 | CL16: =SUM(IF($A$21:$A$205=$A16,DG$21:DG$205))/('Age profile summary'!$H16*1000+0.000001) -> 0 | CM16: =SUM(IF($A$21:$A$205=$A16,DH$21:DH$205))/('Age profile summary'!$H16*1000+0.000001) -> 0 | CN16: ='Age profile summary'!$O16-'RRR hist-forc'!BS16 -> 0 | CO16: ='Age profile summary'!$O16-'RRR hist-forc'!BT16 -> 0 | CP16: ='Age profile summary'!$O16-'RRR hist-forc'!BU16 -> 0 | CQ16: ='Age profile summary'!$O16-'RRR hist-forc'!BV16 -> 0 | CR16: ='Age profile summary'!$O16-'RRR hist-forc'!BW16 -> 0 | CS16: ='Age profile summary'!$O16-'RRR hist-forc'!BX16 -> 0 | CT16: ='Age profile summary'!$O16-'RRR hist-forc'!BY16 -> 0 | CU16: ='Age profile summary'!$O16-'RRR hist-forc'!BZ16 -> 0 | CV16: ='Age profile summary'!$O16-'RRR hist-forc'!CA16 -> 0 | CW16: ='Age profile summary'!$O16-'RRR hist-forc'!CB16 -> 0 | CX16: ='Age profile summary'!$O16-'RRR hist-forc'!CC16 -> 0 | CY16: ='Age profile summary'!$O16-'RRR hist-forc'!CD16 -> 0 | CZ16: ='Age profile summary'!$O16-'RRR hist-forc'!CE16 -> 0 | DA16: ='Age profile summary'!$O16-'RRR hist-forc'!CF16 -> 0 | DB16: ='Age profile summary'!$O16-'RRR hist-forc'!CG16 -> 0 | DC16: ='Age profile summary'!$O16-'RRR hist-forc'!CH16 -> 0 | DD16: ='Age profile summary'!$O16-'RRR hist-forc'!CI16 -> 0 | DE16: ='Age profile summary'!$O16-'RRR hist-forc'!CJ16 -> 0 | DF16: ='Age profile summary'!$O16-'RRR hist-forc'!CK16 -> 0 | DG16: ='Age profile summary'!$O16-'RRR hist-forc'!CL16 -> 0 | DH16: ='Age profile summary'!$O16-'RRR hist-forc'!CM16 -> 0 | DI16: 0 | DJ16: 0 | DK16: 0 | DL16: 0 | DM16: 0 | DN16: 0 | DO16: 0 | DP16: 0 | DQ16: 0 | DR16: 0 | DS16: 0 | DT16: 0 | DU16: 0 | DV16: 0 | DW16: 0 | DX16: 0 | DY16: 0 | DZ16: 0 | EA16: 0 | EB16: 0
A17: 12 | D17: =VLOOKUP(A17,IDtable,2) -> unused | E17: =D17 -> unused | AN17: =D17 & " (mod)" -> unused (mod) | AY17: 0 | AZ17: 0 | BA17: 0 | BB17: 0 | BC17: 0 | BD17: 0 | BE17: 0 | BF17: 0 | BG17: 0 | BH17: 0 | BI17: 0 | BJ17: 0 | BK17: 0 | BL17: 0 | BM17: 0 | BN17: 0 | BO17: 0 | BP17: 0 | BQ17: 0 | BR17: 0 | BS17: =SUM(IF($A$21:$A$205=$A17,CN$21:CN$205))/('Age profile summary'!$H17*1000+0.000001) -> 0 | BT17: =SUM(IF($A$21:$A$205=$A17,CO$21:CO$205))/('Age profile summary'!$H17*1000+0.000001) -> 0 | BU17: =SUM(IF($A$21:$A$205=$A17,CP$21:CP$205))/('Age profile summary'!$H17*1000+0.000001) -> 0 | BV17: =SUM(IF($A$21:$A$205=$A17,CQ$21:CQ$205))/('Age profile summary'!$H17*1000+0.000001) -> 0 | BW17: =SUM(IF($A$21:$A$205=$A17,CR$21:CR$205))/('Age profile summary'!$H17*1000+0.000001) -> 0 | BX17: =SUM(IF($A$21:$A$205=$A17,CS$21:CS$205))/('Age profile summary'!$H17*1000+0.000001) -> 0 | BY17: =SUM(IF($A$21:$A$205=$A17,CT$21:CT$205))/('Age profile summary'!$H17*1000+0.000001) -> 0 | BZ17: =SUM(IF($A$21:$A$205=$A17,CU$21:CU$205))/('Age profile summary'!$H17*1000+0.000001) -> 0 | CA17: =SUM(IF($A$21:$A$205=$A17,CV$21:CV$205))/('Age profile summary'!$H17*1000+0.000001) -> 0 | CB17: =SUM(IF($A$21:$A$205=$A17,CW$21:CW$205))/('Age profile summary'!$H17*1000+0.000001) -> 0 | CC17: =SUM(IF($A$21:$A$205=$A17,CX$21:CX$205))/('Age profile summary'!$H17*1000+0.000001) -> 0 | CD17: =SUM(IF($A$21:$A$205=$A17,CY$21:CY$205))/('Age profile summary'!$H17*1000+0.000001) -> 0 | CE17: =SUM(IF($A$21:$A$205=$A17,CZ$21:CZ$205))/('Age profile summary'!$H17*1000+0.000001) -> 0 | CF17: =SUM(IF($A$21:$A$205=$A17,DA$21:DA$205))/('Age profile summary'!$H17*1000+0.000001) -> 0 | CG17: =SUM(IF($A$21:$A$205=$A17,DB$21:DB$205))/('Age profile summary'!$H17*1000+0.000001) -> 0 | CH17: =SUM(IF($A$21:$A$205=$A17,DC$21:DC$205))/('Age profile summary'!$H17*1000+0.000001) -> 0 | CI17: =SUM(IF($A$21:$A$205=$A17,DD$21:DD$205))/('Age profile summary'!$H17*1000+0.000001) -> 0 | CJ17: =SUM(IF($A$21:$A$205=$A17,DE$21:DE$205))/('Age profile summary'!$H17*1000+0.000001) -> 0 | CK17: =SUM(IF($A$21:$A$205=$A17,DF$21:DF$205))/('Age profile summary'!$H17*1000+0.000001) -> 0 | CL17: =SUM(IF($A$21:$A$205=$A17,DG$21:DG$205))/('Age profile summary'!$H17*1000+0.000001) -> 0 | CM17: =SUM(IF($A$21:$A$205=$A17,DH$21:DH$205))/('Age profile summary'!$H17*1000+0.000001) -> 0 | CN17: ='Age profile summary'!$O17-'RRR hist-forc'!BS17 -> 0 | CO17: ='Age profile summary'!$O17-'RRR hist-forc'!BT17 -> 0 | CP17: ='Age profile summary'!$O17-'RRR hist-forc'!BU17 -> 0 | CQ17: ='Age profile summary'!$O17-'RRR hist-forc'!BV17 -> 0 | CR17: ='Age profile summary'!$O17-'RRR hist-forc'!BW17 -> 0 | CS17: ='Age profile summary'!$O17-'RRR hist-forc'!BX17 -> 0 | CT17: ='Age profile summary'!$O17-'RRR hist-forc'!BY17 -> 0 | CU17: ='Age profile summary'!$O17-'RRR hist-forc'!BZ17 -> 0 | CV17: ='Age profile summary'!$O17-'RRR hist-forc'!CA17 -> 0 | CW17: ='Age profile summary'!$O17-'RRR hist-forc'!CB17 -> 0 | CX17: ='Age profile summary'!$O17-'RRR hist-forc'!CC17 -> 0 | CY17: ='Age profile summary'!$O17-'RRR hist-forc'!CD17 -> 0 | CZ17: ='Age profile summary'!$O17-'RRR hist-forc'!CE17 -> 0 | DA17: ='Age profile summary'!$O17-'RRR hist-forc'!CF17 -> 0 | DB17: ='Age profile summary'!$O17-'RRR hist-forc'!CG17 -> 0 | DC17: ='Age profile summary'!$O17-'RRR hist-forc'!CH17 -> 0 | DD17: ='Age profile summary'!$O17-'RRR hist-forc'!CI17 -> 0 | DE17: ='Age profile summary'!$O17-'RRR hist-forc'!CJ17 -> 0 | DF17: ='Age profile summary'!$O17-'RRR hist-forc'!CK17 -> 0 | DG17: ='Age profile summary'!$O17-'RRR hist-forc'!CL17 -> 0 | DH17: ='Age profile summary'!$O17-'RRR hist-forc'!CM17 -> 0 | DI17: 0 | DJ17: 0 | DK17: 0 | DL17: 0 | DM17: 0 | DN17: 0 | DO17: 0 | DP17: 0 | DQ17: 0 | DR17: 0 | DS17: 0 | DT17: 0 | DU17: 0 | DV17: 0 | DW17: 0 | DX17: 0 | DY17: 0 | DZ17: 0 | EA17: 0 | EB17: 0
D18: Total | G18: =SUM(G6:G14) -> 0 | H18: =SUM(H6:H14) -> 0 | I18: 0 | J18: 0 | K18: 0 | L18: 0 | M18: 0 | N18: 0 | O18: 0 | P18: 0 | Q18: 0 | R18: 0 | S18: 0 | T18: 0 | U18: 0 | V18: 0 | W18: 0 | X18: 0 | Y18: 0 | Z18: 0 | AA18: 0 | AB18: 0 | AC18: 0 | AD18: 0 | AE18: 0 | AF18: 0 | AG18: 0 | AH18: 0 | AI18: 0 | AJ18: 0 | AN18: Total (mod) | AO18: 0 | AP18: 0 | AQ18: 0 | AR18: 0 | AS18: 0 | AT18: 0 | AU18: 0 | AV18: 0 | AW18: 0 | AX18: 0 | AY18: =SUM(AY6:AY17) -> 45993.76499 | AZ18: 50595.43842 | BA18: 55360.2584 | BB18: 60264.26966 | BC18: 65285.3867 | BD18: 70403.84423 | BE18: 75602.46956 | BF18: 80866.71043 | BG18: 86184.3436 | BH18: 91544.80821 | BI18: 96938.15425 | BJ18: 102353.6652 | BK18: 107778.291 | BL18: 113195.0984 | BM18: 118581.9872 | BN18: 123910.9208 | BO18: 129147.8703 | BP18: 134253.573 | BQ18: 139185.0878 | BR18: 143898.0069 | BS18: =SUM(CN21:CN205)/('Age profile summary'!$H$18*1000) -> 26.27913363 | BT18: =SUM(CO21:CO205)/('Age profile summary'!$H$18*1000) -> 26.98804605 | BU18: =SUM(CP21:CP205)/('Age profile summary'!$H$18*1000) -> 27.68475037 | BV18: =SUM(CQ21:CQ205)/('Age profile summary'!$H$18*1000) -> 28.36768937 | BW18: =SUM(CR21:CR205)/('Age profile summary'!$H$18*1000) -> 29.03568326 | BX18: =SUM(CS21:CS205)/('Age profile summary'!$H$18*1000) -> 29.68772898 | BY18: =SUM(CT21:CT205)/('Age profile summary'!$H$18*1000) -> 30.32295331 | BZ18: =SUM(CU21:CU205)/('Age profile summary'!$H$18*1000) -> 30.94060567 | CA18: =SUM(CV21:CV205)/('Age profile summary'!$H$18*1000) -> 31.54006385 | CB18: =SUM(CW21:CW205)/('Age profile summary'!$H$18*1000) -> 32.12084422 | CC18: =SUM(CX21:CX205)/('Age profile summary'!$H$18*1000) -> 32.68261321 | CD18: =SUM(CY21:CY205)/('Age profile summary'!$H$18*1000) -> 33.22519831 | CE18: =SUM(CZ21:CZ205)/('Age profile summary'!$H$18*1000) -> 33.74859797 | CF18: =SUM(DA21:DA205)/('Age profile summary'!$H$18*1000) -> 34.25298978 | CG18: =SUM(DB21:DB205)/('Age profile summary'!$H$18*1000) -> 34.73873591 | CH18: =SUM(DC21:DC205)/('Age profile summary'!$H$18*1000) -> 35.20638469 | CI18: =SUM(DD21:DD205)/('Age profile summary'!$H$18*1000) -> 35.65666653 | CJ18: =SUM(DE21:DE205)/('Age profile summary'!$H$18*1000) -> 36.09048275 | CK18: =SUM(DF21:DF205)/('Age profile summary'!$H$18*1000) -> 36.50888743 | CL18: =SUM(DG21:DG205)/('Age profile summary'!$H$18*1000) -> 36.91306442 | CM18: =SUM(DH21:DH205)/('Age profile summary'!$H$18*1000) -> 37.30430317 | CN18: ='Age profile summary'!$O$18-'RRR hist-forc'!BS18 -> 32.5186479 | CO18: ='Age profile summary'!$O$18-'RRR hist-forc'!BT18 -> 31.80973548 | CP18: ='Age profile summary'!$O$18-'RRR hist-forc'!BU18 -> 31.11303116 | CQ18: ='Age profile summary'!$O$18-'RRR hist-forc'!BV18 -> 30.43009216 | CR18: ='Age profile summary'!$O$18-'RRR hist-forc'!BW18 -> 29.76209827 | CS18: ='Age profile summary'!$O$18-'RRR hist-forc'!BX18 -> 29.11005255 | CT18: ='Age profile summary'!$O$18-'RRR hist-forc'!BY18 -> 28.47482822 | CU18: ='Age profile summary'!$O$18-'RRR hist-forc'!BZ18 -> 27.85717585 | CV18: ='Age profile summary'!$O$18-'RRR hist-forc'!CA18 -> 27.25771768 | CW18: ='Age profile summary'!$O$18-'RRR hist-forc'!CB18 -> 26.6769373 | CX18: ='Age profile summary'!$O$18-'RRR hist-forc'!CC18 -> 26.11516831 | CY18: ='Age profile summary'!$O$18-'RRR hist-forc'!CD18 -> 25.57258322 | CZ18: ='Age profile summary'!$O$18-'RRR hist-forc'!CE18 -> 25.04918355 | DA18: ='Age profile summary'!$O$18-'RRR hist-forc'!CF18 -> 24.54479174 | DB18: ='Age profile summary'!$O$18-'RRR hist-forc'!CG18 -> 24.05904562 | DC18: ='Age profile summary'!$O$18-'RRR hist-forc'!CH18 -> 23.59139684 | DD18: ='Age profile summary'!$O$18-'RRR hist-forc'!CI18 -> 23.141115 | DE18: ='Age profile summary'!$O$18-'RRR hist-forc'!CJ18 -> 22.70729878 | DF18: ='Age profile summary'!$O$18-'RRR hist-forc'!CK18 -> 22.28889409 | DG18: ='Age profile summary'!$O$18-'RRR hist-forc'!CL18 -> 21.88471711 | DH18: ='Age profile summary'!$O$18-'RRR hist-forc'!CM18 -> 21.49347836 | DI18: =SUM(DI6:DI17) -> 8857.677043 | DJ18: 8976.784091 | DK18: 9178.562986 | DL18: 9403.797231 | DM18: 9617.56331 | DN18: 9801.128456 | DO18: 9946.642818 | DP18: 10053.62227 | DQ18: 10126.52668 | DR18: 10172.98024 | DS18: 10202.35957 | DT18: 10224.60308 | DU18: 10249.18175 | DV18: 10284.22711 | DW18: 10335.84225 | DX18: 10407.6315 | DY18: 10500.47797 | DZ18: 10612.58006 | EA18: 10739.73426 | EB18: 10875.82729
D19: % | G19: RRR model | L19: recursive | M19: 1st year | AY19: =AY18/('Age profile summary'!$H$18*1000) -> 0.005795145817 | AZ19: =AZ18/('Age profile summary'!$H$18*1000) -> 0.006374949808 | BA19: =BA18/('Age profile summary'!$H$18*1000) -> 0.006975310022 | BB19: =BB18/('Age profile summary'!$H$18*1000) -> 0.00759320813 | BC19: =BC18/('Age profile summary'!$H$18*1000) -> 0.00822586139 | BD19: =BD18/('Age profile summary'!$H$18*1000) -> 0.008870779408 | BE19: =BE18/('Age profile summary'!$H$18*1000) -> 0.009525798449 | BF19: =BF18/('Age profile summary'!$H$18*1000) -> 0.01018908495 | BG19: =BG18/('Age profile summary'!$H$18*1000) -> 0.0108590988 | BH19: =BH18/('Age profile summary'!$H$18*1000) -> 0.01153450935 | BI19: =BI18/('Age profile summary'!$H$18*1000) -> 0.01221406291 | BJ19: =BJ18/('Age profile summary'!$H$18*1000) -> 0.01289640921 | BK19: =BK18/('Age profile summary'!$H$18*1000) -> 0.01357990397 | BL19: =BL18/('Age profile summary'!$H$18*1000) -> 0.01426241364 | BM19: =BM18/('Age profile summary'!$H$18*1000) -> 0.01494115359 | BN19: =BN18/('Age profile summary'!$H$18*1000) -> 0.01561259128 | BO19: =BO18/('Age profile summary'!$H$18*1000) -> 0.01627243911 | BP19: =BP18/('Age profile summary'!$H$18*1000) -> 0.01691575004 | BQ19: =BQ18/('Age profile summary'!$H$18*1000) -> 0.01753711355 | BR19: =BR18/('Age profile summary'!$H$18*1000) -> 0.01813093433 | BS19: =BS18/'Age profile summary'!$O$18 -> 0.446940904 | BT19: =BT18/'Age profile summary'!$O$18 -> 0.4589976926 | BU19: =BU18/'Age profile summary'!$O$18 -> 0.4708468526 | BV19: =BV18/'Age profile summary'!$O$18 -> 0.4824618996 | BW19: =BW18/'Age profile summary'!$O$18 -> 0.4938227686 | BX19: =BX18/'Age profile summary'!$O$18 -> 0.5049123999 | BY19: =BY18/'Age profile summary'!$O$18 -> 0.5157159424 | BZ19: =BZ18/'Age profile summary'!$O$18 -> 0.5262206306 | CA19: =CA18/'Age profile summary'!$O$18 -> 0.5364158822 | CB19: =CB18/'Age profile summary'!$O$18 -> 0.5462934721 | CC19: =CC18/'Age profile summary'!$O$18 -> 0.555847727 | CD19: =CD18/'Age profile summary'!$O$18 -> 0.5650757128 | CE19: =CE18/'Age profile summary'!$O$18 -> 0.5739774035 | CF19: =CF18/'Age profile summary'!$O$18 -> 0.5825558192 | CG19: =CG18/'Age profile summary'!$O$18 -> 0.5908171194 | CH19: =CH18/'Age profile summary'!$O$18 -> 0.59877063 | CI19: =CI18/'Age profile summary'!$O$18 -> 0.6064287734 | CJ19: =CJ18/'Age profile summary'!$O$18 -> 0.6138068786 | CK19: =CK18/'Age profile summary'!$O$18 -> 0.620922873 | CL19: =CL18/'Age profile summary'!$O$18 -> 0.6277968907 | CM19: =CM18/'Age profile summary'!$O$18 -> 0.6344508619 | CN19: =CN18/'Age profile summary'!$O$18 -> 0.553059096 | CO19: =CO18/'Age profile summary'!$O$18 -> 0.5410023074 | CP19: =CP18/'Age profile summary'!$O$18 -> 0.5291531474 | CQ19: =CQ18/'Age profile summary'!$O$18 -> 0.5175381004 | CR19: =CR18/'Age profile summary'!$O$18 -> 0.5061772314 | CS19: =CS18/'Age profile summary'!$O$18 -> 0.4950876001 | CT19: =CT18/'Age profile summary'!$O$18 -> 0.4842840576 | CU19: =CU18/'Age profile summary'!$O$18 -> 0.4737793694 | CV19: =CV18/'Age profile summary'!$O$18 -> 0.4635841178 | CW19: =CW18/'Age profile summary'!$O$18 -> 0.4537065279 | CX19: =CX18/'Age profile summary'!$O$18 -> 0.444152273 | CY19: =CY18/'Age profile summary'!$O$18 -> 0.4349242872 | CZ19: =CZ18/'Age profile summary'!$O$18 -> 0.4260225965 | DA19: =DA18/'Age profile summary'!$O$18 -> 0.4174441808 | DB19: =DB18/'Age profile summary'!$O$18 -> 0.4091828806 | DC19: =DC18/'Age profile summary'!$O$18 -> 0.40122937 | DD19: =DD18/'Age profile summary'!$O$18 -> 0.3935712266 | DE19: =DE18/'Age profile summary'!$O$18 -> 0.3861931214 | DF19: =DF18/'Age profile summary'!$O$18 -> 0.379077127 | DG19: =DG18/'Age profile summary'!$O$18 -> 0.3722031093 | DH19: =DH18/'Age profile summary'!$O$18 -> 0.3655491381
D20: asset categories | F20: Std life | G20: Rep life | H20: SD | I20: Life (S/R) | J20: Meth (D/P) | K20: M life | L20: =IF(Tables!B18=1,TRUE,FALSE) -> TRUE | M20: =IF(Tables!B19=1,TRUE,FALSE) -> TRUE | AY20: % of RC ↑ | AZ20: =AZ18/AY18 -> 1.10004994 | BA20: =BA18/AZ18 -> 1.094174893 | BB20: 1.088583605 | BC20: 1.083318309 | BD20: 1.078401275 | BE20: 1.073840078 | BF20: 1.069630541 | BS20: % of total life ↑ | CN20: % of total life ↑
A21: ='Asset data'!A21 -> 1 | B21: ='Asset data'!B21 -> 0 | C21: ='Asset data'!C21 -> 0 | D21: ='Asset data'!E21 -> Staking of a wooden pole | E21: =IF(A21>0,VLOOKUP(A21,IDtable,2),0) -> POLES STAKED | F21: ='Asset data'!G21 -> 29.6256559 | G21: =F21 -> 29.6256559 | H21: ='Asset data'!H21 -> 5.442945517 | I21: S | J21: =IF(A21=0,0,IF('Asset data'!$D$1=1,1,IF('Asset data'!$D$1=2,2,'Asset data'!I21))) -> 2 | K21: =IF(A21>0,IF(I21="S",F21,IF(I21="R",G21,9999)),0) -> 29.6256559 | AX21: ='Age profile summary'!H21 -> 223993.148 | AY21: =repcalc('Age profile (Inst)'!CT21:GF21,J21,K21,H21,20,$L$20,$M$20) -> 1337.927863 | AZ21: 1687.475415 | BA21: 2081.206452 | BB21: 2513.03446 | BC21: 2974.987305 | BD21: 3458.123733 | BE21: 3953.628015 | BF21: 4453.891037 | BG21: 4953.367256 | BH21: 5449.019172 | BI21: 5940.223889 | BJ21: 6428.111263 | BK21: 6914.414157 | BL21: 7400.017151 | BM21: 7883.467413 | BN21: 8359.740547 | BO21: 8819.524592 | BP21: 9249.200865 | BQ21: 9631.579534 | BR21: 9947.319518 | BS21: 10.29423966 | BT21: 11.16052602 | BU21: 11.99382621 | BV21: 12.79180386 | BW21: 13.55321044 | BX21: 14.27784926 | BY21: 14.96639948 | BZ21: 15.62014432 | CA21: 16.24065277 | CB21: 16.82945698 | CC21: 17.38776555 | CD21: 17.91626022 | CE21: 18.41503429 | CF21: 18.88372753 | CG21: 19.32188004 | CH21: 19.72946823 | CI21: 20.10752074 | CJ21: 20.458676 | CK21: 20.78756123 | CL21: 21.10094082 | CM21: 21.40765885 | CN21: =BS21*$AX21 -> 2305839.148 | CO21: 2499881.356 | CP21: 2686534.889 | CQ21: 2865276.416 | CR21: 3035826.272 | CS21: 3198140.403 | CT21: 3352370.933 | CU21: 3498805.299 | CV21: 3637794.939 | CW21: 3769683.048 | CX21: 3894740.343 | CY21: 4013119.527 | CZ21: 4124841.502 | DA21: 4229825.576 | DB21: 4327968.736 | DC21: 4419265.697 | DD21: 4503946.87 | DE21: 4582603.241 | DF21: 4656271.28 | DG21: 4726466.161 | DH21: 4795168.897 | DI21: =IF('Asset data'!$F21=0,0,AY21/'Asset data'!$F21) -> 175.6561884 | DJ21: =IF('Asset data'!$F21=0,0,AZ21/'Asset data'!$F21) -> 221.5481923 | DK21: =IF('Asset data'!$F21=0,0,BA21/'Asset data'!$F21) -> 273.2410338 | DL21: =IF('Asset data'!$F21=0,0,BB21/'Asset data'!$F21) -> 329.9356166 | DM21: =IF('Asset data'!$F21=0,0,BC21/'Asset data'!$F21) -> 390.585281 | DN21: =IF('Asset data'!$F21=0,0,BD21/'Asset data'!$F21) -> 454.0161324 | DO21: =IF('Asset data'!$F21=0,0,BE21/'Asset data'!$F21) -> 519.070756 | DP21: =IF('Asset data'!$F21=0,0,BF21/'Asset data'!$F21) -> 584.7501533 | DQ21: =IF('Asset data'!$F21=0,0,BG21/'Asset data'!$F21) -> 650.3262514 | DR21: =IF('Asset data'!$F21=0,0,BH21/'Asset data'!$F21) -> 715.4002578 | DS21: =IF('Asset data'!$F21=0,0,BI21/'Asset data'!$F21) -> 779.8903926 | DT21: =IF('Asset data'!$F21=0,0,BJ21/'Asset data'!$F21) -> 843.9449943 | DU21: =IF('Asset data'!$F21=0,0,BK21/'Asset data'!$F21) -> 907.7915702 | DV21: =IF('Asset data'!$F21=0,0,BL21/'Asset data'!$F21) -> 971.5462563 | DW21: =IF('Asset data'!$F21=0,0,BM21/'Asset data'!$F21) -> 1035.018311 | DX21: =IF('Asset data'!$F21=0,0,BN21/'Asset data'!$F21) -> 1097.548082 | DY21: =IF('Asset data'!$F21=0,0,BO21/'Asset data'!$F21) -> 1157.913005 | DZ21: =IF('Asset data'!$F21=0,0,BP21/'Asset data'!$F21) -> 1214.325087 | EA21: =IF('Asset data'!$F21=0,0,BQ21/'Asset data'!$F21) -> 1264.52748 | EB21: =IF('Asset data'!$F21=0,0,BR21/'Asset data'!$F21) -> 1305.980897
A22: ='Asset data'!A22 -> 2 | B22: ='Asset data'!B22 -> 0 | C22: ='Asset data'!C22 -> 0 | D22: ='Asset data'!E22 -> ˂ = 1 kV; Wood | E22: POLES | F22: ='Asset data'!G22 -> 50.37229379 | G22: 50.37229379 | H22: ='Asset data'!H22 -> 7.097344137 | I22: S | J22: =IF(A22=0,0,IF('Asset data'!$D$1=1,1,IF('Asset data'!$D$1=2,2,'Asset data'!I22))) -> 2 | K22: =IF(A22>0,IF(I22="S",F22,IF(I22="R",G22,9999)),0) -> 50.37229379 | AX22: ='Age profile summary'!H22 -> 131001.8669 | AY22: =repcalc('Age profile (Inst)'!CT22:GF22,J22,K22,H22,20,$L$20,$M$20) -> 3309.915264 | AZ22: 3394.266325 | BA22: 3446.241703 | BB22: 3467.496446 | BC22: 3461.063917 | BD22: 3431.097132 | BE22: 3382.535518 | BF22: 3320.728507 | BG22: 3251.050528 | BH22: 3178.541192 | BI22: 3107.600101 | BJ22: 3041.758458 | BK22: 2983.540373 | BL22: 2934.416974 | BM22: 2894.847189 | BN22: 2864.391563 | BO22: 2841.880432 | BP22: 2825.615341 | BQ22: 2813.582764 | BR22: 2803.661346 | BS22: 29.19785633 | BT22: 28.96393028 | BU22: 28.80869512 | BV22: 28.72743959 | BW22: 28.71563202 | BX22: 28.76862323 | BY22: 28.88147468 | BZ22: 29.04891497 | CA22: 29.26540599 | CB22: 29.52528531 | CC22: 29.82294657 | CD22: 30.1530234 | CE22: 30.5105526 | CF22: 30.89110344 | CG22: 31.29086995 | CH22: 31.70672855 | CI22: 32.13626558 | CJ22: 32.57777817 | CK22: 33.03024964 | CL22: 33.49329907 | CM22: 33.96710421 | CN22: =BS22*$AX22 -> 3824973.688 | CO22: 3794328.939 | CP22: 3773992.843 | CQ22: 3763348.216 | CR22: 3761801.403 | CS22: 3768743.351 | CT22: 3783527.101 | CU22: 3805462.092 | CV22: 3833822.819 | CW22: 3867867.495 | CX22: =CC22*$AX22 -> 3906861.676 | CY22: 3950102.357 | CZ22: 3996939.35 | DA22: 4046792.22 | DB22: 4099162.379 | DC22: 4153640.632 | DD22: 4209910.785 | DE22: 4267749.759 | DF22: 4327024.367 | DG22: 4387684.706 | DH22: =CM22*$AX22 -> 4449754.063 | DI22: =IF('Asset data'!$F22=0,0,AY22/'Asset data'!$F22) -> 1269.39758 | DJ22: =IF('Asset data'!$F22=0,0,AZ22/'Asset data'!$F22) -> 1301.747361 | DK22: =IF('Asset data'!$F22=0,0,BA22/'Asset data'!$F22) -> 1321.680626 | DL22: =IF('Asset data'!$F22=0,0,BB22/'Asset data'!$F22) -> 1329.832109 | DM22: =IF('Asset data'!$F22=0,0,BC22/'Asset data'!$F22) -> 1327.365147 | DN22: =IF('Asset data'!$F22=0,0,BD22/'Asset data'!$F22) -> 1315.872477 | DO22: =IF('Asset data'!$F22=0,0,BE22/'Asset data'!$F22) -> 1297.248436 | DP22: =IF('Asset data'!$F22=0,0,BF22/'Asset data'!$F22) -> 1273.544606 | DQ22: =IF('Asset data'!$F22=0,0,BG22/'Asset data'!$F22) -> 1246.822152 | DR22: =IF('Asset data'!$F22=0,0,BH22/'Asset data'!$F22) -> 1219.013834 | DS22: =IF('Asset data'!$F22=0,0,BI22/'Asset data'!$F22) -> 1191.80696 | DT22: =IF('Asset data'!$F22=0,0,BJ22/'Asset data'!$F22) -> 1166.555793 | DU22: =IF('Asset data'!$F22=0,0,BK22/'Asset data'!$F22) -> 1144.228364 | DV22: =IF('Asset data'!$F22=0,0,BL22/'Asset data'!$F22) -> 1125.388872 | DW22: =IF('Asset data'!$F22=0,0,BM22/'Asset data'!$F22) -> 1110.21332 | DX22: =IF('Asset data'!$F22=0,0,BN22/'Asset data'!$F22) -> 1098.533173 | DY22: =IF('Asset data'!$F22=0,0,BO22/'Asset data'!$F22) -> 1089.899848 | DZ22: =IF('Asset data'!$F22=0,0,BP22/'Asset data'!$F22) -> 1083.661964 | EA22: =IF('Asset data'!$F22=0,0,BQ22/'Asset data'!$F22) -> 1079.047307 | EB22: =IF('Asset data'!$F22=0,0,BR22/'Asset data'!$F22) -> 1075.242308
A23: ='Asset data'!A23 -> 2 | B23: ='Asset data'!B23 -> 0 | C23: ='Asset data'!C23 -> 0 | D23: ='Asset data'!E23 -> > 1 kV & < = 11 kV; Wood | E23: =IF(A23>0,VLOOKUP(A23,IDtable,2),0) -> POLES | F23: ='Asset data'!G23 -> 54.85119533 | G23: =F23 -> 54.85119533 | H23: ='Asset data'!H23 -> 7.406159283 | I23: S | J23: =IF(A23=0,0,IF('Asset data'!$D$1=1,1,IF('Asset data'!$D$1=2,2,'Asset data'!I23))) -> 2 | K23: =IF(A23>0,IF(I23="S",F23,IF(I23="R",G23,9999)),0) -> 54.85119533 | AX23: ='Age profile summary'!H23 -> 89664.90505 | AY23: =repcalc('Age profile (Inst)'!CT23:GF23,J23,K23,H23,20,$L$20,$M$20) -> 984.1310822 | AZ23: 1094.123512 | BA23: 1201.898983 | BB23: 1305.170976 | BC23: 1401.868178 | BD23: 1490.276442 | BE23: 1569.157125 | BF23: 1637.829005 | BG23: 1696.204154 | BH23: 1744.772738 | BI23: 1784.537031 | BJ23: 1816.900507 | BK23: 1843.522762 | BL23: 1866.154789 | BM23: 1886.471163 | BN23: 1905.915777 | BO23: 1925.576021 | BP23: 1946.096797 | BQ23: 1967.641235 | BR23: 1989.899809 | BS23: 28.93053581 | BT23: 29.39609428 | BU23: 29.82546253 | BV23: 30.2237757 | BW23: 30.59665963 | BX23: 30.94992293 | BY23: 31.28923151 | BZ23: 31.61979504 | CA23: 31.94609643 | CB23: 32.27169179 | CC23: 32.59909956 | CD23: 32.92978608 | CE23: 33.26424337 | CF23: 33.60214459 | CG23: 33.94255657 | CH23: 34.28418582 | CI23: 34.62563451 | CJ23: 34.96564517 | CK23: 35.30331578 | CL23: 35.63827008 | CM23: 35.97077209 | CN23: 2594053.747 | CO23: 2635798.003 | CP23: 2674297.266 | CQ23: 2710011.978 | CR23: 2743446.581 | CS23: 2775121.901 | CT23: 2805545.973 | CU23: 2835185.92 | CV23: 2864443.703 | CW23: 2893638.18 | CX23: 2922995.166 | CY23: 2952646.142 | CZ23: 2982635.224 | DA23: 3012933.104 | DB23: 3043456.112 | DC23: 3074088.266 | DD23: 3104704.23 | DE23: 3135191.254 | DF23: 3165468.457 | DG23: 3195502.103 | DH23: =CM23*$AX23 -> 3225315.864 | DI23: =IF('Asset data'!$F23=0,0,AY23/'Asset data'!$F23) -> 378.3418107 | DJ23: =IF('Asset data'!$F23=0,0,AZ23/'Asset data'!$F23) -> 420.6275751 | DK23: =IF('Asset data'!$F23=0,0,BA23/'Asset data'!$F23) -> 462.0610464 | DL23: =IF('Asset data'!$F23=0,0,BB23/'Asset data'!$F23) -> 501.763189 | DM23: =IF('Asset data'!$F23=0,0,BC23/'Asset data'!$F23) -> 538.937703 | DN23: =IF('Asset data'!$F23=0,0,BD23/'Asset data'!$F23) -> 572.9255968 | DO23: =IF('Asset data'!$F23=0,0,BE23/'Asset data'!$F23) -> 603.2506836 | DP23: =IF('Asset data'!$F23=0,0,BF23/'Asset data'!$F23) -> 629.6510724 | DQ23: =IF('Asset data'!$F23=0,0,BG23/'Asset data'!$F23) -> 652.0929607 | DR23: =IF('Asset data'!$F23=0,0,BH23/'Asset data'!$F23) -> 670.7647883 | DS23: =IF('Asset data'!$F23=0,0,BI23/'Asset data'!$F23) -> 686.0518725 | DT23: =IF('Asset data'!$F23=0,0,BJ23/'Asset data'!$F23) -> 698.4937679 | DU23: =IF('Asset data'!$F23=0,0,BK23/'Asset data'!$F23) -> 708.7284939 | DV23: =IF('Asset data'!$F23=0,0,BL23/'Asset data'!$F23) -> 717.4292071 | DW23: =IF('Asset data'!$F23=0,0,BM23/'Asset data'!$F23) -> 725.2396845 | DX23: =IF('Asset data'!$F23=0,0,BN23/'Asset data'!$F23) -> 732.7150206 | DY23: =IF('Asset data'!$F23=0,0,BO23/'Asset data'!$F23) -> 740.2732539 | DZ23: =IF('Asset data'!$F23=0,0,BP23/'Asset data'!$F23) -> 748.1623121 | EA23: =IF('Asset data'!$F23=0,0,BQ23/'Asset data'!$F23) -> 756.4449098 | EB23: =IF('Asset data'!$F23=0,0,BR23/'Asset data'!$F23) -> 765.0020515
A24: ='Asset data'!A24 -> 2 | B24: ='Asset data'!B24 -> 0 | C24: ='Asset data'!C24 -> 0 | D24: ='Asset data'!E24 -> ˃ 11 kV & < = 22 kV; Wood | E24: POLES | F24: ='Asset data'!G24 -> 52.54563109 | G24: 52.54563109 | H24: ='Asset data'!H24 -> 7.248836534 | I24: S | J24: =IF(A24=0,0,IF('Asset data'!$D$1=1,1,IF('Asset data'!$D$1=2,2,'Asset data'!I24))) -> 2 | K24: 52.54563109 | AX24: ='Age profile summary'!H24 -> 313364.3302 | AY24: =repcalc('Age profile (Inst)'!CT24:GF24,J24,K24,H24,20,$L$20,$M$20) -> 5961.427393 | AZ24: 6243.764413 | BA24: 6466.68366 | BB24: 6628.055322 | BC24: 6728.745004 | BD24: 6772.4645 | BE24: 6765.419894 | BF24: 6715.794925 | BG24: 6633.121229 | BH24: 6527.594513 | BI24: 6409.396616 | BJ24: 6288.078302 | BK24: 6172.047362 | BL24: 6068.192891 | BM24: 5981.66112 | BN24: 5915.782615 | BO24: 5872.136821 | BP24: 5850.72889 | BQ24: 5850.246592 | BR24: 5868.362129 | BS24: 28.00628839 | BT24: 28.05882668 | BU24: 28.1373511 | BV24: 28.2470253 | BW24: 28.39147438 | BX24: 28.57293089 | BY24: 28.79236903 | BZ24: 29.04963332 | CA24: 29.34357325 | CB24: 29.67219298 | CC24: 30.03281844 | CD24: 30.42227783 | CE24: 30.83708656 | CF24: 31.27362625 | CG24: 31.72830795 | CH24: 32.19771204 | CI24: 32.67869966 | CJ24: 33.16849273 | CK24: 33.66472218 | CL24: 34.16544629 | CM24: 34.66914425 | CN24: =BS24*$AX24 -> 8776171.804 | CO24: =BT24*$AX24 -> 8792635.43 | CP24: =BU24*$AX24 -> 8817242.182 | CQ24: =BV24*$AX24 -> 8851610.165 | CR24: =BW24*$AX24 -> 8896875.353 | CS24: =BX24*$AX24 -> 8953737.351 | CT24: =BY24*$AX24 -> 9022501.437 | CU24: =BZ24*$AX24 -> 9103118.888 | CV24: =CA24*$AX24 -> 9195229.179 | CW24: =CB24*$AX24 -> 9298206.881 | CX24: =CC24*$AX24 -> 9411214.037 | CY24: =CD24*$AX24 -> 9533256.716 | CZ24: =CE24*$AX24 -> 9663242.976 | DA24: =CF24*$AX24 -> 9800038.944 | DB24: =CG24*$AX24 -> 9942519.97 | DC24: =CH24*$AX24 -> 10089614.47 | DD24: =CI24*$AX24 -> 10240338.83 | DE24: =CJ24*$AX24 -> 10393822.51 | DF24: =CK24*$AX24 -> 10549323.12 | DG24: =CL24*$AX24 -> 10706232.19 | DH24: 10864073.17 | DI24: =IF('Asset data'!$F24=0,0,AY24/'Asset data'!$F24) -> 2282.550609 | DJ24: =IF('Asset data'!$F24=0,0,AZ24/'Asset data'!$F24) -> 2390.653668 | DK24: =IF('Asset data'!$F24=0,0,BA24/'Asset data'!$F24) -> 2476.006459 | DL24: =IF('Asset data'!$F24=0,0,BB24/'Asset data'!$F24) -> 2537.793504 | DM24: =IF('Asset data'!$F24=0,0,BC24/'Asset data'!$F24) -> 2576.346233 | DN24: =IF('Asset data'!$F24=0,0,BD24/'Asset data'!$F24) -> 2593.085842 | DO24: =IF('Asset data'!$F24=0,0,BE24/'Asset data'!$F24) -> 2590.388557 | DP24: =IF('Asset data'!$F24=0,0,BF24/'Asset data'!$F24) -> 2571.387821 | DQ24: =IF('Asset data'!$F24=0,0,BG24/'Asset data'!$F24) -> 2539.733172 | DR24: =IF('Asset data'!$F24=0,0,BH24/'Asset data'!$F24) -> 2499.328407 | DS24: =IF('Asset data'!$F24=0,0,BI24/'Asset data'!$F24) -> 2454.072018 | DT24: =IF('Asset data'!$F24=0,0,BJ24/'Asset data'!$F24) -> 2407.620862 | DU24: =IF('Asset data'!$F24=0,0,BK24/'Asset data'!$F24) -> 2363.194171 | DV24: =IF('Asset data'!$F24=0,0,BL24/'Asset data'!$F24) -> 2323.429687 | DW24: =IF('Asset data'!$F24=0,0,BM24/'Asset data'!$F24) -> 2290.297832 | DX24: =IF('Asset data'!$F24=0,0,BN24/'Asset data'!$F24) -> 2265.073836 | DY24: =IF('Asset data'!$F24=0,0,BO24/'Asset data'!$F24) -> 2248.362447 | DZ24: =IF('Asset data'!$F24=0,0,BP24/'Asset data'!$F24) -> 2240.165637 | EA24: =IF('Asset data'!$F24=0,0,BQ24/'Asset data'!$F24) -> 2239.980971 | EB24: =IF('Asset data'!$F24=0,0,BR24/'Asset data'!$F24) -> 2246.917168
A25: ='Asset data'!A25 -> 2 | B25: ='Asset data'!B25 -> 0 | C25: ='Asset data'!C25 -> 0 | D25: ='Asset data'!E25 -> > 22 kV & < = 66 kV; Wood | E25: POLES | F25: ='Asset data'!G25 -> 49.92365037 | G25: 49.92365037 | H25: ='Asset data'!H25 -> 7.065667015 | I25: S | J25: =IF(A25=0,0,IF('Asset data'!$D$1=1,1,IF('Asset data'!$D$1=2,2,'Asset data'!I25))) -> 2 | K25: 49.92365037 | AX25: ='Age profile summary'!H25 -> 2269.307927 | AY25: =repcalc('Age profile (Inst)'!CT25:GF25,J25,K25,H25,20,$L$20,$M$20) -> 39.49112161 | AZ25: 43.54312813 | BA25: 47.43121103 | BB25: 51.07790476 | BC25: 54.41793693 | BD25: 57.40074521 | BE25: 59.99145367 | BF25: 62.17035934 | BG25: 63.9311787 | BH25: 65.27844473 | BI25: 66.22450905 | BJ25: 66.78658965 | BK25: 66.98422682 | BL25: 66.83739523 | BM25: 66.36539513 | BN25: 65.58653457 | BO25: 64.51852822 | BP25: 63.17947951 | BQ25: 61.58927323 | BR25: 59.7711765 | BS25: 29.44438138 | BT25: 29.66607349 | BU25: 29.84953383 | BV25: 30.00277822 | BW25: 30.13333327 | BX25: 30.2479254 | BY25: 30.35238052 | BZ25: 30.45170339 | CA25: 30.55027011 | CB25: 30.65205416 | CC25: 30.76081818 | CD25: 30.88023264 | CE25: 31.01391771 | CF25: 31.1654326 | CG25: 31.33824782 | CH25: 31.53572967 | CI25: 31.76114691 | CJ25: 32.01768806 | CK25: 32.30846311 | CL25: 32.63646047 | CM25: 33.00444038 | CN25: 66818.36808 | CO25: 67321.45573 | CP25: 67737.78374 | CQ25: 68085.54244 | CR25: 68381.81205 | CS25: 68641.85689 | CT25: 68878.89771 | CU25: 69104.29189 | CV25: 69327.97012 | CW25: 69558.94948 | CX25: 69805.76854 | CY25: 70076.75671 | CZ25: 70380.12931 | DA25: 70723.96324 | DB25: 71116.13419 | DC25: 71564.28133 | DD25: 72075.82244 | DE25: 72657.99332 | DF25: 73317.85144 | DG25: 74062.17844 | DH25: 74897.23818 | DI25: =IF('Asset data'!$F25=0,0,AY25/'Asset data'!$F25) -> 15.33140467 | DJ25: =IF('Asset data'!$F25=0,0,AZ25/'Asset data'!$F25) -> 16.9044912 | DK25: =IF('Asset data'!$F25=0,0,BA25/'Asset data'!$F25) -> 18.41393864 | DL25: =IF('Asset data'!$F25=0,0,BB25/'Asset data'!$F25) -> 19.82967298 | DM25: =IF('Asset data'!$F25=0,0,BC25/'Asset data'!$F25) -> 21.12635393 | DN25: =IF('Asset data'!$F25=0,0,BD25/'Asset data'!$F25) -> 22.28435195 | DO25: =IF('Asset data'!$F25=0,0,BE25/'Asset data'!$F25) -> 23.29012738 | DP25: =IF('Asset data'!$F25=0,0,BF25/'Asset data'!$F25) -> 24.13603105 | DQ25: =IF('Asset data'!$F25=0,0,BG25/'Asset data'!$F25) -> 24.81962354 | DR25: =IF('Asset data'!$F25=0,0,BH25/'Asset data'!$F25) -> 25.34266466 | DS25: =IF('Asset data'!$F25=0,0,BI25/'Asset data'!$F25) -> 25.70994962 | DT25: =IF('Asset data'!$F25=0,0,BJ25/'Asset data'!$F25) -> 25.92816285 | DU25: =IF('Asset data'!$F25=0,0,BK25/'Asset data'!$F25) -> 26.00489036 | DV25: =IF('Asset data'!$F25=0,0,BL25/'Asset data'!$F25) -> 25.9478868 | DW25: =IF('Asset data'!$F25=0,0,BM25/'Asset data'!$F25) -> 25.76464499 | DX25: =IF('Asset data'!$F25=0,0,BN25/'Asset data'!$F25) -> 25.46227256 | DY25: =IF('Asset data'!$F25=0,0,BO25/'Asset data'!$F25) -> 25.04764677 | DZ25: =IF('Asset data'!$F25=0,0,BP25/'Asset data'!$F25) -> 24.5277958 | EA25: =IF('Asset data'!$F25=0,0,BQ25/'Asset data'!$F25) -> 23.91043942 | EB25: =IF('Asset data'!$F25=0,0,BR25/'Asset data'!$F25) -> 23.20461048
A26: ='Asset data'!A26 -> 0 | B26: ='Asset data'!B26 -> 0 | C26: ='Asset data'!C26 -> 0 | D26: ='Asset data'!E26 ->  | E26: 0 | F26: ='Asset data'!G26 -> 50 | G26: 50 | H26: ='Asset data'!H26 -> 7.071067812 | I26: S | J26: =IF(A26=0,0,IF('Asset data'!$D$1=1,1,IF('Asset data'!$D$1=2,2,'Asset data'!I26))) -> 0 | K26: 0 | AX26: ='Age profile summary'!H26 -> 0 | AY26: =repcalc('Age profile (Inst)'!CT26:GF26,J26,K26,H26,20,$L$20,$M$20) -> 0 | AZ26: 0 | BA26: 0 | BB26: 0 | BC26: 0 | BD26: 0 | BE26: 0 | BF26: 0 | BG26: 0 | BH26: 0 | BI26: 0 | BJ26: 0 | BK26: 0 | BL26: 0 | BM26: 0 | BN26: 0 | BO26: 0 | BP26: 0 | BQ26: 0 | BR26: 0 | BS26: 0 | BT26: 0 | BU26: 0 | BV26: 0 | BW26: 0 | BX26: 0 | BY26: 0 | BZ26: 0 | CA26: 0 | CB26: 0 | CC26: 0 | CD26: 0 | CE26: 0 | CF26: 0 | CG26: 0 | CH26: 0 | CI26: 0 | CJ26: 0 | CK26: 0 | CL26: 0 | CM26: 0 | CN26: 0 | CO26: 0 | CP26: 0 | CQ26: 0 | CR26: 0 | CS26: 0 | CT26: 0 | CU26: 0 | CV26: 0 | CW26: 0 | CX26: 0 | CY26: 0 | CZ26: 0 | DA26: 0 | DB26: 0 | DC26: 0 | DD26: 0 | DE26: 0 | DF26: 0 | DG26: 0 | DH26: 0 | DI26: =IF('Asset data'!$F26=0,0,AY26/'Asset data'!$F26) -> 0 | DJ26: =IF('Asset data'!$F26=0,0,AZ26/'Asset data'!$F26) -> 0 | DK26: =IF('Asset data'!$F26=0,0,BA26/'Asset data'!$F26) -> 0 | DL26: =IF('Asset data'!$F26=0,0,BB26/'Asset data'!$F26) -> 0 | DM26: =IF('Asset data'!$F26=0,0,BC26/'Asset data'!$F26) -> 0 | DN26: =IF('Asset data'!$F26=0,0,BD26/'Asset data'!$F26) -> 0 | DO26: =IF('Asset data'!$F26=0,0,BE26/'Asset data'!$F26) -> 0 | DP26: =IF('Asset data'!$F26=0,0,BF26/'Asset data'!$F26) -> 0 | DQ26: =IF('Asset data'!$F26=0,0,BG26/'Asset data'!$F26) -> 0 | DR26: =IF('Asset data'!$F26=0,0,BH26/'Asset data'!$F26) -> 0 | DS26: =IF('Asset data'!$F26=0,0,BI26/'Asset data'!$F26) -> 0 | DT26: =IF('Asset data'!$F26=0,0,BJ26/'Asset data'!$F26) -> 0 | DU26: =IF('Asset data'!$F26=0,0,BK26/'Asset data'!$F26) -> 0 | DV26: =IF('Asset data'!$F26=0,0,BL26/'Asset data'!$F26) -> 0 | DW26: =IF('Asset data'!$F26=0,0,BM26/'Asset data'!$F26) -> 0 | DX26: =IF('Asset data'!$F26=0,0,BN26/'Asset data'!$F26) -> 0 | DY26: =IF('Asset data'!$F26=0,0,BO26/'Asset data'!$F26) -> 0 | DZ26: =IF('Asset data'!$F26=0,0,BP26/'Asset data'!$F26) -> 0 | EA26: =IF('Asset data'!$F26=0,0,BQ26/'Asset data'!$F26) -> 0 | EB26: =IF('Asset data'!$F26=0,0,BR26/'Asset data'!$F26) -> 0
A27: ='Asset data'!A27 -> 0 | B27: ='Asset data'!B27 -> 0 | C27: ='Asset data'!C27 -> 0 | D27: ='Asset data'!E27 ->  | E27: 0 | F27: ='Asset data'!G27 -> 50 | G27: 50 | H27: ='Asset data'!H27 -> 7.071067812 | I27: S | J27: =IF(A27=0,0,IF('Asset data'!$D$1=1,1,IF('Asset data'!$D$1=2,2,'Asset data'!I27))) -> 0 | K27: 0 | AX27: ='Age profile summary'!H27 -> 0 | AY27: =repcalc('Age profile (Inst)'!CT27:GF27,J27,K27,H27,20,$L$20,$M$20) -> 0 | AZ27: 0 | BA27: 0 | BB27: 0 | BC27: 0 | BD27: 0 | BE27: 0 | BF27: 0 | BG27: 0 | BH27: 0 | BI27: 0 | BJ27: 0 | BK27: 0 | BL27: 0 | BM27: 0 | BN27: 0 | BO27: 0 | BP27: 0 | BQ27: 0 | BR27: 0 | BS27: 0 | BT27: 0 | BU27: 0 | BV27: 0 | BW27: 0 | BX27: 0 | BY27: 0 | BZ27: 0 | CA27: 0 | CB27: 0 | CC27: 0 | CD27: 0 | CE27: 0 | CF27: 0 | CG27: 0 | CH27: 0 | CI27: 0 | CJ27: 0 | CK27: 0 | CL27: 0 | CM27: 0 | CN27: 0 | CO27: 0 | CP27: 0 | CQ27: 0 | CR27: 0 | CS27: 0 | CT27: 0 | CU27: 0 | CV27: 0 | CW27: 0 | CX27: 0 | CY27: 0 | CZ27: 0 | DA27: 0 | DB27: 0 | DC27: 0 | DD27: 0 | DE27: 0 | DF27: 0 | DG27: 0 | DH27: 0 | DI27: =IF('Asset data'!$F27=0,0,AY27/'Asset data'!$F27) -> 0 | DJ27: =IF('Asset data'!$F27=0,0,AZ27/'Asset data'!$F27) -> 0 | DK27: =IF('Asset data'!$F27=0,0,BA27/'Asset data'!$F27) -> 0 | DL27: =IF('Asset data'!$F27=0,0,BB27/'Asset data'!$F27) -> 0 | DM27: =IF('Asset data'!$F27=0,0,BC27/'Asset data'!$F27) -> 0 | DN27: =IF('Asset data'!$F27=0,0,BD27/'Asset data'!$F27) -> 0 | DO27: =IF('Asset data'!$F27=0,0,BE27/'Asset data'!$F27) -> 0 | DP27: =IF('Asset data'!$F27=0,0,BF27/'Asset data'!$F27) -> 0 | DQ27: =IF('Asset data'!$F27=0,0,BG27/'Asset data'!$F27) -> 0 | DR27: =IF('Asset data'!$F27=0,0,BH27/'Asset data'!$F27) -> 0 | DS27: =IF('Asset data'!$F27=0,0,BI27/'Asset data'!$F27) -> 0 | DT27: =IF('Asset data'!$F27=0,0,BJ27/'Asset data'!$F27) -> 0 | DU27: =IF('Asset data'!$F27=0,0,BK27/'Asset data'!$F27) -> 0 | DV27: =IF('Asset data'!$F27=0,0,BL27/'Asset data'!$F27) -> 0 | DW27: =IF('Asset data'!$F27=0,0,BM27/'Asset data'!$F27) -> 0 | DX27: =IF('Asset data'!$F27=0,0,BN27/'Asset data'!$F27) -> 0 | DY27: =IF('Asset data'!$F27=0,0,BO27/'Asset data'!$F27) -> 0 | DZ27: =IF('Asset data'!$F27=0,0,BP27/'Asset data'!$F27) -> 0 | EA27: =IF('Asset data'!$F27=0,0,BQ27/'Asset data'!$F27) -> 0 | EB27: =IF('Asset data'!$F27=0,0,BR27/'Asset data'!$F27) -> 0
A28: ='Asset data'!A28 -> 2 | B28: ='Asset data'!B28 -> 0 | C28: ='Asset data'!C28 -> 0 | D28: ='Asset data'!E28 -> ˂ = 1 kV; Concrete | E28: POLES | F28: ='Asset data'!G28 -> 80.38876331 | G28: 80.38876331 | H28: ='Asset data'!H28 -> 8.965978101 | I28: S | J28: =IF(A28=0,0,IF('Asset data'!$D$1=1,1,IF('Asset data'!$D$1=2,2,'Asset data'!I28))) -> 2 | K28: 80.38876331 | AX28: ='Age profile summary'!H28 -> 30021.06629 | AY28: =repcalc('Age profile (Inst)'!CT28:GF28,J28,K28,H28,20,$L$20,$M$20) -> 22.7123916 | AZ28: 30.11705017 | BA28: 39.50508986 | BB28: 51.26253961 | BC28: 65.80654795 | BD28: 83.57484775 | BE28: 105.0110983 | BF28: 130.5460101 | BG28: 160.5744724 | BH28: 195.4292745 | BI28: 235.3524213 | BJ28: 280.4654492 | BK28: 330.7405231 | BL28: 385.9743804 | BM28: 445.7673471 | BN28: 509.509646 | BO28: 576.377019 | BP28: 645.337279 | BQ28: 715.1688126 | BR28: 784.4912927 | BS28: 50.81162675 | BT28: 51.76831897 | BU28: 52.71014238 | BV28: 53.63289669 | BW28: 54.53152349 | BX28: 55.40004037 | BY28: 56.23150692 | BZ28: 57.01803544 | CA28: 57.75085913 | CB28: 58.42046959 | CC28: 59.0168323 | CD28: 59.52968398 | CE28: 59.94890972 | CF28: 60.26498982 | CG28: 60.46949809 | CH28: 60.55562561 | CI28: 60.51869711 | CJ28: 60.35664303 | CK28: 60.07038922 | CL28: 59.66412887 | CM28: 59.14544756 | CN28: 1525419.215 | CO28: 1554140.136 | CP28: 1582414.679 | CQ28: 1610116.747 | CR28: 1637094.482 | CS28: 1663168.284 | CT28: 1688129.797 | CU28: 1711742.222 | CV28: 1733742.37 | CW28: 1753844.791 | CX28: 1771748.235 | CY28: 1787144.589 | CZ28: 1799730.193 | DA28: 1809219.254 | DB28: 1815358.811 | DC28: 1817944.451 | DD28: 1816835.818 | DE28: 1811970.781 | DF28: 1803377.137 | DG28: 1791180.768 | DH28: 1775609.402 | DI28: =IF('Asset data'!$F28=0,0,AY28/'Asset data'!$F28) -> 3.032246244 | DJ28: =IF('Asset data'!$F28=0,0,AZ28/'Asset data'!$F28) -> 4.020814448 | DK28: =IF('Asset data'!$F28=0,0,BA28/'Asset data'!$F28) -> 5.274176427 | DL28: =IF('Asset data'!$F28=0,0,BB28/'Asset data'!$F28) -> 6.84386946 | DM28: =IF('Asset data'!$F28=0,0,BC28/'Asset data'!$F28) -> 8.785585482 | DN28: =IF('Asset data'!$F28=0,0,BD28/'Asset data'!$F28) -> 11.15776457 | DO28: =IF('Asset data'!$F28=0,0,BE28/'Asset data'!$F28) -> 14.019638 | DP28: =IF('Asset data'!$F28=0,0,BF28/'Asset data'!$F28) -> 17.42870834 | DQ28: =IF('Asset data'!$F28=0,0,BG28/'Asset data'!$F28) -> 21.43769575 | DR28: =IF('Asset data'!$F28=0,0,BH28/'Asset data'!$F28) -> 26.0910297 | DS28: =IF('Asset data'!$F28=0,0,BI28/'Asset data'!$F28) -> 31.42101935 | DT28: =IF('Asset data'!$F28=0,0,BJ28/'Asset data'!$F28) -> 37.44389054 | DU28: =IF('Asset data'!$F28=0,0,BK28/'Asset data'!$F28) -> 44.15592716 | DV28: =IF('Asset data'!$F28=0,0,BL28/'Asset data'!$F28) -> 51.52999236 | DW28: =IF('Asset data'!$F28=0,0,BM28/'Asset data'!$F28) -> 59.51272715 | DX28: =IF('Asset data'!$F28=0,0,BN28/'Asset data'!$F28) -> 68.02272249 | DY28: =IF('Asset data'!$F28=0,0,BO28/'Asset data'!$F28) -> 76.94993475 | DZ28: =IF('Asset data'!$F28=0,0,BP28/'Asset data'!$F28) -> 86.1565605 | EA28: =IF('Asset data'!$F28=0,0,BQ28/'Asset data'!$F28) -> 95.47950672 | EB28: =IF('Asset data'!$F28=0,0,BR28/'Asset data'!$F28) -> 104.7344911
A29: ='Asset data'!A29 -> 2 | B29: ='Asset data'!B29 -> 0 | C29: ='Asset data'!C29 -> 0 | D29: ='Asset data'!E29 -> > 1 kV & < = 11 kV; Concrete | E29: POLES | F29: ='Asset data'!G29 -> 35 | G29: 35 | H29: ='Asset data'!H29 -> 5.916079783 | I29: S | J29: =IF(A29=0,0,IF('Asset data'!$D$1=1,1,IF('Asset data'!$D$1=2,2,'Asset data'!I29))) -> 2 | K29: 35 | AX29: ='Age profile summary'!H29 -> 1.28 | AY29: =repcalc('Age profile (Inst)'!CT29:GF29,J29,K29,H29,20,$L$20,$M$20) -> 0.5051221382 | AZ29: 0.2903280419 | BA29: 0.1670643123 | BB29: 0.09715521353 | BC29: 0.05787365719 | BD29: 0.03590860922 | BE29: 0.02358606495 | BF29: 0.01655199221 | BG29: 0.01237824924 | BH29: 0.009737571999 | BI29: 0.007922364124 | BJ29: 0.00656770066 | BK29: 0.005494030473 | BL29: 0.004619404517 | BM29: 0.003911909776 | BN29: 0.003365349904 | BO29: 0.002988376095 | BP29: 0.00280132276 | BQ29: 0.00283722199 | BR29: 0.003144624879 | BS29: 50.18515625 | BT29: 29.72949043 | BU29: 23.89469602 | BV29: 21.94580588 | BW29: 21.53511253 | BX29: 21.84855439 | BY29: 22.53592761 | BZ29: 23.42847737 | CA29: 24.43979168 | CB29: 25.52401417 | CC29: 26.65608405 | CD29: 27.8217822 | CE29: 29.01257648 | CF29: 30.22293934 | CG29: 31.44896483 | CH29: 32.68766811 | CI29: 33.93663913 | CJ29: 35.19387821 | CK29: 36.45772628 | CL29: 37.72684893 | CM29: 39.00025684 | CN29: 64.237 | CO29: 38.05374775 | CP29: 30.58521091 | CQ29: 28.09063153 | CR29: 27.56494404 | CS29: 27.96614962 | CT29: 28.84598734 | CU29: 29.98845103 | CV29: 31.28293335 | CW29: 32.67073814 | CX29: 34.11978759 | CY29: 35.61188121 | CZ29: 37.13609789 | DA29: 38.68536235 | DB29: 40.25467498 | DC29: 41.84021518 | DD29: 43.43889809 | DE29: 45.04816411 | DF29: 46.66588963 | DG29: 48.29036663 | DH29: 49.92032876 | DI29: =IF('Asset data'!$F29=0,0,AY29/'Asset data'!$F29) -> 505.1221382 | DJ29: =IF('Asset data'!$F29=0,0,AZ29/'Asset data'!$F29) -> 290.3280419 | DK29: =IF('Asset data'!$F29=0,0,BA29/'Asset data'!$F29) -> 167.0643123 | DL29: =IF('Asset data'!$F29=0,0,BB29/'Asset data'!$F29) -> 97.15521353 | DM29: =IF('Asset data'!$F29=0,0,BC29/'Asset data'!$F29) -> 57.87365719 | DN29: =IF('Asset data'!$F29=0,0,BD29/'Asset data'!$F29) -> 35.90860922 | DO29: =IF('Asset data'!$F29=0,0,BE29/'Asset data'!$F29) -> 23.58606495 | DP29: =IF('Asset data'!$F29=0,0,BF29/'Asset data'!$F29) -> 16.55199221 | DQ29: =IF('Asset data'!$F29=0,0,BG29/'Asset data'!$F29) -> 12.37824924 | DR29: =IF('Asset data'!$F29=0,0,BH29/'Asset data'!$F29) -> 9.737571999 | DS29: =IF('Asset data'!$F29=0,0,BI29/'Asset data'!$F29) -> 7.922364124 | DT29: =IF('Asset data'!$F29=0,0,BJ29/'Asset data'!$F29) -> 6.56770066 | DU29: =IF('Asset data'!$F29=0,0,BK29/'Asset data'!$F29) -> 5.494030473 | DV29: =IF('Asset data'!$F29=0,0,BL29/'Asset data'!$F29) -> 4.619404517 | DW29: =IF('Asset data'!$F29=0,0,BM29/'Asset data'!$F29) -> 3.911909776 | DX29: =IF('Asset data'!$F29=0,0,BN29/'Asset data'!$F29) -> 3.365349904 | DY29: =IF('Asset data'!$F29=0,0,BO29/'Asset data'!$F29) -> 2.988376095 | DZ29: =IF('Asset data'!$F29=0,0,BP29/'Asset data'!$F29) -> 2.80132276 | EA29: =IF('Asset data'!$F29=0,0,BQ29/'Asset data'!$F29) -> 2.83722199 | EB29: =IF('Asset data'!$F29=0,0,BR29/'Asset data'!$F29) -> 3.144624879
A30: ='Asset data'!A30 -> 2 | B30: ='Asset data'!B30 -> 0 | C30: ='Asset data'!C30 -> 0 | D30: ='Asset data'!E30 -> ˃ 11 kV & < = 22 kV; Concrete | E30: POLES | F30: ='Asset data'!G30 -> 35 | G30: 35 | H30: ='Asset data'!H30 -> 5.916079783 | I30: S | J30: =IF(A30=0,0,IF('Asset data'!$D$1=1,1,IF('Asset data'!$D$1=2,2,'Asset data'!I30))) -> 2 | K30: 35 | AX30: ='Age profile summary'!H30 -> 1.091 | AY30: =repcalc('Age profile (Inst)'!CT30:GF30,J30,K30,H30,20,$L$20,$M$20) -> 0.2737429922 | AZ30: 0.1662436218 | BA30: 0.101106394 | BB30: 0.06199918462 | BC30: 0.03869256862 | BD30: 0.02488988765 | BE30: 0.01677312892 | BF30: 0.01205601513 | BG30: 0.009381870784 | BH30: 0.007948431532 | BI30: 0.007278435784 | BJ30: 0.00708219176 | BK30: 0.007177407003 | BL30: 0.007444277518 | BM30: 0.00780200818 | BN30: 0.008198062444 | BO30: 0.008604595952 | BP30: 0.009018450435 | BQ30: 0.009462253307 | BR30: 0.009984894151 | BS30: 34.96929423 | BT30: 22.80647196 | BU30: 19.14536591 | BV30: 17.99560454 | BW30: 17.90719249 | BX30: 18.34538305 | BY30: 19.06668967 | BZ30: 19.9459943 | CA30: 20.91414556 | CB30: 21.93112679 | CC30: 22.97311078 | CD30: 24.02576524 | CE30: 25.08064947 | CF30: 26.13320368 | CG30: 27.18154404 | CH30: 28.22563195 | CI30: 29.26659398 | CJ30: 30.3061037 | CK30: 31.34581999 | CL30: 32.38691527 | CM30: 33.42973246 | CN30: 38.1515 | CO30: 24.88186091 | CP30: 20.88759421 | CQ30: 19.63320455 | CR30: 19.536747 | CS30: 20.01481291 | CT30: 20.80175842 | CU30: 21.76107978 | CV30: 22.8173328 | CW30: 23.92685933 | CX30: 25.06366386 | CY30: 26.21210988 | CZ30: 27.36298858 | DA30: 28.51132521 | DB30: 29.65506455 | DC30: 30.79416446 | DD30: 31.92985403 | DE30: 33.06395913 | DF30: 34.19828961 | DG30: 35.33412456 | DH30: 36.47183811 | DI30: =IF('Asset data'!$F30=0,0,AY30/'Asset data'!$F30) -> 273.7429922 | DJ30: =IF('Asset data'!$F30=0,0,AZ30/'Asset data'!$F30) -> 166.2436218 | DK30: =IF('Asset data'!$F30=0,0,BA30/'Asset data'!$F30) -> 101.106394 | DL30: =IF('Asset data'!$F30=0,0,BB30/'Asset data'!$F30) -> 61.99918462 | DM30: =IF('Asset data'!$F30=0,0,BC30/'Asset data'!$F30) -> 38.69256862 | DN30: =IF('Asset data'!$F30=0,0,BD30/'Asset data'!$F30) -> 24.88988765 | DO30: =IF('Asset data'!$F30=0,0,BE30/'Asset data'!$F30) -> 16.77312892 | DP30: =IF('Asset data'!$F30=0,0,BF30/'Asset data'!$F30) -> 12.05601513 | DQ30: =IF('Asset data'!$F30=0,0,BG30/'Asset data'!$F30) -> 9.381870784 | DR30: =IF('Asset data'!$F30=0,0,BH30/'Asset data'!$F30) -> 7.948431532 | DS30: =IF('Asset data'!$F30=0,0,BI30/'Asset data'!$F30) -> 7.278435784 | DT30: =IF('Asset data'!$F30=0,0,BJ30/'Asset data'!$F30) -> 7.08219176 | DU30: =IF('Asset data'!$F30=0,0,BK30/'Asset data'!$F30) -> 7.177407003 | DV30: =IF('Asset data'!$F30=0,0,BL30/'Asset data'!$F30) -> 7.444277518 | DW30: =IF('Asset data'!$F30=0,0,BM30/'Asset data'!$F30) -> 7.80200818 | DX30: =IF('Asset data'!$F30=0,0,BN30/'Asset data'!$F30) -> 8.198062444 | DY30: =IF('Asset data'!$F30=0,0,BO30/'Asset data'!$F30) -> 8.604595952 | DZ30: =IF('Asset data'!$F30=0,0,BP30/'Asset data'!$F30) -> 9.018450435 | EA30: =IF('Asset data'!$F30=0,0,BQ30/'Asset data'!$F30) -> 9.462253307 | EB30: =IF('Asset data'!$F30=0,0,BR30/'Asset data'!$F30) -> 9.984894151
A31: ='Asset data'!A31 -> 2 | B31: ='Asset data'!B31 -> 0 | C31: ='Asset data'!C31 -> 0 | D31: ='Asset data'!E31 -> > 22 kV & < = 66 kV; Concrete | E31: POLES | F31: ='Asset data'!G31 -> 50 | G31: 50 | H31: ='Asset data'!H31 -> 7.071067812 | I31: S | J31: =IF(A31=0,0,IF('Asset data'!$D$1=1,1,IF('Asset data'!$D$1=2,2,'Asset data'!I31))) -> 2 | K31: 50 | AX31: ='Age profile summary'!H31 -> 0.381 | AY31: =repcalc('Age profile (Inst)'!CT31:GF31,J31,K31,H31,20,$L$20,$M$20) -> 0.05023557564 | AZ31: 0.04478553437 | BA31: 0.03957454535 | BB31: 0.03467845742 | BC31: 0.03014836945 | BD31: 0.02601421725 | BE31: 0.02228869039 | BF31: 0.01897099133 | BG31: 0.01605013404 | BH31: 0.0135076509 | BI31: 0.0113197109 | BJ31: 0.009458738484 | BK31: 0.007894660726 | BL31: 0.006595910673 | BM31: 0.005530290115 | BN31: 0.004665758378 | BO31: 0.003971176932 | BP31: 0.003417009452 | BQ31: 0.002975957256 | BR31: 0.002623500993 | BS31: 49.70734908 | BT31: 43.38683292 | BU31: 38.9738071 | BV31: 35.83823602 | BW31: 33.61647566 | BX31: 32.08094864 | BY31: 31.07879056 | BZ31: 30.50087643 | CA31: 30.2652888 | CB31: 30.30808776 | CC31: 30.57795055 | CD31: 31.03293123 | CE31: 31.63840922 | CF31: 32.36571909 | CG31: 33.19118081 | CH31: 34.09537232 | CI31: 35.06255119 | CJ31: 36.08016611 | CK31: 37.13841784 | CL31: 38.22984334 | CM31: 39.34890938 | CN31: 18.9385 | CO31: 16.53038334 | CP31: 14.8490205 | CQ31: 13.65436792 | CR31: 12.80787723 | CS31: 12.22284143 | CT31: 11.8410192 | CU31: 11.62083392 | CV31: 11.53107503 | CW31: 11.54738144 | CX31: 11.65019916 | CY31: 11.8235468 | CZ31: 12.05423391 | DA31: 12.33133897 | DB31: 12.64583989 | DC31: 12.99033685 | DD31: 13.35883201 | DE31: 13.74654329 | DF31: 14.1497372 | DG31: 14.56557031 | DH31: 14.99193447 | DI31: =IF('Asset data'!$F31=0,0,AY31/'Asset data'!$F31) -> 50.23557564 | DJ31: =IF('Asset data'!$F31=0,0,AZ31/'Asset data'!$F31) -> 44.78553437 | DK31: =IF('Asset data'!$F31=0,0,BA31/'Asset data'!$F31) -> 39.57454535 | DL31: =IF('Asset data'!$F31=0,0,BB31/'Asset data'!$F31) -> 34.67845742 | DM31: =IF('Asset data'!$F31=0,0,BC31/'Asset data'!$F31) -> 30.14836945 | DN31: =IF('Asset data'!$F31=0,0,BD31/'Asset data'!$F31) -> 26.01421725 | DO31: =IF('Asset data'!$F31=0,0,BE31/'Asset data'!$F31) -> 22.28869039 | DP31: =IF('Asset data'!$F31=0,0,BF31/'Asset data'!$F31) -> 18.97099133 | DQ31: =IF('Asset data'!$F31=0,0,BG31/'Asset data'!$F31) -> 16.05013404 | DR31: =IF('Asset data'!$F31=0,0,BH31/'Asset data'!$F31) -> 13.5076509 | DS31: =IF('Asset data'!$F31=0,0,BI31/'Asset data'!$F31) -> 11.3197109 | DT31: =IF('Asset data'!$F31=0,0,BJ31/'Asset data'!$F31) -> 9.458738484 | DU31: =IF('Asset data'!$F31=0,0,BK31/'Asset data'!$F31) -> 7.894660726 | DV31: =IF('Asset data'!$F31=0,0,BL31/'Asset data'!$F31) -> 6.595910673 | DW31: =IF('Asset data'!$F31=0,0,BM31/'Asset data'!$F31) -> 5.530290115 | DX31: =IF('Asset data'!$F31=0,0,BN31/'Asset data'!$F31) -> 4.665758378 | DY31: =IF('Asset data'!$F31=0,0,BO31/'Asset data'!$F31) -> 3.971176932 | DZ31: =IF('Asset data'!$F31=0,0,BP31/'Asset data'!$F31) -> 3.417009452 | EA31: =IF('Asset data'!$F31=0,0,BQ31/'Asset data'!$F31) -> 2.975957256 | EB31: =IF('Asset data'!$F31=0,0,BR31/'Asset data'!$F31) -> 2.623500993
A32: ='Asset data'!A32 -> 0 | B32: ='Asset data'!B32 -> 0 | C32: ='Asset data'!C32 -> 0 | D32: ='Asset data'!E32 ->  | E32: 0 | F32: ='Asset data'!G32 -> 50 | G32: 50 | H32: ='Asset data'!H32 -> 7.071067812 | I32: S | J32: =IF(A32=0,0,IF('Asset data'!$D$1=1,1,IF('Asset data'!$D$1=2,2,'Asset data'!I32))) -> 0 | K32: 0 | AX32: ='Age profile summary'!H32 -> 0 | AY32: =repcalc('Age profile (Inst)'!CT32:GF32,J32,K32,H32,20,$L$20,$M$20) -> 0 | AZ32: 0 | BA32: 0 | BB32: 0 | BC32: 0 | BD32: 0 | BE32: 0 | BF32: 0 | BG32: 0 | BH32: 0 | BI32: 0 | BJ32: 0 | BK32: 0 | BL32: 0 | BM32: 0 | BN32: 0 | BO32: 0 | BP32: 0 | BQ32: 0 | BR32: 0 | BS32: 0 | BT32: 0 | BU32: 0 | BV32: 0 | BW32: 0 | BX32: 0 | BY32: 0 | BZ32: 0 | CA32: 0 | CB32: 0 | CC32: 0 | CD32: 0 | CE32: 0 | CF32: 0 | CG32: 0 | CH32: 0 | CI32: 0 | CJ32: 0 | CK32: 0 | CL32: 0 | CM32: 0 | CN32: 0 | CO32: 0 | CP32: 0 | CQ32: 0 | CR32: 0 | CS32: 0 | CT32: 0 | CU32: 0 | CV32: 0 | CW32: 0 | CX32: 0 | CY32: 0 | CZ32: 0 | DA32: 0 | DB32: 0 | DC32: 0 | DD32: 0 | DE32: 0 | DF32: 0 | DG32: 0 | DH32: 0 | DI32: =IF('Asset data'!$F32=0,0,AY32/'Asset data'!$F32) -> 0 | DJ32: =IF('Asset data'!$F32=0,0,AZ32/'Asset data'!$F32) -> 0 | DK32: =IF('Asset data'!$F32=0,0,BA32/'Asset data'!$F32) -> 0 | DL32: =IF('Asset data'!$F32=0,0,BB32/'Asset data'!$F32) -> 0 | DM32: =IF('Asset data'!$F32=0,0,BC32/'Asset data'!$F32) -> 0 | DN32: =IF('Asset data'!$F32=0,0,BD32/'Asset data'!$F32) -> 0 | DO32: =IF('Asset data'!$F32=0,0,BE32/'Asset data'!$F32) -> 0 | DP32: =IF('Asset data'!$F32=0,0,BF32/'Asset data'!$F32) -> 0 | DQ32: =IF('Asset data'!$F32=0,0,BG32/'Asset data'!$F32) -> 0 | DR32: =IF('Asset data'!$F32=0,0,BH32/'Asset data'!$F32) -> 0 | DS32: =IF('Asset data'!$F32=0,0,BI32/'Asset data'!$F32) -> 0 | DT32: =IF('Asset data'!$F32=0,0,BJ32/'Asset data'!$F32) -> 0 | DU32: =IF('Asset data'!$F32=0,0,BK32/'Asset data'!$F32) -> 0 | DV32: =IF('Asset data'!$F32=0,0,BL32/'Asset data'!$F32) -> 0 | DW32: =IF('Asset data'!$F32=0,0,BM32/'Asset data'!$F32) -> 0 | DX32: =IF('Asset data'!$F32=0,0,BN32/'Asset data'!$F32) -> 0 | DY32: =IF('Asset data'!$F32=0,0,BO32/'Asset data'!$F32) -> 0 | DZ32: =IF('Asset data'!$F32=0,0,BP32/'Asset data'!$F32) -> 0 | EA32: =IF('Asset data'!$F32=0,0,BQ32/'Asset data'!$F32) -> 0 | EB32: =IF('Asset data'!$F32=0,0,BR32/'Asset data'!$F32) -> 0
A33: ='Asset data'!A33 -> 0 | B33: ='Asset data'!B33 -> 0 | C33: ='Asset data'!C33 -> 0 | D33: ='Asset data'!E33 ->  | E33: 0 | F33: ='Asset data'!G33 -> 50 | G33: 50 | H33: ='Asset data'!H33 -> 7.071067812 | I33: S | J33: =IF(A33=0,0,IF('Asset data'!$D$1=1,1,IF('Asset data'!$D$1=2,2,'Asset data'!I33))) -> 0 | K33: 0 | AX33: ='Age profile summary'!H33 -> 0 | AY33: =repcalc('Age profile (Inst)'!CT33:GF33,J33,K33,H33,20,$L$20,$M$20) -> 0 | AZ33: 0 | BA33: 0 | BB33: 0 | BC33: 0 | BD33: 0 | BE33: 0 | BF33: 0 | BG33: 0 | BH33: 0 | BI33: 0 | BJ33: 0 | BK33: 0 | BL33: 0 | BM33: 0 | BN33: 0 | BO33: 0 | BP33: 0 | BQ33: 0 | BR33: 0 | BS33: 0 | BT33: 0 | BU33: 0 | BV33: 0 | BW33: 0 | BX33: 0 | BY33: 0 | BZ33: 0 | CA33: 0 | CB33: 0 | CC33: 0 | CD33: 0 | CE33: 0 | CF33: 0 | CG33: 0 | CH33: 0 | CI33: 0 | CJ33: 0 | CK33: 0 | CL33: 0 | CM33: 0 | CN33: 0 | CO33: 0 | CP33: 0 | CQ33: 0 | CR33: 0 | CS33: 0 | CT33: 0 | CU33: 0 | CV33: 0 | CW33: 0 | CX33: 0 | CY33: 0 | CZ33: 0 | DA33: 0 | DB33: 0 | DC33: 0 | DD33: 0 | DE33: 0 | DF33: 0 | DG33: 0 | DH33: 0 | DI33: =IF('Asset data'!$F33=0,0,AY33/'Asset data'!$F33) -> 0 | DJ33: =IF('Asset data'!$F33=0,0,AZ33/'Asset data'!$F33) -> 0 | DK33: =IF('Asset data'!$F33=0,0,BA33/'Asset data'!$F33) -> 0 | DL33: =IF('Asset data'!$F33=0,0,BB33/'Asset data'!$F33) -> 0 | DM33: =IF('Asset data'!$F33=0,0,BC33/'Asset data'!$F33) -> 0 | DN33: =IF('Asset data'!$F33=0,0,BD33/'Asset data'!$F33) -> 0 | DO33: =IF('Asset data'!$F33=0,0,BE33/'Asset data'!$F33) -> 0 | DP33: =IF('Asset data'!$F33=0,0,BF33/'Asset data'!$F33) -> 0 | DQ33: =IF('Asset data'!$F33=0,0,BG33/'Asset data'!$F33) -> 0 | DR33: =IF('Asset data'!$F33=0,0,BH33/'Asset data'!$F33) -> 0 | DS33: =IF('Asset data'!$F33=0,0,BI33/'Asset data'!$F33) -> 0 | DT33: =IF('Asset data'!$F33=0,0,BJ33/'Asset data'!$F33) -> 0 | DU33: =IF('Asset data'!$F33=0,0,BK33/'Asset data'!$F33) -> 0 | DV33: =IF('Asset data'!$F33=0,0,BL33/'Asset data'!$F33) -> 0 | DW33: =IF('Asset data'!$F33=0,0,BM33/'Asset data'!$F33) -> 0 | DX33: =IF('Asset data'!$F33=0,0,BN33/'Asset data'!$F33) -> 0 | DY33: =IF('Asset data'!$F33=0,0,BO33/'Asset data'!$F33) -> 0 | DZ33: =IF('Asset data'!$F33=0,0,BP33/'Asset data'!$F33) -> 0 | EA33: =IF('Asset data'!$F33=0,0,BQ33/'Asset data'!$F33) -> 0 | EB33: =IF('Asset data'!$F33=0,0,BR33/'Asset data'!$F33) -> 0
A34: ='Asset data'!A34 -> 2 | B34: ='Asset data'!B34 -> 0 | C34: ='Asset data'!C34 -> 0 | D34: ='Asset data'!E34 -> ˂ = 1 kV; Steel | E34: POLES | F34: ='Asset data'!G34 -> 36.89178473 | G34: 36.89178473 | H34: ='Asset data'!H34 -> 6.073860776 | I34: S | J34: =IF(A34=0,0,IF('Asset data'!$D$1=1,1,IF('Asset data'!$D$1=2,2,'Asset data'!I34))) -> 2 | K34: 36.89178473 | AX34: ='Age profile summary'!H34 -> 88619.61021 | AY34: =repcalc('Age profile (Inst)'!CT34:GF34,J34,K34,H34,20,$L$20,$M$20) -> 476.006614 | AZ34: 420.4228128 | BA34: 384.7473248 | BB34: 365.7112829 | BC34: 360.8017902 | BD34: 368.3691422 | BE34: 387.7027669 | BF34: 419.0789886 | BG34: 463.7712237 | BH34: 524.00414 | BI34: 602.8295173 | BJ34: 703.9039217 | BK34: 831.1567922 | BL34: 988.3512025 | BM34: 1178.55675 | BN34: 1403.572501 | BO34: 1663.355043 | BP34: 1955.519559 | BQ34: 2274.987645 | BR34: 2613.851803 | BS34: 10.84856075 | BT34: 11.62253612 | BU34: 12.47095742 | BV34: 13.35108979 | BW34: 14.24614562 | BX34: 15.14769161 | BY34: 16.05061309 | BZ34: 16.95113742 | CA34: 17.84581971 | CB34: 18.73089501 | CC34: 19.60181483 | CD34: 20.452923 | CE34: 21.27727563 | CF34: 22.06662545 | CG34: 22.81159293 | CH34: 23.50203893 | CI34: 24.12764005 | CJ34: 24.67864754 | CK34: 25.14678656 | CL34: 25.5262257 | CM34: 25.81452132 | CN34: 961395.2253 | CO34: 1029984.621 | CP34: 1105171.385 | CQ34: 1183168.373 | CR34: 1262487.872 | CS34: 1342382.526 | CT34: 1422399.076 | CU34: 1502203.191 | CV34: 1581489.586 | CW34: 1659924.615 | CX34: 1737105.189 | CY34: 1812530.064 | CZ34: 1885583.873 | DA34: 1955535.746 | DB34: 2021554.474 | DC34: 2082741.53 | DD34: 2138182.056 | DE34: 2187012.125 | DF34: 2228498.423 | DG34: 2262124.172 | DH34: 2287672.817 | DI34: =IF('Asset data'!$F34=0,0,AY34/'Asset data'!$F34) -> 63.25834518 | DJ34: =IF('Asset data'!$F34=0,0,AZ34/'Asset data'!$F34) -> 55.87160059 | DK34: =IF('Asset data'!$F34=0,0,BA34/'Asset data'!$F34) -> 51.13054813 | DL34: =IF('Asset data'!$F34=0,0,BB34/'Asset data'!$F34) -> 48.60077548 | DM34: =IF('Asset data'!$F34=0,0,BC34/'Asset data'!$F34) -> 47.94833416 | DN34: =IF('Asset data'!$F34=0,0,BD34/'Asset data'!$F34) -> 48.9539886 | DO34: =IF('Asset data'!$F34=0,0,BE34/'Asset data'!$F34) -> 51.52330816 | DP34: =IF('Asset data'!$F34=0,0,BF34/'Asset data'!$F34) -> 55.69301464 | DQ34: =IF('Asset data'!$F34=0,0,BG34/'Asset data'!$F34) -> 61.63233722 | DR34: =IF('Asset data'!$F34=0,0,BH34/'Asset data'!$F34) -> 69.63692056 | DS34: =IF('Asset data'!$F34=0,0,BI34/'Asset data'!$F34) -> 80.11232738 | DT34: =IF('Asset data'!$F34=0,0,BJ34/'Asset data'!$F34) -> 93.54449276 | DU34: =IF('Asset data'!$F34=0,0,BK34/'Asset data'!$F34) -> 110.4556149 | DV34: =IF('Asset data'!$F34=0,0,BL34/'Asset data'!$F34) -> 131.3457832 | DW34: =IF('Asset data'!$F34=0,0,BM34/'Asset data'!$F34) -> 156.6229281 | DX34: =IF('Asset data'!$F34=0,0,BN34/'Asset data'!$F34) -> 186.5261346 | DY34: =IF('Asset data'!$F34=0,0,BO34/'Asset data'!$F34) -> 221.0496333 | DZ34: =IF('Asset data'!$F34=0,0,BP34/'Asset data'!$F34) -> 259.8764968 | EA34: =IF('Asset data'!$F34=0,0,BQ34/'Asset data'!$F34) -> 302.3318364 | EB34: =IF('Asset data'!$F34=0,0,BR34/'Asset data'!$F34) -> 347.3647944
A35: ='Asset data'!A35 -> 2 | B35: ='Asset data'!B35 -> 0 | C35: ='Asset data'!C35 -> 0 | D35: ='Asset data'!E35 -> > 1 kV & < = 11 kV; Steel | E35: POLES | F35: ='Asset data'!G35 -> 55.84368053 | G35: 55.84368053 | H35: ='Asset data'!H35 -> 7.47286294 | I35: S | J35: =IF(A35=0,0,IF('Asset data'!$D$1=1,1,IF('Asset data'!$D$1=2,2,'Asset data'!I35))) -> 2 | K35: 55.84368053 | AX35: ='Age profile summary'!H35 -> 0.41 | AY35: =repcalc('Age profile (Inst)'!CT35:GF35,J35,K35,H35,20,$L$20,$M$20) -> 0.00610336367 | AZ35: 0.006083218117 | BA35: 0.006010127352 | BB35: 0.005897473124 | BC35: 0.005760898923 | BD35: 0.005617307462 | BE35: 0.005483839354 | BF35: 0.005376914742 | BG35: 0.005311399262 | BH35: 0.005299930365 | BI35: 0.005352414501 | BJ35: 0.005475684225 | BK35: 0.005673290162 | BL35: 0.005945397429 | BM35: 0.006288759639 | BN35: 0.006696754244 | BO35: 0.007159478102 | BP35: 0.007663918145 | BQ35: 0.008194225314 | BR35: 0.008732126972 | BS35: 27.97317073 | BT35: 28.14323682 | BU35: 28.39734705 | BV35: 28.72698317 | BW35: 29.12234321 | BX35: 29.57306676 | BY35: 30.06870078 | BZ35: 30.59896174 | CA35: 31.15385913 | CB35: 31.72374258 | CC35: 32.29932324 | CD35: 32.87170559 | CE35: 33.43245026 | CF35: 33.97367634 | CG35: 34.48820339 | CH35: 34.96973081 | CI35: 35.41305177 | CJ35: 35.81429879 | CK35: 36.17121389 | CL35: 36.48342685 | CM35: 36.75271096 | CN35: 11.469 | CO35: 11.5387271 | CP35: 11.64291229 | CQ35: 11.7780631 | CR35: 11.94016072 | CS35: 12.12495737 | CT35: 12.32816732 | CU35: 12.54557431 | CV35: 12.77308224 | CW35: 13.00673446 | CX35: 13.24272253 | CY35: 13.47739929 | CZ35: 13.70730461 | DA35: 13.9292073 | DB35: 14.14016339 | DC35: 14.33758963 | DD35: 14.51935123 | DE35: 14.6838625 | DF35: 14.8301977 | DG35: 14.95820501 | DH35: 15.06861149 | DI35: =IF('Asset data'!$F35=0,0,AY35/'Asset data'!$F35) -> 6.10336367 | DJ35: =IF('Asset data'!$F35=0,0,AZ35/'Asset data'!$F35) -> 6.083218117 | DK35: =IF('Asset data'!$F35=0,0,BA35/'Asset data'!$F35) -> 6.010127352 | DL35: =IF('Asset data'!$F35=0,0,BB35/'Asset data'!$F35) -> 5.897473124 | DM35: =IF('Asset data'!$F35=0,0,BC35/'Asset data'!$F35) -> 5.760898923 | DN35: =IF('Asset data'!$F35=0,0,BD35/'Asset data'!$F35) -> 5.617307462 | DO35: =IF('Asset data'!$F35=0,0,BE35/'Asset data'!$F35) -> 5.483839354 | DP35: =IF('Asset data'!$F35=0,0,BF35/'Asset data'!$F35) -> 5.376914742 | DQ35: =IF('Asset data'!$F35=0,0,BG35/'Asset data'!$F35) -> 5.311399262 | DR35: =IF('Asset data'!$F35=0,0,BH35/'Asset data'!$F35) -> 5.299930365 | DS35: =IF('Asset data'!$F35=0,0,BI35/'Asset data'!$F35) -> 5.352414501 | DT35: =IF('Asset data'!$F35=0,0,BJ35/'Asset data'!$F35) -> 5.475684225 | DU35: =IF('Asset data'!$F35=0,0,BK35/'Asset data'!$F35) -> 5.673290162 | DV35: =IF('Asset data'!$F35=0,0,BL35/'Asset data'!$F35) -> 5.945397429 | DW35: =IF('Asset data'!$F35=0,0,BM35/'Asset data'!$F35) -> 6.288759639 | DX35: =IF('Asset data'!$F35=0,0,BN35/'Asset data'!$F35) -> 6.696754244 | DY35: =IF('Asset data'!$F35=0,0,BO35/'Asset data'!$F35) -> 7.159478102 | DZ35: =IF('Asset data'!$F35=0,0,BP35/'Asset data'!$F35) -> 7.663918145 | EA35: =IF('Asset data'!$F35=0,0,BQ35/'Asset data'!$F35) -> 8.194225314 | EB35: =IF('Asset data'!$F35=0,0,BR35/'Asset data'!$F35) -> 8.732126972
A36: ='Asset data'!A36 -> 2 | B36: ='Asset data'!B36 -> 0 | C36: ='Asset data'!C36 -> 0 | D36: ='Asset data'!E36 -> ˃ 11 kV & < = 22 kV; Steel | E36: POLES | F36: ='Asset data'!G36 -> 62.49518984 | G36: 62.49518984 | H36: ='Asset data'!H36 -> 7.905389923 | I36: S | J36: =IF(A36=0,0,IF('Asset data'!$D$1=1,1,IF('Asset data'!$D$1=2,2,'Asset data'!I36))) -> 2 | K36: 62.49518984 | AX36: ='Age profile summary'!H36 -> 2.741 | AY36: =repcalc('Age profile (Inst)'!CT36:GF36,J36,K36,H36,20,$L$20,$M$20) -> 0.02801903007 | AZ36: 0.03194553923 | BA36: 0.03598817876 | BB36: 0.04006612937 | BC36: 0.04409010764 | BD36: 0.04796592225 | BE36: 0.05159852848 | BF36: 0.05489630787 | BG36: 0.05777527125 | BH36: 0.06016288479 | BI36: 0.06200125202 | BJ36: 0.06324944576 | BK36: 0.06388486504 | BL36: 0.06390358366 | BM36: 0.063319746 | BN36: 0.06216414218 | BO36: 0.06048214855 | BP36: 0.05833124634 | BQ36: 0.05577833064 | BR36: 0.05289699717 | BS36: 30.58281649 | BT36: 31.0317442 | BU36: 31.41780343 | BV36: 31.74336321 | BW36: 32.01241838 | BX36: 32.23049677 | BY36: 32.40449322 | BZ36: 32.54243776 | CA36: 32.65321201 | CB36: 32.74623501 | CC36: 32.83114451 | CD36: 32.91749974 | CE36: 33.01452616 | CF36: 33.13091275 | CG36: 33.2746619 | CH36: 33.45298336 | CI36: 33.67221923 | CJ36: 33.93778711 | CK36: 34.25413146 | CL36: 34.62467864 | CM36: 35.05179593 | CN36: 83.8275 | CO36: 85.05801085 | CP36: 86.1161992 | CQ36: 87.00855855 | CR36: 87.74603877 | CS36: 88.34379165 | CT36: 88.82071593 | CU36: 89.1988219 | CV36: 89.50245412 | CW36: 89.75743017 | CX36: 89.9901671 | CY36: 90.22686679 | CZ36: 90.4928162 | DA36: 90.81183185 | DB36: 91.20584827 | DC36: 91.69462738 | DD36: 92.29555291 | DE36: 93.02347446 | DF36: 93.89057434 | DG36: 94.90624414 | DH36: 96.07697265 | DI36: =IF('Asset data'!$F36=0,0,AY36/'Asset data'!$F36) -> 28.01903007 | DJ36: =IF('Asset data'!$F36=0,0,AZ36/'Asset data'!$F36) -> 31.94553923 | DK36: =IF('Asset data'!$F36=0,0,BA36/'Asset data'!$F36) -> 35.98817876 | DL36: =IF('Asset data'!$F36=0,0,BB36/'Asset data'!$F36) -> 40.06612937 | DM36: =IF('Asset data'!$F36=0,0,BC36/'Asset data'!$F36) -> 44.09010764 | DN36: =IF('Asset data'!$F36=0,0,BD36/'Asset data'!$F36) -> 47.96592225 | DO36: =IF('Asset data'!$F36=0,0,BE36/'Asset data'!$F36) -> 51.59852848 | DP36: =IF('Asset data'!$F36=0,0,BF36/'Asset data'!$F36) -> 54.89630787 | DQ36: =IF('Asset data'!$F36=0,0,BG36/'Asset data'!$F36) -> 57.77527125 | DR36: =IF('Asset data'!$F36=0,0,BH36/'Asset data'!$F36) -> 60.16288479 | DS36: =IF('Asset data'!$F36=0,0,BI36/'Asset data'!$F36) -> 62.00125202 | DT36: =IF('Asset data'!$F36=0,0,BJ36/'Asset data'!$F36) -> 63.24944576 | DU36: =IF('Asset data'!$F36=0,0,BK36/'Asset data'!$F36) -> 63.88486504 | DV36: =IF('Asset data'!$F36=0,0,BL36/'Asset data'!$F36) -> 63.90358366 | DW36: =IF('Asset data'!$F36=0,0,BM36/'Asset data'!$F36) -> 63.319746 | DX36: =IF('Asset data'!$F36=0,0,BN36/'Asset data'!$F36) -> 62.16414218 | DY36: =IF('Asset data'!$F36=0,0,BO36/'Asset data'!$F36) -> 60.48214855 | DZ36: =IF('Asset data'!$F36=0,0,BP36/'Asset data'!$F36) -> 58.33124634 | EA36: =IF('Asset data'!$F36=0,0,BQ36/'Asset data'!$F36) -> 55.77833064 | EB36: =IF('Asset data'!$F36=0,0,BR36/'Asset data'!$F36) -> 52.89699717
A37: ='Asset data'!A37 -> 2 | B37: ='Asset data'!B37 -> 0 | C37: ='Asset data'!C37 -> 0 | D37: ='Asset data'!E37 -> > 22 kV & < = 66 kV; Steel | E37: POLES | F37: ='Asset data'!G37 -> 50 | G37: 50 | H37: ='Asset data'!H37 -> 7.071067812 | I37: S | J37: =IF(A37=0,0,IF('Asset data'!$D$1=1,1,IF('Asset data'!$D$1=2,2,'Asset data'!I37))) -> 2 | K37: 50 | AX37: ='Age profile summary'!H37 -> 0.066 | AY37: =repcalc('Age profile (Inst)'!CT37:GF37,J37,K37,H37,20,$L$20,$M$20) -> 1.323390415e-07 | AZ37: 2.202876727e-07 | BA37: 3.594877691e-07 | BB37: 5.751645185e-07 | BC37: 9.0228607e-07 | BD37: 1.387973909e-06 | BE37: 2.093910276e-06 | BF37: 3.098477347e-06 | BG37: 4.498327906e-06 | BH37: 6.409128226e-06 | BI37: 8.9653759e-06 | BJ37: 1.231951991e-05 | BK37: 1.664111997e-05 | BL37: 2.211746259e-05 | BM37: 2.895783e-05 | BN37: 3.740435236e-05 | BO37: 4.775284155e-05 | BP37: 6.038692629e-05 | BQ37: 7.582787755e-05 | BR37: 9.480046772e-05 | BS37: 8.666666667 | BT37: 9.666618579 | BU37: 10.66653522 | BV37: 11.66639381 | BW37: 12.66615898 | BX37: 13.66577726 | BY37: 14.66516976 | BZ37: 15.66422317 | CA37: 16.66277892 | CB37: 17.66062111 | CC37: 18.6574639 | CD37: 19.65293955 | CE37: 20.64658877 | CF37: 21.63785481 | CG37: 22.62608245 | CH37: 23.61052135 | CI37: 24.59033098 | CJ37: 25.56458023 | CK37: 26.53223029 | CL37: 27.49208482 | CM37: 28.44268786 | CN37: 0.572 | CO37: 0.6379968262 | CP37: 0.7039913247 | CQ37: 0.7699819913 | CR37: 0.8359664928 | CS37: 0.901941299 | CT37: 0.9679012044 | CU37: 1.033838729 | CV37: 1.099743409 | CW37: 1.165600993 | CX37: 1.231392617 | CY37: 1.29709401 | CZ37: 1.362674859 | DA37: 1.428098418 | DB37: 1.493321442 | DC37: 1.558294409 | DD37: 1.622961845 | DE37: 1.687262295 | DF37: 1.751127199 | DG37: 1.814477598 | DH37: 1.877217399 | DI37: =IF('Asset data'!$F37=0,0,AY37/'Asset data'!$F37) -> 0.0001323390415 | DJ37: =IF('Asset data'!$F37=0,0,AZ37/'Asset data'!$F37) -> 0.0002202876727 | DK37: =IF('Asset data'!$F37=0,0,BA37/'Asset data'!$F37) -> 0.0003594877691 | DL37: =IF('Asset data'!$F37=0,0,BB37/'Asset data'!$F37) -> 0.0005751645185 | DM37: =IF('Asset data'!$F37=0,0,BC37/'Asset data'!$F37) -> 0.00090228607 | DN37: =IF('Asset data'!$F37=0,0,BD37/'Asset data'!$F37) -> 0.001387973909 | DO37: =IF('Asset data'!$F37=0,0,BE37/'Asset data'!$F37) -> 0.002093910276 | DP37: =IF('Asset data'!$F37=0,0,BF37/'Asset data'!$F37) -> 0.003098477347 | DQ37: =IF('Asset data'!$F37=0,0,BG37/'Asset data'!$F37) -> 0.004498327906 | DR37: =IF('Asset data'!$F37=0,0,BH37/'Asset data'!$F37) -> 0.006409128226 | DS37: =IF('Asset data'!$F37=0,0,BI37/'Asset data'!$F37) -> 0.0089653759 | DT37: =IF('Asset data'!$F37=0,0,BJ37/'Asset data'!$F37) -> 0.01231951991 | DU37: =IF('Asset data'!$F37=0,0,BK37/'Asset data'!$F37) -> 0.01664111997 | DV37: =IF('Asset data'!$F37=0,0,BL37/'Asset data'!$F37) -> 0.02211746259 | DW37: =IF('Asset data'!$F37=0,0,BM37/'Asset data'!$F37) -> 0.02895783 | DX37: =IF('Asset data'!$F37=0,0,BN37/'Asset data'!$F37) -> 0.03740435236 | DY37: =IF('Asset data'!$F37=0,0,BO37/'Asset data'!$F37) -> 0.04775284155 | DZ37: =IF('Asset data'!$F37=0,0,BP37/'Asset data'!$F37) -> 0.06038692629 | EA37: =IF('Asset data'!$F37=0,0,BQ37/'Asset data'!$F37) -> 0.07582787755 | EB37: =IF('Asset data'!$F37=0,0,BR37/'Asset data'!$F37) -> 0.09480046772
A38: ='Asset data'!A38 -> 0 | B38: ='Asset data'!B38 -> 0 | C38: ='Asset data'!C38 -> 0 | D38: ='Asset data'!E38 ->  | E38: 0 | F38: ='Asset data'!G38 -> 50 | G38: 50 | H38: ='Asset data'!H38 -> 7.071067812 | I38: S | J38: =IF(A38=0,0,IF('Asset data'!$D$1=1,1,IF('Asset data'!$D$1=2,2,'Asset data'!I38))) -> 0 | K38: 0 | AX38: ='Age profile summary'!H38 -> 0 | AY38: =repcalc('Age profile (Inst)'!CT38:GF38,J38,K38,H38,20,$L$20,$M$20) -> 0 | AZ38: 0 | BA38: 0 | BB38: 0 | BC38: 0 | BD38: 0 | BE38: 0 | BF38: 0 | BG38: 0 | BH38: 0 | BI38: 0 | BJ38: 0 | BK38: 0 | BL38: 0 | BM38: 0 | BN38: 0 | BO38: 0 | BP38: 0 | BQ38: 0 | BR38: 0 | BS38: 0 | BT38: 0 | BU38: 0 | BV38: 0 | BW38: 0 | BX38: 0 | BY38: 0 | BZ38: 0 | CA38: 0 | CB38: 0 | CC38: 0 | CD38: 0 | CE38: 0 | CF38: 0 | CG38: 0 | CH38: 0 | CI38: 0 | CJ38: 0 | CK38: 0 | CL38: 0 | CM38: 0 | CN38: 0 | CO38: 0 | CP38: 0 | CQ38: 0 | CR38: 0 | CS38: 0 | CT38: 0 | CU38: 0 | CV38: 0 | CW38: 0 | CX38: 0 | CY38: 0 | CZ38: 0 | DA38: 0 | DB38: 0 | DC38: 0 | DD38: 0 | DE38: 0 | DF38: 0 | DG38: 0 | DH38: 0 | DI38: =IF('Asset data'!$F38=0,0,AY38/'Asset data'!$F38) -> 0 | DJ38: =IF('Asset data'!$F38=0,0,AZ38/'Asset data'!$F38) -> 0 | DK38: =IF('Asset data'!$F38=0,0,BA38/'Asset data'!$F38) -> 0 | DL38: =IF('Asset data'!$F38=0,0,BB38/'Asset data'!$F38) -> 0 | DM38: =IF('Asset data'!$F38=0,0,BC38/'Asset data'!$F38) -> 0 | DN38: =IF('Asset data'!$F38=0,0,BD38/'Asset data'!$F38) -> 0 | DO38: =IF('Asset data'!$F38=0,0,BE38/'Asset data'!$F38) -> 0 | DP38: =IF('Asset data'!$F38=0,0,BF38/'Asset data'!$F38) -> 0 | DQ38: =IF('Asset data'!$F38=0,0,BG38/'Asset data'!$F38) -> 0 | DR38: =IF('Asset data'!$F38=0,0,BH38/'Asset data'!$F38) -> 0 | DS38: =IF('Asset data'!$F38=0,0,BI38/'Asset data'!$F38) -> 0 | DT38: =IF('Asset data'!$F38=0,0,BJ38/'Asset data'!$F38) -> 0 | DU38: =IF('Asset data'!$F38=0,0,BK38/'Asset data'!$F38) -> 0 | DV38: =IF('Asset data'!$F38=0,0,BL38/'Asset data'!$F38) -> 0 | DW38: =IF('Asset data'!$F38=0,0,BM38/'Asset data'!$F38) -> 0 | DX38: =IF('Asset data'!$F38=0,0,BN38/'Asset data'!$F38) -> 0 | DY38: =IF('Asset data'!$F38=0,0,BO38/'Asset data'!$F38) -> 0 | DZ38: =IF('Asset data'!$F38=0,0,BP38/'Asset data'!$F38) -> 0 | EA38: =IF('Asset data'!$F38=0,0,BQ38/'Asset data'!$F38) -> 0 | EB38: =IF('Asset data'!$F38=0,0,BR38/'Asset data'!$F38) -> 0
A39: ='Asset data'!A39 -> 0 | B39: ='Asset data'!B39 -> 0 | C39: ='Asset data'!C39 -> 0 | D39: ='Asset data'!E39 ->  | E39: 0 | F39: ='Asset data'!G39 -> 50 | G39: 50 | H39: ='Asset data'!H39 -> 7.071067812 | I39: S | J39: =IF(A39=0,0,IF('Asset data'!$D$1=1,1,IF('Asset data'!$D$1=2,2,'Asset data'!I39))) -> 0 | K39: 0 | AX39: ='Age profile summary'!H39 -> 0 | AY39: =repcalc('Age profile (Inst)'!CT39:GF39,J39,K39,H39,20,$L$20,$M$20) -> 0 | AZ39: 0 | BA39: 0 | BB39: 0 | BC39: 0 | BD39: 0 | BE39: 0 | BF39: 0 | BG39: 0 | BH39: 0 | BI39: 0 | BJ39: 0 | BK39: 0 | BL39: 0 | BM39: 0 | BN39: 0 | BO39: 0 | BP39: 0 | BQ39: 0 | BR39: 0 | BS39: 0 | BT39: 0 | BU39: 0 | BV39: 0 | BW39: 0 | BX39: 0 | BY39: 0 | BZ39: 0 | CA39: 0 | CB39: 0 | CC39: 0 | CD39: 0 | CE39: 0 | CF39: 0 | CG39: 0 | CH39: 0 | CI39: 0 | CJ39: 0 | CK39: 0 | CL39: 0 | CM39: 0 | CN39: 0 | CO39: 0 | CP39: 0 | CQ39: 0 | CR39: 0 | CS39: 0 | CT39: 0 | CU39: 0 | CV39: 0 | CW39: 0 | CX39: 0 | CY39: 0 | CZ39: 0 | DA39: 0 | DB39: 0 | DC39: 0 | DD39: 0 | DE39: 0 | DF39: 0 | DG39: 0 | DH39: 0 | DI39: =IF('Asset data'!$F39=0,0,AY39/'Asset data'!$F39) -> 0 | DJ39: =IF('Asset data'!$F39=0,0,AZ39/'Asset data'!$F39) -> 0 | DK39: =IF('Asset data'!$F39=0,0,BA39/'Asset data'!$F39) -> 0 | DL39: =IF('Asset data'!$F39=0,0,BB39/'Asset data'!$F39) -> 0 | DM39: =IF('Asset data'!$F39=0,0,BC39/'Asset data'!$F39) -> 0 | DN39: =IF('Asset data'!$F39=0,0,BD39/'Asset data'!$F39) -> 0 | DO39: =IF('Asset data'!$F39=0,0,BE39/'Asset data'!$F39) -> 0 | DP39: =IF('Asset data'!$F39=0,0,BF39/'Asset data'!$F39) -> 0 | DQ39: =IF('Asset data'!$F39=0,0,BG39/'Asset data'!$F39) -> 0 | DR39: =IF('Asset data'!$F39=0,0,BH39/'Asset data'!$F39) -> 0 | DS39: =IF('Asset data'!$F39=0,0,BI39/'Asset data'!$F39) -> 0 | DT39: =IF('Asset data'!$F39=0,0,BJ39/'Asset data'!$F39) -> 0 | DU39: =IF('Asset data'!$F39=0,0,BK39/'Asset data'!$F39) -> 0 | DV39: =IF('Asset data'!$F39=0,0,BL39/'Asset data'!$F39) -> 0 | DW39: =IF('Asset data'!$F39=0,0,BM39/'Asset data'!$F39) -> 0 | DX39: =IF('Asset data'!$F39=0,0,BN39/'Asset data'!$F39) -> 0 | DY39: =IF('Asset data'!$F39=0,0,BO39/'Asset data'!$F39) -> 0 | DZ39: =IF('Asset data'!$F39=0,0,BP39/'Asset data'!$F39) -> 0 | EA39: =IF('Asset data'!$F39=0,0,BQ39/'Asset data'!$F39) -> 0 | EB39: =IF('Asset data'!$F39=0,0,BR39/'Asset data'!$F39) -> 0
A40: ='Asset data'!A40 -> 2 | B40: ='Asset data'!B40 -> 0 | C40: ='Asset data'!C40 -> 0 | D40: ='Asset data'!E40 -> Other | E40: POLES | F40: ='Asset data'!G40 -> 35 | G40: 35 | H40: ='Asset data'!H40 -> 5.916079783 | I40: S | J40: =IF(A40=0,0,IF('Asset data'!$D$1=1,1,IF('Asset data'!$D$1=2,2,'Asset data'!I40))) -> 2 | K40: 35 | AX40: ='Age profile summary'!H40 -> 0.019 | AY40: =repcalc('Age profile (Inst)'!CT40:GF40,J40,K40,H40,20,$L$20,$M$20) -> 8.198546659e-05 | AZ40: 8.807686128e-05 | BA40: 9.199779254e-05 | BB40: 9.346428467e-05 | BC40: 9.242370064e-05 | BD40: 8.908545476e-05 | BE40: 8.39277347e-05 | BF40: 7.768446569e-05 | BG40: 7.132100544e-05 | BH40: 6.600845068e-05 | BI40: 6.310415409e-05 | BJ40: 6.414026619e-05 | BK40: 7.081406409e-05 | BL40: 8.496562226e-05 | BM40: 0.0001085226316 | BN40: 0.0001433914262 | BO40: 0.0001912793586 | BP40: 0.0002534470208 | BQ40: 0.0003304079939 | BR40: 0.0004216153013 | BS40: 8.026315789 | BT40: 8.888278512 | BU40: 9.748109844 | BV40: 10.61118934 | BW40: 11.48226966 | BX40: 12.3649901 | BY40: 13.26162311 | BZ40: 14.17302894 | CA40: 15.09873423 | CB40: 16.03703199 | CC40: 16.98501474 | CD40: 17.9384846 | CE40: 18.89172041 | CF40: 19.83711954 | CG40: 20.7647714 | CH40: 21.66206458 | CI40: 22.51347556 | CJ40: 23.3007253 | CK40: 24.00349994 | CL40: 24.60088881 | CM40: 25.07357647 | CN40: 0.1525 | CO40: 0.1688772917 | CP40: 0.185214087 | CQ40: 0.2016125975 | CR40: 0.2181631236 | CS40: 0.2349348119 | CT40: 0.2519708392 | CU40: 0.2692875498 | CV40: 0.2868759504 | CW40: 0.3047036078 | CX40: 0.3227152801 | CY40: 0.3408312073 | CZ40: 0.3589426879 | DA40: 0.3769052712 | DB40: 0.3945306565 | DC40: 0.411579227 | DD40: 0.4277560357 | DE40: 0.4427137807 | DF40: 0.4560664989 | DG40: 0.4674168874 | DH40: 0.476397953 | DI40: =IF('Asset data'!$F40=0,0,AY40/'Asset data'!$F40) -> 0.08198546659 | DJ40: =IF('Asset data'!$F40=0,0,AZ40/'Asset data'!$F40) -> 0.08807686128 | DK40: =IF('Asset data'!$F40=0,0,BA40/'Asset data'!$F40) -> 0.09199779254 | DL40: =IF('Asset data'!$F40=0,0,BB40/'Asset data'!$F40) -> 0.09346428467 | DM40: =IF('Asset data'!$F40=0,0,BC40/'Asset data'!$F40) -> 0.09242370064 | DN40: =IF('Asset data'!$F40=0,0,BD40/'Asset data'!$F40) -> 0.08908545476 | DO40: =IF('Asset data'!$F40=0,0,BE40/'Asset data'!$F40) -> 0.0839277347 | DP40: =IF('Asset data'!$F40=0,0,BF40/'Asset data'!$F40) -> 0.07768446569 | DQ40: =IF('Asset data'!$F40=0,0,BG40/'Asset data'!$F40) -> 0.07132100544 | DR40: =IF('Asset data'!$F40=0,0,BH40/'Asset data'!$F40) -> 0.06600845068 | DS40: =IF('Asset data'!$F40=0,0,BI40/'Asset data'!$F40) -> 0.06310415409 | DT40: =IF('Asset data'!$F40=0,0,BJ40/'Asset data'!$F40) -> 0.06414026619 | DU40: =IF('Asset data'!$F40=0,0,BK40/'Asset data'!$F40) -> 0.07081406409 | DV40: =IF('Asset data'!$F40=0,0,BL40/'Asset data'!$F40) -> 0.08496562226 | DW40: =IF('Asset data'!$F40=0,0,BM40/'Asset data'!$F40) -> 0.1085226316 | DX40: =IF('Asset data'!$F40=0,0,BN40/'Asset data'!$F40) -> 0.1433914262 | DY40: =IF('Asset data'!$F40=0,0,BO40/'Asset data'!$F40) -> 0.1912793586 | DZ40: =IF('Asset data'!$F40=0,0,BP40/'Asset data'!$F40) -> 0.2534470208 | EA40: =IF('Asset data'!$F40=0,0,BQ40/'Asset data'!$F40) -> 0.3304079939 | EB40: =IF('Asset data'!$F40=0,0,BR40/'Asset data'!$F40) -> 0.4216153013
A41: ='Asset data'!A41 -> 3 | B41: ='Asset data'!B41 -> 0 | C41: ='Asset data'!C41 -> 0 | D41: ='Asset data'!E41 -> ˂ = 1 kV | E41: OVERHEAD CONDUCTORS | F41: ='Asset data'!G41 -> 66.23184646 | G41: 66.23184646 | H41: ='Asset data'!H41 -> 8.138295059 | I41: S | J41: =IF(A41=0,0,IF('Asset data'!$D$1=1,1,IF('Asset data'!$D$1=2,2,'Asset data'!I41))) -> 2 | K41: 66.23184646 | AX41: ='Age profile summary'!H41 -> 1267575.88 | AY41: =repcalc('Age profile (Inst)'!CT41:GF41,J41,K41,H41,20,$L$20,$M$20) -> 1512.433378 | AZ41: 1866.88363 | BA41: 2280.772454 | BB41: 2758.06394 | BC41: 3301.582989 | BD41: 3912.716784 | BE41: 4591.153033 | BF41: 5334.680923 | BG41: 6139.079775 | BH41: 6998.116712 | BI41: 7903.668065 | BJ41: 8845.970028 | BK41: 9813.992906 | BL41: 10795.92107 | BM41: 11779.709 | BN41: 12753.67364 | BO41: 13707.07675 | BP41: 14630.64847 | BQ41: 15517.00616 | BR41: 16360.93081 | BS41: 25.95213236 | BT41: 26.89017608 | BU41: 27.8138623 | BV41: 28.72093233 | BW41: 29.60904672 | BX41: 30.47585174 | BY41: 31.31905787 | BZ41: 32.13652694 | CA41: 32.92636279 | CB41: 33.68699924 | CC41: 34.41727835 | CD41: 35.11651118 | CE41: 35.78451435 | CF41: 36.42161666 | CG41: 37.02863277 | CH41: 37.60680404 | CI41: 38.15771065 | CJ41: 38.68316304 | CK41: 39.18508346 | CL41: 39.66539052 | CM41: 40.12589899 | CN41: 32896297.01 | CO41: 34085338.61 | CP41: 35256180.97 | CQ41: 36405961.07 | CR41: 37531713.45 | CS41: 38630454.58 | CT41: 39699282.34 | CU41: 40735486.42 | CV41: 41736663.28 | CW41: 42700827.71 | CX41: 43626511.89 | CY41: 44512842.56 | CZ41: 45359587.26 | DA41: 46167162.78 | DB41: 46936601.77 | DC41: 47669477.72 | DD41: 48367793.66 | DE41: 49033844.43 | DF41: 49670066.65 | DG41: 50278892.29 | DH41: 50862621.72 | DI41: =IF('Asset data'!$F41=0,0,AY41/'Asset data'!$F41) -> 5.912352505 | DJ41: =IF('Asset data'!$F41=0,0,AZ41/'Asset data'!$F41) -> 7.297957227 | DK41: =IF('Asset data'!$F41=0,0,BA41/'Asset data'!$F41) -> 8.915917174 | DL41: =IF('Asset data'!$F41=0,0,BB41/'Asset data'!$F41) -> 10.78172862 | DM41: =IF('Asset data'!$F41=0,0,BC41/'Asset data'!$F41) -> 12.90643458 | DN41: =IF('Asset data'!$F41=0,0,BD41/'Asset data'!$F41) -> 15.29545778 | DO41: =IF('Asset data'!$F41=0,0,BE41/'Asset data'!$F41) -> 17.94757741 | DP41: =IF('Asset data'!$F41=0,0,BF41/'Asset data'!$F41) -> 20.85415104 | DQ41: =IF('Asset data'!$F41=0,0,BG41/'Asset data'!$F41) -> 23.99867935 | DR41: =IF('Asset data'!$F41=0,0,BH41/'Asset data'!$F41) -> 27.35679698 | DS41: =IF('Asset data'!$F41=0,0,BI41/'Asset data'!$F41) -> 30.89674715 | DT41: =IF('Asset data'!$F41=0,0,BJ41/'Asset data'!$F41) -> 34.58036156 | DU41: =IF('Asset data'!$F41=0,0,BK41/'Asset data'!$F41) -> 38.36452327 | DV41: =IF('Asset data'!$F41=0,0,BL41/'Asset data'!$F41) -> 42.20304307 | DW41: =IF('Asset data'!$F41=0,0,BM41/'Asset data'!$F41) -> 46.04883298 | DX41: =IF('Asset data'!$F41=0,0,BN41/'Asset data'!$F41) -> 49.85622201 | DY41: =IF('Asset data'!$F41=0,0,BO41/'Asset data'!$F41) -> 53.58323265 | DZ41: =IF('Asset data'!$F41=0,0,BP41/'Asset data'!$F41) -> 57.19362743 | EA41: =IF('Asset data'!$F41=0,0,BQ41/'Asset data'!$F41) -> 60.65854638 | EB41: =IF('Asset data'!$F41=0,0,BR41/'Asset data'!$F41) -> 63.9575876
A42: ='Asset data'!A42 -> 3 | B42: ='Asset data'!B42 -> 0 | C42: ='Asset data'!C42 -> 0 | D42: ='Asset data'!E42 -> > 1 kV & < = 11 kV | E42: OVERHEAD CONDUCTORS | F42: ='Asset data'!G42 -> 67.61500935 | G42: 67.61500935 | H42: ='Asset data'!H42 -> 8.22283463 | I42: S | J42: =IF(A42=0,0,IF('Asset data'!$D$1=1,1,IF('Asset data'!$D$1=2,2,'Asset data'!I42))) -> 2 | K42: 67.61500935 | AX42: ='Age profile summary'!H42 -> 332674.78 | AY42: =repcalc('Age profile (Inst)'!CT42:GF42,J42,K42,H42,20,$L$20,$M$20) -> 498.4525556 | AZ42: 600.9178149 | BA42: 719.1195114 | BB42: 854.4394785 | BC42: 1008.179716 | BD42: 1181.504607 | BE42: 1375.374018 | BF42: 1590.469797 | BG42: 1827.119777 | BH42: 2085.224952 | BI42: 2364.196633 | BJ42: 2662.910942 | BK42: 2979.687662 | BL42: 3312.299114 | BM42: 3658.012395 | BN42: 4013.66514 | BO42: 4375.771256 | BP42: 4740.649369 | BQ42: 5104.563473 | BR42: 5463.863063 | BS42: 32.04531553 | BT42: 32.96335276 | BU42: 33.8658072 | BV42: 34.75060107 | BW42: 35.61548432 | BX42: 36.45803576 | BY42: 37.27567737 | BZ42: 38.06570635 | CA42: 38.82534797 | CB42: 39.55183008 | CC42: 40.24247726 | CD42: 40.89481917 | CE42: 41.50670508 | CF42: 42.07641387 | CG42: 42.60274764 | CH42: 43.0850974 | CI42: 43.52347187 | CJ42: 43.91848468 | CK42: 44.27130129 | CL42: 44.58355304 | CM42: 44.85723135 | CN42: 10660668.3 | CO42: 10966076.13 | CP42: 11266299.96 | CQ42: 11560648.57 | CR42: 11848373.41 | CS42: 12128669.03 | CT42: 12400677.77 | CU42: 12663500.49 | CV42: 12916214.09 | CW42: 13157896.37 | CX42: 13387657.27 | CY42: 13604674.97 | CZ42: 13808233.98 | DA42: 13997761.73 | DB42: 14172859.7 | DC42: 14333325.3 | DD42: 14479161.43 | DE42: 14610572.23 | DF42: 14727945.42 | DG42: 14831823.7 | DH42: 14922869.57 | DI42: =IF('Asset data'!$F42=0,0,AY42/'Asset data'!$F42) -> 4.431847349 | DJ42: =IF('Asset data'!$F42=0,0,AZ42/'Asset data'!$F42) -> 5.342887694 | DK42: =IF('Asset data'!$F42=0,0,BA42/'Asset data'!$F42) -> 6.393844037 | DL42: =IF('Asset data'!$F42=0,0,BB42/'Asset data'!$F42) -> 7.597002554 | DM42: =IF('Asset data'!$F42=0,0,BC42/'Asset data'!$F42) -> 8.963939602 | DN42: =IF('Asset data'!$F42=0,0,BD42/'Asset data'!$F42) -> 10.50500795 | DO42: =IF('Asset data'!$F42=0,0,BE42/'Asset data'!$F42) -> 12.22874199 | DP42: =IF('Asset data'!$F42=0,0,BF42/'Asset data'!$F42) -> 14.14120417 | DQ42: =IF('Asset data'!$F42=0,0,BG42/'Asset data'!$F42) -> 16.24530931 | DR42: =IF('Asset data'!$F42=0,0,BH42/'Asset data'!$F42) -> 18.54017714 | DS42: =IF('Asset data'!$F42=0,0,BI42/'Asset data'!$F42) -> 21.0205735 | DT42: =IF('Asset data'!$F42=0,0,BJ42/'Asset data'!$F42) -> 23.67650575 | DU42: =IF('Asset data'!$F42=0,0,BK42/'Asset data'!$F42) -> 26.49303473 | DV42: =IF('Asset data'!$F42=0,0,BL42/'Asset data'!$F42) -> 29.45035367 | DW42: =IF('Asset data'!$F42=0,0,BM42/'Asset data'!$F42) -> 32.52416374 | DX42: =IF('Asset data'!$F42=0,0,BN42/'Asset data'!$F42) -> 35.68634771 | DY42: =IF('Asset data'!$F42=0,0,BO42/'Asset data'!$F42) -> 38.90590995 | DZ42: =IF('Asset data'!$F42=0,0,BP42/'Asset data'!$F42) -> 42.15011861 | EA42: =IF('Asset data'!$F42=0,0,BQ42/'Asset data'!$F42) -> 45.38575607 | EB42: =IF('Asset data'!$F42=0,0,BR42/'Asset data'!$F42) -> 48.58036489
A43: ='Asset data'!A43 -> 3 | B43: ='Asset data'!B43 -> 0 | C43: ='Asset data'!C43 -> 0 | D43: ='Asset data'!E43 -> ˃ 11 kV & < = 22 kV ; SWER | E43: OVERHEAD CONDUCTORS | F43: ='Asset data'!G43 -> 70.94662146 | G43: 70.94662146 | H43: ='Asset data'!H43 -> 8.422981744 | I43: S | J43: =IF(A43=0,0,IF('Asset data'!$D$1=1,1,IF('Asset data'!$D$1=2,2,'Asset data'!I43))) -> 2 | K43: 70.94662146 | AX43: ='Age profile summary'!H43 -> 13355.44259 | AY43: =repcalc('Age profile (Inst)'!CT43:GF43,J43,K43,H43,20,$L$20,$M$20) -> 23.82678739 | AZ43: 30.17418462 | BA43: 37.74629613 | BB43: 46.64887942 | BC43: 56.96400237 | BD43: 68.74195149 | BE43: 81.99372943 | BF43: 96.6847912 | BG43: 112.7306479 | BH43: 129.9948778 | BI43: 148.2899301 | BJ43: 167.3808982 | BK43: 186.9921992 | BL43: 206.8168463 | BM43: 226.5277776 | BN43: 245.7905215 | BO43: 264.2763749 | BP43: 281.6752375 | BQ43: 297.7072978 | BR43: 312.1328892 | BS43: 39.132483 | BT43: 40.03662233 | BU43: 40.9141183 | BV43: 41.75977914 | BW43: 42.56808509 | BX43: 43.33336508 | BY43: 44.05001732 | BZ43: 44.7127618 | CA43: 45.31690621 | CB43: 45.85860311 | CC43: 46.3350743 | CD43: 46.74478124 | CE43: 47.08752613 | CF43: 47.36447681 | CG43: 47.57811844 | CH43: 47.7321431 | CI43: 47.83129447 | CJ43: 47.88118678 | CK43: 47.88811535 | CL43: 47.8588718 | CM43: 47.8005709 | CN43: 522631.6302 | CO43: 534706.8111 | CP43: 546426.1581 | CQ43: 557720.333 | CR43: 568515.6167 | CS43: 578736.2696 | CT43: 588307.4775 | CU43: 597158.7233 | CV43: 605227.3394 | CW43: 612461.9413 | CX43: 618825.4248 | CY43: 624297.2423 | CZ43: 628874.752 | DA43: 632573.551 | DB43: 635426.8295 | DC43: 637483.8969 | DD43: 638808.1074 | DE43: 639474.4413 | DF43: 639566.9754 | DG43: 639176.4149 | DH43: 638397.7805 | DI43: =IF('Asset data'!$F43=0,0,AY43/'Asset data'!$F43) -> 0.86299887 | DJ43: =IF('Asset data'!$F43=0,0,AZ43/'Asset data'!$F43) -> 1.092899635 | DK43: =IF('Asset data'!$F43=0,0,BA43/'Asset data'!$F43) -> 1.367159171 | DL43: =IF('Asset data'!$F43=0,0,BB43/'Asset data'!$F43) -> 1.689607985 | DM43: =IF('Asset data'!$F43=0,0,BC43/'Asset data'!$F43) -> 2.063218547 | DN43: =IF('Asset data'!$F43=0,0,BD43/'Asset data'!$F43) -> 2.489812222 | DO43: =IF('Asset data'!$F43=0,0,BE43/'Asset data'!$F43) -> 2.96978752 | DP43: =IF('Asset data'!$F43=0,0,BF43/'Asset data'!$F43) -> 3.501893234 | DQ43: =IF('Asset data'!$F43=0,0,BG43/'Asset data'!$F43) -> 4.0830692 | DR43: =IF('Asset data'!$F43=0,0,BH43/'Asset data'!$F43) -> 4.708374268 | DS43: =IF('Asset data'!$F43=0,0,BI43/'Asset data'!$F43) -> 5.371015404 | DT43: =IF('Asset data'!$F43=0,0,BJ43/'Asset data'!$F43) -> 6.062484365 | DU43: =IF('Asset data'!$F43=0,0,BK43/'Asset data'!$F43) -> 6.772799619 | DV43: =IF('Asset data'!$F43=0,0,BL43/'Asset data'!$F43) -> 7.490842207 | DW43: =IF('Asset data'!$F43=0,0,BM43/'Asset data'!$F43) -> 8.204766041 | DX43: =IF('Asset data'!$F43=0,0,BN43/'Asset data'!$F43) -> 8.902456667 | DY43: =IF('Asset data'!$F43=0,0,BO43/'Asset data'!$F43) -> 9.572008562 | DZ43: =IF('Asset data'!$F43=0,0,BP43/'Asset data'!$F43) -> 10.20218998 | EA43: =IF('Asset data'!$F43=0,0,BQ43/'Asset data'!$F43) -> 10.78286625 | EB43: =IF('Asset data'!$F43=0,0,BR43/'Asset data'!$F43) -> 11.30535671
A44: ='Asset data'!A44 -> 3 | B44: ='Asset data'!B44 -> 0 | C44: ='Asset data'!C44 -> 0 | D44: ='Asset data'!E44 -> ˃ 11 kV & < = 22 kV ; Single-Phase | E44: OVERHEAD CONDUCTORS | F44: ='Asset data'!G44 -> 65.89600814 | G44: 65.89600814 | H44: ='Asset data'!H44 -> 8.117635625 | I44: S | J44: =IF(A44=0,0,IF('Asset data'!$D$1=1,1,IF('Asset data'!$D$1=2,2,'Asset data'!I44))) -> 2 | K44: 65.89600814 | AX44: ='Age profile summary'!H44 -> 116127.3993 | AY44: =repcalc('Age profile (Inst)'!CT44:GF44,J44,K44,H44,20,$L$20,$M$20) -> 228.0870193 | AZ44: 279.812423 | BA44: 339.5491514 | BB44: 407.5938827 | BC44: 484.0289275 | BD44: 568.6871924 | BE44: 661.1283272 | BF44: 760.6298048 | BG44: 866.1958242 | BH44: 976.5856014 | BI44: 1090.360921 | BJ44: 1205.950907 | BK44: 1321.730067 | BL44: 1436.103965 | BM44: 1547.595701 | BN44: 1654.925761 | BO44: 1757.078089 | BP44: 1853.346173 | BQ44: 1943.35472 | BR44: 2027.054733 | BS44: 31.27922818 | BT44: 32.17699569 | BU44: 33.05187686 | BV44: 33.90058772 | BW44: 34.71986596 | BX44: 35.50660827 | BY44: 36.25801985 | BZ44: 36.97176412 | CA44: 37.64609898 | CB44: 38.27998488 | CC44: 38.87315202 | CD44: 39.42611683 | CE44: 39.94014325 | CF44: 40.41714999 | CG44: 40.85957165 | CH44: 41.27018711 | CI44: 41.65193271 | CJ44: 42.00771959 | CK44: 42.34027338 | CL44: 42.65201117 | CM44: 42.9449647 | CN44: 3632375.421 | CO44: 3736630.827 | CP44: 3838228.502 | CQ44: 3936787.087 | CR44: 4031927.738 | CS44: 4123290.077 | CT44: 4210549.549 | CU44: 4293434.815 | CV44: 4371743.569 | CW44: 4445355.09 | CX44: 4514238.046 | CY44: 4578452.412 | CZ44: 4638144.964 | DA44: 4693538.515 | DB44: 4744915.792 | DC44: 4792599.498 | DD44: 4836930.622 | DE44: 4878247.227 | DF44: 4916865.834 | DG44: 4953067.132 | DH44: 4987087.064 | DI44: =IF('Asset data'!$F44=0,0,AY44/'Asset data'!$F44) -> 4.16666945 | DJ44: =IF('Asset data'!$F44=0,0,AZ44/'Asset data'!$F44) -> 5.111583633 | DK44: =IF('Asset data'!$F44=0,0,BA44/'Asset data'!$F44) -> 6.202847845 | DL44: =IF('Asset data'!$F44=0,0,BB44/'Asset data'!$F44) -> 7.44588177 | DM44: =IF('Asset data'!$F44=0,0,BC44/'Asset data'!$F44) -> 8.842189052 | DN44: =IF('Asset data'!$F44=0,0,BD44/'Asset data'!$F44) -> 10.38871725 | DO44: =IF('Asset data'!$F44=0,0,BE44/'Asset data'!$F44) -> 12.07742208 | DP44: =IF('Asset data'!$F44=0,0,BF44/'Asset data'!$F44) -> 13.89510451 | DQ44: =IF('Asset data'!$F44=0,0,BG44/'Asset data'!$F44) -> 15.82357334 | DR44: =IF('Asset data'!$F44=0,0,BH44/'Asset data'!$F44) -> 17.84016207 | DS44: =IF('Asset data'!$F44=0,0,BI44/'Asset data'!$F44) -> 19.91859753 | DT44: =IF('Asset data'!$F44=0,0,BJ44/'Asset data'!$F44) -> 22.03018312 | DU44: =IF('Asset data'!$F44=0,0,BK44/'Asset data'!$F44) -> 24.14522452 | DV44: =IF('Asset data'!$F44=0,0,BL44/'Asset data'!$F44) -> 26.23459475 | DW44: =IF('Asset data'!$F44=0,0,BM44/'Asset data'!$F44) -> 28.27131393 | DX44: =IF('Asset data'!$F44=0,0,BN44/'Asset data'!$F44) -> 30.23200808 | DY44: =IF('Asset data'!$F44=0,0,BO44/'Asset data'!$F44) -> 32.09811597 | DZ44: =IF('Asset data'!$F44=0,0,BP44/'Asset data'!$F44) -> 33.8567311 | EA44: =IF('Asset data'!$F44=0,0,BQ44/'Asset data'!$F44) -> 35.50099768 | EB44: =IF('Asset data'!$F44=0,0,BR44/'Asset data'!$F44) -> 37.03002063
A45: ='Asset data'!A45 -> 3 | B45: ='Asset data'!B45 -> 0 | C45: ='Asset data'!C45 -> 0 | D45: ='Asset data'!E45 -> ˃ 11 kV & < = 22 kV ; Multiple-Phase | E45: OVERHEAD CONDUCTORS | F45: ='Asset data'!G45 -> 63.4443406 | G45: 63.4443406 | H45: ='Asset data'!H45 -> 7.965195578 | I45: S | J45: =IF(A45=0,0,IF('Asset data'!$D$1=1,1,IF('Asset data'!$D$1=2,2,'Asset data'!I45))) -> 2 | K45: 63.4443406 | AX45: ='Age profile summary'!H45 -> 2092552.381 | AY45: =repcalc('Age profile (Inst)'!CT45:GF45,J45,K45,H45,20,$L$20,$M$20) -> 12160.90528 | AZ45: 13927.16701 | BA45: 15805.57894 | BB45: 17778.86185 | BC45: 19826.13881 | BD45: 21923.42166 | BE45: 24044.2841 | BF45: 26160.70114 | BG45: 28244.02115 | BH45: 30266.02336 | BI45: 32200.00292 | BJ45: 34021.81815 | BK45: 35710.8322 | BL45: 37250.68422 | BM45: 38629.83431 | BN45: 39841.84065 | BO45: 40885.34642 | BP45: 41763.77585 | BQ45: 42484.76177 | BR45: 43059.34837 | BS45: 32.45528587 | BT45: 33.13835184 | BU45: 33.78521862 | BV45: 34.39513294 | BW45: 34.96774264 | BX45: 35.50315242 | BY45: 36.0019691 | BZ45: 36.4653271 | CA45: 36.89488758 | CB45: 37.29280993 | CC45: 37.66169742 | CD45: 38.00452145 | CE45: 38.32452933 | CF45: 38.6251405 | CG45: 38.90983665 | CH45: 39.18205204 | CI45: 39.44507118 | CJ45: 39.70194223 | CK45: 39.955413 | CL45: 40.20789468 | CM45: 40.46145453 | CN45: 67914385.71 | CO45: 69343737.03 | CP45: 70697339.67 | CQ45: 71973617.31 | CR45: 73171833.12 | CS45: 74292206.11 | CT45: 75336006.15 | CU45: 76305607.03 | CV45: 77204484.85 | CW45: 78037158.21 | CX45: 78809074.6 | CY45: 79526451.85 | CZ45: 80196085.09 | DA45: 80825129.7 | DB45: 81420871.32 | DC45: 81990496.27 | DD45: 82540877.61 | DE45: 83078393.73 | DF45: 83608794.59 | DG45: 84137125.73 | DH45: 84667713 | DI45: =IF('Asset data'!$F45=0,0,AY45/'Asset data'!$F45) -> 55.27671008 | DJ45: =IF('Asset data'!$F45=0,0,AZ45/'Asset data'!$F45) -> 63.30515329 | DK45: =IF('Asset data'!$F45=0,0,BA45/'Asset data'!$F45) -> 71.84336895 | DL45: =IF('Asset data'!$F45=0,0,BB45/'Asset data'!$F45) -> 80.8128153 | DM45: =IF('Asset data'!$F45=0,0,BC45/'Asset data'!$F45) -> 90.1185974 | DN45: =IF('Asset data'!$F45=0,0,BD45/'Asset data'!$F45) -> 99.65167849 | DO45: =IF('Asset data'!$F45=0,0,BE45/'Asset data'!$F45) -> 109.2919393 | DP45: =IF('Asset data'!$F45=0,0,BF45/'Asset data'!$F45) -> 118.9119937 | DQ45: =IF('Asset data'!$F45=0,0,BG45/'Asset data'!$F45) -> 128.3816075 | DR45: =IF('Asset data'!$F45=0,0,BH45/'Asset data'!$F45) -> 137.5725047 | DS45: =IF('Asset data'!$F45=0,0,BI45/'Asset data'!$F45) -> 146.3632999 | DT45: =IF('Asset data'!$F45=0,0,BJ45/'Asset data'!$F45) -> 154.6442584 | DU45: =IF('Asset data'!$F45=0,0,BK45/'Asset data'!$F45) -> 162.3215766 | DV45: =IF('Asset data'!$F45=0,0,BL45/'Asset data'!$F45) -> 169.3208873 | DW45: =IF('Asset data'!$F45=0,0,BM45/'Asset data'!$F45) -> 175.5897363 | DX45: =IF('Asset data'!$F45=0,0,BN45/'Asset data'!$F45) -> 181.0988429 | DY45: =IF('Asset data'!$F45=0,0,BO45/'Asset data'!$F45) -> 185.8420396 | DZ45: =IF('Asset data'!$F45=0,0,BP45/'Asset data'!$F45) -> 189.8348911 | EA45: =IF('Asset data'!$F45=0,0,BQ45/'Asset data'!$F45) -> 193.112092 | EB45: =IF('Asset data'!$F45=0,0,BR45/'Asset data'!$F45) -> 195.723843
A46: ='Asset data'!A46 -> 3 | B46: ='Asset data'!B46 -> 0 | C46: ='Asset data'!C46 -> 0 | D46: ='Asset data'!E46 -> > 22 kV & < = 66 kV | E46: OVERHEAD CONDUCTORS | F46: ='Asset data'!G46 -> 50 | G46: 50 | H46: ='Asset data'!H46 -> 7.071067812 | I46: S | J46: =IF(A46=0,0,IF('Asset data'!$D$1=1,1,IF('Asset data'!$D$1=2,2,'Asset data'!I46))) -> 2 | K46: 50 | AX46: ='Age profile summary'!H46 -> 0.134187 | AY46: =repcalc('Age profile (Inst)'!CT46:GF46,J46,K46,H46,20,$L$20,$M$20) -> 0.01522017662 | AZ46: 0.01367544177 | BA46: 0.01220223727 | BB46: 0.01082043401 | BC46: 0.009543455406 | BD46: 0.0083792072 | BE46: 0.007331038357 | BF46: 0.006398633255 | BG46: 0.005578784268 | BH46: 0.00486603401 | BI46: 0.004253203073 | BJ46: 0.003731831523 | BK46: 0.003292563226 | BL46: 0.002925495415 | BM46: 0.00262050618 | BN46: 0.002367563315 | BO46: 0.002157011223 | BP46: 0.001979829029 | BQ46: 0.001827852185 | BR46: 0.001693950701 | BS46: 47.76052449 | BT46: 42.50250325 | BU46: 38.82475429 | BV46: 36.20123362 | BW46: 34.33116586 | BX46: 33.02666956 | BY46: 32.16127195 | BZ46: 31.64443905 | CA46: 31.40818948 | CB46: 31.39967446 | CC46: 31.57683987 | CD46: 31.90574309 | CE46: 32.35879566 | CF46: 32.91355184 | CG46: 33.55183878 | CH46: 34.25910986 | CI46: 35.02394378 | CJ46: 35.8376306 | CK46: 36.6937979 | CL46: 37.58804216 | CM46: 38.51754514 | CN46: 6.4088415 | CO46: 5.703283404 | CP46: 5.209777304 | CQ46: 4.857734936 | CR46: 4.606796153 | CS46: 4.431749708 | CT46: 4.3156246 | CU46: 4.246272343 | CV46: 4.214570722 | CW46: 4.213428116 | CX46: 4.237201411 | CY46: 4.281335948 | CZ46: 4.342129713 | DA46: 4.416570781 | DB46: 4.50222059 | DC46: 4.597127174 | DD46: 4.699757945 | DE46: 4.808944137 | DF46: 4.923830659 | DG46: 5.043826613 | DH46: 5.16855383 | DI46: =IF('Asset data'!$F46=0,0,AY46/'Asset data'!$F46) -> 15.22017662 | DJ46: =IF('Asset data'!$F46=0,0,AZ46/'Asset data'!$F46) -> 13.67544177 | DK46: =IF('Asset data'!$F46=0,0,BA46/'Asset data'!$F46) -> 12.20223727 | DL46: =IF('Asset data'!$F46=0,0,BB46/'Asset data'!$F46) -> 10.82043401 | DM46: =IF('Asset data'!$F46=0,0,BC46/'Asset data'!$F46) -> 9.543455406 | DN46: =IF('Asset data'!$F46=0,0,BD46/'Asset data'!$F46) -> 8.3792072 | DO46: =IF('Asset data'!$F46=0,0,BE46/'Asset data'!$F46) -> 7.331038357 | DP46: =IF('Asset data'!$F46=0,0,BF46/'Asset data'!$F46) -> 6.398633255 | DQ46: =IF('Asset data'!$F46=0,0,BG46/'Asset data'!$F46) -> 5.578784268 | DR46: =IF('Asset data'!$F46=0,0,BH46/'Asset data'!$F46) -> 4.86603401 | DS46: =IF('Asset data'!$F46=0,0,BI46/'Asset data'!$F46) -> 4.253203073 | DT46: =IF('Asset data'!$F46=0,0,BJ46/'Asset data'!$F46) -> 3.731831523 | DU46: =IF('Asset data'!$F46=0,0,BK46/'Asset data'!$F46) -> 3.292563226 | DV46: =IF('Asset data'!$F46=0,0,BL46/'Asset data'!$F46) -> 2.925495415 | DW46: =IF('Asset data'!$F46=0,0,BM46/'Asset data'!$F46) -> 2.62050618 | DX46: =IF('Asset data'!$F46=0,0,BN46/'Asset data'!$F46) -> 2.367563315 | DY46: =IF('Asset data'!$F46=0,0,BO46/'Asset data'!$F46) -> 2.157011223 | DZ46: =IF('Asset data'!$F46=0,0,BP46/'Asset data'!$F46) -> 1.979829029 | EA46: =IF('Asset data'!$F46=0,0,BQ46/'Asset data'!$F46) -> 1.827852185 | EB46: =IF('Asset data'!$F46=0,0,BR46/'Asset data'!$F46) -> 1.693950701
A47: ='Asset data'!A47 -> 0 | B47: ='Asset data'!B47 -> 0 | C47: ='Asset data'!C47 -> 0 | D47: ='Asset data'!E47 ->  | E47: 0 | F47: ='Asset data'!G47 -> 50 | G47: 50 | H47: ='Asset data'!H47 -> 7.071067812 | I47: S | J47: =IF(A47=0,0,IF('Asset data'!$D$1=1,1,IF('Asset data'!$D$1=2,2,'Asset data'!I47))) -> 0 | K47: 0 | AX47: ='Age profile summary'!H47 -> 0 | AY47: =repcalc('Age profile (Inst)'!CT47:GF47,J47,K47,H47,20,$L$20,$M$20) -> 0 | AZ47: 0 | BA47: 0 | BB47: 0 | BC47: 0 | BD47: 0 | BE47: 0 | BF47: 0 | BG47: 0 | BH47: 0 | BI47: 0 | BJ47: 0 | BK47: 0 | BL47: 0 | BM47: 0 | BN47: 0 | BO47: 0 | BP47: 0 | BQ47: 0 | BR47: 0 | BS47: 0 | BT47: 0 | BU47: 0 | BV47: 0 | BW47: 0 | BX47: 0 | BY47: 0 | BZ47: 0 | CA47: 0 | CB47: 0 | CC47: 0 | CD47: 0 | CE47: 0 | CF47: 0 | CG47: 0 | CH47: 0 | CI47: 0 | CJ47: 0 | CK47: 0 | CL47: 0 | CM47: 0 | CN47: 0 | CO47: 0 | CP47: 0 | CQ47: 0 | CR47: 0 | CS47: 0 | CT47: 0 | CU47: 0 | CV47: 0 | CW47: 0 | CX47: 0 | CY47: 0 | CZ47: 0 | DA47: 0 | DB47: 0 | DC47: 0 | DD47: 0 | DE47: 0 | DF47: 0 | DG47: 0 | DH47: 0 | DI47: =IF('Asset data'!$F47=0,0,AY47/'Asset data'!$F47) -> 0 | DJ47: =IF('Asset data'!$F47=0,0,AZ47/'Asset data'!$F47) -> 0 | DK47: =IF('Asset data'!$F47=0,0,BA47/'Asset data'!$F47) -> 0 | DL47: =IF('Asset data'!$F47=0,0,BB47/'Asset data'!$F47) -> 0 | DM47: =IF('Asset data'!$F47=0,0,BC47/'Asset data'!$F47) -> 0 | DN47: =IF('Asset data'!$F47=0,0,BD47/'Asset data'!$F47) -> 0 | DO47: =IF('Asset data'!$F47=0,0,BE47/'Asset data'!$F47) -> 0 | DP47: =IF('Asset data'!$F47=0,0,BF47/'Asset data'!$F47) -> 0 | DQ47: =IF('Asset data'!$F47=0,0,BG47/'Asset data'!$F47) -> 0 | DR47: =IF('Asset data'!$F47=0,0,BH47/'Asset data'!$F47) -> 0 | DS47: =IF('Asset data'!$F47=0,0,BI47/'Asset data'!$F47) -> 0 | DT47: =IF('Asset data'!$F47=0,0,BJ47/'Asset data'!$F47) -> 0 | DU47: =IF('Asset data'!$F47=0,0,BK47/'Asset data'!$F47) -> 0 | DV47: =IF('Asset data'!$F47=0,0,BL47/'Asset data'!$F47) -> 0 | DW47: =IF('Asset data'!$F47=0,0,BM47/'Asset data'!$F47) -> 0 | DX47: =IF('Asset data'!$F47=0,0,BN47/'Asset data'!$F47) -> 0 | DY47: =IF('Asset data'!$F47=0,0,BO47/'Asset data'!$F47) -> 0 | DZ47: =IF('Asset data'!$F47=0,0,BP47/'Asset data'!$F47) -> 0 | EA47: =IF('Asset data'!$F47=0,0,BQ47/'Asset data'!$F47) -> 0 | EB47: =IF('Asset data'!$F47=0,0,BR47/'Asset data'!$F47) -> 0
A48: ='Asset data'!A48 -> 0 | B48: ='Asset data'!B48 -> 0 | C48: ='Asset data'!C48 -> 0 | D48: ='Asset data'!E48 ->  | E48: 0 | F48: ='Asset data'!G48 -> 50 | G48: 50 | H48: ='Asset data'!H48 -> 7.071067812 | I48: S | J48: =IF(A48=0,0,IF('Asset data'!$D$1=1,1,IF('Asset data'!$D$1=2,2,'Asset data'!I48))) -> 0 | K48: 0 | AX48: ='Age profile summary'!H48 -> 0 | AY48: =repcalc('Age profile (Inst)'!CT48:GF48,J48,K48,H48,20,$L$20,$M$20) -> 0 | AZ48: 0 | BA48: 0 | BB48: 0 | BC48: 0 | BD48: 0 | BE48: 0 | BF48: 0 | BG48: 0 | BH48: 0 | BI48: 0 | BJ48: 0 | BK48: 0 | BL48: 0 | BM48: 0 | BN48: 0 | BO48: 0 | BP48: 0 | BQ48: 0 | BR48: 0 | BS48: 0 | BT48: 0 | BU48: 0 | BV48: 0 | BW48: 0 | BX48: 0 | BY48: 0 | BZ48: 0 | CA48: 0 | CB48: 0 | CC48: 0 | CD48: 0 | CE48: 0 | CF48: 0 | CG48: 0 | CH48: 0 | CI48: 0 | CJ48: 0 | CK48: 0 | CL48: 0 | CM48: 0 | CN48: 0 | CO48: 0 | CP48: 0 | CQ48: 0 | CR48: 0 | CS48: 0 | CT48: 0 | CU48: 0 | CV48: 0 | CW48: 0 | CX48: 0 | CY48: 0 | CZ48: 0 | DA48: 0 | DB48: 0 | DC48: 0 | DD48: 0 | DE48: 0 | DF48: 0 | DG48: 0 | DH48: 0 | DI48: =IF('Asset data'!$F48=0,0,AY48/'Asset data'!$F48) -> 0 | DJ48: =IF('Asset data'!$F48=0,0,AZ48/'Asset data'!$F48) -> 0 | DK48: =IF('Asset data'!$F48=0,0,BA48/'Asset data'!$F48) -> 0 | DL48: =IF('Asset data'!$F48=0,0,BB48/'Asset data'!$F48) -> 0 | DM48: =IF('Asset data'!$F48=0,0,BC48/'Asset data'!$F48) -> 0 | DN48: =IF('Asset data'!$F48=0,0,BD48/'Asset data'!$F48) -> 0 | DO48: =IF('Asset data'!$F48=0,0,BE48/'Asset data'!$F48) -> 0 | DP48: =IF('Asset data'!$F48=0,0,BF48/'Asset data'!$F48) -> 0 | DQ48: =IF('Asset data'!$F48=0,0,BG48/'Asset data'!$F48) -> 0 | DR48: =IF('Asset data'!$F48=0,0,BH48/'Asset data'!$F48) -> 0 | DS48: =IF('Asset data'!$F48=0,0,BI48/'Asset data'!$F48) -> 0 | DT48: =IF('Asset data'!$F48=0,0,BJ48/'Asset data'!$F48) -> 0 | DU48: =IF('Asset data'!$F48=0,0,BK48/'Asset data'!$F48) -> 0 | DV48: =IF('Asset data'!$F48=0,0,BL48/'Asset data'!$F48) -> 0 | DW48: =IF('Asset data'!$F48=0,0,BM48/'Asset data'!$F48) -> 0 | DX48: =IF('Asset data'!$F48=0,0,BN48/'Asset data'!$F48) -> 0 | DY48: =IF('Asset data'!$F48=0,0,BO48/'Asset data'!$F48) -> 0 | DZ48: =IF('Asset data'!$F48=0,0,BP48/'Asset data'!$F48) -> 0 | EA48: =IF('Asset data'!$F48=0,0,BQ48/'Asset data'!$F48) -> 0 | EB48: =IF('Asset data'!$F48=0,0,BR48/'Asset data'!$F48) -> 0
A49: ='Asset data'!A49 -> 0 | B49: ='Asset data'!B49 -> 0 | C49: ='Asset data'!C49 -> 0 | D49: ='Asset data'!E49 ->  | E49: 0 | F49: ='Asset data'!G49 -> 0 | G49: 0 | H49: ='Asset data'!H49 -> 0 | I49: S | J49: =IF(A49=0,0,IF('Asset data'!$D$1=1,1,IF('Asset data'!$D$1=2,2,'Asset data'!I49))) -> 0 | K49: 0 | AX49: ='Age profile summary'!H49 -> 0 | AY49: =repcalc('Age profile (Inst)'!CT49:GF49,J49,K49,H49,20,$L$20,$M$20) -> 0 | AZ49: 0 | BA49: 0 | BB49: 0 | BC49: 0 | BD49: 0 | BE49: 0 | BF49: 0 | BG49: 0 | BH49: 0 | BI49: 0 | BJ49: 0 | BK49: 0 | BL49: 0 | BM49: 0 | BN49: 0 | BO49: 0 | BP49: 0 | BQ49: 0 | BR49: 0 | BS49: 0 | BT49: 0 | BU49: 0 | BV49: 0 | BW49: 0 | BX49: 0 | BY49: 0 | BZ49: 0 | CA49: 0 | CB49: 0 | CC49: 0 | CD49: 0 | CE49: 0 | CF49: 0 | CG49: 0 | CH49: 0 | CI49: 0 | CJ49: 0 | CK49: 0 | CL49: 0 | CM49: 0 | CN49: 0 | CO49: 0 | CP49: 0 | CQ49: 0 | CR49: 0 | CS49: 0 | CT49: 0 | CU49: 0 | CV49: 0 | CW49: 0 | CX49: 0 | CY49: 0 | CZ49: 0 | DA49: 0 | DB49: 0 | DC49: 0 | DD49: 0 | DE49: 0 | DF49: 0 | DG49: 0 | DH49: 0 | DI49: =IF('Asset data'!$F49=0,0,AY49/'Asset data'!$F49) -> 0 | DJ49: =IF('Asset data'!$F49=0,0,AZ49/'Asset data'!$F49) -> 0 | DK49: =IF('Asset data'!$F49=0,0,BA49/'Asset data'!$F49) -> 0 | DL49: =IF('Asset data'!$F49=0,0,BB49/'Asset data'!$F49) -> 0 | DM49: =IF('Asset data'!$F49=0,0,BC49/'Asset data'!$F49) -> 0 | DN49: =IF('Asset data'!$F49=0,0,BD49/'Asset data'!$F49) -> 0 | DO49: =IF('Asset data'!$F49=0,0,BE49/'Asset data'!$F49) -> 0 | DP49: =IF('Asset data'!$F49=0,0,BF49/'Asset data'!$F49) -> 0 | DQ49: =IF('Asset data'!$F49=0,0,BG49/'Asset data'!$F49) -> 0 | DR49: =IF('Asset data'!$F49=0,0,BH49/'Asset data'!$F49) -> 0 | DS49: =IF('Asset data'!$F49=0,0,BI49/'Asset data'!$F49) -> 0 | DT49: =IF('Asset data'!$F49=0,0,BJ49/'Asset data'!$F49) -> 0 | DU49: =IF('Asset data'!$F49=0,0,BK49/'Asset data'!$F49) -> 0 | DV49: =IF('Asset data'!$F49=0,0,BL49/'Asset data'!$F49) -> 0 | DW49: =IF('Asset data'!$F49=0,0,BM49/'Asset data'!$F49) -> 0 | DX49: =IF('Asset data'!$F49=0,0,BN49/'Asset data'!$F49) -> 0 | DY49: =IF('Asset data'!$F49=0,0,BO49/'Asset data'!$F49) -> 0 | DZ49: =IF('Asset data'!$F49=0,0,BP49/'Asset data'!$F49) -> 0 | EA49: =IF('Asset data'!$F49=0,0,BQ49/'Asset data'!$F49) -> 0 | EB49: =IF('Asset data'!$F49=0,0,BR49/'Asset data'!$F49) -> 0
A50: ='Asset data'!A50 -> 4 | B50: ='Asset data'!B50 -> 0 | C50: ='Asset data'!C50 -> 0 | D50: ='Asset data'!E50 -> ˂ = 1 kV | E50: UNDERGROUND CABLES | F50: ='Asset data'!G50 -> 52.45524925 | G50: 52.45524925 | H50: ='Asset data'!H50 -> 7.24259962 | I50: S | J50: =IF(A50=0,0,IF('Asset data'!$D$1=1,1,IF('Asset data'!$D$1=2,2,'Asset data'!I50))) -> 2 | K50: 52.45524925 | AX50: ='Age profile summary'!H50 -> 391003.4875 | AY50: =repcalc('Age profile (Inst)'!CT50:GF50,J50,K50,H50,20,$L$20,$M$20) -> 1925.534907 | AZ50: 2063.51556 | BA50: 2205.867486 | BB50: 2354.767641 | BC50: 2512.39627 | BD50: 2680.673042 | BE50: 2861.003041 | BF50: 3054.058839 | BG50: 3259.62067 | BH50: 3476.49026 | BI50: 3702.486192 | BJ50: 3934.520748 | BK50: 4168.750904 | BL50: 4400.790289 | BM50: 4625.964751 | BN50: 4839.591902 | BO50: 5037.264655 | BP50: 5215.119959 | BQ50: 5370.07672 | BR50: 5500.030751 | BS50: 16.26555927 | BT50: 17.02557546 | BU50: 17.78829561 | BV50: 18.55111188 | BW50: 19.31124614 | BX50: 20.06591377 | BY50: 20.81246096 | BZ50: 21.54847851 | CA50: 22.27189484 | CB50: 22.98104982 | CC50: 23.67475042 | CD50: 24.35230862 | CE50: 25.0135618 | CF50: 25.65887522 | CG50: 26.28912584 | CH50: 26.90566644 | CI50: 27.51026893 | CJ50: 28.10504714 | CK50: 28.69236069 | CL50: 29.2747045 | CM50: 29.85459044 | CN50: 6359890.403 | CO50: 6657059.381 | CP50: 6955285.619 | CQ50: 7253549.442 | CR50: 7550764.587 | CS50: 7845842.263 | CT50: 8137744.817 | CU50: 8425530.246 | CV50: 8708388.554 | CW50: 8985670.626 | CX50: 9256909.979 | CY50: 9521837.6 | CZ50: 9780389.9 | DA50: 10032709.7 | DB50: 10279139.89 | DC50: 10520209.41 | DD50: 10756611.09 | DE50: 10989171.45 | DF50: 11218813.09 | DG50: 11446511.56 | DH50: 11673248.98 | DI50: =IF('Asset data'!$F50=0,0,AY50/'Asset data'!$F50) -> 6.107688075 | DJ50: =IF('Asset data'!$F50=0,0,AZ50/'Asset data'!$F50) -> 6.545354921 | DK50: =IF('Asset data'!$F50=0,0,BA50/'Asset data'!$F50) -> 6.9968872 | DL50: =IF('Asset data'!$F50=0,0,BB50/'Asset data'!$F50) -> 7.469190089 | DM50: =IF('Asset data'!$F50=0,0,BC50/'Asset data'!$F50) -> 7.969179207 | DN50: =IF('Asset data'!$F50=0,0,BD50/'Asset data'!$F50) -> 8.502943633 | DO50: =IF('Asset data'!$F50=0,0,BE50/'Asset data'!$F50) -> 9.074940213 | DP50: =IF('Asset data'!$F50=0,0,BF50/'Asset data'!$F50) -> 9.687302311 | DQ50: =IF('Asset data'!$F50=0,0,BG50/'Asset data'!$F50) -> 10.33933284 | DR50: =IF('Asset data'!$F50=0,0,BH50/'Asset data'!$F50) -> 11.02723094 | DS50: =IF('Asset data'!$F50=0,0,BI50/'Asset data'!$F50) -> 11.74407729 | DT50: =IF('Asset data'!$F50=0,0,BJ50/'Asset data'!$F50) -> 12.48007781 | DU50: =IF('Asset data'!$F50=0,0,BK50/'Asset data'!$F50) -> 13.22304264 | DV50: =IF('Asset data'!$F50=0,0,BL50/'Asset data'!$F50) -> 13.95905848 | DW50: =IF('Asset data'!$F50=0,0,BM50/'Asset data'!$F50) -> 14.67329917 | DX50: =IF('Asset data'!$F50=0,0,BN50/'Asset data'!$F50) -> 15.35091244 | DY50: =IF('Asset data'!$F50=0,0,BO50/'Asset data'!$F50) -> 15.97791926 | DZ50: =IF('Asset data'!$F50=0,0,BP50/'Asset data'!$F50) -> 16.54206625 | EA50: =IF('Asset data'!$F50=0,0,BQ50/'Asset data'!$F50) -> 17.03358035 | EB50: =IF('Asset data'!$F50=0,0,BR50/'Asset data'!$F50) -> 17.4457872
A51: ='Asset data'!A51 -> 4 | B51: ='Asset data'!B51 -> 0 | C51: ='Asset data'!C51 -> 0 | D51: ='Asset data'!E51 -> > 1 kV & < = 11 kV | E51: UNDERGROUND CABLES | F51: ='Asset data'!G51 -> 67.98263767 | G51: 67.98263767 | H51: ='Asset data'!H51 -> 8.245158438 | I51: S | J51: =IF(A51=0,0,IF('Asset data'!$D$1=1,1,IF('Asset data'!$D$1=2,2,'Asset data'!I51))) -> 2 | K51: 67.98263767 | AX51: ='Age profile summary'!H51 -> 284367.0225 | AY51: =repcalc('Age profile (Inst)'!CT51:GF51,J51,K51,H51,20,$L$20,$M$20) -> 250.9818283 | AZ51: 313.0427305 | BA51: 385.8865548 | BB51: 470.2267831 | BC51: 566.5709538 | BD51: 675.1802448 | BE51: 796.0416643 | BF51: 928.8569165 | BG51: 1073.050845 | BH51: 1227.800659 | BI51: 1392.085048 | BJ51: 1564.750002 | BK51: 1744.58593 | BL51: 1930.408825 | BM51: 2121.136999 | BN51: 2315.85461 | BO51: 2513.853878 | BP51: 2714.649626 | BQ51: 2917.962472 | BR51: 3123.670324 | BS51: 26.21935682 | BT51: 27.1729868 | BU51: 28.11489221 | BV51: 29.04312073 | BW51: 29.95567192 | BX51: 30.85056386 | BY51: 31.72590471 | BZ51: 32.5799624 | CA51: 33.41122549 | CB51: 34.218448 | CC51: 35.00067291 | CD51: 35.75723084 | CE51: 36.48771344 | CF51: 37.19192403 | CG51: 37.86981067 | CH51: 38.52138921 | CI51: 39.14666544 | CJ51: 39.74556611 | CK51: 40.31788855 | CL51: 40.8632772 | CM51: 41.38123327 | CN51: 7455920.43 | CO51: 7727101.349 | CP51: 7994948.187 | CQ51: 8258905.767 | CR51: 8518405.23 | CS51: 8772882.987 | CT51: 9021801.058 | CU51: 9264666.902 | CV51: 9501050.711 | CW51: 9730598.173 | CX51: 9953037.142 | CY51: 10168177.27 | CZ51: 10375902.43 | DA51: 10576156.7 | DB51: 10768925.3 | DC51: 10954212.75 | DD51: 11132020.69 | DE51: 11302328.29 | DF51: 11465077.92 | DG51: 11620168.47 | DH51: 11767458.09 | DI51: =IF('Asset data'!$F51=0,0,AY51/'Asset data'!$F51) -> 0.5517465695 | DJ51: =IF('Asset data'!$F51=0,0,AZ51/'Asset data'!$F51) -> 0.688178319 | DK51: =IF('Asset data'!$F51=0,0,BA51/'Asset data'!$F51) -> 0.8483147337 | DL51: =IF('Asset data'!$F51=0,0,BB51/'Asset data'!$F51) -> 1.033724299 | DM51: =IF('Asset data'!$F51=0,0,BC51/'Asset data'!$F51) -> 1.245522763 | DN51: =IF('Asset data'!$F51=0,0,BD51/'Asset data'!$F51) -> 1.484284286 | DO51: =IF('Asset data'!$F51=0,0,BE51/'Asset data'!$F51) -> 1.749980309 | DP51: =IF('Asset data'!$F51=0,0,BF51/'Asset data'!$F51) -> 2.041955072 | DQ51: =IF('Asset data'!$F51=0,0,BG51/'Asset data'!$F51) -> 2.358944178 | DR51: =IF('Asset data'!$F51=0,0,BH51/'Asset data'!$F51) -> 2.699138843 | DS51: =IF('Asset data'!$F51=0,0,BI51/'Asset data'!$F51) -> 3.060293866 | DT51: =IF('Asset data'!$F51=0,0,BJ51/'Asset data'!$F51) -> 3.439872327 | DU51: =IF('Asset data'!$F51=0,0,BK51/'Asset data'!$F51) -> 3.835215118 | DV51: =IF('Asset data'!$F51=0,0,BL51/'Asset data'!$F51) -> 4.243719373 | DW51: =IF('Asset data'!$F51=0,0,BM51/'Asset data'!$F51) -> 4.663007161 | DX51: =IF('Asset data'!$F51=0,0,BN51/'Asset data'!$F51) -> 5.09106514 | DY51: =IF('Asset data'!$F51=0,0,BO51/'Asset data'!$F51) -> 5.526337357 | DZ51: =IF('Asset data'!$F51=0,0,BP51/'Asset data'!$F51) -> 5.967757224 | EA51: =IF('Asset data'!$F51=0,0,BQ51/'Asset data'!$F51) -> 6.414710559 | EB51: =IF('Asset data'!$F51=0,0,BR51/'Asset data'!$F51) -> 6.866928961
A52: ='Asset data'!A52 -> 4 | B52: ='Asset data'!B52 -> 0 | C52: ='Asset data'!C52 -> 0 | D52: ='Asset data'!E52 -> > 11 kV & < = 22 kV | E52: UNDERGROUND CABLES | F52: ='Asset data'!G52 -> 51.63603945 | G52: 51.63603945 | H52: ='Asset data'!H52 -> 7.185822114 | I52: S | J52: =IF(A52=0,0,IF('Asset data'!$D$1=1,1,IF('Asset data'!$D$1=2,2,'Asset data'!I52))) -> 2 | K52: 51.63603945 | AX52: ='Age profile summary'!H52 -> 294413.053 | AY52: =repcalc('Age profile (Inst)'!CT52:GF52,J52,K52,H52,20,$L$20,$M$20) -> 468.1074326 | AZ52: 556.8294418 | BA52: 657.2216811 | BB52: 769.7109447 | BC52: 894.450749 | BD52: 1031.258158 | BE52: 1179.565363 | BF52: 1338.396223 | BG52: 1506.377199 | BH52: 1681.789807 | BI52: 1862.667939 | BJ52: 2046.938597 | BK52: 2232.599268 | BL52: 2417.920008 | BM52: 2601.653933 | BN52: 2783.236817 | BO52: 2962.955147 | BP52: 3142.062615 | BQ52: 3322.827402 | BR52: 3508.49689 | BS52: 16.08971852 | BT52: 17.02221413 | BU52: 17.94421773 | BV52: 18.85447895 | BW52: 19.75167896 | BX52: 20.6344864 | BY52: 21.50163116 | BZ52: 22.3519871 | CA52: 23.18465226 | CB52: 23.99901457 | CC52: 24.79479277 | CD52: 25.5720452 | CE52: 26.3311436 | CF52: 27.07271269 | CG52: 27.79754007 | CH52: 28.50646292 | CI52: 29.20023902 | CJ52: 29.87940953 | CK52: 30.54416103 | CL52: 31.194195 | CM52: 31.8286143 | CN52: 4737023.152 | CO52: 5011562.031 | CP52: 5283011.926 | CQ52: 5551004.71 | CR52: 5815152.104 | CS52: 6075062.138 | CT52: 6330360.875 | CU52: 6580716.763 | CV52: 6825864.253 | CW52: 7065623.148 | CX52: 7299910.637 | CY52: 7528743.899 | CZ52: 7752232.376 | DA52: 7970559.995 | DB52: 8183958.636 | DC52: 8392674.777 | DD52: 8596931.518 | DE52: 8796888.18 | DF52: 8992599.7 | DG52: 9183978.186 | DH52: 9370759.507 | DI52: =IF('Asset data'!$F52=0,0,AY52/'Asset data'!$F52) -> 0.8441396303 | DJ52: =IF('Asset data'!$F52=0,0,AZ52/'Asset data'!$F52) -> 1.004132313 | DK52: =IF('Asset data'!$F52=0,0,BA52/'Asset data'!$F52) -> 1.185169959 | DL52: =IF('Asset data'!$F52=0,0,BB52/'Asset data'!$F52) -> 1.388022208 | DM52: =IF('Asset data'!$F52=0,0,BC52/'Asset data'!$F52) -> 1.612965896 | DN52: =IF('Asset data'!$F52=0,0,BD52/'Asset data'!$F52) -> 1.859671135 | DO52: =IF('Asset data'!$F52=0,0,BE52/'Asset data'!$F52) -> 2.127113992 | DP52: =IF('Asset data'!$F52=0,0,BF52/'Asset data'!$F52) -> 2.41353419 | DQ52: =IF('Asset data'!$F52=0,0,BG52/'Asset data'!$F52) -> 2.716454821 | DR52: =IF('Asset data'!$F52=0,0,BH52/'Asset data'!$F52) -> 3.032776938 | DS52: =IF('Asset data'!$F52=0,0,BI52/'Asset data'!$F52) -> 3.358955052 | DT52: =IF('Asset data'!$F52=0,0,BJ52/'Asset data'!$F52) -> 3.691250918 | DU52: =IF('Asset data'!$F52=0,0,BK52/'Asset data'!$F52) -> 4.0260534 | DV52: =IF('Asset data'!$F52=0,0,BL52/'Asset data'!$F52) -> 4.360242883 | DW52: =IF('Asset data'!$F52=0,0,BM52/'Asset data'!$F52) -> 4.691570859 | DX52: =IF('Asset data'!$F52=0,0,BN52/'Asset data'!$F52) -> 5.019019853 | DY52: =IF('Asset data'!$F52=0,0,BO52/'Asset data'!$F52) -> 5.343106493 | DZ52: =IF('Asset data'!$F52=0,0,BP52/'Asset data'!$F52) -> 5.666091562 | EA52: =IF('Asset data'!$F52=0,0,BQ52/'Asset data'!$F52) -> 5.992065281 | EB52: =IF('Asset data'!$F52=0,0,BR52/'Asset data'!$F52) -> 6.326883663
A53: ='Asset data'!A53 -> 4 | B53: ='Asset data'!B53 -> 0 | C53: ='Asset data'!C53 -> 0 | D53: ='Asset data'!E53 -> > 22 kV & < = 33 kV | E53: UNDERGROUND CABLES | F53: ='Asset data'!G53 -> 60 | G53: 60 | H53: ='Asset data'!H53 -> 7.745966692 | I53: S | J53: =IF(A53=0,0,IF('Asset data'!$D$1=1,1,IF('Asset data'!$D$1=2,2,'Asset data'!I53))) -> 2 | K53: 60 | AX53: ='Age profile summary'!H53 -> 0.068995 | AY53: =repcalc('Age profile (Inst)'!CT53:GF53,J53,K53,H53,20,$L$20,$M$20) -> 0.0006313348588 | AZ53: 0.0007323876587 | BA53: 0.0008364411451 | BB53: 0.0009405017091 | BC53: 0.001041191755 | BD53: 0.001134922598 | BE53: 0.001218102818 | BF53: 0.001287365622 | BG53: 0.001339795255 | BH53: 0.00137313118 | BI53: 0.001385930066 | BJ53: 0.001377669366 | BK53: 0.001348782202 | BL53: 0.001300620408 | BM53: 0.00123535017 | BN53: 0.00115579159 | BO53: 0.00106521883 | BP53: 0.0009671406798 | BQ53: 0.0008650820896 | BR53: 0.000762385542 | BS53: 21.80599319 | BT53: 22.34289857 | BU53: 22.81145952 | BV53: 23.21383738 | BW53: 23.55525211 | BX53: 23.84392693 | BY53: 24.09076139 | BZ53: 24.30876048 | CA53: 24.5122838 | CB53: 24.71620211 | CC53: 24.93505617 | CD53: 25.18230306 | CE53: 25.46971355 | CF53: 25.80695582 | CG53: 26.20137309 | CH53: 26.65793993 | CI53: 27.17936665 | CJ53: 27.7663135 | CK53: 28.41767577 | CL53: 29.13090428 | CM53: 29.90233208 | CN53: 1.5045045 | CO53: 1.541548287 | CP53: 1.573876649 | CQ53: 1.60163871 | CR53: 1.625194619 | CS53: 1.645111739 | CT53: 1.662142082 | CU53: 1.677182929 | CV53: 1.691225021 | CW53: 1.705294365 | CX53: 1.7203942 | CY53: 1.737453 | CZ53: 1.757282887 | DA53: 1.780550917 | DB53: 1.807763736 | DC53: 1.839264566 | DD53: 1.875240402 | DE53: 1.9157368 | DF53: 1.96067754 | DG53: 2.009886741 | DH53: 2.063111402 | DI53: =IF('Asset data'!$F53=0,0,AY53/'Asset data'!$F53) -> 0.6313348588 | DJ53: =IF('Asset data'!$F53=0,0,AZ53/'Asset data'!$F53) -> 0.7323876587 | DK53: =IF('Asset data'!$F53=0,0,BA53/'Asset data'!$F53) -> 0.8364411451 | DL53: =IF('Asset data'!$F53=0,0,BB53/'Asset data'!$F53) -> 0.9405017091 | DM53: =IF('Asset data'!$F53=0,0,BC53/'Asset data'!$F53) -> 1.041191755 | DN53: =IF('Asset data'!$F53=0,0,BD53/'Asset data'!$F53) -> 1.134922598 | DO53: =IF('Asset data'!$F53=0,0,BE53/'Asset data'!$F53) -> 1.218102818 | DP53: =IF('Asset data'!$F53=0,0,BF53/'Asset data'!$F53) -> 1.287365622 | DQ53: =IF('Asset data'!$F53=0,0,BG53/'Asset data'!$F53) -> 1.339795255 | DR53: =IF('Asset data'!$F53=0,0,BH53/'Asset data'!$F53) -> 1.37313118 | DS53: =IF('Asset data'!$F53=0,0,BI53/'Asset data'!$F53) -> 1.385930066 | DT53: =IF('Asset data'!$F53=0,0,BJ53/'Asset data'!$F53) -> 1.377669366 | DU53: =IF('Asset data'!$F53=0,0,BK53/'Asset data'!$F53) -> 1.348782202 | DV53: =IF('Asset data'!$F53=0,0,BL53/'Asset data'!$F53) -> 1.300620408 | DW53: =IF('Asset data'!$F53=0,0,BM53/'Asset data'!$F53) -> 1.23535017 | DX53: =IF('Asset data'!$F53=0,0,BN53/'Asset data'!$F53) -> 1.15579159 | DY53: =IF('Asset data'!$F53=0,0,BO53/'Asset data'!$F53) -> 1.06521883 | DZ53: =IF('Asset data'!$F53=0,0,BP53/'Asset data'!$F53) -> 0.9671406798 | EA53: =IF('Asset data'!$F53=0,0,BQ53/'Asset data'!$F53) -> 0.8650820896 | EB53: =IF('Asset data'!$F53=0,0,BR53/'Asset data'!$F53) -> 0.762385542
A54: ='Asset data'!A54 -> 0 | B54: ='Asset data'!B54 -> 0 | C54: ='Asset data'!C54 -> 0 | D54: ='Asset data'!E54 ->  | E54: 0 | F54: ='Asset data'!G54 -> 60 | G54: 60 | H54: ='Asset data'!H54 -> 7.745966692 | I54: S | J54: =IF(A54=0,0,IF('Asset data'!$D$1=1,1,IF('Asset data'!$D$1=2,2,'Asset data'!I54))) -> 0 | K54: 0 | AX54: ='Age profile summary'!H54 -> 0 | AY54: =repcalc('Age profile (Inst)'!CT54:GF54,J54,K54,H54,20,$L$20,$M$20) -> 0 | AZ54: 0 | BA54: 0 | BB54: 0 | BC54: 0 | BD54: 0 | BE54: 0 | BF54: 0 | BG54: 0 | BH54: 0 | BI54: 0 | BJ54: 0 | BK54: 0 | BL54: 0 | BM54: 0 | BN54: 0 | BO54: 0 | BP54: 0 | BQ54: 0 | BR54: 0 | BS54: 0 | BT54: 0 | BU54: 0 | BV54: 0 | BW54: 0 | BX54: 0 | BY54: 0 | BZ54: 0 | CA54: 0 | CB54: 0 | CC54: 0 | CD54: 0 | CE54: 0 | CF54: 0 | CG54: 0 | CH54: 0 | CI54: 0 | CJ54: 0 | CK54: 0 | CL54: 0 | CM54: 0 | CN54: 0 | CO54: 0 | CP54: 0 | CQ54: 0 | CR54: 0 | CS54: 0 | CT54: 0 | CU54: 0 | CV54: 0 | CW54: 0 | CX54: 0 | CY54: 0 | CZ54: 0 | DA54: 0 | DB54: 0 | DC54: 0 | DD54: 0 | DE54: 0 | DF54: 0 | DG54: 0 | DH54: 0 | DI54: =IF('Asset data'!$F54=0,0,AY54/'Asset data'!$F54) -> 0 | DJ54: =IF('Asset data'!$F54=0,0,AZ54/'Asset data'!$F54) -> 0 | DK54: =IF('Asset data'!$F54=0,0,BA54/'Asset data'!$F54) -> 0 | DL54: =IF('Asset data'!$F54=0,0,BB54/'Asset data'!$F54) -> 0 | DM54: =IF('Asset data'!$F54=0,0,BC54/'Asset data'!$F54) -> 0 | DN54: =IF('Asset data'!$F54=0,0,BD54/'Asset data'!$F54) -> 0 | DO54: =IF('Asset data'!$F54=0,0,BE54/'Asset data'!$F54) -> 0 | DP54: =IF('Asset data'!$F54=0,0,BF54/'Asset data'!$F54) -> 0 | DQ54: =IF('Asset data'!$F54=0,0,BG54/'Asset data'!$F54) -> 0 | DR54: =IF('Asset data'!$F54=0,0,BH54/'Asset data'!$F54) -> 0 | DS54: =IF('Asset data'!$F54=0,0,BI54/'Asset data'!$F54) -> 0 | DT54: =IF('Asset data'!$F54=0,0,BJ54/'Asset data'!$F54) -> 0 | DU54: =IF('Asset data'!$F54=0,0,BK54/'Asset data'!$F54) -> 0 | DV54: =IF('Asset data'!$F54=0,0,BL54/'Asset data'!$F54) -> 0 | DW54: =IF('Asset data'!$F54=0,0,BM54/'Asset data'!$F54) -> 0 | DX54: =IF('Asset data'!$F54=0,0,BN54/'Asset data'!$F54) -> 0 | DY54: =IF('Asset data'!$F54=0,0,BO54/'Asset data'!$F54) -> 0 | DZ54: =IF('Asset data'!$F54=0,0,BP54/'Asset data'!$F54) -> 0 | EA54: =IF('Asset data'!$F54=0,0,BQ54/'Asset data'!$F54) -> 0 | EB54: =IF('Asset data'!$F54=0,0,BR54/'Asset data'!$F54) -> 0
A55: ='Asset data'!A55 -> 0 | B55: ='Asset data'!B55 -> 0 | C55: ='Asset data'!C55 -> 0 | D55: ='Asset data'!E55 ->  | E55: 0 | F55: ='Asset data'!G55 -> 60 | G55: 60 | H55: ='Asset data'!H55 -> 7.745966692 | I55: S | J55: =IF(A55=0,0,IF('Asset data'!$D$1=1,1,IF('Asset data'!$D$1=2,2,'Asset data'!I55))) -> 0 | K55: 0 | AX55: ='Age profile summary'!H55 -> 0 | AY55: =repcalc('Age profile (Inst)'!CT55:GF55,J55,K55,H55,20,$L$20,$M$20) -> 0 | AZ55: 0 | BA55: 0 | BB55: 0 | BC55: 0 | BD55: 0 | BE55: 0 | BF55: 0 | BG55: 0 | BH55: 0 | BI55: 0 | BJ55: 0 | BK55: 0 | BL55: 0 | BM55: 0 | BN55: 0 | BO55: 0 | BP55: 0 | BQ55: 0 | BR55: 0 | BS55: 0 | BT55: 0 | BU55: 0 | BV55: 0 | BW55: 0 | BX55: 0 | BY55: 0 | BZ55: 0 | CA55: 0 | CB55: 0 | CC55: 0 | CD55: 0 | CE55: 0 | CF55: 0 | CG55: 0 | CH55: 0 | CI55: 0 | CJ55: 0 | CK55: 0 | CL55: 0 | CM55: 0 | CN55: 0 | CO55: 0 | CP55: 0 | CQ55: 0 | CR55: 0 | CS55: 0 | CT55: 0 | CU55: 0 | CV55: 0 | CW55: 0 | CX55: 0 | CY55: 0 | CZ55: 0 | DA55: 0 | DB55: 0 | DC55: 0 | DD55: 0 | DE55: 0 | DF55: 0 | DG55: 0 | DH55: 0 | DI55: =IF('Asset data'!$F55=0,0,AY55/'Asset data'!$F55) -> 0 | DJ55: =IF('Asset data'!$F55=0,0,AZ55/'Asset data'!$F55) -> 0 | DK55: =IF('Asset data'!$F55=0,0,BA55/'Asset data'!$F55) -> 0 | DL55: =IF('Asset data'!$F55=0,0,BB55/'Asset data'!$F55) -> 0 | DM55: =IF('Asset data'!$F55=0,0,BC55/'Asset data'!$F55) -> 0 | DN55: =IF('Asset data'!$F55=0,0,BD55/'Asset data'!$F55) -> 0 | DO55: =IF('Asset data'!$F55=0,0,BE55/'Asset data'!$F55) -> 0 | DP55: =IF('Asset data'!$F55=0,0,BF55/'Asset data'!$F55) -> 0 | DQ55: =IF('Asset data'!$F55=0,0,BG55/'Asset data'!$F55) -> 0 | DR55: =IF('Asset data'!$F55=0,0,BH55/'Asset data'!$F55) -> 0 | DS55: =IF('Asset data'!$F55=0,0,BI55/'Asset data'!$F55) -> 0 | DT55: =IF('Asset data'!$F55=0,0,BJ55/'Asset data'!$F55) -> 0 | DU55: =IF('Asset data'!$F55=0,0,BK55/'Asset data'!$F55) -> 0 | DV55: =IF('Asset data'!$F55=0,0,BL55/'Asset data'!$F55) -> 0 | DW55: =IF('Asset data'!$F55=0,0,BM55/'Asset data'!$F55) -> 0 | DX55: =IF('Asset data'!$F55=0,0,BN55/'Asset data'!$F55) -> 0 | DY55: =IF('Asset data'!$F55=0,0,BO55/'Asset data'!$F55) -> 0 | DZ55: =IF('Asset data'!$F55=0,0,BP55/'Asset data'!$F55) -> 0 | EA55: =IF('Asset data'!$F55=0,0,BQ55/'Asset data'!$F55) -> 0 | EB55: =IF('Asset data'!$F55=0,0,BR55/'Asset data'!$F55) -> 0
A56: ='Asset data'!A56 -> 0 | B56: ='Asset data'!B56 -> 0 | C56: ='Asset data'!C56 -> 0 | D56: ='Asset data'!E56 ->  | E56: 0 | F56: ='Asset data'!G56 -> 60 | G56: 60 | H56: ='Asset data'!H56 -> 7.745966692 | I56: S | J56: =IF(A56=0,0,IF('Asset data'!$D$1=1,1,IF('Asset data'!$D$1=2,2,'Asset data'!I56))) -> 0 | K56: 0 | AX56: ='Age profile summary'!H56 -> 0 | AY56: =repcalc('Age profile (Inst)'!CT56:GF56,J56,K56,H56,20,$L$20,$M$20) -> 0 | AZ56: 0 | BA56: 0 | BB56: 0 | BC56: 0 | BD56: 0 | BE56: 0 | BF56: 0 | BG56: 0 | BH56: 0 | BI56: 0 | BJ56: 0 | BK56: 0 | BL56: 0 | BM56: 0 | BN56: 0 | BO56: 0 | BP56: 0 | BQ56: 0 | BR56: 0 | BS56: 0 | BT56: 0 | BU56: 0 | BV56: 0 | BW56: 0 | BX56: 0 | BY56: 0 | BZ56: 0 | CA56: 0 | CB56: 0 | CC56: 0 | CD56: 0 | CE56: 0 | CF56: 0 | CG56: 0 | CH56: 0 | CI56: 0 | CJ56: 0 | CK56: 0 | CL56: 0 | CM56: 0 | CN56: 0 | CO56: 0 | CP56: 0 | CQ56: 0 | CR56: 0 | CS56: 0 | CT56: 0 | CU56: 0 | CV56: 0 | CW56: 0 | CX56: 0 | CY56: 0 | CZ56: 0 | DA56: 0 | DB56: 0 | DC56: 0 | DD56: 0 | DE56: 0 | DF56: 0 | DG56: 0 | DH56: 0 | DI56: =IF('Asset data'!$F56=0,0,AY56/'Asset data'!$F56) -> 0 | DJ56: =IF('Asset data'!$F56=0,0,AZ56/'Asset data'!$F56) -> 0 | DK56: =IF('Asset data'!$F56=0,0,BA56/'Asset data'!$F56) -> 0 | DL56: =IF('Asset data'!$F56=0,0,BB56/'Asset data'!$F56) -> 0 | DM56: =IF('Asset data'!$F56=0,0,BC56/'Asset data'!$F56) -> 0 | DN56: =IF('Asset data'!$F56=0,0,BD56/'Asset data'!$F56) -> 0 | DO56: =IF('Asset data'!$F56=0,0,BE56/'Asset data'!$F56) -> 0 | DP56: =IF('Asset data'!$F56=0,0,BF56/'Asset data'!$F56) -> 0 | DQ56: =IF('Asset data'!$F56=0,0,BG56/'Asset data'!$F56) -> 0 | DR56: =IF('Asset data'!$F56=0,0,BH56/'Asset data'!$F56) -> 0 | DS56: =IF('Asset data'!$F56=0,0,BI56/'Asset data'!$F56) -> 0 | DT56: =IF('Asset data'!$F56=0,0,BJ56/'Asset data'!$F56) -> 0 | DU56: =IF('Asset data'!$F56=0,0,BK56/'Asset data'!$F56) -> 0 | DV56: =IF('Asset data'!$F56=0,0,BL56/'Asset data'!$F56) -> 0 | DW56: =IF('Asset data'!$F56=0,0,BM56/'Asset data'!$F56) -> 0 | DX56: =IF('Asset data'!$F56=0,0,BN56/'Asset data'!$F56) -> 0 | DY56: =IF('Asset data'!$F56=0,0,BO56/'Asset data'!$F56) -> 0 | DZ56: =IF('Asset data'!$F56=0,0,BP56/'Asset data'!$F56) -> 0 | EA56: =IF('Asset data'!$F56=0,0,BQ56/'Asset data'!$F56) -> 0 | EB56: =IF('Asset data'!$F56=0,0,BR56/'Asset data'!$F56) -> 0
